Workbook

Sheet Sample Report (hidden)
A2: Date
A3: Hen
A4: Program
A5: Start at 999999
A6: Sequence component 1 | B6: Time 1 | C6: Seqeunce Component 2 | D6: Time 2 | E6: Seqeunce Component 3 | F6: Time 3 | G6: Correct 0 = No 1=Yes | J6: Seqeunce | K6: Time
A7: 12 | B7: 7 | C7: 12 | D7: 42 | E7: 13 | F7: 18 | G7: if 77 new line, if 31 or 41 = yes new line on 77, | J7: =string of Seqeunce compponent 1, 2 & 3 | K7: =time 3
A8: This continues until ther is a 1 on its own to indicate start of summary data
J9: 10-19 =1
A10: Summary Data | J10: 20-29 =2
A11: Correct | B11: Incorrect | C11: Rft | D11: total | E11: Av Correct | F11: Av Incorrect | G11: Percent correct | H11: Time | J11: in this example the seqeunce would be 111
A12: 40 | B12: 33 | C12: 40 | D12: 73 | E12: 23.95 | F12: 15 | G12: 54 | H12: 806

Sheet Summary
A2: Day | B2: Date | C2: Average Response Rate | D2: Target % | E2: RF for non correct sequence | F2: U Value | K2: Block 1 | L2: Block 2 | M2: Block 3 | N2: Block 4 | O2: Block 5 | P2: Block 6
A3: 1 | B3: ='!2011-07-29_11h41m.Subject 56'!B2:C2 -> 2011-07-29 | C3: =('!2011-07-29_11h41m.Subject 56'!F159/60)/'!2011-07-29_11h41m.Subject 56'!Q3 -> 2.241176471 | D3: ='!2011-07-29_11h41m.Subject 56'!N20/'!2011-07-29_11h41m.Subject 56'!Q3 -> 0.385620915 | E3: =SUM('!2011-07-29_11h41m.Subject 56'!L20:Q20)/'!2011-07-29_11h41m.Subject 56'!Q3 -> 1.450980392 | F3: ='!2011-07-29_11h41m.Subject 56'!Q16 -> 0.2931328415 | J3: Average Response Rate | K3: =AVERAGE(C3:C7) -> 2.112526563 | L3: =AVERAGE(C8:C12) -> 1.938512173 | M3: =AVERAGE(C13:C17) -> 1.934393196 | N3: =AVERAGE(C18:C22) -> 1.900812403 | O3: =AVERAGE(C23:C27) -> 1.984205864 | P3: =AVERAGE(C28:C32) -> 2.051809911
A4: 2 | B4: ='!2011-07-30_10h31m.Subject 55'!B2:C2 -> 2011-07-30 | C4: =('!2011-07-30_10h31m.Subject 55'!F156/60)/'!2011-07-30_10h31m.Subject 55'!Q3 -> 2.418666667 | D4: ='!2011-07-30_10h31m.Subject 55'!N20/'!2011-07-30_10h31m.Subject 55'!Q3 -> 0.1066666667 | E4: =SUM('!2011-07-30_10h31m.Subject 55'!L20:Q20)/'!2011-07-30_10h31m.Subject 55'!Q3 -> 1.853333333 | F4: ='!2011-07-30_10h31m.Subject 55'!Q16 -> 0.3122736609 | J4: Target % | K4: =AVERAGE(D3:D7) -> 0.2258233882 | L4: =AVERAGE(D8:D12) -> 0.2250289869 | M4: =AVERAGE(D13:D17) -> 0.1769559582 | N4: =AVERAGE(D18:D22) -> 0.1344825822 | O4: =AVERAGE(D23:D27) -> 0.1188196957 | P4: =AVERAGE(D28:D32) -> 0.2476861167
A5: 3 | B5: ='!2011-07-31_13h17m.Subject 56'!B2:C2 -> 2011-07-31 | C5: =('!2011-07-31_13h17m.Subject 56'!F86/60)/'!2011-07-31_13h17m.Subject 56'!Q3 -> 2.048125 | D5: ='!2011-07-31_13h17m.Subject 56'!N20/'!2011-07-31_13h17m.Subject 56'!Q3 -> 0.2875 | E5: =SUM('!2011-07-31_13h17m.Subject 56'!L20:Q20)/'!2011-07-31_13h17m.Subject 56'!Q3 -> 2.15 | F5: ='!2011-07-31_13h17m.Subject 56'!Q16 -> 0.299896521 | J5: CCRF | K5: =AVERAGE(E3:E7) -> 2.066242775 | L5: =AVERAGE(E8:E12) -> 2.689605603 | M5: =AVERAGE(E13:E17) -> 2.890502192 | N5: =AVERAGE(E18:E22) -> 2.702971374 | O5: =AVERAGE(E23:E27) -> 2.729392323 | P5: =AVERAGE(E28:E32) -> 2.437260899
A6: 4 | B6: ='!2011-08-01_12h05m.Subject 56'!B2:C2 -> 2011-08-01 | C6: =('!2011-08-01_12h05m.Subject 56'!F67/60)/'!2011-08-01_12h05m.Subject 56'!Q3 -> 1.932240437 | D6: ='!2011-08-01_12h05m.Subject 56'!N20/'!2011-08-01_12h05m.Subject 56'!Q3 -> 0.131147541 | E6: =SUM('!2011-08-01_12h05m.Subject 56'!L20:Q20)/'!2011-08-01_12h05m.Subject 56'!Q3 -> 2.295081967 | F6: ='!2011-08-01_12h05m.Subject 56'!Q16 -> 0.2743317683 | J6: U Value | K6: =AVERAGE(F3:F7) -> 0.2737149299 | L6: =AVERAGE(F8:F12) -> 0.224695316 | M6: =AVERAGE(F13:F17) -> 0.1997422605 | N6: =AVERAGE(F18:F22) -> 0.1499986346 | O6: =AVERAGE(F23:F27) -> 0.1607600352 | P6: =AVERAGE(F28:F32) -> 0.224343833
A7: 5 | B7: ='!2011-08-02_11h46m.Subject 56'!B2:C2 -> 2011-08-02 | C7: =('!2011-08-02_11h46m.Subject 56'!F61/60)/'!2011-08-02_11h46m.Subject 56'!Q3 -> 1.922424242 | D7: ='!2011-08-02_11h46m.Subject 56'!N20/'!2011-08-02_11h46m.Subject 56'!Q3 -> 0.2181818182 | E7: =SUM('!2011-08-02_11h46m.Subject 56'!L20:Q20)/'!2011-08-02_11h46m.Subject 56'!Q3 -> 2.581818182 | F7: ='!2011-08-02_11h46m.Subject 56'!Q16 -> 0.1889398576
A8: 6 | B8: ='!L803B40.056'!B2:C2 -> <date> | C8: =('!L803B40.056'!F51/60)/'!L803B40.056'!Q3 -> 1.806666667 | D8: ='!L803B40.056'!N20/'!L803B40.056'!Q3 -> 0.04444444444 | E8: =SUM('!L803B40.056'!L20:Q20)/'!L803B40.056'!Q3 -> 2.866666667 | F8: ='!L803B40.056'!Q16 -> 0.1305216815
A9: 7 | B9: ='!L804D00.056'!B2:C2 -> <date> | C9: =('!L804D00.056'!F67/60)/'!L804D00.056'!Q3 -> 2.020765027 | D9: ='!L804D00.056'!N20/'!L804D00.056'!Q3 -> 0.1967213115 | E9: =SUM('!L804D00.056'!L20:Q20)/'!L804D00.056'!Q3 -> 2.360655738 | F9: ='!L804D00.056'!Q16 -> 0.2263238445 | G9: =K3 -> 2.112526563 | H9: 1.938512173 | I9: 1.934393196 | J9: 1.900812403 | K9: 1.984205864 | L9: 2.051809911 | M9: =K4 -> 0.2258233882 | N9: 0.2250289869 | O9: 0.1769559582 | P9: 0.1344825822 | Q9: 0.1188196957 | R9: 0.2476861167 | S9: =K6 -> 0.2737149299 | T9: =L6 -> 0.224695316 | U9: 0.1997422605 | V9: 0.1499986346 | W9: 0.1607600352 | X9: 0.224343833
A10: 8 | B10: ='!L805B40.056'!B2:C2 -> <date> | C10: =('!L805B40.056'!F76/60)/'!L805B40.056'!Q3 -> 1.989285714 | D10: ='!L805B40.056'!N20/'!L805B40.056'!Q3 -> 0.2714285714 | E10: =SUM('!L805B40.056'!L20:Q20)/'!L805B40.056'!Q3 -> 3.757142857 | F10: ='!L805B40.056'!Q16 -> 0.2766745819
A11: 9 | B11: ='!L806B10.056'!B2:C2 -> <date> | C11: =('!L806B10.056'!F82/60)/'!L806B10.056'!Q3 -> 1.94122807 | D11: ='!L806B10.056'!N20/'!L806B10.056'!Q3 -> 0.2894736842 | E11: =SUM('!L806B10.056'!L20:Q20)/'!L806B10.056'!Q3 -> 2.078947368 | F11: ='!L806B10.056'!Q16 -> 0.2745080718
A12: 10 | B12: ='!L807C50.056'!B2:C2 -> <date> | C12: =('!L807C50.056'!F71/60)/'!L807C50.056'!Q3 -> 1.934615385 | D12: ='!L807C50.056'!N20/'!L807C50.056'!Q3 -> 0.3230769231 | E12: =SUM('!L807C50.056'!L20:Q20)/'!L807C50.056'!Q3 -> 2.384615385 | F12: ='!L807C50.056'!Q16 -> 0.2154484001
A13: 11 | B13: ='!L808C40.056'!B2:C2 -> <date> | C13: =('!L808C40.056'!F57/60)/'!L808C40.056'!Q3 -> 1.833006536 | D13: ='!L808C40.056'!N20/'!L808C40.056'!Q3 -> 0.05882352941 | E13: =SUM('!L808C40.056'!L20:Q20)/'!L808C40.056'!Q3 -> 2.588235294 | F13: ='!L808C40.056'!Q16 -> 0.179783376
A14: 12 | B14: ='!L809C30.056'!B2:C2 -> <date> | C14: =('!L809C30.056'!F60/60)/'!L809C30.056'!Q3 -> 2.059567901 | D14: ='!L809C30.056'!N20/'!L809C30.056'!Q3 -> 0.1296296296 | E14: =SUM('!L809C30.056'!L20:Q20)/'!L809C30.056'!Q3 -> 4.37037037 | F14: ='!L809C30.056'!Q16 -> 0.214393213
A15: 13 | B15: ='!L810D50.056'!B2:C2 -> <date> | C15: =('!L810D50.056'!F60/60)/'!L810D50.056'!Q3 -> 1.975308642 | D15: ='!L810D50.056'!N20/'!L810D50.056'!Q3 -> 0.1666666667 | E15: =SUM('!L810D50.056'!L20:Q20)/'!L810D50.056'!Q3 -> 2.574074074 | F15: ='!L810D50.056'!Q16 -> 0.1974407946
A16: 14 | B16: ='!L811C10.056'!B2:C2 -> <date> | C16: =('!L811C10.056'!F85/60)/'!L811C10.056'!Q3 -> 1.938396624 | D16: ='!L811C10.056'!N20/'!L811C10.056'!Q3 -> 0.3924050633 | E16: =SUM('!L811C10.056'!L20:Q20)/'!L811C10.056'!Q3 -> 2.253164557 | F16: ='!L811C10.056'!Q16 -> 0.2385279061
A17: 15 | B17: ='!L812B30.056'!B2:C2 -> <date> | C17: =('!L812B30.056'!F57/60)/'!L812B30.056'!Q3 -> 1.865686275 | D17: ='!L812B30.056'!N20/'!L812B30.056'!Q3 -> 0.137254902 | E17: =SUM('!L812B30.056'!L20:Q20)/'!L812B30.056'!Q3 -> 2.666666667 | F17: ='!L812B30.056'!Q16 -> 0.1685660126
A18: 16 | B18: ='!L813A20.056'!B2:C2 -> <date> | C18: =('!L813A20.056'!F67/60)/'!L813A20.056'!Q3 -> 1.979781421 | D18: ='!L813A20.056'!N20/'!L813A20.056'!Q3 -> 0.3278688525 | E18: =SUM('!L813A20.056'!L20:Q20)/'!L813A20.056'!Q3 -> 2.491803279 | F18: ='!L813A20.056'!Q16 -> 0.1726467992
A19: 17 | B19: ='!L814B30.056'!B2:C2 -> <date> | C19: =('!L814B30.056'!F60/60)/'!L814B30.056'!Q3 -> 1.949382716 | D19: ='!L814B30.056'!N20/'!L814B30.056'!Q3 -> 0.09259259259 | E19: =SUM('!L814B30.056'!L20:Q20)/'!L814B30.056'!Q3 -> 2.5 | F19: ='!L814B30.056'!Q16 -> 0.2079574596
A20: 18 | B20: ='!L815B30.056'!B2:C2 -> <date> | C20: =('!L815B30.056'!F49/60)/'!L815B30.056'!Q3 -> 1.869767442 | D20: ='!L815B30.056'!N20/'!L815B30.056'!Q3 -> 0.02325581395 | E20: =SUM('!L815B30.056'!L20:Q20)/'!L815B30.056'!Q3 -> 2.953488372 | F20: ='!L815B30.056'!Q16 -> 0.07908245547
A21: 19 | B21: ='!L816B00.056'!B2:C2 -> <date> | C21: =('!L816B00.056'!F52/60)/'!L816B00.056'!Q3 -> 1.855797101 | D21: ='!L816B00.056'!N20/'!L816B00.056'!Q3 -> 0.1086956522 | E21: =SUM('!L816B00.056'!L20:Q20)/'!L816B00.056'!Q3 -> 2.869565217 | F21: ='!L816B00.056'!Q16 -> 0.1164855055
A22: 20 | B22: ='!L817B10.056'!B2:C2 -> <date> | C22: =('!L817B10.056'!F56/60)/'!L817B10.056'!Q3 -> 1.849333333 | D22: ='!L817B10.056'!N20/'!L817B10.056'!Q3 -> 0.12 | E22: =SUM('!L817B10.056'!L20:Q20)/'!L817B10.056'!Q3 -> 2.7 | F22: ='!L817B10.056'!Q16 -> 0.1738209534
A23: 21 | B23: ='!L818E10.056'!B2:C2 -> <date> | C23: =('!L818E10.056'!F59/60)/'!L818E10.056'!Q3 -> 1.930188679 | D23: ='!L818E10.056'!N20/'!L818E10.056'!Q3 -> 0.1132075472 | E23: =SUM('!L818E10.056'!L20:Q20)/'!L818E10.056'!Q3 -> 2.547169811 | F23: ='!L818E10.056'!Q16 -> 0.1965977757
A24: 22 | B24: ='!L819A40.056'!B2:C2 -> <date> | C24: =('!L819A40.056'!F48/60)/'!L819A40.056'!Q3 -> 1.846031746 | D24: ='!L819A40.056'!N20/'!L819A40.056'!Q3 -> 0.02380952381 | E24: =SUM('!L819A40.056'!L20:Q20)/'!L819A40.056'!Q3 -> 3.023809524 | F24: ='!L819A40.056'!Q16 -> 0.06005107821
A25: 23 | B25: ='!L820B00.056'!B2:C2 -> <date> | C25: =('!L820B00.056'!F61/60)/'!L820B00.056'!Q3 -> 2.085757576 | D25: ='!L820B00.056'!N20/'!L820B00.056'!Q3 -> 0.09090909091 | E25: =SUM('!L820B00.056'!L20:Q20)/'!L820B00.056'!Q3 -> 2.636363636 | F25: ='!L820B00.056'!Q16 -> 0.189539366
A26: 24 | B26: ='!L821C50.056'!B2:C2 -> <date> | C26: =('!L821C50.056'!F54/60)/'!L821C50.056'!Q3 -> 1.840972222 | D26: ='!L821C50.056'!N20/'!L821C50.056'!Q3 -> 0.1458333333 | E26: =SUM('!L821C50.056'!L20:Q20)/'!L821C50.056'!Q3 -> 2.8125 | F26: ='!L821C50.056'!Q16 -> 0.1326090364
A27: 25 | B27: ='!L822C30.056'!B2:C2 -> <date> | C27: =('!L822C30.056'!F65/60)/'!L822C30.056'!Q3 -> 2.218079096 | D27: ='!L822C30.056'!N20/'!L822C30.056'!Q3 -> 0.2203389831 | E27: =SUM('!L822C30.056'!L20:Q20)/'!L822C30.056'!Q3 -> 2.627118644 | F27: ='!L822C30.056'!Q16 -> 0.2250029195
A28: 26 | B28: ='!L823C30.056'!B2:C2 -> <date> | C28: =('!L823C30.056'!F69/60)/'!L823C30.056'!Q3 -> 2.049470899 | D28: ='!L823C30.056'!N20/'!L823C30.056'!Q3 -> 0.2857142857 | E28: =SUM('!L823C30.056'!L20:Q20)/'!L823C30.056'!Q3 -> 2.555555556 | F28: ='!L823C30.056'!Q16 -> 0.2247475054
A29: 27 | B29: ='!L824C30.056'!B2:C2 -> <date> | C29: =('!L824C30.056'!F76/60)/'!L824C30.056'!Q3 -> 2.122857143 | D29: ='!L824C30.056'!N20/'!L824C30.056'!Q3 -> 0.2571428571 | E29: =SUM('!L824C30.056'!L20:Q20)/'!L824C30.056'!Q3 -> 2.328571429 | F29: ='!L824C30.056'!Q16 -> 0.251322392
A30: 28 | B30: ='!L825D20.056'!B2:C2 -> <date> | C30: =('!L825D20.056'!F69/60)/'!L825D20.056'!Q3 -> 2.055820106 | D30: ='!L825D20.056'!N20/'!L825D20.056'!Q3 -> 0.2857142857 | E30: =SUM('!L825D20.056'!L20:Q20)/'!L825D20.056'!Q3 -> 2.396825397 | F30: ='!L825D20.056'!Q16 -> 0.2174317407
A31: 29 | B31: ='!L826A10.056'!B2:C2 -> <date> | C31: =('!L826A10.056'!F77/60)/'!L826A10.056'!Q3 -> 2.183568075 | D31: ='!L826A10.056'!N20/'!L826A10.056'!Q3 -> 0.3098591549 | E31: =SUM('!L826A10.056'!L20:Q20)/'!L826A10.056'!Q3 -> 2.225352113 | F31: ='!L826A10.056'!Q16 -> 0.2476631118
A32: 30 | B32: ='!L829C30.056'!B2:C2 -> <date> | C32: =('!L829C30.056'!F56/60)/'!L829C30.056'!Q3 -> 1.847333333 | D32: ='!L829C30.056'!N20/'!L829C30.056'!Q3 -> 0.1 | E32: =SUM('!L829C30.056'!L20:Q20)/'!L829C30.056'!Q3 -> 2.68 | F32: ='!L829C30.056'!Q16 -> 0.1805544153
B33: ='!L830C50.056'!B2:C2 -> <date> | C33: =('!L830C50.056'!F62/60)/'!L830C50.056'!Q3 -> 2.023809524 | D33: ='!L830C50.056'!N20/'!L830C50.056'!Q3 -> 0.2678571429 | E33: =SUM('!L830C50.056'!L20:Q20)/'!L830C50.056'!Q3 -> 2.607142857 | F33: ='!L830C50.056'!Q16 -> 0.165219652

Sheet Start
F1: Use Folder 51 | H1: Auto Clean Up | J1: Correct sequence
F2: FALSE | H2: TRUE | J2: 122
A4: Working with Folder | G4: Process All/Or Pick A number: ALL or an integer
A5: E:\Hen Data\Raw Data\56\Phase 2 CON\ | G5: ALL
A6: Filenames:
A7: !L803B40.056 | G7: Paint Cells
A8: !L804D00.056 | G8: FALSE
A9: !L805B40.056
A10: !L806B10.056
A11: !L807C50.056
A12: !L808C40.056
A13: !L809C30.056
A14: !L810D50.056
A15: !L811C10.056
A16: !L812B30.056
A17: !L813A20.056
A18: !L814B30.056
A19: !L815B30.056
A20: !L816B00.056
A21: !L817B10.056
A22: !L818E10.056
A23: !L819A40.056
A24: !L820B00.056
A25: !L821C50.056
A26: !L822C30.056
A27: !L823C30.056
A28: !L824C30.056
A29: !L825D20.056
A30: !L826A10.056
A31: !L829C30.056
A32: !L830C50.056
A33: !2011-07-29_11h41m.Subject 56
A34: !2011-07-30_10h31m.Subject 55
A35: !2011-07-31_13h17m.Subject 56
A36: !2011-08-01_12h05m.Subject 56
A37: !2011-08-02_11h46m.Subject 56

Sheet !2011-07-29_11h41m.Subject 56
A1: Report for:!2011-07-29_11h41m.Subject 56
A2: Date | B2: 2011-07-29 | F2: Group | G2: Phase 2 Con
A3: Hen | B3: 56 | F3: Correct Sequence | G3: =Start!J2 -> 122 | P3: Total Sequences in Data | Q3: =4994-COUNTBLANK(L7:L5000) -> 153 | V3: Total Sequences in Block Data | W3: =COUNTA(L7:L32) -> 26 | AA3: Total Sequences in Block Data | AB3: =COUNTA(L33:L57) -> 25 | AF3: Total Sequences in Block Data | AG3: =COUNTA(L58:L83) -> 26 | AK3: Total Sequences in Block Data | AL3: =COUNTA(L84:L108) -> 25 | AP3: Total Sequences in Block Data | AQ3: =COUNTA(L109:L134) -> 26 | AU3: Total Sequences in Block Data | AV3: =COUNTA(L135:L159) -> 25
A4: Program | B4: One | P4: Total Sequences in Summary | Q4: =SUM(O7:O14) -> 153 | V4: Total Sequences in Block Summary | W4: =SUM(U7:U14) -> 26 | AA4: Total Sequences in Block Summary | AB4: =SUM(Z7:Z14) -> 25 | AF4: Total Sequences in Block Summary | AG4: =SUM(AE7:AE14) -> 26 | AK4: Total Sequences in Block Summary | AL4: =SUM(AJ7:AJ14) -> 25 | AP4: Total Sequences in Block Summary | AQ4: =SUM(AO7:AO14) -> 26 | AU4: Total Sequences in Block Summary | AV4: =SUM(AT7:AT14) -> 25
T5: Block 1 | Y5: Block 2 | AD5: Block 3 | AI5: Block 4 | AN5: Block 5 | AS5: Block 6
A6: Sequence Component 1 | B6: Time 1 | C6: Sequence Component 2 | D6: Time 2 | E6: Sequence Component 3 | F6: Time 3 | G6: Sequence Component 4 | H6: Time 4 | I6: Sequence Component 5 | J6: Time 5 | K6: Correct? 0=No 1=Yes | L6: Sequence | N6: Frequency | P6: Relative Frequency | Q6: Variability | T6: Frequency | V6: Relative Frequency | W6: Variability | Y6: Frequency | AA6: Relative Frequency | AB6: Variability | AD6: Frequency | AF6: Relative Frequency | AG6: Variability | AI6: Frequency | AK6: Relative Frequency | AL6: Variability | AN6: Frequency | AP6: Relative Frequency | AQ6: Variability | AS6: Frequency | AU6: Relative Frequency | AV6: Variability
A7: 22 | B7: 11 | C7: 13 | D7: 27 | E7: 14 | F7: 32 | K7: 0 | L7: 211 | N7: 111 | O7: =COUNTIF($L$7:$L$500,N7) -> 15 | P7: =O7/$Q$4 -> 0.09803921569 | Q7: =IF(P7=0,0,(P7*((LOG(P7))/LOG(2)))) -> -0.3284801223 | T7: =N7 -> 111 | U7: =COUNTIF(L7:L32,T7) -> 8 | V7: =U7/(W4-U10) -> 0.4 | W7: =IF(V7=0,0,(V7*((LOG(V7))/LOG(2)))) -> -0.528771238 | Y7: =N7 -> 111 | Z7: =COUNTIF(L33:L57,Y7) -> 1 | AA7: =Z7/(AB4-Z10) -> 0.06666666667 | AB7: =IF(AA7=0,0,(AA7*((LOG(AA7))/LOG(2)))) -> -0.260459373 | AD7: =N7 -> 111 | AE7: =COUNTIF(L58:L83,AD7) -> 2 | AF7: =AE7/(AG4-AE10) -> 0.1176470588 | AG7: =IF(AF7=0,0,(AF7*((LOG(AF7))/LOG(2)))) -> -0.3632309225 | AI7: =N7 -> 111 | AJ7: =COUNTIF(L84:L108,AI7) -> 0 | AK7: =AJ7/(AL4-AJ10) -> 0 | AL7: =IF(AK7=0,0,(AK7*((LOG(AK7))/LOG(2)))) -> 0 | AN7: =N7 -> 111 | AO7: =COUNTIF(L109:L134,AN7) -> 0 | AP7: =AO7/(AQ4-AO10) -> 0 | AQ7: =IF(AP7=0,0,(AP7*((LOG(AP7))/LOG(2)))) -> 0 | AS7: =N7 -> 111 | AT7: =COUNTIF(L135:L159,AS7) -> 4 | AU7: =AT7/(AV4-AT10) -> 0.25 | AV7: =IF(AU7=0,0,(AU7*((LOG(AU7))/LOG(2)))) -> -0.5
A8: 22 | B8: 134 | C8: 13 | D8: 145 | E8: 14 | F8: 150 | K8: 0 | L8: 211 | N8: 112 | O8: 40 | P8: 0.2614379085 | Q8: -0.5060025484 | T8: 112 | U8: =COUNTIF(L7:L32,T8) -> 3 | V8: =U8/(W4-U10) -> 0.15 | W8: =IF(V8=0,0,(V8*((LOG(V8))/LOG(2)))) -> -0.4105448391 | Y8: 112 | Z8: =COUNTIF(L33:L57,Y8) -> 4 | AA8: =Z8/(AB4-Z10) -> 0.2666666667 | AB8: =IF(AA8=0,0,(AA8*((LOG(AA8))/LOG(2)))) -> -0.5085041588 | AD8: 112 | AE8: =COUNTIF(L58:L83,AD8) -> 9 | AF8: =AE8/(AG4-AE10) -> 0.5294117647 | AG8: =IF(AF8=0,0,(AF8*((LOG(AF8))/LOG(2)))) -> -0.485755327 | AI8: 112 | AJ8: =COUNTIF(L84:L108,AI8) -> 2 | AK8: =AJ8/(AL4-AJ10) -> 0.1818181818 | AL8: =IF(AK8=0,0,(AK8*((LOG(AK8))/LOG(2)))) -> -0.4471693852 | AN8: 112 | AO8: =COUNTIF(L109:L134,AN8) -> 14 | AP8: =AO8/(AQ4-AO10) -> 0.9333333333 | AQ8: =IF(AP8=0,0,(AP8*((LOG(AP8))/LOG(2)))) -> -0.09289996198 | AS8: 112 | AT8: =COUNTIF(L135:L159,AS8) -> 8 | AU8: =AT8/(AV4-AT10) -> 0.5 | AV8: =IF(AU8=0,0,(AU8*((LOG(AU8))/LOG(2)))) -> -0.5
A9: 11 | B9: 275 | C9: 11 | D9: 281 | E9: 12 | F9: 289 | K9: 0 | L9: 111 | N9: 121 | O9: 3 | P9: 0.01960784314 | Q9: -0.1112240263 | T9: 121 | U9: =COUNTIF(L7:L32,T9) -> 1 | V9: =U9/(W4-U10) -> 0.05 | W9: =IF(V9=0,0,(V9*((LOG(V9))/LOG(2)))) -> -0.2160964047 | Y9: 121 | Z9: =COUNTIF(L33:L57,Y9) -> 0 | AA9: =Z9/(AB4-Z10) -> 0 | AB9: =IF(AA9=0,0,(AA9*((LOG(AA9))/LOG(2)))) -> 0 | AD9: 121 | AE9: =COUNTIF(L58:L83,AD9) -> 0 | AF9: =AE9/(AG4-AE10) -> 0 | AG9: =IF(AF9=0,0,(AF9*((LOG(AF9))/LOG(2)))) -> 0 | AI9: 121 | AJ9: =COUNTIF(L84:L108,AI9) -> 1 | AK9: =AJ9/(AL4-AJ10) -> 0.09090909091 | AL9: =IF(AK9=0,0,(AK9*((LOG(AK9))/LOG(2)))) -> -0.3144937835 | AN9: 121 | AO9: =COUNTIF(L109:L134,AN9) -> 1 | AP9: =AO9/(AQ4-AO10) -> 0.06666666667 | AQ9: =IF(AP9=0,0,(AP9*((LOG(AP9))/LOG(2)))) -> -0.260459373 | AS9: 121 | AT9: =COUNTIF(L135:L159,AS9) -> 0 | AU9: =AT9/(AV4-AT10) -> 0 | AV9: =IF(AU9=0,0,(AU9*((LOG(AU9))/LOG(2)))) -> 0
A10: 11 | B10: 393 | C10: 11 | D10: 399 | E10: 12 | F10: 413 | K10: 0 | L10: 111 | N10: 122 | O10: 59 | P10: 0.385620915 | Q10: -0.5301303451 | T10: 122 | U10: =COUNTIF(L7:L32,T10) -> 6 | Y10: 122 | Z10: =COUNTIF(L33:L57,Y10) -> 10 | AD10: 122 | AE10: =COUNTIF(L58:L83,AD10) -> 9 | AI10: 122 | AJ10: =COUNTIF(L84:L108,AI10) -> 14 | AN10: 122 | AO10: =COUNTIF(L109:L134,AN10) -> 11 | AS10: 122 | AT10: =COUNTIF(L135:L159,AS10) -> 9
A11: 11 | B11: 532 | C11: 11 | D11: 545 | E11: 12 | F11: 552 | K11: 0 | L11: 111 | N11: 211 | O11: 4 | P11: 0.02614379085 | Q11: -0.1374480482 | T11: 211 | U11: =COUNTIF(L7:L32,T11) -> 4 | V11: =U11/(W4-U10) -> 0.2 | W11: =IF(V11=0,0,(V11*((LOG(V11))/LOG(2)))) -> -0.464385619 | Y11: 211 | Z11: =COUNTIF(L33:L57,Y11) -> 0 | AA11: =Z11/(AB4-Z10) -> 0 | AB11: =IF(AA11=0,0,(AA11*((LOG(AA11))/LOG(2)))) -> 0 | AD11: 211 | AE11: =COUNTIF(L58:L83,AD11) -> 0 | AF11: =AE11/(AG4-AE10) -> 0 | AG11: =IF(AF11=0,0,(AF11*((LOG(AF11))/LOG(2)))) -> 0 | AI11: 211 | AJ11: =COUNTIF(L84:L108,AI11) -> 0 | AK11: =AJ11/(AL4-AJ10) -> 0 | AL11: =IF(AK11=0,0,(AK11*((LOG(AK11))/LOG(2)))) -> 0 | AN11: 211 | AO11: =COUNTIF(L109:L134,AN11) -> 0 | AP11: =AO11/(AQ4-AO10) -> 0 | AQ11: =IF(AP11=0,0,(AP11*((LOG(AP11))/LOG(2)))) -> 0 | AS11: 211 | AT11: =COUNTIF(L135:L159,AS11) -> 0 | AU11: =AT11/(AV4-AT10) -> 0 | AV11: =IF(AU11=0,0,(AU11*((LOG(AU11))/LOG(2)))) -> 0
A12: 22 | B12: 654 | C12: 13 | D12: 669 | E12: 14 | F12: 674 | K12: 0 | L12: 211 | N12: 212 | O12: 0 | P12: 0 | Q12: 0 | T12: 212 | U12: =COUNTIF(L7:L32,T12) -> 0 | V12: =U12/(W4-U10) -> 0 | W12: =IF(V12=0,0,(V12*((LOG(V12))/LOG(2)))) -> 0 | Y12: 212 | Z12: =COUNTIF(L33:L57,Y12) -> 0 | AA12: =Z12/(AB4-Z10) -> 0 | AB12: =IF(AA12=0,0,(AA12*((LOG(AA12))/LOG(2)))) -> 0 | AD12: 212 | AE12: =COUNTIF(L58:L83,AD12) -> 0 | AF12: =AE12/(AG4-AE10) -> 0 | AG12: =IF(AF12=0,0,(AF12*((LOG(AF12))/LOG(2)))) -> 0 | AI12: 212 | AJ12: =COUNTIF(L84:L108,AI12) -> 0 | AK12: =AJ12/(AL4-AJ10) -> 0 | AL12: =IF(AK12=0,0,(AK12*((LOG(AK12))/LOG(2)))) -> 0 | AN12: 212 | AO12: =COUNTIF(L109:L134,AN12) -> 0 | AP12: =AO12/(AQ4-AO10) -> 0 | AQ12: =IF(AP12=0,0,(AP12*((LOG(AP12))/LOG(2)))) -> 0 | AS12: 212 | AT12: =COUNTIF(L135:L159,AS12) -> 0 | AU12: =AT12/(AV4-AT10) -> 0 | AV12: =IF(AU12=0,0,(AU12*((LOG(AU12))/LOG(2)))) -> 0
A13: 11 | B13: 788 | C13: 11 | D13: 799 | E13: 12 | F13: 805 | K13: 0 | L13: 111 | N13: 221 | O13: 1 | P13: 0.006535947712 | Q13: -0.04743390747 | T13: 221 | U13: =COUNTIF(L7:L32,T13) -> 1 | V13: =U13/(W4-U10) -> 0.05 | W13: =IF(V13=0,0,(V13*((LOG(V13))/LOG(2)))) -> -0.2160964047 | Y13: 221 | Z13: =COUNTIF(L33:L57,Y13) -> 0 | AA13: =Z13/(AB4-Z10) -> 0 | AB13: =IF(AA13=0,0,(AA13*((LOG(AA13))/LOG(2)))) -> 0 | AD13: 221 | AE13: =COUNTIF(L58:L83,AD13) -> 0 | AF13: =AE13/(AG4-AE10) -> 0 | AG13: =IF(AF13=0,0,(AF13*((LOG(AF13))/LOG(2)))) -> 0 | AI13: 221 | AJ13: =COUNTIF(L84:L108,AI13) -> 0 | AK13: =AJ13/(AL4-AJ10) -> 0 | AL13: =IF(AK13=0,0,(AK13*((LOG(AK13))/LOG(2)))) -> 0 | AN13: 221 | AO13: =COUNTIF(L109:L134,AN13) -> 0 | AP13: =AO13/(AQ4-AO10) -> 0 | AQ13: =IF(AP13=0,0,(AP13*((LOG(AP13))/LOG(2)))) -> 0 | AS13: 221 | AT13: =COUNTIF(L135:L159,AS13) -> 0 | AU13: =AT13/(AV4-AT10) -> 0 | AV13: =IF(AU13=0,0,(AU13*((LOG(AU13))/LOG(2)))) -> 0
A14: 11 | B14: 928 | C14: 22 | D14: 939 | E14: 14 | F14: 955 | K14: 0 | L14: 121 | N14: 222 | O14: 31 | P14: 0.2026143791 | Q14: -0.4666597222 | T14: 222 | U14: =COUNTIF(L7:L32,T14) -> 3 | V14: =U14/(W4-U10) -> 0.15 | W14: =IF(V14=0,0,(V14*((LOG(V14))/LOG(2)))) -> -0.4105448391 | Y14: 222 | Z14: =COUNTIF(L33:L57,Y14) -> 10 | AA14: =Z14/(AB4-Z10) -> 0.6666666667 | AB14: =IF(AA14=0,0,(AA14*((LOG(AA14))/LOG(2)))) -> -0.3899750005 | AD14: 222 | AE14: =COUNTIF(L58:L83,AD14) -> 6 | AF14: =AE14/(AG4-AE10) -> 0.3529411765 | AG14: =IF(AF14=0,0,(AF14*((LOG(AF14))/LOG(2)))) -> -0.5302942378 | AI14: 222 | AJ14: =COUNTIF(L84:L108,AI14) -> 8 | AK14: =AJ14/(AL4-AJ10) -> 0.7272727273 | AL14: =IF(AK14=0,0,(AK14*((LOG(AK14))/LOG(2)))) -> -0.3341320863 | AN14: 222 | AO14: =COUNTIF(L109:L134,AN14) -> 0 | AP14: =AO14/(AQ4-AO10) -> 0 | AQ14: =IF(AP14=0,0,(AP14*((LOG(AP14))/LOG(2)))) -> 0 | AS14: 222 | AT14: =COUNTIF(L135:L159,AS14) -> 4 | AU14: =AT14/(AV4-AT10) -> 0.25 | AV14: =IF(AU14=0,0,(AU14*((LOG(AU14))/LOG(2)))) -> -0.5
A15: 22 | B15: 1078 | C15: 13 | D15: 1100 | E15: 14 | F15: 1107 | K15: 0 | L15: 211 | P15: =SUM(P7:P14) -> 1 | Q15: =-SUM(Q7:Q14) -> 2.12737872 | V15: =SUM(V7:V14) -> 1 | W15: =-SUM(W7:W14) -> 2.246439345 | AA15: =SUM(AA7:AA14) -> 1 | AB15: =-SUM(AB7:AB14) -> 1.158938532 | AF15: =SUM(AF7:AF14) -> 1 | AG15: =-SUM(AG7:AG14) -> 1.379280487 | AK15: =SUM(AK7:AK14) -> 1 | AL15: =-SUM(AL7:AL14) -> 1.095795255 | AP15: =SUM(AP7:AP14) -> 1 | AQ15: =-SUM(AQ7:AQ14) -> 0.353359335 | AU15: =SUM(AU7:AU14) -> 1 | AV15: =-SUM(AV7:AV14) -> 1.5
A16: 11 | B16: 1214 | C16: 22 | D16: 1235 | E16: 23 | F16: 1243 | K16: 0 | L16: 122 | P16: U= | Q16: =Q15/(LOG(Q4)/LOG(2)) -> 0.2931328415 | V16: U1= | W16: =W15/(LOG(W4)/LOG(2)) -> 0.4779211051 | AA16: U2= | AB16: =AB15/(LOG(AB4)/LOG(2)) -> 0.2495638291 | AF16: U3= | AG16: =AG15/(LOG(AG4)/LOG(2)) -> 0.2934364804 | AK16: U4= | AL16: =AL15/(LOG(AL4)/LOG(2)) -> 0.2359666644 | AP16: U5= | AQ16: =AQ15/(LOG(AQ4)/LOG(2)) -> 0.07517580401 | AU16: U6= | AV16: =AV15/(LOG(AV4)/LOG(2)) -> 0.3230074186
A17: 11 | B17: 1347 | C17: 11 | D17: 1356 | E17: 12 | F17: 1409 | K17: 0 | L17: 111
A18: 22 | B18: 1543 | C18: 24 | D18: 1556 | E18: 14 | F18: 1571 | K18: 0 | L18: 221
A19: 22 | B19: 1701 | C19: 24 | D19: 1706 | E19: 23 | F19: 1717 | K19: 0 | L19: 222 | N19: Total Target Seq
A20: 11 | B20: 1843 | C20: 11 | D20: 1849 | E20: 21 | F20: 1859 | K20: 0 | L20: 112 | N20: =COUNTIF(L7:L159,G3) -> 59 | P20: 26 | Q20: 25 | R20: 26 | S20: 25 | T20: 26 | U20: 25
A21: 11 | B21: 1965 | C21: 22 | D21: 1975 | E21: 23 | F21: 1984 | K21: 0 | L21: 122 | P21: % of reinforcement given in 6 equal intervals based on number of trials
A22: 11 | B22: 2114 | C22: 22 | D22: 2126 | E22: 23 | F22: 2151 | K22: 0 | L22: 122 | P22: %_1 | Q22: %_2 | R22: %_3 | S22: %_4 | T22: %_5 | U22: %_6
A23: 22 | B23: 2274 | C23: 24 | D23: 2278 | E23: 23 | F23: 2283 | K23: 0 | L23: 222 | O23: target sequence | P23: =$G$3 -> 122 | Q23: 122 | R23: 122 | S23: 122 | T23: 122 | U23: 122
A24: 22 | B24: 2423 | C24: 24 | D24: 2433 | E24: 23 | F24: 2440 | K24: 0 | L24: 222 | O24: total reinforcement | P24: =U10 -> 6 | Q24: =Z10 -> 10 | R24: =AE10 -> 9 | S24: =AJ10 -> 14 | T24: =AO10 -> 11 | U24: =AT10 -> 9
A25: 11 | B25: 2554 | C25: 22 | D25: 2567 | E25: 23 | F25: 2580 | K25: 0 | L25: 122 | O25: % target
A26: 11 | B26: 2701 | C26: 22 | D26: 2712 | E26: 23 | F26: 2750 | K26: 0 | L26: 122 | O26: CCRF
A27: 11 | B27: 2867 | C27: 11 | D27: 2884 | E27: 21 | F27: 2894 | K27: 0 | L27: 112 | O27: % CCRf
A28: 11 | B28: 2993 | C28: 11 | D28: 3000 | E28: 21 | F28: 3059 | K28: 0 | L28: 112 | O28: average response rate | P28: =F32/P20 -> 137.5384615 | Q28: =(F57-F32)/Q20 -> 141.84 | R28: =(F83-F57)/R20 -> 137.3846154 | S28: =(F108-F83)/S20 -> 137.6 | T28: =(F134-F108)/T20 -> 125.1923077 | U28: =(F159-F134)/U20 -> 127.4
A29: 11 | B29: 3170 | C29: 22 | D29: 3180 | E29: 23 | F29: 3198 | K29: 0 | L29: 122
A30: 11 | B30: 3312 | C30: 11 | D30: 3319 | E30: 12 | F30: 3328 | K30: 0 | L30: 111
A31: 11 | B31: 3431 | C31: 11 | D31: 3446 | E31: 12 | F31: 3453 | K31: 0 | L31: 111
A32: 11 | B32: 3559 | C32: 11 | D32: 3565 | E32: 12 | F32: 3576 | K32: 0 | L32: 111
A33: 11 | B33: 3679 | C33: 11 | D33: 3688 | E33: 21 | F33: 3698 | K33: 0 | L33: 112
A34: 22 | B34: 3822 | C34: 24 | D34: 3829 | E34: 23 | F34: 3838 | K34: 0 | L34: 222
A35: 11 | B35: 3940 | C35: 11 | D35: 3954 | E35: 12 | F35: 3971 | K35: 0 | L35: 111
A36: 11 | B36: 4070 | C36: 11 | D36: 4079 | E36: 21 | F36: 4090 | K36: 0 | L36: 112
A37: 11 | B37: 4187 | C37: 22 | D37: 4205 | E37: 23 | F37: 4219 | K37: 0 | L37: 122
A38: 22 | B38: 4346 | C38: 24 | D38: 4354 | E38: 23 | F38: 4362 | K38: 0 | L38: 222
A39: 11 | B39: 4474 | C39: 22 | D39: 4487 | E39: 23 | F39: 4511 | K39: 0 | L39: 122
A40: 11 | B40: 4621 | C40: 22 | D40: 4630 | E40: 23 | F40: 4638 | K40: 0 | L40: 122
A41: 22 | B41: 4769 | C41: 24 | D41: 4777 | E41: 23 | F41: 4815 | K41: 0 | L41: 222
A42: 22 | B42: 4967 | C42: 24 | D42: 4976 | E42: 23 | F42: 4986 | K42: 0 | L42: 222
A43: 22 | B43: 5101 | C43: 24 | D43: 5106 | E43: 23 | F43: 5120 | K43: 0 | L43: 222
A44: 11 | B44: 5238 | C44: 22 | D44: 5251 | E44: 23 | F44: 5258 | K44: 0 | L44: 122
A45: 11 | B45: 5359 | C45: 11 | D45: 5374 | E45: 21 | F45: 5384 | K45: 0 | L45: 112
A46: 22 | B46: 5493 | C46: 24 | D46: 5500 | E46: 23 | F46: 5507 | K46: 0 | L46: 222
A47: 11 | B47: 5613 | C47: 11 | D47: 5625 | E47: 21 | F47: 5643 | K47: 0 | L47: 112
A48: 11 | B48: 5734 | C48: 22 | D48: 5749 | E48: 23 | F48: 5755 | K48: 0 | L48: 122
A49: 22 | B49: 5868 | C49: 24 | D49: 5879 | E49: 23 | F49: 5886 | K49: 0 | L49: 222
A50: 22 | B50: 5999 | C50: 24 | D50: 6012 | E50: 23 | F50: 6039 | K50: 0 | L50: 222
A51: 11 | B51: 6147 | C51: 22 | D51: 6161 | E51: 23 | F51: 6238 | K51: 0 | L51: 122
A52: 22 | B52: 6360 | C52: 24 | D52: 6365 | E52: 23 | F52: 6371 | K52: 0 | L52: 222
A53: 11 | B53: 6481 | C53: 22 | D53: 6495 | E53: 23 | F53: 6501 | K53: 0 | L53: 122
A54: 22 | B54: 6618 | C54: 24 | D54: 6627 | E54: 23 | F54: 6635 | K54: 0 | L54: 222
A55: 11 | B55: 6735 | C55: 22 | D55: 6773 | E55: 23 | F55: 6812 | K55: 0 | L55: 122
A56: 11 | B56: 6937 | C56: 22 | D56: 6949 | E56: 23 | F56: 6956 | K56: 0 | L56: 122
A57: 11 | B57: 7076 | C57: 22 | D57: 7085 | E57: 23 | F57: 7122 | K57: 0 | L57: 122
A58: 22 | B58: 7237 | C58: 24 | D58: 7274 | E58: 23 | F58: 7294 | K58: 0 | L58: 222
A59: 11 | B59: 7421 | C59: 22 | D59: 7444 | E59: 23 | F59: 7449 | K59: 0 | L59: 122
A60: 11 | B60: 7551 | C60: 22 | D60: 7573 | E60: 23 | F60: 7578 | K60: 0 | L60: 122
A61: 11 | B61: 7696 | C61: 22 | D61: 7706 | E61: 23 | F61: 7713 | K61: 0 | L61: 122
A62: 22 | B62: 7849 | C62: 24 | D62: 7854 | E62: 23 | F62: 7860 | K62: 0 | L62: 222
A63: 11 | B63: 7966 | C63: 22 | D63: 7979 | E63: 23 | F63: 7983 | K63: 0 | L63: 122
A64: 11 | B64: 8095 | C64: 11 | D64: 8103 | E64: 21 | F64: 8113 | K64: 0 | L64: 112
A65: 11 | B65: 8206 | C65: 11 | D65: 8220 | E65: 21 | F65: 8245 | K65: 0 | L65: 112
A66: 11 | B66: 8339 | C66: 11 | D66: 8358 | E66: 21 | F66: 8367 | K66: 0 | L66: 112
A67: 11 | B67: 8458 | C67: 22 | D67: 8469 | E67: 23 | F67: 8477 | K67: 0 | L67: 122
A68: 11 | B68: 8580 | C68: 11 | D68: 8590 | E68: 12 | F68: 8601 | K68: 0 | L68: 111
A69: 11 | B69: 8700 | C69: 11 | D69: 8709 | E69: 21 | F69: 8722 | K69: 0 | L69: 112
A70: 11 | B70: 8812 | C70: 11 | D70: 8819 | E70: 12 | F70: 8828 | K70: 0 | L70: 111
A71: 11 | B71: 8929 | C71: 11 | D71: 8941 | E71: 21 | F71: 8956 | K71: 0 | L71: 112
A72: 11 | B72: 9053 | C72: 11 | D72: 9068 | E72: 21 | F72: 9082 | K72: 0 | L72: 112
A73: 11 | B73: 9170 | C73: 11 | D73: 9178 | E73: 21 | F73: 9190 | K73: 0 | L73: 112
A74: 11 | B74: 9305 | C74: 22 | D74: 9318 | E74: 23 | F74: 9325 | K74: 0 | L74: 122
A75: 11 | B75: 9427 | C75: 22 | D75: 9440 | E75: 23 | F75: 9453 | K75: 0 | L75: 122
A76: 11 | B76: 9554 | C76: 11 | D76: 9565 | E76: 21 | F76: 9577 | K76: 0 | L76: 112
A77: 22 | B77: 9687 | C77: 24 | D77: 9694 | E77: 23 | F77: 9775 | K77: 0 | L77: 222
A78: 11 | B78: 9887 | C78: 11 | D78: 9898 | E78: 21 | F78: 9910 | K78: 0 | L78: 112
A79: 11 | B79: 10000 | C79: 22 | D79: 10013 | E79: 23 | F79: 10021 | K79: 0 | L79: 122
A80: 22 | B80: 10137 | C80: 24 | D80: 10145 | E80: 23 | F80: 10200 | K80: 0 | L80: 222
A81: 22 | B81: 10336 | C81: 24 | D81: 10380 | E81: 23 | F81: 10400 | K81: 0 | L81: 222
A82: 11 | B82: 10519 | C82: 22 | D82: 10532 | E82: 23 | F82: 10559 | K82: 0 | L82: 122
A83: 22 | B83: 10681 | C83: 24 | D83: 10687 | E83: 23 | F83: 10694 | K83: 0 | L83: 222
A84: 11 | B84: 10819 | C84: 22 | D84: 10832 | E84: 23 | F84: 10852 | K84: 0 | L84: 122
A85: 11 | B85: 10966 | C85: 22 | D85: 10981 | E85: 23 | F85: 11008 | K85: 0 | L85: 122
A86: 22 | B86: 11143 | C86: 24 | D86: 11152 | E86: 23 | F86: 11199 | K86: 0 | L86: 222
A87: 11 | B87: 11319 | C87: 22 | D87: 11331 | E87: 23 | F87: 11345 | K87: 0 | L87: 122
A88: 11 | B88: 11466 | C88: 22 | D88: 11477 | E88: 23 | F88: 11506 | K88: 0 | L88: 122
A89: 22 | B89: 11622 | C89: 24 | D89: 11635 | E89: 23 | F89: 11649 | K89: 0 | L89: 222
A90: 22 | B90: 11773 | C90: 24 | D90: 11777 | E90: 23 | F90: 11784 | K90: 0 | L90: 222
A91: 22 | B91: 11910 | C91: 24 | D91: 11917 | E91: 23 | F91: 11942 | K91: 0 | L91: 222
A92: 11 | B92: 12058 | C92: 22 | D92: 12068 | E92: 23 | F92: 12073 | K92: 0 | L92: 122
A93: 11 | B93: 12177 | C93: 22 | D93: 12194 | E93: 23 | F93: 12204 | K93: 0 | L93: 122
A94: 11 | B94: 12308 | C94: 22 | D94: 12319 | E94: 23 | F94: 12339 | K94: 0 | L94: 122
A95: 11 | B95: 12438 | C95: 11 | D95: 12449 | E95: 21 | F95: 12459 | K95: 0 | L95: 112
A96: 22 | B96: 12565 | C96: 24 | D96: 12570 | E96: 23 | F96: 12579 | K96: 0 | L96: 222
A97: 22 | B97: 12697 | C97: 24 | D97: 12701 | E97: 23 | F97: 12707 | K97: 0 | L97: 222
A98: 11 | B98: 12832 | C98: 22 | D98: 12841 | E98: 23 | F98: 12849 | K98: 0 | L98: 122
A99: 22 | B99: 12961 | C99: 24 | D99: 12969 | E99: 23 | F99: 12974 | K99: 0 | L99: 222
A100: 11 | B100: 13078 | C100: 22 | D100: 13092 | E100: 23 | F100: 13111 | K100: 0 | L100: 122
A101: 22 | B101: 13236 | C101: 24 | D101: 13242 | E101: 23 | F101: 13256 | K101: 0 | L101: 222
A102: 11 | B102: 13372 | C102: 22 | D102: 13384 | E102: 23 | F102: 13391 | K102: 0 | L102: 122
A103: 11 | B103: 13492 | C103: 22 | D103: 13511 | E103: 23 | F103: 13518 | K103: 0 | L103: 122
A104: 11 | B104: 13625 | C104: 22 | D104: 13636 | E104: 23 | F104: 13653 | K104: 0 | L104: 122
A105: 11 | B105: 13763 | C105: 22 | D105: 13778 | E105: 14 | F105: 13789 | K105: 0 | L105: 121
A106: 11 | B106: 13887 | C106: 22 | D106: 13899 | E106: 23 | F106: 13904 | K106: 0 | L106: 122
A107: 11 | B107: 14005 | C107: 11 | D107: 14013 | E107: 21 | F107: 14025 | K107: 0 | L107: 112
A108: 11 | B108: 14119 | C108: 22 | D108: 14129 | E108: 23 | F108: 14134 | K108: 0 | L108: 122
A109: 11 | B109: 14234 | C109: 22 | D109: 14244 | E109: 23 | F109: 14252 | K109: 0 | L109: 122
A110: 11 | B110: 14351 | C110: 22 | D110: 14363 | E110: 23 | F110: 14385 | K110: 0 | L110: 122
A111: 11 | B111: 14517 | C111: 22 | D111: 14527 | E111: 23 | F111: 14552 | K111: 0 | L111: 122
A112: 11 | B112: 14651 | C112: 22 | D112: 14661 | E112: 23 | F112: 14676 | K112: 0 | L112: 122
A113: 11 | B113: 14775 | C113: 11 | D113: 14795 | E113: 21 | F113: 14804 | K113: 0 | L113: 112
A114: 11 | B114: 14898 | C114: 11 | D114: 14907 | E114: 21 | F114: 14920 | K114: 0 | L114: 112
A115: 11 | B115: 15014 | C115: 11 | D115: 15028 | E115: 21 | F115: 15040 | K115: 0 | L115: 112
A116: 11 | B116: 15136 | C116: 22 | D116: 15147 | E116: 23 | F116: 15153 | K116: 0 | L116: 122
A117: 11 | B117: 15254 | C117: 22 | D117: 15264 | E117: 23 | F117: 15277 | K117: 0 | L117: 122
A118: 11 | B118: 15374 | C118: 11 | D118: 15383 | E118: 21 | F118: 15397 | K118: 0 | L118: 112
A119: 11 | B119: 15490 | C119: 11 | D119: 15506 | E119: 21 | F119: 15517 | K119: 0 | L119: 112
A120: 11 | B120: 15608 | C120: 11 | D120: 15613 | E120: 21 | F120: 15623 | K120: 0 | L120: 112
A121: 11 | B121: 15713 | C121: 11 | D121: 15718 | E121: 21 | F121: 15733 | K121: 0 | L121: 112
A122: 11 | B122: 15823 | C122: 22 | D122: 15853 | E122: 23 | F122: 15862 | K122: 0 | L122: 122
A123: 11 | B123: 15966 | C123: 22 | D123: 15976 | E123: 14 | F123: 16030 | K123: 0 | L123: 121
A124: 11 | B124: 16131 | C124: 22 | D124: 16141 | E124: 23 | F124: 16154 | K124: 0 | L124: 122
A125: 11 | B125: 16260 | C125: 22 | D125: 16280 | E125: 23 | F125: 16287 | K125: 0 | L125: 122
A126: 11 | B126: 16383 | C126: 22 | D126: 16394 | E126: 23 | F126: 16401 | K126: 0 | L126: 122
A127: 11 | B127: 16500 | C127: 11 | D127: 16511 | E127: 21 | F127: 16521 | K127: 0 | L127: 112
A128: 11 | B128: 16615 | C128: 11 | D128: 16629 | E128: 21 | F128: 16641 | K128: 0 | L128: 112
A129: 11 | B129: 16735 | C129: 11 | D129: 16743 | E129: 21 | F129: 16757 | K129: 0 | L129: 112
A130: 11 | B130: 16866 | C130: 11 | D130: 16874 | E130: 21 | F130: 16887 | K130: 0 | L130: 112
A131: 11 | B131: 16988 | C131: 11 | D131: 16999 | E131: 21 | F131: 17010 | K131: 0 | L131: 112
A132: 11 | B132: 17104 | C132: 22 | D132: 17119 | E132: 23 | F132: 17163 | K132: 0 | L132: 122
A133: 11 | B133: 17261 | C133: 11 | D133: 17267 | E133: 21 | F133: 17280 | K133: 0 | L133: 112
A134: 11 | B134: 17373 | C134: 11 | D134: 17380 | E134: 21 | F134: 17389 | K134: 0 | L134: 112
A135: 11 | B135: 17482 | C135: 11 | D135: 17491 | E135: 12 | F135: 17506 | K135: 0 | L135: 111
A136: 11 | B136: 17604 | C136: 22 | D136: 17615 | E136: 23 | F136: 17623 | K136: 0 | L136: 122
A137: 11 | B137: 17727 | C137: 11 | D137: 17758 | E137: 21 | F137: 17781 | K137: 0 | L137: 112
A138: 11 | B138: 17876 | C138: 11 | D138: 17882 | E138: 12 | F138: 17894 | K138: 0 | L138: 111
A139: 11 | B139: 17997 | C139: 11 | D139: 18010 | E139: 21 | F139: 18021 | K139: 0 | L139: 112
A140: 11 | B140: 18112 | C140: 11 | D140: 18120 | E140: 21 | F140: 18129 | K140: 0 | L140: 112
A141: 11 | B141: 18219 | C141: 11 | D141: 18232 | E141: 21 | F141: 18241 | K141: 0 | L141: 112
A142: 22 | B142: 18337 | C142: 24 | D142: 18348 | E142: 23 | F142: 18366 | K142: 0 | L142: 222
A143: 11 | B143: 18473 | C143: 22 | D143: 18494 | E143: 23 | F143: 18501 | K143: 0 | L143: 122
A144: 22 | B144: 18615 | C144: 24 | D144: 18622 | E144: 23 | F144: 18629 | K144: 0 | L144: 222
A145: 11 | B145: 18735 | C145: 11 | D145: 18754 | E145: 12 | F145: 18769 | K145: 0 | L145: 111
A146: 11 | B146: 18871 | C146: 22 | D146: 18881 | E146: 23 | F146: 18892 | K146: 0 | L146: 122
A147: 11 | B147: 18995 | C147: 22 | D147: 19005 | E147: 23 | F147: 19025 | K147: 0 | L147: 122
A148: 22 | B148: 19147 | C148: 24 | D148: 19153 | E148: 23 | F148: 19161 | K148: 0 | L148: 222
A149: 11 | B149: 19263 | C149: 22 | D149: 19276 | E149: 23 | F149: 19281 | K149: 0 | L149: 122
A150: 11 | B150: 19379 | C150: 22 | D150: 19390 | E150: 23 | F150: 19396 | K150: 0 | L150: 122
A151: 11 | B151: 19498 | C151: 11 | D151: 19512 | E151: 21 | F151: 19521 | K151: 0 | L151: 112
A152: 11 | B152: 19624 | C152: 22 | D152: 19633 | E152: 23 | F152: 19663 | K152: 0 | L152: 122
A153: 22 | B153: 19790 | C153: 24 | D153: 19796 | E153: 23 | F153: 19803 | K153: 0 | L153: 222
A154: 11 | B154: 19906 | C154: 22 | D154: 19916 | E154: 23 | F154: 19928 | K154: 0 | L154: 122
A155: 11 | B155: 20037 | C155: 22 | D155: 20047 | E155: 23 | F155: 20059 | K155: 0 | L155: 122
A156: 11 | B156: 20167 | C156: 11 | D156: 20181 | E156: 21 | F156: 20198 | K156: 0 | L156: 112
A157: 11 | B157: 20290 | C157: 11 | D157: 20301 | E157: 12 | F157: 20324 | K157: 0 | L157: 111
A158: 11 | B158: 20429 | C158: 11 | D158: 20437 | E158: 21 | F158: 20456 | K158: 0 | L158: 112
A159: 11 | B159: 20551 | C159: 11 | D159: 20561 | E159: 21 | F159: 20574 | K159: 1 | L159: 112

Sheet !2011-07-30_10h31m.Subject 55
A1: Report for:!2011-07-30_10h31m.Subject 55
A2: Date | B2: 2011-07-30 | F2: Group | G2: control phase 3
A3: Hen | B3: 55 | F3: Correct Sequence | G3: =Start!J2 -> 122 | P3: Total Sequences in Data | Q3: =4994-COUNTBLANK(L7:L5000) -> 150 | V3: Total Sequences in Block Data | W3: =COUNTA(L7:L31) -> 25 | AA3: Total Sequences in Block Data | AB3: =COUNTA(L32:L56) -> 25 | AF3: Total Sequences in Block Data | AG3: =COUNTA(L57:L81) -> 25 | AK3: Total Sequences in Block Data | AL3: =COUNTA(L82:L106) -> 25 | AP3: Total Sequences in Block Data | AQ3: =COUNTA(L107:L131) -> 25 | AU3: Total Sequences in Block Data | AV3: =COUNTA(L132:L156) -> 25
A4: Program | B4: one | P4: Total Sequences in Summary | Q4: =SUM(O7:O14) -> 150 | V4: Total Sequences in Block Summary | W4: =SUM(U7:U14) -> 25 | AA4: Total Sequences in Block Summary | AB4: =SUM(Z7:Z14) -> 25 | AF4: Total Sequences in Block Summary | AG4: =SUM(AE7:AE14) -> 25 | AK4: Total Sequences in Block Summary | AL4: =SUM(AJ7:AJ14) -> 25 | AP4: Total Sequences in Block Summary | AQ4: =SUM(AO7:AO14) -> 25 | AU4: Total Sequences in Block Summary | AV4: =SUM(AT7:AT14) -> 25
T5: Block 1 | Y5: Block 2 | AD5: Block 3 | AI5: Block 4 | AN5: Block 5 | AS5: Block 6
A6: Sequence Component 1 | B6: Time 1 | C6: Sequence Component 2 | D6: Time 2 | E6: Sequence Component 3 | F6: Time 3 | G6: Sequence Component 4 | H6: Time 4 | I6: Sequence Component 5 | J6: Time 5 | K6: Correct? 0=No 1=Yes | L6: Sequence | N6: Frequency | P6: Relative Frequency | Q6: Variability | T6: Frequency | V6: Relative Frequency | W6: Variability | Y6: Frequency | AA6: Relative Frequency | AB6: Variability | AD6: Frequency | AF6: Relative Frequency | AG6: Variability | AI6: Frequency | AK6: Relative Frequency | AL6: Variability | AN6: Frequency | AP6: Relative Frequency | AQ6: Variability | AS6: Frequency | AU6: Relative Frequency | AV6: Variability
A7: 12 | B7: 28 | C7: 23 | D7: 36 | E7: 24 | F7: 51 | G7: 23 | H7: 59 | K7: 0 | L7: 122 | N7: 111 | O7: =COUNTIF($L$7:$L$500,N7) -> 1 | P7: =O7/$Q$4 -> 0.006666666667 | Q7: =IF(P7=0,0,(P7*((LOG(P7))/LOG(2)))) -> -0.0481921246 | T7: =N7 -> 111 | U7: =COUNTIF(L7:L31,T7) -> 0 | V7: =U7/(W4-U10) -> 0 | W7: =IF(V7=0,0,(V7*((LOG(V7))/LOG(2)))) -> 0 | Y7: =N7 -> 111 | Z7: =COUNTIF(L32:L56,Y7) -> 1 | AA7: =Z7/(AB4-Z10) -> 0.04347826087 | AB7: =IF(AA7=0,0,(AA7*((LOG(AA7))/LOG(2)))) -> -0.1966766068 | AD7: =N7 -> 111 | AE7: =COUNTIF(L57:L81,AD7) -> 0 | AF7: =AE7/(AG4-AE10) -> 0 | AG7: =IF(AF7=0,0,(AF7*((LOG(AF7))/LOG(2)))) -> 0 | AI7: =N7 -> 111 | AJ7: =COUNTIF(L82:L106,AI7) -> 0 | AK7: =AJ7/(AL4-AJ10) -> 0 | AL7: =IF(AK7=0,0,(AK7*((LOG(AK7))/LOG(2)))) -> 0 | AN7: =N7 -> 111 | AO7: =COUNTIF(L107:L131,AN7) -> 0 | AP7: =AO7/(AQ4-AO10) -> 0 | AQ7: =IF(AP7=0,0,(AP7*((LOG(AP7))/LOG(2)))) -> 0 | AS7: =N7 -> 111 | AT7: =COUNTIF(L132:L156,AS7) -> 0 | AU7: =AT7/(AV4-AT10) -> 0 | AV7: =IF(AU7=0,0,(AU7*((LOG(AU7))/LOG(2)))) -> 0
A8: 21 | B8: 160 | C8: 21 | D8: 167 | E8: 11 | F8: 177 | G8: 12 | H8: 181 | K8: 0 | L8: 221 | N8: 112 | O8: 2 | P8: 0.01333333333 | Q8: -0.08305091587 | T8: 112 | U8: =COUNTIF(L7:L31,T8) -> 0 | V8: =U8/(W4-U10) -> 0 | W8: =IF(V8=0,0,(V8*((LOG(V8))/LOG(2)))) -> 0 | Y8: 112 | Z8: =COUNTIF(L32:L56,Y8) -> 2 | AA8: =Z8/(AB4-Z10) -> 0.08695652174 | AB8: =IF(AA8=0,0,(AA8*((LOG(AA8))/LOG(2)))) -> -0.3063966918 | AD8: 112 | AE8: =COUNTIF(L57:L81,AD8) -> 0 | AF8: =AE8/(AG4-AE10) -> 0 | AG8: =IF(AF8=0,0,(AF8*((LOG(AF8))/LOG(2)))) -> 0 | AI8: 112 | AJ8: =COUNTIF(L82:L106,AI8) -> 0 | AK8: =AJ8/(AL4-AJ10) -> 0 | AL8: =IF(AK8=0,0,(AK8*((LOG(AK8))/LOG(2)))) -> 0 | AN8: 112 | AO8: =COUNTIF(L107:L131,AN8) -> 0 | AP8: =AO8/(AQ4-AO10) -> 0 | AQ8: =IF(AP8=0,0,(AP8*((LOG(AP8))/LOG(2)))) -> 0 | AS8: 112 | AT8: =COUNTIF(L132:L156,AS8) -> 0 | AU8: =AT8/(AV4-AT10) -> 0 | AV8: =IF(AU8=0,0,(AU8*((LOG(AU8))/LOG(2)))) -> 0
A9: 21 | B9: 281 | C9: 21 | D9: 289 | E9: 22 | F9: 297 | G9: 23 | H9: 306 | K9: 0 | L9: 222 | N9: 121 | O9: 6 | P9: 0.04 | Q9: -0.1857542476 | T9: 121 | U9: =COUNTIF(L7:L31,T9) -> 0 | V9: =U9/(W4-U10) -> 0 | W9: =IF(V9=0,0,(V9*((LOG(V9))/LOG(2)))) -> 0 | Y9: 121 | Z9: =COUNTIF(L32:L56,Y9) -> 4 | AA9: =Z9/(AB4-Z10) -> 0.1739130435 | AB9: =IF(AA9=0,0,(AA9*((LOG(AA9))/LOG(2)))) -> -0.4388803402 | AD9: 121 | AE9: =COUNTIF(L57:L81,AD9) -> 0 | AF9: =AE9/(AG4-AE10) -> 0 | AG9: =IF(AF9=0,0,(AF9*((LOG(AF9))/LOG(2)))) -> 0 | AI9: 121 | AJ9: =COUNTIF(L82:L106,AI9) -> 0 | AK9: =AJ9/(AL4-AJ10) -> 0 | AL9: =IF(AK9=0,0,(AK9*((LOG(AK9))/LOG(2)))) -> 0 | AN9: 121 | AO9: =COUNTIF(L107:L131,AN9) -> 2 | AP9: =AO9/(AQ4-AO10) -> 0.08 | AQ9: =IF(AP9=0,0,(AP9*((LOG(AP9))/LOG(2)))) -> -0.2915084952 | AS9: 121 | AT9: =COUNTIF(L132:L156,AS9) -> 0 | AU9: =AT9/(AV4-AT10) -> 0 | AV9: =IF(AU9=0,0,(AU9*((LOG(AU9))/LOG(2)))) -> 0
A10: 21 | B10: 411 | C10: 21 | D10: 416 | E10: 22 | F10: 430 | G10: 14 | H10: 438 | K10: 0 | L10: 222 | N10: 122 | O10: 16 | P10: 0.1066666667 | Q10: -0.344407327 | T10: 122 | U10: =COUNTIF(L7:L31,T10) -> 4 | Y10: 122 | Z10: =COUNTIF(L32:L56,Y10) -> 2 | AD10: 122 | AE10: =COUNTIF(L57:L81,AD10) -> 4 | AI10: 122 | AJ10: =COUNTIF(L82:L106,AI10) -> 6 | AN10: 122 | AO10: =COUNTIF(L107:L131,AN10) -> 0 | AS10: 122 | AT10: =COUNTIF(L132:L156,AS10) -> 0
A11: 12 | B11: 561 | C11: 23 | D11: 572 | E11: 24 | F11: 584 | G11: 23 | H11: 592 | K11: 0 | L11: 122 | N11: 211 | O11: 3 | P11: 0.02 | Q11: -0.1128771238 | T11: 211 | U11: =COUNTIF(L7:L31,T11) -> 0 | V11: =U11/(W4-U10) -> 0 | W11: =IF(V11=0,0,(V11*((LOG(V11))/LOG(2)))) -> 0 | Y11: 211 | Z11: =COUNTIF(L32:L56,Y11) -> 2 | AA11: =Z11/(AB4-Z10) -> 0.08695652174 | AB11: =IF(AA11=0,0,(AA11*((LOG(AA11))/LOG(2)))) -> -0.3063966918 | AD11: 211 | AE11: =COUNTIF(L57:L81,AD11) -> 1 | AF11: =AE11/(AG4-AE10) -> 0.04761904762 | AG11: =IF(AF11=0,0,(AF11*((LOG(AF11))/LOG(2)))) -> -0.2091579725 | AI11: 211 | AJ11: =COUNTIF(L82:L106,AI11) -> 0 | AK11: =AJ11/(AL4-AJ10) -> 0 | AL11: =IF(AK11=0,0,(AK11*((LOG(AK11))/LOG(2)))) -> 0 | AN11: 211 | AO11: =COUNTIF(L107:L131,AN11) -> 0 | AP11: =AO11/(AQ4-AO10) -> 0 | AQ11: =IF(AP11=0,0,(AP11*((LOG(AP11))/LOG(2)))) -> 0 | AS11: 211 | AT11: =COUNTIF(L132:L156,AS11) -> 0 | AU11: =AT11/(AV4-AT10) -> 0 | AV11: =IF(AU11=0,0,(AU11*((LOG(AU11))/LOG(2)))) -> 0
A12: 21 | B12: 693 | C12: 21 | D12: 700 | E12: 11 | F12: 717 | G12: 21 | H12: 729 | K12: 0 | L12: 221 | N12: 212 | O12: 54 | P12: 0.36 | Q12: -0.5306152278 | T12: 212 | U12: =COUNTIF(L7:L31,T12) -> 8 | V12: =U12/(W4-U10) -> 0.380952381 | W12: =IF(V12=0,0,(V12*((LOG(V12))/LOG(2)))) -> -0.5304066372 | Y12: 212 | Z12: =COUNTIF(L32:L56,Y12) -> 10 | AA12: =Z12/(AB4-Z10) -> 0.4347826087 | AB12: =IF(AA12=0,0,(AA12*((LOG(AA12))/LOG(2)))) -> -0.5224495049 | AD12: 212 | AE12: =COUNTIF(L57:L81,AD12) -> 10 | AF12: =AE12/(AG4-AE10) -> 0.4761904762 | AG12: =IF(AF12=0,0,(AF12*((LOG(AF12))/LOG(2)))) -> -0.5097092038 | AI12: 212 | AJ12: =COUNTIF(L82:L106,AI12) -> 8 | AK12: =AJ12/(AL4-AJ10) -> 0.4210526316 | AL12: =IF(AK12=0,0,(AK12*((LOG(AK12))/LOG(2)))) -> -0.5254431636 | AN12: 212 | AO12: =COUNTIF(L107:L131,AN12) -> 10 | AP12: =AO12/(AQ4-AO10) -> 0.4 | AQ12: =IF(AP12=0,0,(AP12*((LOG(AP12))/LOG(2)))) -> -0.528771238 | AS12: 212 | AT12: =COUNTIF(L132:L156,AS12) -> 8 | AU12: =AT12/(AV4-AT10) -> 0.32 | AV12: =IF(AU12=0,0,(AU12*((LOG(AU12))/LOG(2)))) -> -0.5260339807
A13: 21 | B13: 819 | C13: 12 | D13: 837 | E13: 24 | F13: 848 | G13: 23 | H13: 856 | K13: 0 | L13: 212 | N13: 221 | O13: 42 | P13: 0.28 | Q13: -0.514220355 | T13: 221 | U13: =COUNTIF(L7:L31,T13) -> 10 | V13: =U13/(W4-U10) -> 0.4761904762 | W13: =IF(V13=0,0,(V13*((LOG(V13))/LOG(2)))) -> -0.5097092038 | Y13: 221 | Z13: =COUNTIF(L32:L56,Y13) -> 4 | AA13: =Z13/(AB4-Z10) -> 0.1739130435 | AB13: =IF(AA13=0,0,(AA13*((LOG(AA13))/LOG(2)))) -> -0.4388803402 | AD13: 221 | AE13: =COUNTIF(L57:L81,AD13) -> 6 | AF13: =AE13/(AG4-AE10) -> 0.2857142857 | AG13: =IF(AF13=0,0,(AF13*((LOG(AF13))/LOG(2)))) -> -0.5163871206 | AI13: 221 | AJ13: =COUNTIF(L82:L106,AI13) -> 9 | AK13: =AJ13/(AL4-AJ10) -> 0.4736842105 | AL13: =IF(AK13=0,0,(AK13*((LOG(AK13))/LOG(2)))) -> -0.5106327688 | AN13: 221 | AO13: =COUNTIF(L107:L131,AN13) -> 8 | AP13: =AO13/(AQ4-AO10) -> 0.32 | AQ13: =IF(AP13=0,0,(AP13*((LOG(AP13))/LOG(2)))) -> -0.5260339807 | AS13: 221 | AT13: =COUNTIF(L132:L156,AS13) -> 5 | AU13: =AT13/(AV4-AT10) -> 0.2 | AV13: =IF(AU13=0,0,(AU13*((LOG(AU13))/LOG(2)))) -> -0.464385619
A14: 21 | B14: 957 | C14: 21 | D14: 965 | E14: 11 | F14: 979 | G14: 21 | H14: 1003 | K14: 0 | L14: 221 | N14: 222 | O14: 26 | P14: 0.1733333333 | Q14: -0.4382523552 | T14: 222 | U14: =COUNTIF(L7:L31,T14) -> 3 | V14: =U14/(W4-U10) -> 0.1428571429 | W14: =IF(V14=0,0,(V14*((LOG(V14))/LOG(2)))) -> -0.4010507032 | Y14: 222 | Z14: =COUNTIF(L32:L56,Y14) -> 0 | AA14: =Z14/(AB4-Z10) -> 0 | AB14: =IF(AA14=0,0,(AA14*((LOG(AA14))/LOG(2)))) -> 0 | AD14: 222 | AE14: =COUNTIF(L57:L81,AD14) -> 4 | AF14: =AE14/(AG4-AE10) -> 0.1904761905 | AG14: =IF(AF14=0,0,(AF14*((LOG(AF14))/LOG(2)))) -> -0.4556795091 | AI14: 222 | AJ14: =COUNTIF(L82:L106,AI14) -> 2 | AK14: =AJ14/(AL4-AJ10) -> 0.1052631579 | AL14: =IF(AK14=0,0,(AK14*((LOG(AK14))/LOG(2)))) -> -0.3418871067 | AN14: 222 | AO14: =COUNTIF(L107:L131,AN14) -> 5 | AP14: =AO14/(AQ4-AO10) -> 0.2 | AQ14: =IF(AP14=0,0,(AP14*((LOG(AP14))/LOG(2)))) -> -0.464385619 | AS14: 222 | AT14: =COUNTIF(L132:L156,AS14) -> 12 | AU14: =AT14/(AV4-AT10) -> 0.48 | AV14: =IF(AU14=0,0,(AU14*((LOG(AU14))/LOG(2)))) -> -0.5082689707
A15: 21 | B15: 1099 | C15: 21 | D15: 1107 | E15: 22 | F15: 1117 | G15: 14 | H15: 1125 | K15: 0 | L15: 222 | P15: =SUM(P7:P14) -> 1 | Q15: =-SUM(Q7:Q14) -> 2.257369677 | V15: =SUM(V7:V14) -> 1 | W15: =-SUM(W7:W14) -> 1.441166544 | AA15: =SUM(AA7:AA14) -> 1 | AB15: =-SUM(AB7:AB14) -> 2.209680176 | AF15: =SUM(AF7:AF14) -> 1 | AG15: =-SUM(AG7:AG14) -> 1.690933806 | AK15: =SUM(AK7:AK14) -> 1 | AL15: =-SUM(AL7:AL14) -> 1.377963039 | AP15: =SUM(AP7:AP14) -> 1 | AQ15: =-SUM(AQ7:AQ14) -> 1.810699333 | AU15: =SUM(AU7:AU14) -> 1 | AV15: =-SUM(AV7:AV14) -> 1.49868857
A16: 21 | B16: 1225 | C16: 21 | D16: 1231 | E16: 11 | F16: 1258 | G16: 21 | H16: 1288 | K16: 0 | L16: 221 | P16: U= | Q16: =Q15/(LOG(Q4)/LOG(2)) -> 0.3122736609 | V16: U1= | W16: =W15/(LOG(W4)/LOG(2)) -> 0.3103383234 | AA16: U2= | AB16: =AB15/(LOG(AB4)/LOG(2)) -> 0.4758287263 | AF16: U3= | AG16: =AG15/(LOG(AG4)/LOG(2)) -> 0.3641227757 | AK16: U4= | AL16: =AL15/(LOG(AL4)/LOG(2)) -> 0.2967281894 | AP16: U5= | AQ16: =AQ15/(LOG(AQ4)/LOG(2)) -> 0.3899128782 | AU16: U6= | AV16: =AV15/(LOG(AV4)/LOG(2)) -> 0.3227250176
A17: 21 | B17: 1386 | C17: 21 | D17: 1394 | E17: 11 | F17: 1407 | G17: 21 | H17: 1416 | K17: 0 | L17: 221
A18: 12 | B18: 1528 | C18: 23 | D18: 1538 | E18: 24 | F18: 1547 | G18: 14 | H18: 1577 | K18: 0 | L18: 122
A19: 21 | B19: 1677 | C19: 21 | D19: 1683 | E19: 11 | F19: 1692 | G19: 21 | H19: 1701 | K19: 0 | L19: 221 | N19: Total Target Seq
A20: 21 | B20: 1807 | C20: 12 | D20: 1815 | E20: 24 | F20: 1824 | G20: 23 | H20: 1850 | K20: 0 | L20: 212 | N20: =COUNTIF(L7:L156,G3) -> 16 | P20: 25 | Q20: 25 | R20: 25 | S20: 25 | T20: 25 | U20: 25
A21: 21 | B21: 1952 | C21: 12 | D21: 1989 | E21: 24 | F21: 1998 | G21: 23 | H21: 2006 | K21: 0 | L21: 212 | P21: % of reinforcement given in 6 equal intervals based on number of trials
A22: 21 | B22: 2106 | C22: 21 | D22: 2111 | E22: 11 | F22: 2126 | G22: 21 | H22: 2135 | K22: 0 | L22: 221 | P22: %_1 | Q22: %_2 | R22: %_3 | S22: %_4 | T22: %_5 | U22: %_6
A23: 21 | B23: 2239 | C23: 12 | D23: 2249 | E23: 24 | F23: 2266 | G23: 23 | H23: 2276 | K23: 0 | L23: 212 | O23: target sequence | P23: =$G$3 -> 122 | Q23: 122 | R23: 122 | S23: 122 | T23: 122 | U23: 122
A24: 21 | B24: 2382 | C24: 12 | D24: 2391 | E24: 24 | F24: 2401 | G24: 23 | H24: 2418 | K24: 0 | L24: 212 | O24: total reinforcement | P24: =U10 -> 4 | Q24: =Z10 -> 2 | R24: =AE10 -> 4 | S24: =AJ10 -> 6 | T24: =AO10 -> 0 | U24: =AT10 -> 0
A25: 21 | B25: 2517 | C25: 21 | D25: 2523 | E25: 11 | F25: 2543 | G25: 21 | H25: 2552 | K25: 0 | L25: 221 | O25: % target
A26: 21 | B26: 2653 | C26: 21 | D26: 2685 | E26: 11 | F26: 2706 | G26: 21 | H26: 2714 | K26: 0 | L26: 221 | O26: CCRF
A27: 21 | B27: 2812 | C27: 12 | D27: 2827 | E27: 24 | F27: 2836 | G27: 14 | H27: 2857 | K27: 0 | L27: 212 | O27: % CCRf
A28: 12 | B28: 2971 | C28: 23 | D28: 2979 | E28: 24 | F28: 2997 | G28: 14 | H28: 3010 | K28: 0 | L28: 122 | O28: average response rate | P28: =F31/P20 -> 137.72 | Q28: =(F56-F31)/Q20 -> 151.24 | R28: =(F81-F56)/R20 -> 152.12 | S28: =(F106-F81)/S20 -> 144.16 | T28: =(F131-F106)/T20 -> 141.96 | U28: =(F156-F131)/U20 -> 143.52
A29: 21 | B29: 3112 | C29: 12 | D29: 3134 | E29: 24 | F29: 3143 | G29: 23 | H29: 3155 | K29: 0 | L29: 212
A30: 21 | B30: 3255 | C30: 12 | D30: 3272 | E30: 24 | F30: 3291 | G30: 14 | H30: 3317 | K30: 0 | L30: 212
A31: 21 | B31: 3416 | C31: 21 | D31: 3429 | E31: 11 | F31: 3443 | G31: 21 | H31: 3453 | K31: 0 | L31: 221
A32: 21 | B32: 3550 | C32: 12 | D32: 3570 | E32: 24 | F32: 3580 | G32: 23 | H32: 3597 | K32: 0 | L32: 212
A33: 21 | B33: 3704 | C33: 12 | D33: 3719 | E33: 24 | F33: 3728 | G33: 23 | H33: 3747 | K33: 0 | L33: 212
A34: 21 | B34: 3859 | C34: 21 | D34: 3884 | E34: 11 | F34: 3901 | G34: 21 | H34: 3913 | K34: 0 | L34: 221
A35: 12 | B35: 4015 | C35: 14 | D35: 4028 | E35: 24 | F35: 4080 | G35: 23 | H35: 4090 | K35: 0 | L35: 112
A36: 21 | B36: 4189 | C36: 21 | D36: 4197 | E36: 11 | F36: 4206 | G36: 21 | H36: 4216 | K36: 0 | L36: 221
A37: 12 | B37: 4324 | C37: 23 | D37: 4334 | E37: 24 | F37: 4350 | G37: 14 | H37: 4359 | K37: 0 | L37: 122
A38: 21 | B38: 4460 | C38: 21 | D38: 4468 | E38: 11 | F38: 4477 | G38: 21 | H38: 4485 | K38: 0 | L38: 221
A39: 12 | B39: 4585 | C39: 23 | D39: 4594 | E39: 13 | F39: 4624 | G39: 23 | H39: 4632 | K39: 0 | L39: 121
A40: 12 | B40: 4750 | C40: 23 | D40: 4760 | E40: 13 | F40: 4795 | G40: 23 | H40: 4833 | K40: 0 | L40: 121
A41: 21 | B41: 4938 | C41: 12 | D41: 4955 | E41: 24 | F41: 4965 | G41: 23 | H41: 4979 | K41: 0 | L41: 212
A42: 21 | B42: 5082 | C42: 12 | D42: 5097 | E42: 24 | F42: 5107 | G42: 23 | H42: 5117 | K42: 0 | L42: 212
A43: 21 | B43: 5220 | C43: 12 | D43: 5234 | E43: 24 | F43: 5243 | G43: 23 | H43: 5254 | K43: 0 | L43: 212
A44: 12 | B44: 5374 | C44: 23 | D44: 5384 | E44: 24 | F44: 5402 | G44: 23 | H44: 5419 | K44: 0 | L44: 122
A45: 21 | B45: 5529 | C45: 12 | D45: 5539 | E45: 24 | F45: 5549 | G45: 23 | H45: 5557 | K45: 0 | L45: 212
A46: 12 | B46: 5684 | C46: 23 | D46: 5694 | E46: 13 | F46: 5712 | G46: 23 | H46: 5728 | K46: 0 | L46: 121
A47: 21 | B47: 5832 | C47: 21 | D47: 5839 | E47: 11 | F47: 5850 | G47: 21 | H47: 5866 | K47: 0 | L47: 221
A48: 12 | B48: 5975 | C48: 14 | D48: 6010 | E48: 24 | F48: 6020 | G48: 23 | H48: 6029 | K48: 0 | L48: 112
A49: 12 | B49: 6141 | C49: 14 | D49: 6155 | E49: 13 | F49: 6175 | G49: 23 | H49: 6211 | K49: 0 | L49: 111
A50: 21 | B50: 6317 | C50: 12 | D50: 6327 | E50: 13 | F50: 6337 | G50: 23 | H50: 6347 | K50: 0 | L50: 211
A51: 21 | B51: 6463 | C51: 12 | D51: 6472 | E51: 24 | F51: 6481 | G51: 14 | H51: 6501 | K51: 0 | L51: 212
A52: 21 | B52: 6605 | C52: 12 | D52: 6630 | E52: 24 | F52: 6638 | G52: 23 | H52: 6671 | K52: 0 | L52: 212
A53: 12 | B53: 6785 | C53: 23 | D53: 6793 | E53: 13 | F53: 6805 | G53: 23 | H53: 6816 | K53: 0 | L53: 121
A54: 21 | B54: 6917 | C54: 12 | D54: 6930 | E54: 13 | F54: 6940 | G54: 23 | H54: 6948 | K54: 0 | L54: 211
A55: 21 | B55: 7055 | C55: 12 | D55: 7066 | E55: 24 | F55: 7081 | G55: 14 | H55: 7094 | K55: 0 | L55: 212
A56: 21 | B56: 7207 | C56: 12 | D56: 7216 | E56: 24 | F56: 7224 | G56: 23 | H56: 7232 | K56: 0 | L56: 212
A57: 21 | B57: 7353 | C57: 21 | D57: 7377 | E57: 11 | F57: 7390 | G57: 12 | H57: 7454 | K57: 0 | L57: 221
A58: 21 | B58: 7586 | C58: 12 | D58: 7598 | E58: 24 | F58: 7626 | G58: 23 | H58: 7651 | K58: 0 | L58: 212
A59: 21 | B59: 7752 | C59: 12 | D59: 7773 | E59: 24 | F59: 7790 | G59: 23 | H59: 7798 | K59: 0 | L59: 212
A60: 21 | B60: 7898 | C60: 21 | D60: 7924 | E60: 11 | F60: 7935 | G60: 21 | H60: 7945 | K60: 0 | L60: 221
A61: 21 | B61: 8056 | C61: 12 | D61: 8064 | E61: 13 | F61: 8073 | G61: 23 | H61: 8082 | K61: 0 | L61: 211
A62: 21 | B62: 8192 | C62: 21 | D62: 8205 | E62: 11 | F62: 8213 | G62: 21 | H62: 8237 | K62: 0 | L62: 221
A63: 21 | B63: 8334 | C63: 12 | D63: 8346 | E63: 24 | F63: 8354 | G63: 14 | H63: 8383 | K63: 0 | L63: 212
A64: 12 | B64: 8499 | C64: 23 | D64: 8509 | E64: 24 | F64: 8518 | G64: 23 | H64: 8537 | K64: 0 | L64: 122
A65: 21 | B65: 8638 | C65: 21 | D65: 8643 | E65: 22 | F65: 8654 | G65: 14 | H65: 8663 | K65: 0 | L65: 222
A66: 21 | B66: 8771 | C66: 12 | D66: 8782 | E66: 24 | F66: 8790 | G66: 23 | H66: 8811 | K66: 0 | L66: 212
A67: 12 | B67: 8936 | C67: 23 | D67: 8944 | E67: 24 | F67: 8955 | G67: 14 | H67: 8995 | K67: 0 | L67: 122
A68: 21 | B68: 9100 | C68: 12 | D68: 9111 | E68: 24 | F68: 9143 | G68: 14 | H68: 9158 | K68: 0 | L68: 212
A69: 21 | B69: 9257 | C69: 12 | D69: 9270 | E69: 24 | F69: 9286 | G69: 23 | H69: 9297 | K69: 0 | L69: 212
A70: 21 | B70: 9405 | C70: 21 | D70: 9417 | E70: 11 | F70: 9431 | G70: 21 | H70: 9441 | K70: 0 | L70: 221
A71: 12 | B71: 9553 | C71: 23 | D71: 9562 | E71: 24 | F71: 9579 | G71: 14 | H71: 9588 | K71: 0 | L71: 122
A72: 21 | B72: 9686 | C72: 21 | D72: 9694 | E72: 22 | F72: 9706 | G72: 14 | H72: 9721 | K72: 0 | L72: 222
A73: 21 | B73: 9821 | C73: 21 | D73: 9826 | E73: 11 | F73: 9847 | G73: 21 | H73: 9856 | K73: 0 | L73: 221
A74: 21 | B74: 9952 | C74: 21 | D74: 9961 | E74: 11 | F74: 9973 | G74: 21 | H74: 9981 | K74: 0 | L74: 221
A75: 21 | B75: 10069 | C75: 21 | D75: 10075 | E75: 22 | F75: 10094 | G75: 14 | H75: 10120 | K75: 0 | L75: 222
A76: 21 | B76: 10220 | C76: 12 | D76: 10239 | E76: 24 | F76: 10255 | G76: 23 | H76: 10266 | K76: 0 | L76: 212
A77: 21 | B77: 10366 | C77: 12 | D77: 10381 | E77: 24 | F77: 10391 | G77: 23 | H77: 10403 | K77: 0 | L77: 212
A78: 21 | B78: 10504 | C78: 21 | D78: 10512 | E78: 22 | F78: 10524 | G78: 14 | H78: 10533 | K78: 0 | L78: 222
A79: 21 | B79: 10637 | C79: 12 | D79: 10661 | E79: 24 | F79: 10670 | G79: 23 | H79: 10680 | K79: 0 | L79: 212
A80: 12 | B80: 10800 | C80: 23 | D80: 10824 | E80: 24 | F80: 10880 | G80: 14 | H80: 10894 | K80: 0 | L80: 122
A81: 21 | B81: 11000 | C81: 12 | D81: 11017 | E81: 24 | F81: 11027 | G81: 23 | H81: 11035 | K81: 0 | L81: 212
A82: 21 | B82: 11135 | C82: 21 | D82: 11149 | E82: 11 | F82: 11158 | G82: 21 | H82: 11166 | K82: 0 | L82: 221
A83: 21 | B83: 11265 | C83: 12 | D83: 11274 | E83: 24 | F83: 11283 | G83: 14 | H83: 11304 | K83: 0 | L83: 212
A84: 21 | B84: 11404 | C84: 21 | D84: 11414 | E84: 11 | F84: 11423 | G84: 21 | H84: 11433 | K84: 0 | L84: 221
A85: 21 | B85: 11526 | C85: 12 | D85: 11540 | E85: 24 | F85: 11548 | G85: 23 | H85: 11556 | K85: 0 | L85: 212
A86: 12 | B86: 11683 | C86: 23 | D86: 11696 | E86: 24 | F86: 11707 | G86: 23 | H86: 11737 | K86: 0 | L86: 122
A87: 21 | B87: 11838 | C87: 12 | D87: 11854 | E87: 24 | F87: 11864 | G87: 14 | H87: 11891 | K87: 0 | L87: 212
A88: 21 | B88: 12011 | C88: 12 | D88: 12021 | E88: 24 | F88: 12053 | G88: 23 | H88: 12083 | K88: 0 | L88: 212
A89: 21 | B89: 12183 | C89: 12 | D89: 12201 | E89: 24 | F89: 12210 | G89: 23 | H89: 12227 | K89: 0 | L89: 212
A90: 12 | B90: 12349 | C90: 23 | D90: 12358 | E90: 24 | F90: 12366 | G90: 23 | H90: 12383 | K90: 0 | L90: 122
A91: 12 | B91: 12496 | C91: 23 | D91: 12505 | E91: 24 | F91: 12522 | G91: 14 | H91: 12533 | K91: 0 | L91: 122
A92: 21 | B92: 12640 | C92: 21 | D92: 12652 | E92: 11 | F92: 12661 | G92: 21 | H92: 12678 | K92: 0 | L92: 221
A93: 12 | B93: 12797 | C93: 23 | D93: 12807 | E93: 24 | F93: 12829 | G93: 14 | H93: 12838 | K93: 0 | L93: 122
A94: 21 | B94: 12937 | C94: 12 | D94: 12958 | E94: 24 | F94: 12966 | G94: 23 | H94: 12982 | K94: 0 | L94: 212
A95: 21 | B95: 13082 | C95: 21 | D95: 13088 | E95: 22 | F95: 13097 | G95: 14 | H95: 13109 | K95: 0 | L95: 222
A96: 21 | B96: 13211 | C96: 21 | D96: 13232 | E96: 11 | F96: 13241 | G96: 21 | H96: 13251 | K96: 0 | L96: 221
A97: 21 | B97: 13345 | C97: 21 | D97: 13353 | E97: 11 | F97: 13366 | G97: 21 | H97: 13375 | K97: 0 | L97: 221
A98: 21 | B98: 13469 | C98: 21 | D98: 13478 | E98: 11 | F98: 13490 | G98: 21 | H98: 13499 | K98: 0 | L98: 221
A99: 21 | B99: 13629 | C99: 21 | D99: 13661 | E99: 11 | F99: 13669 | G99: 21 | H99: 13677 | K99: 0 | L99: 221
A100: 21 | B100: 13767 | C100: 12 | D100: 13783 | E100: 24 | F100: 13796 | G100: 14 | H100: 13811 | K100: 0 | L100: 212
A101: 21 | B101: 13909 | C101: 21 | D101: 13916 | E101: 11 | F101: 13932 | G101: 21 | H101: 13941 | K101: 0 | L101: 221
A102: 21 | B102: 14033 | C102: 21 | D102: 14042 | E102: 11 | F102: 14051 | G102: 21 | H102: 14060 | K102: 0 | L102: 221
A103: 21 | B103: 14156 | C103: 12 | D103: 14165 | E103: 24 | F103: 14175 | G103: 23 | H103: 14186 | K103: 0 | L103: 212
A104: 12 | B104: 14307 | C104: 23 | D104: 14315 | E104: 24 | F104: 14323 | G104: 23 | H104: 14352 | K104: 0 | L104: 122
A105: 12 | B105: 14469 | C105: 23 | D105: 14480 | E105: 24 | F105: 14487 | G105: 14 | H105: 14514 | K105: 0 | L105: 122
A106: 21 | B106: 14613 | C106: 21 | D106: 14620 | E106: 22 | F106: 14631 | G106: 14 | H106: 14642 | K106: 0 | L106: 222
A107: 21 | B107: 14740 | C107: 21 | D107: 14746 | E107: 22 | F107: 14758 | G107: 14 | H107: 14769 | K107: 0 | L107: 222
A108: 21 | B108: 14871 | C108: 12 | D108: 14887 | E108: 24 | F108: 14898 | G108: 23 | H108: 14918 | K108: 0 | L108: 212
A109: 21 | B109: 15020 | C109: 21 | D109: 15026 | E109: 11 | F109: 15039 | G109: 21 | H109: 15048 | K109: 0 | L109: 221
A110: 21 | B110: 15144 | C110: 12 | D110: 15157 | E110: 24 | F110: 15167 | G110: 23 | H110: 15184 | K110: 0 | L110: 212
A111: 21 | B111: 15281 | C111: 21 | D111: 15304 | E111: 11 | F111: 15313 | G111: 21 | H111: 15324 | K111: 0 | L111: 221
A112: 21 | B112: 15420 | C112: 12 | D112: 15438 | E112: 24 | F112: 15447 | G112: 23 | H112: 15468 | K112: 0 | L112: 212
A113: 21 | B113: 15570 | C113: 21 | D113: 15578 | E113: 11 | F113: 15591 | G113: 21 | H113: 15601 | K113: 0 | L113: 221
A114: 21 | B114: 15706 | C114: 12 | D114: 15715 | E114: 24 | F114: 15739 | G114: 23 | H114: 15748 | K114: 0 | L114: 212
A115: 21 | B115: 15846 | C115: 21 | D115: 15871 | E115: 11 | F115: 15881 | G115: 21 | H115: 15890 | K115: 0 | L115: 221
A116: 21 | B116: 15981 | C116: 21 | D116: 15986 | E116: 22 | F116: 15997 | G116: 14 | H116: 16005 | K116: 0 | L116: 222
A117: 21 | B117: 16103 | C117: 21 | D117: 16110 | E117: 22 | F117: 16124 | G117: 23 | H117: 16149 | K117: 0 | L117: 222
A118: 21 | B118: 16250 | C118: 12 | D118: 16263 | E118: 24 | F118: 16272 | G118: 23 | H118: 16287 | K118: 0 | L118: 212
A119: 12 | B119: 16406 | C119: 23 | D119: 16415 | E119: 13 | F119: 16440 | G119: 23 | H119: 16450 | K119: 0 | L119: 121
A120: 21 | B120: 16550 | C120: 21 | D120: 16557 | E120: 22 | F120: 16576 | G120: 23 | H120: 16594 | K120: 0 | L120: 222
A121: 21 | B121: 16701 | C121: 21 | D121: 16717 | E121: 11 | F121: 16733 | G121: 21 | H121: 16744 | K121: 0 | L121: 221
A122: 21 | B122: 16838 | C122: 12 | D122: 16858 | E122: 24 | F122: 16867 | G122: 23 | H122: 16878 | K122: 0 | L122: 212
A123: 21 | B123: 16988 | C123: 21 | D123: 16997 | E123: 11 | F123: 17006 | G123: 21 | H123: 17014 | K123: 0 | L123: 221
A124: 12 | B124: 17124 | C124: 23 | D124: 17132 | E124: 13 | F124: 17153 | G124: 23 | H124: 17162 | K124: 0 | L124: 121
A125: 21 | B125: 17267 | C125: 12 | D125: 17282 | E125: 24 | F125: 17292 | G125: 23 | H125: 17317 | K125: 0 | L125: 212
A126: 21 | B126: 17423 | C126: 21 | D126: 17429 | E126: 11 | F126: 17438 | G126: 21 | H126: 17489 | K126: 0 | L126: 221
A127: 21 | B127: 17593 | C127: 12 | D127: 17611 | E127: 24 | F127: 17620 | G127: 23 | H127: 17627 | K127: 0 | L127: 212
A128: 21 | B128: 17726 | C128: 21 | D128: 17731 | E128: 22 | F128: 17751 | G128: 14 | H128: 17764 | K128: 0 | L128: 222
A129: 21 | B129: 17865 | C129: 12 | D129: 17879 | E129: 24 | F129: 17889 | G129: 23 | H129: 17896 | K129: 0 | L129: 212
A130: 21 | B130: 17995 | C130: 12 | D130: 18021 | E130: 24 | F130: 18036 | G130: 23 | H130: 18047 | K130: 0 | L130: 212
A131: 21 | B131: 18148 | C131: 21 | D131: 18166 | E131: 11 | F131: 18180 | G131: 21 | H131: 18197 | K131: 0 | L131: 221
A132: 21 | B132: 18290 | C132: 21 | D132: 18297 | E132: 11 | F132: 18308 | G132: 21 | H132: 18319 | K132: 0 | L132: 221
A133: 21 | B133: 18410 | C133: 21 | D133: 18415 | E133: 22 | F133: 18425 | G133: 14 | H133: 18434 | K133: 0 | L133: 222
A134: 21 | B134: 18536 | C134: 12 | D134: 18546 | E134: 24 | F134: 18554 | G134: 23 | H134: 18565 | K134: 0 | L134: 212
A135: 21 | B135: 18665 | C135: 21 | D135: 18670 | E135: 22 | F135: 18708 | G135: 23 | H135: 18769 | K135: 0 | L135: 222
A136: 21 | B136: 18869 | C136: 21 | D136: 18875 | E136: 11 | F136: 18887 | G136: 21 | H136: 18896 | K136: 0 | L136: 221
A137: 21 | B137: 18986 | C137: 21 | D137: 18992 | E137: 11 | F137: 19015 | G137: 21 | H137: 19033 | K137: 0 | L137: 221
A138: 21 | B138: 19127 | C138: 12 | D138: 19144 | E138: 24 | F138: 19153 | G138: 23 | H138: 19178 | K138: 0 | L138: 212
A139: 21 | B139: 19276 | C139: 21 | D139: 19283 | E139: 22 | F139: 19292 | G139: 14 | H139: 19303 | K139: 0 | L139: 222
A140: 21 | B140: 19402 | C140: 21 | D140: 19407 | E140: 22 | F140: 19430 | G140: 23 | H140: 19440 | K140: 0 | L140: 222
A141: 21 | B141: 19540 | C141: 21 | D141: 19546 | E141: 22 | F141: 19567 | G141: 23 | H141: 19589 | K141: 0 | L141: 222
A142: 21 | B142: 19693 | C142: 12 | D142: 19710 | E142: 24 | F142: 19721 | G142: 23 | H142: 19728 | K142: 0 | L142: 212
A143: 21 | B143: 19837 | C143: 21 | D143: 19860 | E143: 22 | F143: 19870 | G143: 23 | H143: 19893 | K143: 0 | L143: 222
A144: 21 | B144: 19996 | C144: 21 | D144: 20003 | E144: 22 | F144: 20024 | G144: 23 | H144: 20032 | K144: 0 | L144: 222
A145: 21 | B145: 20136 | C145: 21 | D145: 20143 | E145: 22 | F145: 20167 | G145: 23 | H145: 20176 | K145: 0 | L145: 222
A146: 21 | B146: 20294 | C146: 12 | D146: 20303 | E146: 24 | F146: 20314 | G146: 23 | H146: 20326 | K146: 0 | L146: 212
A147: 21 | B147: 20426 | C147: 21 | D147: 20462 | E147: 22 | F147: 20474 | G147: 23 | H147: 20488 | K147: 0 | L147: 222
A148: 21 | B148: 20591 | C148: 21 | D148: 20598 | E148: 22 | F148: 20605 | G148: 14 | H148: 20617 | K148: 0 | L148: 222
A149: 21 | B149: 20716 | C149: 12 | D149: 20730 | E149: 24 | F149: 20741 | G149: 23 | H149: 20749 | K149: 0 | L149: 212
A150: 21 | B150: 20849 | C150: 21 | D150: 20855 | E150: 11 | F150: 20871 | G150: 21 | H150: 20896 | K150: 0 | L150: 221
A151: 21 | B151: 20987 | C151: 12 | D151: 21005 | E151: 24 | F151: 21020 | G151: 23 | H151: 21031 | K151: 0 | L151: 212
A152: 21 | B152: 21135 | C152: 21 | D152: 21140 | E152: 22 | F152: 21151 | G152: 14 | H152: 21159 | K152: 0 | L152: 222
A153: 21 | B153: 21257 | C153: 21 | D153: 21290 | E153: 22 | F153: 21309 | G153: 23 | H153: 21325 | K153: 0 | L153: 222
A154: 21 | B154: 21433 | C154: 12 | D154: 21443 | E154: 24 | F154: 21452 | G154: 23 | H154: 21459 | K154: 0 | L154: 212
A155: 21 | B155: 21580 | C155: 12 | D155: 21589 | E155: 24 | F155: 21630 | G155: 23 | H155: 21648 | K155: 0 | L155: 212
A156: 21 | B156: 21748 | C156: 21 | D156: 21754 | E156: 11 | F156: 21768 | G156: 21 | H156: 21777 | K156: 1 | L156: 221

Sheet !2011-07-31_13h17m.Subject 56
A1: Report for:!2011-07-31_13h17m.Subject 56
A2: Date | B2: 2011-07-31 | F2: Group | G2: Phase 2 Con
A3: Hen | B3: 56 | F3: Correct Sequence | G3: =Start!J2 -> 122 | P3: Total Sequences in Data | Q3: =4994-COUNTBLANK(L7:L5000) -> 80 | V3: Total Sequences in Block Data | W3: =COUNTA(L7:L19) -> 13 | AA3: Total Sequences in Block Data | AB3: =COUNTA(L20:L33) -> 14 | AF3: Total Sequences in Block Data | AG3: =COUNTA(L34:L46) -> 13 | AK3: Total Sequences in Block Data | AL3: =COUNTA(L47:L59) -> 13 | AP3: Total Sequences in Block Data | AQ3: =COUNTA(L60:L73) -> 14 | AU3: Total Sequences in Block Data | AV3: =COUNTA(L74:L86) -> 13
A4: Program | B4: One | P4: Total Sequences in Summary | Q4: =SUM(O7:O14) -> 80 | V4: Total Sequences in Block Summary | W4: =SUM(U7:U14) -> 13 | AA4: Total Sequences in Block Summary | AB4: =SUM(Z7:Z14) -> 14 | AF4: Total Sequences in Block Summary | AG4: =SUM(AE7:AE14) -> 13 | AK4: Total Sequences in Block Summary | AL4: =SUM(AJ7:AJ14) -> 13 | AP4: Total Sequences in Block Summary | AQ4: =SUM(AO7:AO14) -> 14 | AU4: Total Sequences in Block Summary | AV4: =SUM(AT7:AT14) -> 13
T5: Block 1 | Y5: Block 2 | AD5: Block 3 | AI5: Block 4 | AN5: Block 5 | AS5: Block 6
A6: Sequence Component 1 | B6: Time 1 | C6: Sequence Component 2 | D6: Time 2 | E6: Sequence Component 3 | F6: Time 3 | G6: Sequence Component 4 | H6: Time 4 | I6: Sequence Component 5 | J6: Time 5 | K6: Correct? 0=No 1=Yes | L6: Sequence | N6: Frequency | P6: Relative Frequency | Q6: Variability | T6: Frequency | V6: Relative Frequency | W6: Variability | Y6: Frequency | AA6: Relative Frequency | AB6: Variability | AD6: Frequency | AF6: Relative Frequency | AG6: Variability | AI6: Frequency | AK6: Relative Frequency | AL6: Variability | AN6: Frequency | AP6: Relative Frequency | AQ6: Variability | AS6: Frequency | AU6: Relative Frequency | AV6: Variability
A7: 22 | B7: 11 | C7: 13 | D7: 25 | E7: 23 | F7: 37 | K7: 0 | L7: 212 | N7: 111 | O7: =COUNTIF($L$7:$L$500,N7) -> 6 | P7: =O7/$Q$4 -> 0.075 | Q7: =IF(P7=0,0,(P7*((LOG(P7))/LOG(2)))) -> -0.2802724196 | T7: =N7 -> 111 | U7: =COUNTIF(L7:L19,T7) -> 3 | V7: =U7/(W4-U10) -> 0.3 | W7: =IF(V7=0,0,(V7*((LOG(V7))/LOG(2)))) -> -0.5210896782 | Y7: =N7 -> 111 | Z7: =COUNTIF(L20:L33,Y7) -> 1 | AA7: =Z7/(AB4-Z10) -> 0.1 | AB7: =IF(AA7=0,0,(AA7*((LOG(AA7))/LOG(2)))) -> -0.3321928095 | AD7: =N7 -> 111 | AE7: =COUNTIF(L34:L46,AD7) -> 0 | AF7: =AE7/(AG4-AE10) -> 0 | AG7: =IF(AF7=0,0,(AF7*((LOG(AF7))/LOG(2)))) -> 0 | AI7: =N7 -> 111 | AJ7: =COUNTIF(L47:L59,AI7) -> 1 | AK7: =AJ7/(AL4-AJ10) -> 0.1 | AL7: =IF(AK7=0,0,(AK7*((LOG(AK7))/LOG(2)))) -> -0.3321928095 | AN7: =N7 -> 111 | AO7: =COUNTIF(L60:L73,AN7) -> 1 | AP7: =AO7/(AQ4-AO10) -> 0.1 | AQ7: =IF(AP7=0,0,(AP7*((LOG(AP7))/LOG(2)))) -> -0.3321928095 | AS7: =N7 -> 111 | AT7: =COUNTIF(L74:L86,AS7) -> 0 | AU7: =AT7/(AV4-AT10) -> 0 | AV7: =IF(AU7=0,0,(AU7*((LOG(AU7))/LOG(2)))) -> 0
A8: 11 | B8: 149 | C8: 11 | D8: 155 | E8: 12 | F8: 160 | K8: 0 | L8: 111 | N8: 112 | O8: 40 | P8: 0.5 | Q8: -0.5 | T8: 112 | U8: =COUNTIF(L7:L19,T8) -> 4 | V8: =U8/(W4-U10) -> 0.4 | W8: =IF(V8=0,0,(V8*((LOG(V8))/LOG(2)))) -> -0.528771238 | Y8: 112 | Z8: =COUNTIF(L20:L33,Y8) -> 8 | AA8: =Z8/(AB4-Z10) -> 0.8 | AB8: =IF(AA8=0,0,(AA8*((LOG(AA8))/LOG(2)))) -> -0.2575424759 | AD8: 112 | AE8: =COUNTIF(L34:L46,AD8) -> 6 | AF8: =AE8/(AG4-AE10) -> 1 | AG8: =IF(AF8=0,0,(AF8*((LOG(AF8))/LOG(2)))) -> 0 | AI8: 112 | AJ8: =COUNTIF(L47:L59,AI8) -> 8 | AK8: =AJ8/(AL4-AJ10) -> 0.8 | AL8: =IF(AK8=0,0,(AK8*((LOG(AK8))/LOG(2)))) -> -0.2575424759 | AN8: 112 | AO8: =COUNTIF(L60:L73,AN8) -> 6 | AP8: =AO8/(AQ4-AO10) -> 0.6 | AQ8: =IF(AP8=0,0,(AP8*((LOG(AP8))/LOG(2)))) -> -0.4421793565 | AS8: 112 | AT8: =COUNTIF(L74:L86,AS8) -> 8 | AU8: =AT8/(AV4-AT10) -> 0.7272727273 | AV8: =IF(AU8=0,0,(AU8*((LOG(AU8))/LOG(2)))) -> -0.3341320863
A9: 11 | B9: 267 | C9: 11 | D9: 275 | E9: 12 | F9: 283 | K9: 0 | L9: 111 | N9: 121 | O9: 7 | P9: 0.0875 | Q9: -0.3075251526 | T9: 121 | U9: =COUNTIF(L7:L19,T9) -> 0 | V9: =U9/(W4-U10) -> 0 | W9: =IF(V9=0,0,(V9*((LOG(V9))/LOG(2)))) -> 0 | Y9: 121 | Z9: =COUNTIF(L20:L33,Y9) -> 1 | AA9: =Z9/(AB4-Z10) -> 0.1 | AB9: =IF(AA9=0,0,(AA9*((LOG(AA9))/LOG(2)))) -> -0.3321928095 | AD9: 121 | AE9: =COUNTIF(L34:L46,AD9) -> 0 | AF9: =AE9/(AG4-AE10) -> 0 | AG9: =IF(AF9=0,0,(AF9*((LOG(AF9))/LOG(2)))) -> 0 | AI9: 121 | AJ9: =COUNTIF(L47:L59,AI9) -> 0 | AK9: =AJ9/(AL4-AJ10) -> 0 | AL9: =IF(AK9=0,0,(AK9*((LOG(AK9))/LOG(2)))) -> 0 | AN9: 121 | AO9: =COUNTIF(L60:L73,AN9) -> 3 | AP9: =AO9/(AQ4-AO10) -> 0.3 | AQ9: =IF(AP9=0,0,(AP9*((LOG(AP9))/LOG(2)))) -> -0.5210896782 | AS9: 121 | AT9: =COUNTIF(L74:L86,AS9) -> 3 | AU9: =AT9/(AV4-AT10) -> 0.2727272727 | AV9: =IF(AU9=0,0,(AU9*((LOG(AU9))/LOG(2)))) -> -0.5112188503
A10: 22 | B10: 389 | C10: 13 | D10: 404 | E10: 14 | F10: 413 | K10: 0 | L10: 211 | N10: 122 | O10: 23 | P10: 0.2875 | Q10: -0.5170302649 | T10: 122 | U10: =COUNTIF(L7:L19,T10) -> 3 | Y10: 122 | Z10: =COUNTIF(L20:L33,Y10) -> 4 | AD10: 122 | AE10: =COUNTIF(L34:L46,AD10) -> 7 | AI10: 122 | AJ10: =COUNTIF(L47:L59,AI10) -> 3 | AN10: 122 | AO10: =COUNTIF(L60:L73,AN10) -> 4 | AS10: 122 | AT10: =COUNTIF(L74:L86,AS10) -> 2
A11: 11 | B11: 525 | C11: 11 | D11: 530 | E11: 12 | F11: 545 | K11: 0 | L11: 111 | N11: 211 | O11: 1 | P11: 0.0125 | Q11: -0.07902410119 | T11: 211 | U11: =COUNTIF(L7:L19,T11) -> 1 | V11: =U11/(W4-U10) -> 0.1 | W11: =IF(V11=0,0,(V11*((LOG(V11))/LOG(2)))) -> -0.3321928095 | Y11: 211 | Z11: =COUNTIF(L20:L33,Y11) -> 0 | AA11: =Z11/(AB4-Z10) -> 0 | AB11: =IF(AA11=0,0,(AA11*((LOG(AA11))/LOG(2)))) -> 0 | AD11: 211 | AE11: =COUNTIF(L34:L46,AD11) -> 0 | AF11: =AE11/(AG4-AE10) -> 0 | AG11: =IF(AF11=0,0,(AF11*((LOG(AF11))/LOG(2)))) -> 0 | AI11: 211 | AJ11: =COUNTIF(L47:L59,AI11) -> 0 | AK11: =AJ11/(AL4-AJ10) -> 0 | AL11: =IF(AK11=0,0,(AK11*((LOG(AK11))/LOG(2)))) -> 0 | AN11: 211 | AO11: =COUNTIF(L60:L73,AN11) -> 0 | AP11: =AO11/(AQ4-AO10) -> 0 | AQ11: =IF(AP11=0,0,(AP11*((LOG(AP11))/LOG(2)))) -> 0 | AS11: 211 | AT11: =COUNTIF(L74:L86,AS11) -> 0 | AU11: =AT11/(AV4-AT10) -> 0 | AV11: =IF(AU11=0,0,(AU11*((LOG(AU11))/LOG(2)))) -> 0
A12: 11 | B12: 669 | C12: 22 | D12: 687 | E12: 23 | F12: 695 | K12: 0 | L12: 122 | N12: 212 | O12: 2 | P12: 0.025 | Q12: -0.1330482024 | T12: 212 | U12: =COUNTIF(L7:L19,T12) -> 2 | V12: =U12/(W4-U10) -> 0.2 | W12: =IF(V12=0,0,(V12*((LOG(V12))/LOG(2)))) -> -0.464385619 | Y12: 212 | Z12: =COUNTIF(L20:L33,Y12) -> 0 | AA12: =Z12/(AB4-Z10) -> 0 | AB12: =IF(AA12=0,0,(AA12*((LOG(AA12))/LOG(2)))) -> 0 | AD12: 212 | AE12: =COUNTIF(L34:L46,AD12) -> 0 | AF12: =AE12/(AG4-AE10) -> 0 | AG12: =IF(AF12=0,0,(AF12*((LOG(AF12))/LOG(2)))) -> 0 | AI12: 212 | AJ12: =COUNTIF(L47:L59,AI12) -> 0 | AK12: =AJ12/(AL4-AJ10) -> 0 | AL12: =IF(AK12=0,0,(AK12*((LOG(AK12))/LOG(2)))) -> 0 | AN12: 212 | AO12: =COUNTIF(L60:L73,AN12) -> 0 | AP12: =AO12/(AQ4-AO10) -> 0 | AQ12: =IF(AP12=0,0,(AP12*((LOG(AP12))/LOG(2)))) -> 0 | AS12: 212 | AT12: =COUNTIF(L74:L86,AS12) -> 0 | AU12: =AT12/(AV4-AT10) -> 0 | AV12: =IF(AU12=0,0,(AU12*((LOG(AU12))/LOG(2)))) -> 0
A13: 11 | B13: 800 | C13: 11 | D13: 809 | E13: 21 | F13: 820 | K13: 0 | L13: 112 | N13: 221 | O13: 1 | P13: 0.0125 | Q13: -0.07902410119 | T13: 221 | U13: =COUNTIF(L7:L19,T13) -> 0 | V13: =U13/(W4-U10) -> 0 | W13: =IF(V13=0,0,(V13*((LOG(V13))/LOG(2)))) -> 0 | Y13: 221 | Z13: =COUNTIF(L20:L33,Y13) -> 0 | AA13: =Z13/(AB4-Z10) -> 0 | AB13: =IF(AA13=0,0,(AA13*((LOG(AA13))/LOG(2)))) -> 0 | AD13: 221 | AE13: =COUNTIF(L34:L46,AD13) -> 0 | AF13: =AE13/(AG4-AE10) -> 0 | AG13: =IF(AF13=0,0,(AF13*((LOG(AF13))/LOG(2)))) -> 0 | AI13: 221 | AJ13: =COUNTIF(L47:L59,AI13) -> 1 | AK13: =AJ13/(AL4-AJ10) -> 0.1 | AL13: =IF(AK13=0,0,(AK13*((LOG(AK13))/LOG(2)))) -> -0.3321928095 | AN13: 221 | AO13: =COUNTIF(L60:L73,AN13) -> 0 | AP13: =AO13/(AQ4-AO10) -> 0 | AQ13: =IF(AP13=0,0,(AP13*((LOG(AP13))/LOG(2)))) -> 0 | AS13: 221 | AT13: =COUNTIF(L74:L86,AS13) -> 0 | AU13: =AT13/(AV4-AT10) -> 0 | AV13: =IF(AU13=0,0,(AU13*((LOG(AU13))/LOG(2)))) -> 0
A14: 11 | B14: 931 | C14: 22 | D14: 941 | E14: 23 | F14: 948 | K14: 0 | L14: 122 | N14: 222 | O14: 0 | P14: 0 | Q14: 0 | T14: 222 | U14: =COUNTIF(L7:L19,T14) -> 0 | V14: =U14/(W4-U10) -> 0 | W14: =IF(V14=0,0,(V14*((LOG(V14))/LOG(2)))) -> 0 | Y14: 222 | Z14: =COUNTIF(L20:L33,Y14) -> 0 | AA14: =Z14/(AB4-Z10) -> 0 | AB14: =IF(AA14=0,0,(AA14*((LOG(AA14))/LOG(2)))) -> 0 | AD14: 222 | AE14: =COUNTIF(L34:L46,AD14) -> 0 | AF14: =AE14/(AG4-AE10) -> 0 | AG14: =IF(AF14=0,0,(AF14*((LOG(AF14))/LOG(2)))) -> 0 | AI14: 222 | AJ14: =COUNTIF(L47:L59,AI14) -> 0 | AK14: =AJ14/(AL4-AJ10) -> 0 | AL14: =IF(AK14=0,0,(AK14*((LOG(AK14))/LOG(2)))) -> 0 | AN14: 222 | AO14: =COUNTIF(L60:L73,AN14) -> 0 | AP14: =AO14/(AQ4-AO10) -> 0 | AQ14: =IF(AP14=0,0,(AP14*((LOG(AP14))/LOG(2)))) -> 0 | AS14: 222 | AT14: =COUNTIF(L74:L86,AS14) -> 0 | AU14: =AT14/(AV4-AT10) -> 0 | AV14: =IF(AU14=0,0,(AU14*((LOG(AU14))/LOG(2)))) -> 0
A15: 11 | B15: 1052 | C15: 11 | D15: 1058 | E15: 21 | F15: 1071 | K15: 0 | L15: 112 | P15: =SUM(P7:P14) -> 1 | Q15: =-SUM(Q7:Q14) -> 1.895924242 | V15: =SUM(V7:V14) -> 1 | W15: =-SUM(W7:W14) -> 1.846439345 | AA15: =SUM(AA7:AA14) -> 1 | AB15: =-SUM(AB7:AB14) -> 0.9219280949 | AF15: =SUM(AF7:AF14) -> 1 | AG15: =-SUM(AG7:AG14) -> 0 | AK15: =SUM(AK7:AK14) -> 1 | AL15: =-SUM(AL7:AL14) -> 0.9219280949 | AP15: =SUM(AP7:AP14) -> 1 | AQ15: =-SUM(AQ7:AQ14) -> 1.295461844 | AU15: =SUM(AU7:AU14) -> 1 | AV15: =-SUM(AV7:AV14) -> 0.8453509366
A16: 11 | B16: 1165 | C16: 11 | D16: 1171 | E16: 21 | F16: 1181 | K16: 0 | L16: 112 | P16: U= | Q16: =Q15/(LOG(Q4)/LOG(2)) -> 0.299896521 | V16: U1= | W16: =W15/(LOG(W4)/LOG(2)) -> 0.4989783608 | AA16: U2= | AB16: =AB15/(LOG(AB4)/LOG(2)) -> 0.2421439855 | AF16: U3= | AG16: =AG15/(LOG(AG4)/LOG(2)) -> 0 | AK16: U4= | AL16: =AL15/(LOG(AL4)/LOG(2)) -> 0.2491401469 | AP16: U5= | AQ16: =AQ15/(LOG(AQ4)/LOG(2)) -> 0.340252451 | AU16: U6= | AV16: =AV15/(LOG(AV4)/LOG(2)) -> 0.228446077
A17: 11 | B17: 1274 | C17: 11 | D17: 1282 | E17: 21 | F17: 1294 | K17: 0 | L17: 112
A18: 22 | B18: 1409 | C18: 13 | D18: 1426 | E18: 23 | F18: 1440 | K18: 0 | L18: 212
A19: 11 | B19: 1547 | C19: 22 | D19: 1560 | E19: 23 | F19: 1574 | K19: 0 | L19: 122 | N19: Total Target Seq
A20: 11 | B20: 1681 | C20: 22 | D20: 1696 | E20: 23 | F20: 1702 | K20: 0 | L20: 122 | N20: =COUNTIF(L7:L86,G3) -> 23 | P20: 13 | Q20: 14 | R20: 13 | S20: 13 | T20: 14 | U20: 13
A21: 11 | B21: 1809 | C21: 11 | D21: 1845 | E21: 21 | F21: 1873 | K21: 0 | L21: 112 | P21: % of reinforcement given in 6 equal intervals based on number of trials
A22: 11 | B22: 1967 | C22: 11 | D22: 1984 | E22: 21 | F22: 1998 | K22: 0 | L22: 112 | P22: %_1 | Q22: %_2 | R22: %_3 | S22: %_4 | T22: %_5 | U22: %_6
A23: 11 | B23: 2095 | C23: 11 | D23: 2109 | E23: 21 | F23: 2118 | K23: 0 | L23: 112 | O23: target sequence | P23: =$G$3 -> 122 | Q23: 122 | R23: 122 | S23: 122 | T23: 122 | U23: 122
A24: 11 | B24: 2214 | C24: 22 | D24: 2228 | E24: 14 | F24: 2242 | K24: 0 | L24: 121 | O24: total reinforcement | P24: =U10 -> 3 | Q24: =Z10 -> 4 | R24: =AE10 -> 7 | S24: =AJ10 -> 3 | T24: =AO10 -> 4 | U24: =AT10 -> 2
A25: 11 | B25: 2346 | C25: 11 | D25: 2351 | E25: 21 | F25: 2364 | K25: 0 | L25: 112 | O25: % target
A26: 11 | B26: 2461 | C26: 22 | D26: 2471 | E26: 23 | F26: 2485 | K26: 0 | L26: 122 | O26: CCRF
A27: 11 | B27: 2585 | C27: 22 | D27: 2597 | E27: 23 | F27: 2604 | K27: 0 | L27: 122 | O27: % CCRf
A28: 11 | B28: 2705 | C28: 11 | D28: 2725 | E28: 21 | F28: 2740 | K28: 0 | L28: 112 | O28: average response rate | P28: =F19/P20 -> 121.0769231 | Q28: =(F33-F19)/Q20 -> 127.7142857 | R28: =(F46-F33)/R20 -> 125.9230769 | S28: =(F59-F46)/S20 -> 123.3076923 | T28: =(F73-F59)/T20 -> 120.2142857 | U28: =(F86-F73)/U20 -> 118.9230769
A29: 11 | B29: 2844 | C29: 22 | D29: 2854 | E29: 23 | F29: 2861 | K29: 0 | L29: 122
A30: 11 | B30: 2964 | C30: 11 | D30: 2978 | E30: 21 | F30: 3002 | K30: 0 | L30: 112
A31: 11 | B31: 3094 | C31: 11 | D31: 3099 | E31: 21 | F31: 3111 | K31: 0 | L31: 112
A32: 11 | B32: 3204 | C32: 11 | D32: 3214 | E32: 21 | F32: 3224 | K32: 0 | L32: 112
A33: 11 | B33: 3315 | C33: 11 | D33: 3326 | E33: 12 | F33: 3362 | K33: 0 | L33: 111
A34: 11 | B34: 3464 | C34: 11 | D34: 3481 | E34: 21 | F34: 3496 | K34: 0 | L34: 112
A35: 11 | B35: 3590 | C35: 11 | D35: 3607 | E35: 21 | F35: 3615 | K35: 0 | L35: 112
A36: 11 | B36: 3719 | C36: 22 | D36: 3734 | E36: 23 | F36: 3742 | K36: 0 | L36: 122
A37: 11 | B37: 3850 | C37: 22 | D37: 3868 | E37: 23 | F37: 3877 | K37: 0 | L37: 122
A38: 11 | B38: 3977 | C38: 11 | D38: 3990 | E38: 21 | F38: 4000 | K38: 0 | L38: 112
A39: 11 | B39: 4111 | C39: 22 | D39: 4124 | E39: 23 | F39: 4134 | K39: 0 | L39: 122
A40: 11 | B40: 4236 | C40: 22 | D40: 4246 | E40: 23 | F40: 4252 | K40: 0 | L40: 122
A41: 11 | B41: 4360 | C41: 22 | D41: 4370 | E41: 23 | F41: 4384 | K41: 0 | L41: 122
A42: 11 | B42: 4483 | C42: 11 | D42: 4489 | E42: 21 | F42: 4499 | K42: 0 | L42: 112
A43: 11 | B43: 4588 | C43: 11 | D43: 4601 | E43: 21 | F43: 4632 | K43: 0 | L43: 112
A44: 11 | B44: 4722 | C44: 11 | D44: 4735 | E44: 21 | F44: 4744 | K44: 0 | L44: 112
A45: 11 | B45: 4836 | C45: 22 | D45: 4865 | E45: 23 | F45: 4872 | K45: 0 | L45: 122
A46: 11 | B46: 4972 | C46: 22 | D46: 4984 | E46: 23 | F46: 4999 | K46: 0 | L46: 122
A47: 11 | B47: 5115 | C47: 11 | D47: 5128 | E47: 21 | F47: 5137 | K47: 0 | L47: 112
A48: 11 | B48: 5227 | C48: 11 | D48: 5235 | E48: 21 | F48: 5244 | K48: 0 | L48: 112
A49: 11 | B49: 5335 | C49: 22 | D49: 5348 | E49: 23 | F49: 5356 | K49: 0 | L49: 122
A50: 11 | B50: 5454 | C50: 11 | D50: 5468 | E50: 21 | F50: 5477 | K50: 0 | L50: 112
A51: 11 | B51: 5577 | C51: 22 | D51: 5587 | E51: 23 | F51: 5594 | K51: 0 | L51: 122
A52: 11 | B52: 5692 | C52: 11 | D52: 5728 | E52: 21 | F52: 5762 | K52: 0 | L52: 112
A53: 11 | B53: 5852 | C53: 22 | D53: 5863 | E53: 23 | F53: 5870 | K53: 0 | L53: 122
A54: 11 | B54: 5974 | C54: 11 | D54: 5987 | E54: 21 | F54: 5996 | K54: 0 | L54: 112
A55: 22 | B55: 6108 | C55: 24 | D55: 6114 | E55: 14 | F55: 6137 | K55: 0 | L55: 221
A56: 11 | B56: 6236 | C56: 11 | D56: 6245 | E56: 21 | F56: 6256 | K56: 0 | L56: 112
A57: 11 | B57: 6349 | C57: 11 | D57: 6357 | E57: 21 | F57: 6367 | K57: 0 | L57: 112
A58: 11 | B58: 6459 | C58: 11 | D58: 6465 | E58: 21 | F58: 6475 | K58: 0 | L58: 112
A59: 11 | B59: 6567 | C59: 11 | D59: 6576 | E59: 12 | F59: 6602 | K59: 0 | L59: 111
A60: 11 | B60: 6709 | C60: 22 | D60: 6719 | E60: 14 | F60: 6747 | K60: 0 | L60: 121
A61: 11 | B61: 6847 | C61: 11 | D61: 6856 | E61: 21 | F61: 6866 | K61: 0 | L61: 112
A62: 11 | B62: 6963 | C62: 22 | D62: 6973 | E62: 14 | F62: 6986 | K62: 0 | L62: 121
A63: 11 | B63: 7096 | C63: 22 | D63: 7106 | E63: 23 | F63: 7118 | K63: 0 | L63: 122
A64: 11 | B64: 7221 | C64: 22 | D64: 7231 | E64: 23 | F64: 7239 | K64: 0 | L64: 122
A65: 11 | B65: 7338 | C65: 11 | D65: 7347 | E65: 21 | F65: 7357 | K65: 0 | L65: 112
A66: 11 | B66: 7450 | C66: 22 | D66: 7462 | E66: 23 | F66: 7469 | K66: 0 | L66: 122
A67: 11 | B67: 7565 | C67: 11 | D67: 7575 | E67: 12 | F67: 7585 | K67: 0 | L67: 111
A68: 11 | B68: 7685 | C68: 11 | D68: 7695 | E68: 21 | F68: 7704 | K68: 0 | L68: 112
A69: 11 | B69: 7791 | C69: 11 | D69: 7796 | E69: 21 | F69: 7808 | K69: 0 | L69: 112
A70: 11 | B70: 7903 | C70: 22 | D70: 7912 | E70: 14 | F70: 7925 | K70: 0 | L70: 121
A71: 11 | B71: 8024 | C71: 22 | D71: 8051 | E71: 23 | F71: 8061 | K71: 0 | L71: 122
A72: 11 | B72: 8163 | C72: 11 | D72: 8169 | E72: 21 | F72: 8178 | K72: 0 | L72: 112
A73: 11 | B73: 8267 | C73: 11 | D73: 8272 | E73: 21 | F73: 8285 | K73: 0 | L73: 112
A74: 11 | B74: 8380 | C74: 22 | D74: 8394 | E74: 14 | F74: 8409 | K74: 0 | L74: 121
A75: 11 | B75: 8510 | C75: 22 | D75: 8524 | E75: 23 | F75: 8534 | K75: 0 | L75: 122
A76: 11 | B76: 8641 | C76: 22 | D76: 8651 | E76: 14 | F76: 8669 | K76: 0 | L76: 121
A77: 11 | B77: 8766 | C77: 11 | D77: 8775 | E77: 21 | F77: 8785 | K77: 0 | L77: 112
A78: 11 | B78: 8873 | C78: 11 | D78: 8881 | E78: 21 | F78: 8890 | K78: 0 | L78: 112
A79: 11 | B79: 8994 | C79: 22 | D79: 9005 | E79: 14 | F79: 9017 | K79: 0 | L79: 121
A80: 11 | B80: 9113 | C80: 11 | D80: 9122 | E80: 21 | F80: 9148 | K80: 0 | L80: 112
A81: 11 | B81: 9236 | C81: 11 | D81: 9241 | E81: 21 | F81: 9266 | K81: 0 | L81: 112
A82: 11 | B82: 9357 | C82: 22 | D82: 9368 | E82: 23 | F82: 9374 | K82: 0 | L82: 122
A83: 11 | B83: 9472 | C83: 11 | D83: 9481 | E83: 21 | F83: 9505 | K83: 0 | L83: 112
A84: 11 | B84: 9593 | C84: 11 | D84: 9601 | E84: 21 | F84: 9613 | K84: 0 | L84: 112
A85: 11 | B85: 9701 | C85: 11 | D85: 9706 | E85: 21 | F85: 9723 | K85: 0 | L85: 112
A86: 11 | B86: 9812 | C86: 11 | D86: 9821 | E86: 21 | F86: 9831 | K86: 1 | L86: 112

Sheet !2011-08-01_12h05m.Subject 56
A1: Report for:!2011-08-01_12h05m.Subject 56
A2: Date | B2: 2011-08-01 | F2: Group | G2: Phase 2 Con
A3: Hen | B3: 56 | F3: Correct Sequence | G3: =Start!J2 -> 122 | P3: Total Sequences in Data | Q3: =4994-COUNTBLANK(L7:L5000) -> 61 | V3: Total Sequences in Block Data | W3: =COUNTA(L7:L16) -> 10 | AA3: Total Sequences in Block Data | AB3: =COUNTA(L17:L26) -> 10 | AF3: Total Sequences in Block Data | AG3: =COUNTA(L27:L37) -> 11 | AK3: Total Sequences in Block Data | AL3: =COUNTA(L38:L47) -> 10 | AP3: Total Sequences in Block Data | AQ3: =COUNTA(L48:L57) -> 10 | AU3: Total Sequences in Block Data | AV3: =COUNTA(L58:L67) -> 10
A4: Program | B4: One | P4: Total Sequences in Summary | Q4: =SUM(O7:O14) -> 61 | V4: Total Sequences in Block Summary | W4: =SUM(U7:U14) -> 10 | AA4: Total Sequences in Block Summary | AB4: =SUM(Z7:Z14) -> 10 | AF4: Total Sequences in Block Summary | AG4: =SUM(AE7:AE14) -> 11 | AK4: Total Sequences in Block Summary | AL4: =SUM(AJ7:AJ14) -> 10 | AP4: Total Sequences in Block Summary | AQ4: =SUM(AO7:AO14) -> 10 | AU4: Total Sequences in Block Summary | AV4: =SUM(AT7:AT14) -> 10
T5: Block 1 | Y5: Block 2 | AD5: Block 3 | AI5: Block 4 | AN5: Block 5 | AS5: Block 6
A6: Sequence Component 1 | B6: Time 1 | C6: Sequence Component 2 | D6: Time 2 | E6: Sequence Component 3 | F6: Time 3 | G6: Sequence Component 4 | H6: Time 4 | I6: Sequence Component 5 | J6: Time 5 | K6: Correct? 0=No 1=Yes | L6: Sequence | N6: Frequency | P6: Relative Frequency | Q6: Variability | T6: Frequency | V6: Relative Frequency | W6: Variability | Y6: Frequency | AA6: Relative Frequency | AB6: Variability | AD6: Frequency | AF6: Relative Frequency | AG6: Variability | AI6: Frequency | AK6: Relative Frequency | AL6: Variability | AN6: Frequency | AP6: Relative Frequency | AQ6: Variability | AS6: Frequency | AU6: Relative Frequency | AV6: Variability
A7: 22 | B7: 10 | C7: 24 | D7: 17 | E7: 23 | F7: 27 | K7: 0 | L7: 222 | N7: 111 | O7: =COUNTIF($L$7:$L$500,N7) -> 2 | P7: =O7/$Q$4 -> 0.03278688525 | Q7: =IF(P7=0,0,(P7*((LOG(P7))/LOG(2)))) -> -0.1616635193 | T7: =N7 -> 111 | U7: =COUNTIF(L7:L16,T7) -> 0 | V7: =U7/(W4-U10) -> 0 | W7: =IF(V7=0,0,(V7*((LOG(V7))/LOG(2)))) -> 0 | Y7: =N7 -> 111 | Z7: =COUNTIF(L17:L26,Y7) -> 1 | AA7: =Z7/(AB4-Z10) -> 0.1111111111 | AB7: =IF(AA7=0,0,(AA7*((LOG(AA7))/LOG(2)))) -> -0.352213889 | AD7: =N7 -> 111 | AE7: =COUNTIF(L27:L37,AD7) -> 0 | AF7: =AE7/(AG4-AE10) -> 0 | AG7: =IF(AF7=0,0,(AF7*((LOG(AF7))/LOG(2)))) -> 0 | AI7: =N7 -> 111 | AJ7: =COUNTIF(L38:L47,AI7) -> 0 | AK7: =AJ7/(AL4-AJ10) -> 0 | AL7: =IF(AK7=0,0,(AK7*((LOG(AK7))/LOG(2)))) -> 0 | AN7: =N7 -> 111 | AO7: =COUNTIF(L48:L57,AN7) -> 0 | AP7: =AO7/(AQ4-AO10) -> 0 | AQ7: =IF(AP7=0,0,(AP7*((LOG(AP7))/LOG(2)))) -> 0 | AS7: =N7 -> 111 | AT7: =COUNTIF(L58:L67,AS7) -> 1 | AU7: =AT7/(AV4-AT10) -> 0.125 | AV7: =IF(AU7=0,0,(AU7*((LOG(AU7))/LOG(2)))) -> -0.375
A8: 11 | B8: 131 | C8: 11 | D8: 136 | E8: 21 | F8: 150 | K8: 0 | L8: 112 | N8: 112 | O8: 40 | P8: 0.6557377049 | Q8: -0.3992191755 | T8: 112 | U8: =COUNTIF(L7:L16,T8) -> 8 | V8: =U8/(W4-U10) -> 0.8 | W8: =IF(V8=0,0,(V8*((LOG(V8))/LOG(2)))) -> -0.2575424759 | Y8: 112 | Z8: =COUNTIF(L17:L26,Y8) -> 6 | AA8: =Z8/(AB4-Z10) -> 0.6666666667 | AB8: =IF(AA8=0,0,(AA8*((LOG(AA8))/LOG(2)))) -> -0.3899750005 | AD8: 112 | AE8: =COUNTIF(L27:L37,AD8) -> 8 | AF8: =AE8/(AG4-AE10) -> 0.8 | AG8: =IF(AF8=0,0,(AF8*((LOG(AF8))/LOG(2)))) -> -0.2575424759 | AI8: 112 | AJ8: =COUNTIF(L38:L47,AI8) -> 5 | AK8: =AJ8/(AL4-AJ10) -> 0.5 | AL8: =IF(AK8=0,0,(AK8*((LOG(AK8))/LOG(2)))) -> -0.5 | AN8: 112 | AO8: =COUNTIF(L48:L57,AN8) -> 6 | AP8: =AO8/(AQ4-AO10) -> 1 | AQ8: =IF(AP8=0,0,(AP8*((LOG(AP8))/LOG(2)))) -> 0 | AS8: 112 | AT8: =COUNTIF(L58:L67,AS8) -> 7 | AU8: =AT8/(AV4-AT10) -> 0.875 | AV8: =IF(AU8=0,0,(AU8*((LOG(AU8))/LOG(2)))) -> -0.1685644432
A9: 11 | B9: 242 | C9: 11 | D9: 247 | E9: 21 | F9: 258 | K9: 0 | L9: 112 | N9: 121 | O9: 7 | P9: 0.1147540984 | Q9: -0.3584209329 | T9: 121 | U9: =COUNTIF(L7:L16,T9) -> 1 | V9: =U9/(W4-U10) -> 0.1 | W9: =IF(V9=0,0,(V9*((LOG(V9))/LOG(2)))) -> -0.3321928095 | Y9: 121 | Z9: =COUNTIF(L17:L26,Y9) -> 1 | AA9: =Z9/(AB4-Z10) -> 0.1111111111 | AB9: =IF(AA9=0,0,(AA9*((LOG(AA9))/LOG(2)))) -> -0.352213889 | AD9: 121 | AE9: =COUNTIF(L27:L37,AD9) -> 1 | AF9: =AE9/(AG4-AE10) -> 0.1 | AG9: =IF(AF9=0,0,(AF9*((LOG(AF9))/LOG(2)))) -> -0.3321928095 | AI9: 121 | AJ9: =COUNTIF(L38:L47,AI9) -> 4 | AK9: =AJ9/(AL4-AJ10) -> 0.4 | AL9: =IF(AK9=0,0,(AK9*((LOG(AK9))/LOG(2)))) -> -0.528771238 | AN9: 121 | AO9: =COUNTIF(L48:L57,AN9) -> 0 | AP9: =AO9/(AQ4-AO10) -> 0 | AQ9: =IF(AP9=0,0,(AP9*((LOG(AP9))/LOG(2)))) -> 0 | AS9: 121 | AT9: =COUNTIF(L58:L67,AS9) -> 0 | AU9: =AT9/(AV4-AT10) -> 0 | AV9: =IF(AU9=0,0,(AU9*((LOG(AU9))/LOG(2)))) -> 0
A10: 11 | B10: 352 | C10: 11 | D10: 359 | E10: 21 | F10: 370 | K10: 0 | L10: 112 | N10: 122 | O10: 8 | P10: 0.131147541 | Q10: -0.3843589951 | T10: 122 | U10: =COUNTIF(L7:L16,T10) -> 0 | Y10: 122 | Z10: =COUNTIF(L17:L26,Y10) -> 1 | AD10: 122 | AE10: =COUNTIF(L27:L37,AD10) -> 1 | AI10: 122 | AJ10: =COUNTIF(L38:L47,AI10) -> 0 | AN10: 122 | AO10: =COUNTIF(L48:L57,AN10) -> 4 | AS10: 122 | AT10: =COUNTIF(L58:L67,AS10) -> 2
A11: 11 | B11: 467 | C11: 11 | D11: 472 | E11: 21 | F11: 485 | K11: 0 | L11: 112 | N11: 211 | O11: 0 | P11: 0 | Q11: 0 | T11: 211 | U11: =COUNTIF(L7:L16,T11) -> 0 | V11: =U11/(W4-U10) -> 0 | W11: =IF(V11=0,0,(V11*((LOG(V11))/LOG(2)))) -> 0 | Y11: 211 | Z11: =COUNTIF(L17:L26,Y11) -> 0 | AA11: =Z11/(AB4-Z10) -> 0 | AB11: =IF(AA11=0,0,(AA11*((LOG(AA11))/LOG(2)))) -> 0 | AD11: 211 | AE11: =COUNTIF(L27:L37,AD11) -> 0 | AF11: =AE11/(AG4-AE10) -> 0 | AG11: =IF(AF11=0,0,(AF11*((LOG(AF11))/LOG(2)))) -> 0 | AI11: 211 | AJ11: =COUNTIF(L38:L47,AI11) -> 0 | AK11: =AJ11/(AL4-AJ10) -> 0 | AL11: =IF(AK11=0,0,(AK11*((LOG(AK11))/LOG(2)))) -> 0 | AN11: 211 | AO11: =COUNTIF(L48:L57,AN11) -> 0 | AP11: =AO11/(AQ4-AO10) -> 0 | AQ11: =IF(AP11=0,0,(AP11*((LOG(AP11))/LOG(2)))) -> 0 | AS11: 211 | AT11: =COUNTIF(L58:L67,AS11) -> 0 | AU11: =AT11/(AV4-AT10) -> 0 | AV11: =IF(AU11=0,0,(AU11*((LOG(AU11))/LOG(2)))) -> 0
A12: 11 | B12: 575 | C12: 11 | D12: 582 | E12: 21 | F12: 600 | K12: 0 | L12: 112 | N12: 212 | O12: 0 | P12: 0 | Q12: 0 | T12: 212 | U12: =COUNTIF(L7:L16,T12) -> 0 | V12: =U12/(W4-U10) -> 0 | W12: =IF(V12=0,0,(V12*((LOG(V12))/LOG(2)))) -> 0 | Y12: 212 | Z12: =COUNTIF(L17:L26,Y12) -> 0 | AA12: =Z12/(AB4-Z10) -> 0 | AB12: =IF(AA12=0,0,(AA12*((LOG(AA12))/LOG(2)))) -> 0 | AD12: 212 | AE12: =COUNTIF(L27:L37,AD12) -> 0 | AF12: =AE12/(AG4-AE10) -> 0 | AG12: =IF(AF12=0,0,(AF12*((LOG(AF12))/LOG(2)))) -> 0 | AI12: 212 | AJ12: =COUNTIF(L38:L47,AI12) -> 0 | AK12: =AJ12/(AL4-AJ10) -> 0 | AL12: =IF(AK12=0,0,(AK12*((LOG(AK12))/LOG(2)))) -> 0 | AN12: 212 | AO12: =COUNTIF(L48:L57,AN12) -> 0 | AP12: =AO12/(AQ4-AO10) -> 0 | AQ12: =IF(AP12=0,0,(AP12*((LOG(AP12))/LOG(2)))) -> 0 | AS12: 212 | AT12: =COUNTIF(L58:L67,AS12) -> 0 | AU12: =AT12/(AV4-AT10) -> 0 | AV12: =IF(AU12=0,0,(AU12*((LOG(AU12))/LOG(2)))) -> 0
A13: 11 | B13: 690 | C13: 11 | D13: 696 | E13: 21 | F13: 707 | K13: 0 | L13: 112 | N13: 221 | O13: 2 | P13: 0.03278688525 | Q13: -0.1616635193 | T13: 221 | U13: =COUNTIF(L7:L16,T13) -> 0 | V13: =U13/(W4-U10) -> 0 | W13: =IF(V13=0,0,(V13*((LOG(V13))/LOG(2)))) -> 0 | Y13: 221 | Z13: =COUNTIF(L17:L26,Y13) -> 1 | AA13: =Z13/(AB4-Z10) -> 0.1111111111 | AB13: =IF(AA13=0,0,(AA13*((LOG(AA13))/LOG(2)))) -> -0.352213889 | AD13: 221 | AE13: =COUNTIF(L27:L37,AD13) -> 1 | AF13: =AE13/(AG4-AE10) -> 0.1 | AG13: =IF(AF13=0,0,(AF13*((LOG(AF13))/LOG(2)))) -> -0.3321928095 | AI13: 221 | AJ13: =COUNTIF(L38:L47,AI13) -> 0 | AK13: =AJ13/(AL4-AJ10) -> 0 | AL13: =IF(AK13=0,0,(AK13*((LOG(AK13))/LOG(2)))) -> 0 | AN13: 221 | AO13: =COUNTIF(L48:L57,AN13) -> 0 | AP13: =AO13/(AQ4-AO10) -> 0 | AQ13: =IF(AP13=0,0,(AP13*((LOG(AP13))/LOG(2)))) -> 0 | AS13: 221 | AT13: =COUNTIF(L58:L67,AS13) -> 0 | AU13: =AT13/(AV4-AT10) -> 0 | AV13: =IF(AU13=0,0,(AU13*((LOG(AU13))/LOG(2)))) -> 0
A14: 11 | B14: 795 | C14: 11 | D14: 800 | E14: 21 | F14: 812 | K14: 0 | L14: 112 | N14: 222 | O14: 2 | P14: 0.03278688525 | Q14: -0.1616635193 | T14: 222 | U14: =COUNTIF(L7:L16,T14) -> 1 | V14: =U14/(W4-U10) -> 0.1 | W14: =IF(V14=0,0,(V14*((LOG(V14))/LOG(2)))) -> -0.3321928095 | Y14: 222 | Z14: =COUNTIF(L17:L26,Y14) -> 0 | AA14: =Z14/(AB4-Z10) -> 0 | AB14: =IF(AA14=0,0,(AA14*((LOG(AA14))/LOG(2)))) -> 0 | AD14: 222 | AE14: =COUNTIF(L27:L37,AD14) -> 0 | AF14: =AE14/(AG4-AE10) -> 0 | AG14: =IF(AF14=0,0,(AF14*((LOG(AF14))/LOG(2)))) -> 0 | AI14: 222 | AJ14: =COUNTIF(L38:L47,AI14) -> 1 | AK14: =AJ14/(AL4-AJ10) -> 0.1 | AL14: =IF(AK14=0,0,(AK14*((LOG(AK14))/LOG(2)))) -> -0.3321928095 | AN14: 222 | AO14: =COUNTIF(L48:L57,AN14) -> 0 | AP14: =AO14/(AQ4-AO10) -> 0 | AQ14: =IF(AP14=0,0,(AP14*((LOG(AP14))/LOG(2)))) -> 0 | AS14: 222 | AT14: =COUNTIF(L58:L67,AS14) -> 0 | AU14: =AT14/(AV4-AT10) -> 0 | AV14: =IF(AU14=0,0,(AU14*((LOG(AU14))/LOG(2)))) -> 0
A15: 11 | B15: 904 | C15: 22 | D15: 917 | E15: 14 | F15: 931 | K15: 0 | L15: 121 | P15: =SUM(P7:P14) -> 1 | Q15: =-SUM(Q7:Q14) -> 1.626989661 | V15: =SUM(V7:V14) -> 1 | W15: =-SUM(W7:W14) -> 0.9219280949 | AA15: =SUM(AA7:AA14) -> 1 | AB15: =-SUM(AB7:AB14) -> 1.446616668 | AF15: =SUM(AF7:AF14) -> 1 | AG15: =-SUM(AG7:AG14) -> 0.9219280949 | AK15: =SUM(AK7:AK14) -> 1 | AL15: =-SUM(AL7:AL14) -> 1.360964047 | AP15: =SUM(AP7:AP14) -> 1 | AQ15: =-SUM(AQ7:AQ14) -> 0 | AU15: =SUM(AU7:AU14) -> 1 | AV15: =-SUM(AV7:AV14) -> 0.5435644432
A16: 11 | B16: 1031 | C16: 11 | D16: 1037 | E16: 21 | F16: 1049 | K16: 0 | L16: 112 | P16: U= | Q16: =Q15/(LOG(Q4)/LOG(2)) -> 0.2743317683 | V16: U1= | W16: =W15/(LOG(W4)/LOG(2)) -> 0.2775280104 | AA16: U2= | AB16: =AB15/(LOG(AB4)/LOG(2)) -> 0.4354750092 | AF16: U3= | AG16: =AG15/(LOG(AG4)/LOG(2)) -> 0.2664969846 | AK16: U4= | AL16: =AL15/(LOG(AL4)/LOG(2)) -> 0.4096910013 | AP16: U5= | AQ16: =AQ15/(LOG(AQ4)/LOG(2)) -> 0 | AU16: U6= | AV16: =AV15/(LOG(AV4)/LOG(2)) -> 0.163629202
A17: 11 | B17: 1141 | C17: 11 | D17: 1146 | E17: 21 | F17: 1155 | K17: 0 | L17: 112
A18: 11 | B18: 1252 | C18: 22 | D18: 1261 | E18: 14 | F18: 1276 | K18: 0 | L18: 121
A19: 22 | B19: 1389 | C19: 24 | D19: 1396 | E19: 14 | F19: 1409 | K19: 0 | L19: 221 | N19: Total Target Seq
A20: 11 | B20: 1509 | C20: 11 | D20: 1520 | E20: 21 | F20: 1530 | K20: 0 | L20: 112 | N20: =COUNTIF(L7:L67,G3) -> 8 | P20: 10 | Q20: 10 | R20: 11 | S20: 10 | T20: 10 | U20: 10
A21: 11 | B21: 1618 | C21: 22 | D21: 1633 | E21: 23 | F21: 1661 | K21: 0 | L21: 122 | P21: % of reinforcement given in 6 equal intervals based on number of trials
A22: 11 | B22: 1758 | C22: 11 | D22: 1774 | E22: 21 | F22: 1791 | K22: 0 | L22: 112 | P22: %_1 | Q22: %_2 | R22: %_3 | S22: %_4 | T22: %_5 | U22: %_6
A23: 11 | B23: 1882 | C23: 11 | D23: 1890 | E23: 21 | F23: 1902 | K23: 0 | L23: 112 | O23: target sequence | P23: =$G$3 -> 122 | Q23: 122 | R23: 122 | S23: 122 | T23: 122 | U23: 122
A24: 11 | B24: 1989 | C24: 11 | D24: 1995 | E24: 12 | F24: 2025 | K24: 0 | L24: 111 | O24: total reinforcement | P24: =U10 -> 0 | Q24: =Z10 -> 1 | R24: =AE10 -> 1 | S24: =AJ10 -> 0 | T24: =AO10 -> 4 | U24: =AT10 -> 2
A25: 11 | B25: 2121 | C25: 11 | D25: 2129 | E25: 21 | F25: 2139 | K25: 0 | L25: 112 | O25: % target
A26: 11 | B26: 2229 | C26: 11 | D26: 2234 | E26: 21 | F26: 2244 | K26: 0 | L26: 112 | O26: CCRF
A27: 11 | B27: 2331 | C27: 11 | D27: 2339 | E27: 21 | F27: 2349 | K27: 0 | L27: 112 | O27: % CCRf
A28: 11 | B28: 2437 | C28: 11 | D28: 2443 | E28: 21 | F28: 2452 | K28: 0 | L28: 112 | O28: average response rate | P28: =F16/P20 -> 104.9 | Q28: =(F26-F16)/Q20 -> 119.5 | R28: =(F37-F26)/R20 -> 116 | S28: =(F47-F37)/S20 -> 122.4 | T28: =(F57-F47)/T20 -> 120 | U28: =(F67-F57)/U20 -> 112.8
A29: 11 | B29: 2540 | C29: 11 | D29: 2545 | E29: 21 | F29: 2554 | K29: 0 | L29: 112
A30: 11 | B30: 2649 | C30: 22 | D30: 2658 | E30: 23 | F30: 2665 | K30: 0 | L30: 122
A31: 11 | B31: 2771 | C31: 11 | D31: 2782 | E31: 21 | F31: 2805 | K31: 0 | L31: 112
A32: 11 | B32: 2891 | C32: 11 | D32: 2897 | E32: 21 | F32: 2907 | K32: 0 | L32: 112
A33: 11 | B33: 2999 | C33: 11 | D33: 3004 | E33: 21 | F33: 3014 | K33: 0 | L33: 112
A34: 11 | B34: 3104 | C34: 11 | D34: 3113 | E34: 21 | F34: 3122 | K34: 0 | L34: 112
A35: 11 | B35: 3218 | C35: 11 | D35: 3228 | E35: 21 | F35: 3258 | K35: 0 | L35: 112
A36: 22 | B36: 3367 | C36: 24 | D36: 3384 | E36: 14 | F36: 3396 | K36: 0 | L36: 221
A37: 11 | B37: 3496 | C37: 22 | D37: 3505 | E37: 14 | F37: 3520 | K37: 0 | L37: 121
A38: 11 | B38: 3621 | C38: 22 | D38: 3631 | E38: 14 | F38: 3644 | K38: 0 | L38: 121
A39: 11 | B39: 3740 | C39: 11 | D39: 3750 | E39: 21 | F39: 3759 | K39: 0 | L39: 112
A40: 11 | B40: 3848 | C40: 22 | D40: 3858 | E40: 14 | F40: 3870 | K40: 0 | L40: 121
A41: 22 | B41: 3987 | C41: 24 | D41: 4021 | E41: 23 | F41: 4034 | K41: 0 | L41: 222
A42: 11 | B42: 4145 | C42: 22 | D42: 4156 | E42: 14 | F42: 4169 | K42: 0 | L42: 121
A43: 11 | B43: 4268 | C43: 11 | D43: 4274 | E43: 21 | F43: 4283 | K43: 0 | L43: 112
A44: 11 | B44: 4375 | C44: 22 | D44: 4389 | E44: 14 | F44: 4402 | K44: 0 | L44: 121
A45: 11 | B45: 4500 | C45: 11 | D45: 4507 | E45: 21 | F45: 4516 | K45: 0 | L45: 112
A46: 11 | B46: 4607 | C46: 11 | D46: 4612 | E46: 21 | F46: 4621 | K46: 0 | L46: 112
A47: 11 | B47: 4708 | C47: 11 | D47: 4723 | E47: 21 | F47: 4744 | K47: 0 | L47: 112
A48: 11 | B48: 4833 | C48: 11 | D48: 4839 | E48: 21 | F48: 4848 | K48: 0 | L48: 112
A49: 11 | B49: 4939 | C49: 22 | D49: 4948 | E49: 23 | F49: 4962 | K49: 0 | L49: 122
A50: 11 | B50: 5057 | C50: 11 | D50: 5066 | E50: 21 | F50: 5075 | K50: 0 | L50: 112
A51: 11 | B51: 5162 | C51: 11 | D51: 5168 | E51: 21 | F51: 5181 | K51: 0 | L51: 112
A52: 11 | B52: 5279 | C52: 22 | D52: 5289 | E52: 23 | F52: 5302 | K52: 0 | L52: 122
A53: 11 | B53: 5406 | C53: 22 | D53: 5415 | E53: 23 | F53: 5427 | K53: 0 | L53: 122
A54: 11 | B54: 5524 | C54: 11 | D54: 5531 | E54: 21 | F54: 5559 | K54: 0 | L54: 112
A55: 11 | B55: 5666 | C55: 11 | D55: 5689 | E55: 21 | F55: 5702 | K55: 0 | L55: 112
A56: 11 | B56: 5790 | C56: 11 | D56: 5801 | E56: 21 | F56: 5823 | K56: 0 | L56: 112
A57: 11 | B57: 5922 | C57: 22 | D57: 5931 | E57: 23 | F57: 5944 | K57: 0 | L57: 122
A58: 11 | B58: 6039 | C58: 22 | D58: 6054 | E58: 23 | F58: 6065 | K58: 0 | L58: 122
A59: 11 | B59: 6163 | C59: 11 | D59: 6177 | E59: 21 | F59: 6187 | K59: 0 | L59: 112
A60: 11 | B60: 6274 | C60: 11 | D60: 6279 | E60: 21 | F60: 6290 | K60: 0 | L60: 112
A61: 11 | B61: 6386 | C61: 11 | D61: 6392 | E61: 21 | F61: 6402 | K61: 0 | L61: 112
A62: 11 | B62: 6491 | C62: 11 | D62: 6497 | E62: 21 | F62: 6518 | K62: 0 | L62: 112
A63: 11 | B63: 6605 | C63: 11 | D63: 6610 | E63: 21 | F63: 6619 | K63: 0 | L63: 112
A64: 11 | B64: 6712 | C64: 22 | D64: 6721 | E64: 23 | F64: 6738 | K64: 0 | L64: 122
A65: 11 | B65: 6836 | C65: 11 | D65: 6842 | E65: 12 | F65: 6849 | K65: 0 | L65: 111
A66: 11 | B66: 6948 | C66: 11 | D66: 6953 | E66: 21 | F66: 6965 | K66: 0 | L66: 112
A67: 11 | B67: 7055 | C67: 11 | D67: 7062 | E67: 21 | F67: 7072 | K67: 1 | L67: 112

Sheet !2011-08-02_11h46m.Subject 56
A1: Report for:!2011-08-02_11h46m.Subject 56
A2: Date | B2: 2011-08-02 | F2: Group | G2: Phase 2 Con
A3: Hen | B3: 56 | F3: Correct Sequence | G3: =Start!J2 -> 122 | P3: Total Sequences in Data | Q3: =4994-COUNTBLANK(L7:L5000) -> 55 | V3: Total Sequences in Block Data | W3: =COUNTA(L7:L15) -> 9 | AA3: Total Sequences in Block Data | AB3: =COUNTA(L16:L24) -> 9 | AF3: Total Sequences in Block Data | AG3: =COUNTA(L25:L34) -> 10 | AK3: Total Sequences in Block Data | AL3: =COUNTA(L35:L43) -> 9 | AP3: Total Sequences in Block Data | AQ3: =COUNTA(L44:L52) -> 9 | AU3: Total Sequences in Block Data | AV3: =COUNTA(L53:L61) -> 9
A4: Program | B4: One | P4: Total Sequences in Summary | Q4: =SUM(O7:O14) -> 55 | V4: Total Sequences in Block Summary | W4: =SUM(U7:U14) -> 9 | AA4: Total Sequences in Block Summary | AB4: =SUM(Z7:Z14) -> 9 | AF4: Total Sequences in Block Summary | AG4: =SUM(AE7:AE14) -> 10 | AK4: Total Sequences in Block Summary | AL4: =SUM(AJ7:AJ14) -> 9 | AP4: Total Sequences in Block Summary | AQ4: =SUM(AO7:AO14) -> 9 | AU4: Total Sequences in Block Summary | AV4: =SUM(AT7:AT14) -> 9
T5: Block 1 | Y5: Block 2 | AD5: Block 3 | AI5: Block 4 | AN5: Block 5 | AS5: Block 6
A6: Sequence Component 1 | B6: Time 1 | C6: Sequence Component 2 | D6: Time 2 | E6: Sequence Component 3 | F6: Time 3 | G6: Sequence Component 4 | H6: Time 4 | I6: Sequence Component 5 | J6: Time 5 | K6: Correct? 0=No 1=Yes | L6: Sequence | N6: Frequency | P6: Relative Frequency | Q6: Variability | T6: Frequency | V6: Relative Frequency | W6: Variability | Y6: Frequency | AA6: Relative Frequency | AB6: Variability | AD6: Frequency | AF6: Relative Frequency | AG6: Variability | AI6: Frequency | AK6: Relative Frequency | AL6: Variability | AN6: Frequency | AP6: Relative Frequency | AQ6: Variability | AS6: Frequency | AU6: Relative Frequency | AV6: Variability
A7: 11 | B7: 10 | C7: 11 | D7: 16 | E7: 21 | F7: 29 | K7: 0 | L7: 112 | N7: 111 | O7: =COUNTIF($L$7:$L$500,N7) -> 2 | P7: =O7/$Q$4 -> 0.03636363636 | Q7: =IF(P7=0,0,(P7*((LOG(P7))/LOG(2)))) -> -0.1738676259 | T7: =N7 -> 111 | U7: =COUNTIF(L7:L15,T7) -> 0 | V7: =U7/(W4-U10) -> 0 | W7: =IF(V7=0,0,(V7*((LOG(V7))/LOG(2)))) -> 0 | Y7: =N7 -> 111 | Z7: =COUNTIF(L16:L24,Y7) -> 0 | AA7: =Z7/(AB4-Z10) -> 0 | AB7: =IF(AA7=0,0,(AA7*((LOG(AA7))/LOG(2)))) -> 0 | AD7: =N7 -> 111 | AE7: =COUNTIF(L25:L34,AD7) -> 0 | AF7: =AE7/(AG4-AE10) -> 0 | AG7: =IF(AF7=0,0,(AF7*((LOG(AF7))/LOG(2)))) -> 0 | AI7: =N7 -> 111 | AJ7: =COUNTIF(L35:L43,AI7) -> 1 | AK7: =AJ7/(AL4-AJ10) -> 0.2 | AL7: =IF(AK7=0,0,(AK7*((LOG(AK7))/LOG(2)))) -> -0.464385619 | AN7: =N7 -> 111 | AO7: =COUNTIF(L44:L52,AN7) -> 0 | AP7: =AO7/(AQ4-AO10) -> 0 | AQ7: =IF(AP7=0,0,(AP7*((LOG(AP7))/LOG(2)))) -> 0 | AS7: =N7 -> 111 | AT7: =COUNTIF(L53:L61,AS7) -> 1 | AU7: =AT7/(AV4-AT10) -> 0.1111111111 | AV7: =IF(AU7=0,0,(AU7*((LOG(AU7))/LOG(2)))) -> -0.352213889
A8: 11 | B8: 120 | C8: 11 | D8: 125 | E8: 21 | F8: 135 | K8: 0 | L8: 112 | N8: 112 | O8: 40 | P8: 0.7272727273 | Q8: -0.3341320863 | T8: 112 | U8: =COUNTIF(L7:L15,T8) -> 7 | V8: =U8/(W4-U10) -> 1 | W8: =IF(V8=0,0,(V8*((LOG(V8))/LOG(2)))) -> 0 | Y8: 112 | Z8: =COUNTIF(L16:L24,Y8) -> 7 | AA8: =Z8/(AB4-Z10) -> 1 | AB8: =IF(AA8=0,0,(AA8*((LOG(AA8))/LOG(2)))) -> 0 | AD8: 112 | AE8: =COUNTIF(L25:L34,AD8) -> 5 | AF8: =AE8/(AG4-AE10) -> 0.8333333333 | AG8: =IF(AF8=0,0,(AF8*((LOG(AF8))/LOG(2)))) -> -0.2191953382 | AI8: 112 | AJ8: =COUNTIF(L35:L43,AI8) -> 4 | AK8: =AJ8/(AL4-AJ10) -> 0.8 | AL8: =IF(AK8=0,0,(AK8*((LOG(AK8))/LOG(2)))) -> -0.2575424759 | AN8: 112 | AO8: =COUNTIF(L44:L52,AN8) -> 9 | AP8: =AO8/(AQ4-AO10) -> 1 | AQ8: =IF(AP8=0,0,(AP8*((LOG(AP8))/LOG(2)))) -> 0 | AS8: 112 | AT8: =COUNTIF(L53:L61,AS8) -> 8 | AU8: =AT8/(AV4-AT10) -> 0.8888888889 | AV8: =IF(AU8=0,0,(AU8*((LOG(AU8))/LOG(2)))) -> -0.1510444457
A9: 11 | B9: 227 | C9: 11 | D9: 235 | E9: 21 | F9: 259 | K9: 0 | L9: 112 | N9: 121 | O9: 0 | P9: 0 | Q9: 0 | T9: 121 | U9: =COUNTIF(L7:L15,T9) -> 0 | V9: =U9/(W4-U10) -> 0 | W9: =IF(V9=0,0,(V9*((LOG(V9))/LOG(2)))) -> 0 | Y9: 121 | Z9: =COUNTIF(L16:L24,Y9) -> 0 | AA9: =Z9/(AB4-Z10) -> 0 | AB9: =IF(AA9=0,0,(AA9*((LOG(AA9))/LOG(2)))) -> 0 | AD9: 121 | AE9: =COUNTIF(L25:L34,AD9) -> 0 | AF9: =AE9/(AG4-AE10) -> 0 | AG9: =IF(AF9=0,0,(AF9*((LOG(AF9))/LOG(2)))) -> 0 | AI9: 121 | AJ9: =COUNTIF(L35:L43,AI9) -> 0 | AK9: =AJ9/(AL4-AJ10) -> 0 | AL9: =IF(AK9=0,0,(AK9*((LOG(AK9))/LOG(2)))) -> 0 | AN9: 121 | AO9: =COUNTIF(L44:L52,AN9) -> 0 | AP9: =AO9/(AQ4-AO10) -> 0 | AQ9: =IF(AP9=0,0,(AP9*((LOG(AP9))/LOG(2)))) -> 0 | AS9: 121 | AT9: =COUNTIF(L53:L61,AS9) -> 0 | AU9: =AT9/(AV4-AT10) -> 0 | AV9: =IF(AU9=0,0,(AU9*((LOG(AU9))/LOG(2)))) -> 0
A10: 11 | B10: 349 | C10: 11 | D10: 354 | E10: 21 | F10: 363 | K10: 0 | L10: 112 | N10: 122 | O10: 12 | P10: 0.2181818182 | Q10: -0.4792139373 | T10: 122 | U10: =COUNTIF(L7:L15,T10) -> 2 | Y10: 122 | Z10: =COUNTIF(L16:L24,Y10) -> 2 | AD10: 122 | AE10: =COUNTIF(L25:L34,AD10) -> 4 | AI10: 122 | AJ10: =COUNTIF(L35:L43,AI10) -> 4 | AN10: 122 | AO10: =COUNTIF(L44:L52,AN10) -> 0 | AS10: 122 | AT10: =COUNTIF(L53:L61,AS10) -> 0
A11: 11 | B11: 452 | C11: 11 | D11: 456 | E11: 21 | F11: 466 | K11: 0 | L11: 112 | N11: 211 | O11: 0 | P11: 0 | Q11: 0 | T11: 211 | U11: =COUNTIF(L7:L15,T11) -> 0 | V11: =U11/(W4-U10) -> 0 | W11: =IF(V11=0,0,(V11*((LOG(V11))/LOG(2)))) -> 0 | Y11: 211 | Z11: =COUNTIF(L16:L24,Y11) -> 0 | AA11: =Z11/(AB4-Z10) -> 0 | AB11: =IF(AA11=0,0,(AA11*((LOG(AA11))/LOG(2)))) -> 0 | AD11: 211 | AE11: =COUNTIF(L25:L34,AD11) -> 0 | AF11: =AE11/(AG4-AE10) -> 0 | AG11: =IF(AF11=0,0,(AF11*((LOG(AF11))/LOG(2)))) -> 0 | AI11: 211 | AJ11: =COUNTIF(L35:L43,AI11) -> 0 | AK11: =AJ11/(AL4-AJ10) -> 0 | AL11: =IF(AK11=0,0,(AK11*((LOG(AK11))/LOG(2)))) -> 0 | AN11: 211 | AO11: =COUNTIF(L44:L52,AN11) -> 0 | AP11: =AO11/(AQ4-AO10) -> 0 | AQ11: =IF(AP11=0,0,(AP11*((LOG(AP11))/LOG(2)))) -> 0 | AS11: 211 | AT11: =COUNTIF(L53:L61,AS11) -> 0 | AU11: =AT11/(AV4-AT10) -> 0 | AV11: =IF(AU11=0,0,(AU11*((LOG(AU11))/LOG(2)))) -> 0
A12: 11 | B12: 554 | C12: 22 | D12: 569 | E12: 23 | F12: 578 | K12: 0 | L12: 122 | N12: 212 | O12: 0 | P12: 0 | Q12: 0 | T12: 212 | U12: =COUNTIF(L7:L15,T12) -> 0 | V12: =U12/(W4-U10) -> 0 | W12: =IF(V12=0,0,(V12*((LOG(V12))/LOG(2)))) -> 0 | Y12: 212 | Z12: =COUNTIF(L16:L24,Y12) -> 0 | AA12: =Z12/(AB4-Z10) -> 0 | AB12: =IF(AA12=0,0,(AA12*((LOG(AA12))/LOG(2)))) -> 0 | AD12: 212 | AE12: =COUNTIF(L25:L34,AD12) -> 0 | AF12: =AE12/(AG4-AE10) -> 0 | AG12: =IF(AF12=0,0,(AF12*((LOG(AF12))/LOG(2)))) -> 0 | AI12: 212 | AJ12: =COUNTIF(L35:L43,AI12) -> 0 | AK12: =AJ12/(AL4-AJ10) -> 0 | AL12: =IF(AK12=0,0,(AK12*((LOG(AK12))/LOG(2)))) -> 0 | AN12: 212 | AO12: =COUNTIF(L44:L52,AN12) -> 0 | AP12: =AO12/(AQ4-AO10) -> 0 | AQ12: =IF(AP12=0,0,(AP12*((LOG(AP12))/LOG(2)))) -> 0 | AS12: 212 | AT12: =COUNTIF(L53:L61,AS12) -> 0 | AU12: =AT12/(AV4-AT10) -> 0 | AV12: =IF(AU12=0,0,(AU12*((LOG(AU12))/LOG(2)))) -> 0
A13: 11 | B13: 682 | C13: 22 | D13: 692 | E13: 23 | F13: 701 | K13: 0 | L13: 122 | N13: 221 | O13: 0 | P13: 0 | Q13: 0 | T13: 221 | U13: =COUNTIF(L7:L15,T13) -> 0 | V13: =U13/(W4-U10) -> 0 | W13: =IF(V13=0,0,(V13*((LOG(V13))/LOG(2)))) -> 0 | Y13: 221 | Z13: =COUNTIF(L16:L24,Y13) -> 0 | AA13: =Z13/(AB4-Z10) -> 0 | AB13: =IF(AA13=0,0,(AA13*((LOG(AA13))/LOG(2)))) -> 0 | AD13: 221 | AE13: =COUNTIF(L25:L34,AD13) -> 0 | AF13: =AE13/(AG4-AE10) -> 0 | AG13: =IF(AF13=0,0,(AF13*((LOG(AF13))/LOG(2)))) -> 0 | AI13: 221 | AJ13: =COUNTIF(L35:L43,AI13) -> 0 | AK13: =AJ13/(AL4-AJ10) -> 0 | AL13: =IF(AK13=0,0,(AK13*((LOG(AK13))/LOG(2)))) -> 0 | AN13: 221 | AO13: =COUNTIF(L44:L52,AN13) -> 0 | AP13: =AO13/(AQ4-AO10) -> 0 | AQ13: =IF(AP13=0,0,(AP13*((LOG(AP13))/LOG(2)))) -> 0 | AS13: 221 | AT13: =COUNTIF(L53:L61,AS13) -> 0 | AU13: =AT13/(AV4-AT10) -> 0 | AV13: =IF(AU13=0,0,(AU13*((LOG(AU13))/LOG(2)))) -> 0
A14: 11 | B14: 799 | C14: 11 | D14: 807 | E14: 21 | F14: 817 | K14: 0 | L14: 112 | N14: 222 | O14: 1 | P14: 0.01818181818 | Q14: -0.1051156312 | T14: 222 | U14: =COUNTIF(L7:L15,T14) -> 0 | V14: =U14/(W4-U10) -> 0 | W14: =IF(V14=0,0,(V14*((LOG(V14))/LOG(2)))) -> 0 | Y14: 222 | Z14: =COUNTIF(L16:L24,Y14) -> 0 | AA14: =Z14/(AB4-Z10) -> 0 | AB14: =IF(AA14=0,0,(AA14*((LOG(AA14))/LOG(2)))) -> 0 | AD14: 222 | AE14: =COUNTIF(L25:L34,AD14) -> 1 | AF14: =AE14/(AG4-AE10) -> 0.1666666667 | AG14: =IF(AF14=0,0,(AF14*((LOG(AF14))/LOG(2)))) -> -0.4308270835 | AI14: 222 | AJ14: =COUNTIF(L35:L43,AI14) -> 0 | AK14: =AJ14/(AL4-AJ10) -> 0 | AL14: =IF(AK14=0,0,(AK14*((LOG(AK14))/LOG(2)))) -> 0 | AN14: 222 | AO14: =COUNTIF(L44:L52,AN14) -> 0 | AP14: =AO14/(AQ4-AO10) -> 0 | AQ14: =IF(AP14=0,0,(AP14*((LOG(AP14))/LOG(2)))) -> 0 | AS14: 222 | AT14: =COUNTIF(L53:L61,AS14) -> 0 | AU14: =AT14/(AV4-AT10) -> 0 | AV14: =IF(AU14=0,0,(AU14*((LOG(AU14))/LOG(2)))) -> 0
A15: 11 | B15: 908 | C15: 11 | D15: 913 | E15: 21 | F15: 922 | K15: 0 | L15: 112 | P15: =SUM(P7:P14) -> 1 | Q15: =-SUM(Q7:Q14) -> 1.092329281 | V15: =SUM(V7:V14) -> 1 | W15: =-SUM(W7:W14) -> 0 | AA15: =SUM(AA7:AA14) -> 1 | AB15: =-SUM(AB7:AB14) -> 0 | AF15: =SUM(AF7:AF14) -> 1 | AG15: =-SUM(AG7:AG14) -> 0.6500224216 | AK15: =SUM(AK7:AK14) -> 1 | AL15: =-SUM(AL7:AL14) -> 0.7219280949 | AP15: =SUM(AP7:AP14) -> 1 | AQ15: =-SUM(AQ7:AQ14) -> 0 | AU15: =SUM(AU7:AU14) -> 1 | AV15: =-SUM(AV7:AV14) -> 0.5032583348
A16: 11 | B16: 1010 | C16: 11 | D16: 1015 | E16: 21 | F16: 1024 | K16: 0 | L16: 112 | P16: U= | Q16: =Q15/(LOG(Q4)/LOG(2)) -> 0.1889398576 | V16: U1= | W16: =W15/(LOG(W4)/LOG(2)) -> 0 | AA16: U2= | AB16: =AB15/(LOG(AB4)/LOG(2)) -> 0 | AF16: U3= | AG16: =AG15/(LOG(AG4)/LOG(2)) -> 0.1956762468 | AK16: U4= | AL16: =AL15/(LOG(AL4)/LOG(2)) -> 0.2277429575 | AP16: U5= | AQ16: =AQ15/(LOG(AQ4)/LOG(2)) -> 0 | AU16: U6= | AV16: =AV15/(LOG(AV4)/LOG(2)) -> 0.1587603286
A17: 11 | B17: 1112 | C17: 11 | D17: 1120 | E17: 21 | F17: 1129 | K17: 0 | L17: 112
A18: 11 | B18: 1217 | C18: 22 | D18: 1230 | E18: 23 | F18: 1244 | K18: 0 | L18: 122
A19: 11 | B19: 1348 | C19: 22 | D19: 1357 | E19: 23 | F19: 1365 | K19: 0 | L19: 122 | N19: Total Target Seq
A20: 11 | B20: 1464 | C20: 11 | D20: 1468 | E20: 21 | F20: 1478 | K20: 0 | L20: 112 | N20: =COUNTIF(L7:L61,G3) -> 12 | P20: 9 | Q20: 9 | R20: 10 | S20: 9 | T20: 9 | U20: 9
A21: 11 | B21: 1568 | C21: 11 | D21: 1577 | E21: 21 | F21: 1601 | K21: 0 | L21: 112 | P21: % of reinforcement given in 6 equal intervals based on number of trials
A22: 11 | B22: 1692 | C22: 11 | D22: 1697 | E22: 21 | F22: 1709 | K22: 0 | L22: 112 | P22: %_1 | Q22: %_2 | R22: %_3 | S22: %_4 | T22: %_5 | U22: %_6
A23: 11 | B23: 1799 | C23: 11 | D23: 1804 | E23: 21 | F23: 1814 | K23: 0 | L23: 112 | O23: target sequence | P23: =$G$3 -> 122 | Q23: 122 | R23: 122 | S23: 122 | T23: 122 | U23: 122
A24: 11 | B24: 1905 | C24: 11 | D24: 1913 | E24: 21 | F24: 1923 | K24: 0 | L24: 112 | O24: total reinforcement | P24: =U10 -> 2 | Q24: =Z10 -> 2 | R24: =AE10 -> 4 | S24: =AJ10 -> 4 | T24: =AO10 -> 0 | U24: =AT10 -> 0
A25: 11 | B25: 2012 | C25: 11 | D25: 2017 | E25: 21 | F25: 2027 | K25: 0 | L25: 112 | O25: % target
A26: 11 | B26: 2114 | C26: 11 | D26: 2120 | E26: 21 | F26: 2132 | K26: 0 | L26: 112 | O26: CCRF
A27: 11 | B27: 2231 | C27: 22 | D27: 2242 | E27: 23 | F27: 2257 | K27: 0 | L27: 122 | O27: % CCRf
A28: 11 | B28: 2355 | C28: 22 | D28: 2369 | E28: 23 | F28: 2400 | K28: 0 | L28: 122 | O28: average response rate | P28: =F15/P20 -> 102.4444444 | Q28: =(F24-F15)/Q20 -> 111.2222222 | R28: =(F34-F24)/R20 -> 125.2 | S28: =(F43-F34)/S20 -> 126.3333333 | T28: =(F52-F43)/T20 -> 114.4444444 | U28: =(F61-F52)/U20 -> 111.3333333
A29: 11 | B29: 2496 | C29: 11 | D29: 2498 | E29: 21 | F29: 2512 | K29: 0 | L29: 112
A30: 11 | B30: 2621 | C30: 22 | D30: 2632 | E30: 23 | F30: 2668 | K30: 0 | L30: 122
A31: 22 | B31: 2778 | C31: 24 | D31: 2785 | E31: 23 | F31: 2798 | K31: 0 | L31: 222
A32: 11 | B32: 2897 | C32: 11 | D32: 2902 | E32: 21 | F32: 2916 | K32: 0 | L32: 112
A33: 11 | B33: 3004 | C33: 22 | D33: 3018 | E33: 23 | F33: 3025 | K33: 0 | L33: 122
A34: 11 | B34: 3124 | C34: 11 | D34: 3129 | E34: 21 | F34: 3175 | K34: 0 | L34: 112
A35: 11 | B35: 3267 | C35: 11 | D35: 3272 | E35: 21 | F35: 3310 | K35: 0 | L35: 112
A36: 11 | B36: 3398 | C36: 11 | D36: 3408 | E36: 21 | F36: 3433 | K36: 0 | L36: 112
A37: 11 | B37: 3524 | C37: 22 | D37: 3578 | E37: 23 | F37: 3590 | K37: 0 | L37: 122
A38: 11 | B38: 3689 | C38: 11 | D38: 3696 | E38: 21 | F38: 3705 | K38: 0 | L38: 112
A39: 11 | B39: 3793 | C39: 11 | D39: 3803 | E39: 21 | F39: 3823 | K39: 0 | L39: 112
A40: 11 | B40: 3912 | C40: 11 | D40: 3922 | E40: 12 | F40: 3927 | K40: 0 | L40: 111
A41: 11 | B41: 4029 | C41: 22 | D41: 4040 | E41: 23 | F41: 4051 | K41: 0 | L41: 122
A42: 11 | B42: 4164 | C42: 22 | D42: 4176 | E42: 23 | F42: 4183 | K42: 0 | L42: 122
A43: 11 | B43: 4280 | C43: 22 | D43: 4293 | E43: 23 | F43: 4312 | K43: 0 | L43: 122
A44: 11 | B44: 4414 | C44: 11 | D44: 4421 | E44: 21 | F44: 4433 | K44: 0 | L44: 112
A45: 11 | B45: 4524 | C45: 11 | D45: 4529 | E45: 21 | F45: 4585 | K45: 0 | L45: 112
A46: 11 | B46: 4674 | C46: 11 | D46: 4682 | E46: 21 | F46: 4719 | K46: 0 | L46: 112
A47: 11 | B47: 4809 | C47: 11 | D47: 4815 | E47: 21 | F47: 4825 | K47: 0 | L47: 112
A48: 11 | B48: 4914 | C48: 11 | D48: 4920 | E48: 21 | F48: 4929 | K48: 0 | L48: 112
A49: 11 | B49: 5015 | C49: 11 | D49: 5021 | E49: 21 | F49: 5030 | K49: 0 | L49: 112
A50: 11 | B50: 5119 | C50: 11 | D50: 5124 | E50: 21 | F50: 5133 | K50: 0 | L50: 112
A51: 11 | B51: 5220 | C51: 11 | D51: 5225 | E51: 21 | F51: 5237 | K51: 0 | L51: 112
A52: 11 | B52: 5322 | C52: 11 | D52: 5328 | E52: 21 | F52: 5342 | K52: 0 | L52: 112
A53: 11 | B53: 5428 | C53: 11 | D53: 5434 | E53: 21 | F53: 5443 | K53: 0 | L53: 112
A54: 11 | B54: 5534 | C54: 11 | D54: 5540 | E54: 12 | F54: 5550 | K54: 0 | L54: 111
A55: 11 | B55: 5649 | C55: 11 | D55: 5654 | E55: 21 | F55: 5664 | K55: 0 | L55: 112
A56: 11 | B56: 5754 | C56: 11 | D56: 5759 | E56: 21 | F56: 5824 | K56: 0 | L56: 112
A57: 11 | B57: 5917 | C57: 11 | D57: 5922 | E57: 21 | F57: 5931 | K57: 0 | L57: 112
A58: 11 | B58: 6019 | C58: 11 | D58: 6024 | E58: 21 | F58: 6034 | K58: 0 | L58: 112
A59: 11 | B59: 6119 | C59: 11 | D59: 6124 | E59: 21 | F59: 6134 | K59: 0 | L59: 112
A60: 11 | B60: 6223 | C60: 11 | D60: 6228 | E60: 21 | F60: 6237 | K60: 0 | L60: 112
A61: 11 | B61: 6326 | C61: 11 | D61: 6335 | E61: 21 | F61: 6344 | K61: 1 | L61: 112

Sheet !L803B40.056
A1: Report for:!L803B40.056
A2: Date: | B2: <date>
A3: Hen: | B3: <hen> | F3: Correct Sequence | G3: =Start!J2 -> 122 | P3: Total Sequences in Data | Q3: =4994-COUNTBLANK(L7:L5000) -> 45 | V3: Total Sequences in Block Data | W3: =COUNTA(L7:L14) -> 8 | AA3: Total Sequences in Block Data | AB3: =COUNTA(L15:L21) -> 7 | AF3: Total Sequences in Block Data | AG3: =COUNTA(L22:L29) -> 8 | AK3: Total Sequences in Block Data | AL3: =COUNTA(L30:L36) -> 7 | AP3: Total Sequences in Block Data | AQ3: =COUNTA(L37:L44) -> 8 | AU3: Total Sequences in Block Data | AV3: =COUNTA(L45:L51) -> 7
P4: Total Sequences in Summary | Q4: =SUM(O7:O14) -> 45 | V4: Total Sequences in Block Summary | W4: =SUM(U7:U14) -> 8 | AA4: Total Sequences in Block Summary | AB4: =SUM(Z7:Z14) -> 7 | AF4: Total Sequences in Block Summary | AG4: =SUM(AE7:AE14) -> 8 | AK4: Total Sequences in Block Summary | AL4: =SUM(AJ7:AJ14) -> 7 | AP4: Total Sequences in Block Summary | AQ4: =SUM(AO7:AO14) -> 8 | AU4: Total Sequences in Block Summary | AV4: =SUM(AT7:AT14) -> 7
T5: Block 1 | Y5: Block 2 | AD5: Block 3 | AI5: Block 4 | AN5: Block 5 | AS5: Block 6
A6: Sequence Component 1 | B6: Time 1 | C6: Sequence Component 2 | D6: Time 2 | E6: Sequence Component 3 | F6: Time 3 | G6: Sequence Component 4 | H6: Time 4 | I6: Sequence Component 5 | J6: Time 5 | K6: Correct? 0=No 1=Yes | L6: Sequence | N6: Frequency | P6: Relative Frequency | Q6: Variability | T6: Frequency | V6: Relative Frequency | W6: Variability | Y6: Frequency | AA6: Relative Frequency | AB6: Variability | AD6: Frequency | AF6: Relative Frequency | AG6: Variability | AI6: Frequency | AK6: Relative Frequency | AL6: Variability | AN6: Frequency | AP6: Relative Frequency | AQ6: Variability | AS6: Frequency | AU6: Relative Frequency | AV6: Variability
A7: 11 | B7: 13 | C7: 11 | D7: 18 | E7: 21 | F7: 30 | K7: 0 | L7: 112 | N7: 111 | O7: =COUNTIF($L$7:$L$500,N7) -> 1 | P7: =O7/$Q$4 -> 0.02222222222 | Q7: =IF(P7=0,0,(P7*((LOG(P7))/LOG(2)))) -> -0.1220411799 | T7: =N7 -> 111 | U7: =COUNTIF(L7:L14,T7) -> 0 | V7: =U7/(W4-U10) -> 0 | W7: =IF(V7=0,0,(V7*((LOG(V7))/LOG(2)))) -> 0 | Y7: =N7 -> 111 | Z7: =COUNTIF(L15:L21,Y7) -> 0 | AA7: =Z7/(AB4-Z10) -> 0 | AB7: =IF(AA7=0,0,(AA7*((LOG(AA7))/LOG(2)))) -> 0 | AD7: =N7 -> 111 | AE7: =COUNTIF(L22:L29,AD7) -> 1 | AF7: =AE7/(AG4-AE10) -> 0.125 | AG7: =IF(AF7=0,0,(AF7*((LOG(AF7))/LOG(2)))) -> -0.375 | AI7: =N7 -> 111 | AJ7: =COUNTIF(L30:L36,AI7) -> 0 | AK7: =AJ7/(AL4-AJ10) -> 0 | AL7: =IF(AK7=0,0,(AK7*((LOG(AK7))/LOG(2)))) -> 0 | AN7: =N7 -> 111 | AO7: =COUNTIF(L37:L44,AN7) -> 0 | AP7: =AO7/(AQ4-AO10) -> 0 | AQ7: =IF(AP7=0,0,(AP7*((LOG(AP7))/LOG(2)))) -> 0 | AS7: =N7 -> 111 | AT7: =COUNTIF(L45:L51,AS7) -> 0 | AU7: =AT7/(AV4-AT10) -> 0 | AV7: =IF(AU7=0,0,(AU7*((LOG(AU7))/LOG(2)))) -> 0
A8: 11 | B8: 122 | C8: 11 | D8: 127 | E8: 21 | F8: 136 | K8: 0 | L8: 112 | N8: 112 | O8: 40 | P8: 0.8888888889 | Q8: -0.1510444457 | T8: 112 | U8: =COUNTIF(L7:L14,T8) -> 7 | V8: =U8/(W4-U10) -> 0.875 | W8: =IF(V8=0,0,(V8*((LOG(V8))/LOG(2)))) -> -0.1685644432 | Y8: 112 | Z8: =COUNTIF(L15:L21,Y8) -> 7 | AA8: =Z8/(AB4-Z10) -> 1 | AB8: =IF(AA8=0,0,(AA8*((LOG(AA8))/LOG(2)))) -> 0 | AD8: 112 | AE8: =COUNTIF(L22:L29,AD8) -> 7 | AF8: =AE8/(AG4-AE10) -> 0.875 | AG8: =IF(AF8=0,0,(AF8*((LOG(AF8))/LOG(2)))) -> -0.1685644432 | AI8: 112 | AJ8: =COUNTIF(L30:L36,AI8) -> 7 | AK8: =AJ8/(AL4-AJ10) -> 1 | AL8: =IF(AK8=0,0,(AK8*((LOG(AK8))/LOG(2)))) -> 0 | AN8: 112 | AO8: =COUNTIF(L37:L44,AN8) -> 5 | AP8: =AO8/(AQ4-AO10) -> 0.8333333333 | AQ8: =IF(AP8=0,0,(AP8*((LOG(AP8))/LOG(2)))) -> -0.2191953382 | AS8: 112 | AT8: =COUNTIF(L45:L51,AS8) -> 7 | AU8: =AT8/(AV4-AT10) -> 1 | AV8: =IF(AU8=0,0,(AU8*((LOG(AU8))/LOG(2)))) -> 0
A9: 11 | B9: 228 | C9: 11 | D9: 235 | E9: 21 | F9: 245 | K9: 0 | L9: 112 | N9: 121 | O9: 0 | P9: 0 | Q9: 0 | T9: 121 | U9: =COUNTIF(L7:L14,T9) -> 0 | V9: =U9/(W4-U10) -> 0 | W9: =IF(V9=0,0,(V9*((LOG(V9))/LOG(2)))) -> 0 | Y9: 121 | Z9: =COUNTIF(L15:L21,Y9) -> 0 | AA9: =Z9/(AB4-Z10) -> 0 | AB9: =IF(AA9=0,0,(AA9*((LOG(AA9))/LOG(2)))) -> 0 | AD9: 121 | AE9: =COUNTIF(L22:L29,AD9) -> 0 | AF9: =AE9/(AG4-AE10) -> 0 | AG9: =IF(AF9=0,0,(AF9*((LOG(AF9))/LOG(2)))) -> 0 | AI9: 121 | AJ9: =COUNTIF(L30:L36,AI9) -> 0 | AK9: =AJ9/(AL4-AJ10) -> 0 | AL9: =IF(AK9=0,0,(AK9*((LOG(AK9))/LOG(2)))) -> 0 | AN9: 121 | AO9: =COUNTIF(L37:L44,AN9) -> 0 | AP9: =AO9/(AQ4-AO10) -> 0 | AQ9: =IF(AP9=0,0,(AP9*((LOG(AP9))/LOG(2)))) -> 0 | AS9: 121 | AT9: =COUNTIF(L45:L51,AS9) -> 0 | AU9: =AT9/(AV4-AT10) -> 0 | AV9: =IF(AU9=0,0,(AU9*((LOG(AU9))/LOG(2)))) -> 0
A10: 22 | B10: 345 | C10: 24 | D10: 358 | E10: 14 | F10: 373 | K10: 0 | L10: 221 | N10: 122 | O10: 2 | P10: 0.04444444444 | Q10: -0.1996379154 | T10: 122 | U10: =COUNTIF(L7:L14,T10) -> 0 | Y10: 122 | Z10: =COUNTIF(L15:L21,Y10) -> 0 | AD10: 122 | AE10: =COUNTIF(L22:L29,AD10) -> 0 | AI10: 122 | AJ10: =COUNTIF(L30:L36,AI10) -> 0 | AN10: 122 | AO10: =COUNTIF(L37:L44,AN10) -> 2 | AS10: 122 | AT10: =COUNTIF(L45:L51,AS10) -> 0
A11: 11 | B11: 473 | C11: 11 | D11: 482 | E11: 21 | F11: 492 | K11: 0 | L11: 112 | N11: 211 | O11: 0 | P11: 0 | Q11: 0 | T11: 211 | U11: =COUNTIF(L7:L14,T11) -> 0 | V11: =U11/(W4-U10) -> 0 | W11: =IF(V11=0,0,(V11*((LOG(V11))/LOG(2)))) -> 0 | Y11: 211 | Z11: =COUNTIF(L15:L21,Y11) -> 0 | AA11: =Z11/(AB4-Z10) -> 0 | AB11: =IF(AA11=0,0,(AA11*((LOG(AA11))/LOG(2)))) -> 0 | AD11: 211 | AE11: =COUNTIF(L22:L29,AD11) -> 0 | AF11: =AE11/(AG4-AE10) -> 0 | AG11: =IF(AF11=0,0,(AF11*((LOG(AF11))/LOG(2)))) -> 0 | AI11: 211 | AJ11: =COUNTIF(L30:L36,AI11) -> 0 | AK11: =AJ11/(AL4-AJ10) -> 0 | AL11: =IF(AK11=0,0,(AK11*((LOG(AK11))/LOG(2)))) -> 0 | AN11: 211 | AO11: =COUNTIF(L37:L44,AN11) -> 0 | AP11: =AO11/(AQ4-AO10) -> 0 | AQ11: =IF(AP11=0,0,(AP11*((LOG(AP11))/LOG(2)))) -> 0 | AS11: 211 | AT11: =COUNTIF(L45:L51,AS11) -> 0 | AU11: =AT11/(AV4-AT10) -> 0 | AV11: =IF(AU11=0,0,(AU11*((LOG(AU11))/LOG(2)))) -> 0
A12: 11 | B12: 584 | C12: 11 | D12: 590 | E12: 21 | F12: 608 | K12: 0 | L12: 112 | N12: 212 | O12: 0 | P12: 0 | Q12: 0 | T12: 212 | U12: =COUNTIF(L7:L14,T12) -> 0 | V12: =U12/(W4-U10) -> 0 | W12: =IF(V12=0,0,(V12*((LOG(V12))/LOG(2)))) -> 0 | Y12: 212 | Z12: =COUNTIF(L15:L21,Y12) -> 0 | AA12: =Z12/(AB4-Z10) -> 0 | AB12: =IF(AA12=0,0,(AA12*((LOG(AA12))/LOG(2)))) -> 0 | AD12: 212 | AE12: =COUNTIF(L22:L29,AD12) -> 0 | AF12: =AE12/(AG4-AE10) -> 0 | AG12: =IF(AF12=0,0,(AF12*((LOG(AF12))/LOG(2)))) -> 0 | AI12: 212 | AJ12: =COUNTIF(L30:L36,AI12) -> 0 | AK12: =AJ12/(AL4-AJ10) -> 0 | AL12: =IF(AK12=0,0,(AK12*((LOG(AK12))/LOG(2)))) -> 0 | AN12: 212 | AO12: =COUNTIF(L37:L44,AN12) -> 0 | AP12: =AO12/(AQ4-AO10) -> 0 | AQ12: =IF(AP12=0,0,(AP12*((LOG(AP12))/LOG(2)))) -> 0 | AS12: 212 | AT12: =COUNTIF(L45:L51,AS12) -> 0 | AU12: =AT12/(AV4-AT10) -> 0 | AV12: =IF(AU12=0,0,(AU12*((LOG(AU12))/LOG(2)))) -> 0
A13: 11 | B13: 696 | C13: 11 | D13: 702 | E13: 21 | F13: 712 | K13: 0 | L13: 112 | N13: 221 | O13: 1 | P13: 0.02222222222 | Q13: -0.1220411799 | T13: 221 | U13: =COUNTIF(L7:L14,T13) -> 1 | V13: =U13/(W4-U10) -> 0.125 | W13: =IF(V13=0,0,(V13*((LOG(V13))/LOG(2)))) -> -0.375 | Y13: 221 | Z13: =COUNTIF(L15:L21,Y13) -> 0 | AA13: =Z13/(AB4-Z10) -> 0 | AB13: =IF(AA13=0,0,(AA13*((LOG(AA13))/LOG(2)))) -> 0 | AD13: 221 | AE13: =COUNTIF(L22:L29,AD13) -> 0 | AF13: =AE13/(AG4-AE10) -> 0 | AG13: =IF(AF13=0,0,(AF13*((LOG(AF13))/LOG(2)))) -> 0 | AI13: 221 | AJ13: =COUNTIF(L30:L36,AI13) -> 0 | AK13: =AJ13/(AL4-AJ10) -> 0 | AL13: =IF(AK13=0,0,(AK13*((LOG(AK13))/LOG(2)))) -> 0 | AN13: 221 | AO13: =COUNTIF(L37:L44,AN13) -> 0 | AP13: =AO13/(AQ4-AO10) -> 0 | AQ13: =IF(AP13=0,0,(AP13*((LOG(AP13))/LOG(2)))) -> 0 | AS13: 221 | AT13: =COUNTIF(L45:L51,AS13) -> 0 | AU13: =AT13/(AV4-AT10) -> 0 | AV13: =IF(AU13=0,0,(AU13*((LOG(AU13))/LOG(2)))) -> 0
A14: 11 | B14: 802 | C14: 11 | D14: 817 | E14: 21 | F14: 827 | K14: 0 | L14: 112 | N14: 222 | O14: 1 | P14: 0.02222222222 | Q14: -0.1220411799 | T14: 222 | U14: =COUNTIF(L7:L14,T14) -> 0 | V14: =U14/(W4-U10) -> 0 | W14: =IF(V14=0,0,(V14*((LOG(V14))/LOG(2)))) -> 0 | Y14: 222 | Z14: =COUNTIF(L15:L21,Y14) -> 0 | AA14: =Z14/(AB4-Z10) -> 0 | AB14: =IF(AA14=0,0,(AA14*((LOG(AA14))/LOG(2)))) -> 0 | AD14: 222 | AE14: =COUNTIF(L22:L29,AD14) -> 0 | AF14: =AE14/(AG4-AE10) -> 0 | AG14: =IF(AF14=0,0,(AF14*((LOG(AF14))/LOG(2)))) -> 0 | AI14: 222 | AJ14: =COUNTIF(L30:L36,AI14) -> 0 | AK14: =AJ14/(AL4-AJ10) -> 0 | AL14: =IF(AK14=0,0,(AK14*((LOG(AK14))/LOG(2)))) -> 0 | AN14: 222 | AO14: =COUNTIF(L37:L44,AN14) -> 1 | AP14: =AO14/(AQ4-AO10) -> 0.1666666667 | AQ14: =IF(AP14=0,0,(AP14*((LOG(AP14))/LOG(2)))) -> -0.4308270835 | AS14: 222 | AT14: =COUNTIF(L45:L51,AS14) -> 0 | AU14: =AT14/(AV4-AT10) -> 0 | AV14: =IF(AU14=0,0,(AU14*((LOG(AU14))/LOG(2)))) -> 0
A15: 11 | B15: 916 | C15: 11 | D15: 921 | E15: 21 | F15: 930 | K15: 0 | L15: 112 | P15: =SUM(P7:P14) -> 1 | Q15: =-SUM(Q7:Q14) -> 0.7168059009 | V15: =SUM(V7:V14) -> 1 | W15: =-SUM(W7:W14) -> 0.5435644432 | AA15: =SUM(AA7:AA14) -> 1 | AB15: =-SUM(AB7:AB14) -> 0 | AF15: =SUM(AF7:AF14) -> 1 | AG15: =-SUM(AG7:AG14) -> 0.5435644432 | AK15: =SUM(AK7:AK14) -> 1 | AL15: =-SUM(AL7:AL14) -> 0 | AP15: =SUM(AP7:AP14) -> 1 | AQ15: =-SUM(AQ7:AQ14) -> 0.6500224216 | AU15: =SUM(AU7:AU14) -> 1 | AV15: =-SUM(AV7:AV14) -> 0
A16: 11 | B16: 1018 | C16: 11 | D16: 1023 | E16: 21 | F16: 1032 | K16: 0 | L16: 112 | P16: U= | Q16: =Q15/(LOG(Q4)/LOG(2)) -> 0.1305216815 | V16: U1= | W16: =W15/(LOG(W4)/LOG(2)) -> 0.1811881477 | AA16: U2= | AB16: =AB15/(LOG(AB4)/LOG(2)) -> 0 | AF16: U3= | AG16: =AG15/(LOG(AG4)/LOG(2)) -> 0.1811881477 | AK16: U4= | AL16: =AL15/(LOG(AL4)/LOG(2)) -> 0 | AP16: U5= | AQ16: =AQ15/(LOG(AQ4)/LOG(2)) -> 0.2166741405 | AU16: U6= | AV16: =AV15/(LOG(AV4)/LOG(2)) -> 0
A17: 11 | B17: 1126 | C17: 11 | D17: 1131 | E17: 21 | F17: 1141 | K17: 0 | L17: 112
A18: 11 | B18: 1230 | C18: 11 | D18: 1234 | E18: 21 | F18: 1244 | K18: 0 | L18: 112
A19: 11 | B19: 1332 | C19: 11 | D19: 1337 | E19: 21 | F19: 1347 | K19: 0 | L19: 112 | N19: Total Target Seq
A20: 11 | B20: 1435 | C20: 11 | D20: 1439 | E20: 21 | F20: 1466 | K20: 0 | L20: 112 | N20: =COUNTIF(L7:L51,G3) -> 2 | P20: 8 | Q20: 7 | R20: 8 | S20: 7 | T20: 8 | U20: 7
A21: 11 | B21: 1555 | C21: 11 | D21: 1560 | E21: 21 | F21: 1570 | K21: 0 | L21: 112 | P21: % of reinforcement given in 6 equal intervals based on number of trials
A22: 11 | B22: 1657 | C22: 11 | D22: 1662 | E22: 21 | F22: 1674 | K22: 0 | L22: 112 | P22: %_1 | Q22: %_2 | R22: %_3 | S22: %_4 | T22: %_5 | U22: %_6
A23: 11 | B23: 1760 | C23: 11 | D23: 1765 | E23: 21 | F23: 1781 | K23: 0 | L23: 112 | O23: target sequence | P23: =$G$3 -> 122 | Q23: 122 | R23: 122 | S23: 122 | T23: 122 | U23: 122
A24: 11 | B24: 1868 | C24: 11 | D24: 1873 | E24: 21 | F24: 1886 | K24: 0 | L24: 112 | O24: total reinforcement | P24: =U10 -> 0 | Q24: =Z10 -> 0 | R24: =AE10 -> 0 | S24: =AJ10 -> 0 | T24: =AO10 -> 2 | U24: =AT10 -> 0
A25: 11 | B25: 1978 | C25: 11 | D25: 1988 | E25: 21 | F25: 1998 | K25: 0 | L25: 112 | O25: % target
A26: 11 | B26: 2085 | C26: 11 | D26: 2090 | E26: 21 | F26: 2100 | K26: 0 | L26: 112 | O26: CCRF
A27: 11 | B27: 2185 | C27: 11 | D27: 2190 | E27: 21 | F27: 2199 | K27: 0 | L27: 112 | O27: % CCRf
A28: 11 | B28: 2284 | C28: 11 | D28: 2289 | E28: 12 | F28: 2297 | K28: 0 | L28: 111 | O28: average response rate | P28: =F14/P20 -> 103.375 | Q28: =(F21-F14)/Q20 -> 106.1428571 | R28: =(F29-F21)/R20 -> 104.75 | S28: =(F36-F29)/S20 -> 106.4285714 | T28: =(F44-F36)/T20 -> 113.125 | U28: =(F51-F44)/U20 -> 117.1428571
A29: 11 | B29: 2394 | C29: 11 | D29: 2398 | E29: 21 | F29: 2408 | K29: 0 | L29: 112
A30: 11 | B30: 2499 | C30: 11 | D30: 2504 | E30: 21 | F30: 2513 | K30: 0 | L30: 112
A31: 11 | B31: 2602 | C31: 11 | D31: 2607 | E31: 21 | F31: 2619 | K31: 0 | L31: 112
A32: 11 | B32: 2705 | C32: 11 | D32: 2713 | E32: 21 | F32: 2722 | K32: 0 | L32: 112
A33: 11 | B33: 2807 | C33: 11 | D33: 2812 | E33: 21 | F33: 2822 | K33: 0 | L33: 112
A34: 11 | B34: 2911 | C34: 11 | D34: 2915 | E34: 21 | F34: 2924 | K34: 0 | L34: 112
A35: 11 | B35: 3022 | C35: 11 | D35: 3041 | E35: 21 | F35: 3053 | K35: 0 | L35: 112
A36: 11 | B36: 3140 | C36: 11 | D36: 3145 | E36: 21 | F36: 3153 | K36: 0 | L36: 112
A37: 22 | B37: 3255 | C37: 24 | D37: 3266 | E37: 23 | F37: 3281 | K37: 0 | L37: 222
A38: 11 | B38: 3377 | C38: 11 | D38: 3381 | E38: 21 | F38: 3391 | K38: 0 | L38: 112
A39: 11 | B39: 3476 | C39: 11 | D39: 3482 | E39: 21 | F39: 3492 | K39: 0 | L39: 112
A40: 11 | B40: 3585 | C40: 11 | D40: 3590 | E40: 21 | F40: 3598 | K40: 0 | L40: 112
A41: 11 | B41: 3684 | C41: 11 | D41: 3694 | E41: 21 | F41: 3703 | K41: 0 | L41: 112
A42: 11 | B42: 3796 | C42: 22 | D42: 3805 | E42: 23 | F42: 3819 | K42: 0 | L42: 122
A43: 11 | B43: 3915 | C43: 22 | D43: 3927 | E43: 23 | F43: 3939 | K43: 0 | L43: 122
A44: 11 | B44: 4040 | C44: 11 | D44: 4049 | E44: 21 | F44: 4058 | K44: 0 | L44: 112
A45: 11 | B45: 4147 | C45: 11 | D45: 4151 | E45: 21 | F45: 4161 | K45: 0 | L45: 112
A46: 11 | B46: 4249 | C46: 11 | D46: 4254 | E46: 21 | F46: 4292 | K46: 0 | L46: 112
A47: 11 | B47: 4385 | C47: 11 | D47: 4397 | E47: 21 | F47: 4406 | K47: 0 | L47: 112
A48: 11 | B48: 4494 | C48: 11 | D48: 4498 | E48: 21 | F48: 4540 | K48: 0 | L48: 112
A49: 11 | B49: 4630 | C49: 11 | D49: 4634 | E49: 21 | F49: 4666 | K49: 0 | L49: 112
A50: 11 | B50: 4755 | C50: 11 | D50: 4759 | E50: 21 | F50: 4769 | K50: 0 | L50: 112
A51: 11 | B51: 4857 | C51: 11 | D51: 4868 | E51: 21 | F51: 4878 | K51: 1 | L51: 112

Sheet !L804D00.056
A1: Report for:!L804D00.056
A2: Date: | B2: <date>
A3: Hen: | B3: <hen> | F3: Correct Sequence | G3: =Start!J2 -> 122 | P3: Total Sequences in Data | Q3: =4994-COUNTBLANK(L7:L5000) -> 61 | V3: Total Sequences in Block Data | W3: =COUNTA(L7:L16) -> 10 | AA3: Total Sequences in Block Data | AB3: =COUNTA(L17:L26) -> 10 | AF3: Total Sequences in Block Data | AG3: =COUNTA(L27:L37) -> 11 | AK3: Total Sequences in Block Data | AL3: =COUNTA(L38:L47) -> 10 | AP3: Total Sequences in Block Data | AQ3: =COUNTA(L48:L57) -> 10 | AU3: Total Sequences in Block Data | AV3: =COUNTA(L58:L67) -> 10
P4: Total Sequences in Summary | Q4: =SUM(O7:O14) -> 61 | V4: Total Sequences in Block Summary | W4: =SUM(U7:U14) -> 10 | AA4: Total Sequences in Block Summary | AB4: =SUM(Z7:Z14) -> 10 | AF4: Total Sequences in Block Summary | AG4: =SUM(AE7:AE14) -> 11 | AK4: Total Sequences in Block Summary | AL4: =SUM(AJ7:AJ14) -> 10 | AP4: Total Sequences in Block Summary | AQ4: =SUM(AO7:AO14) -> 10 | AU4: Total Sequences in Block Summary | AV4: =SUM(AT7:AT14) -> 10
T5: Block 1 | Y5: Block 2 | AD5: Block 3 | AI5: Block 4 | AN5: Block 5 | AS5: Block 6
A6: Sequence Component 1 | B6: Time 1 | C6: Sequence Component 2 | D6: Time 2 | E6: Sequence Component 3 | F6: Time 3 | G6: Sequence Component 4 | H6: Time 4 | I6: Sequence Component 5 | J6: Time 5 | K6: Correct? 0=No 1=Yes | L6: Sequence | N6: Frequency | P6: Relative Frequency | Q6: Variability | T6: Frequency | V6: Relative Frequency | W6: Variability | Y6: Frequency | AA6: Relative Frequency | AB6: Variability | AD6: Frequency | AF6: Relative Frequency | AG6: Variability | AI6: Frequency | AK6: Relative Frequency | AL6: Variability | AN6: Frequency | AP6: Relative Frequency | AQ6: Variability | AS6: Frequency | AU6: Relative Frequency | AV6: Variability
A7: 22 | B7: 22 | C7: 24 | D7: 30 | E7: 23 | F7: 44 | K7: 0 | L7: 222 | N7: 111 | O7: =COUNTIF($L$7:$L$500,N7) -> 8 | P7: =O7/$Q$4 -> 0.131147541 | Q7: =IF(P7=0,0,(P7*((LOG(P7))/LOG(2)))) -> -0.3843589951 | T7: =N7 -> 111 | U7: =COUNTIF(L7:L16,T7) -> 2 | V7: =U7/(W4-U10) -> 0.2 | W7: =IF(V7=0,0,(V7*((LOG(V7))/LOG(2)))) -> -0.464385619 | Y7: =N7 -> 111 | Z7: =COUNTIF(L17:L26,Y7) -> 0 | AA7: =Z7/(AB4-Z10) -> 0 | AB7: =IF(AA7=0,0,(AA7*((LOG(AA7))/LOG(2)))) -> 0 | AD7: =N7 -> 111 | AE7: =COUNTIF(L27:L37,AD7) -> 1 | AF7: =AE7/(AG4-AE10) -> 0.1111111111 | AG7: =IF(AF7=0,0,(AF7*((LOG(AF7))/LOG(2)))) -> -0.352213889 | AI7: =N7 -> 111 | AJ7: =COUNTIF(L38:L47,AI7) -> 1 | AK7: =AJ7/(AL4-AJ10) -> 0.125 | AL7: =IF(AK7=0,0,(AK7*((LOG(AK7))/LOG(2)))) -> -0.375 | AN7: =N7 -> 111 | AO7: =COUNTIF(L48:L57,AN7) -> 1 | AP7: =AO7/(AQ4-AO10) -> 0.125 | AQ7: =IF(AP7=0,0,(AP7*((LOG(AP7))/LOG(2)))) -> -0.375 | AS7: =N7 -> 111 | AT7: =COUNTIF(L58:L67,AS7) -> 3 | AU7: =AT7/(AV4-AT10) -> 0.4285714286 | AV7: =IF(AU7=0,0,(AU7*((LOG(AU7))/LOG(2)))) -> -0.5238824663
A8: 11 | B8: 152 | C8: 11 | D8: 160 | E8: 21 | F8: 178 | K8: 0 | L8: 112 | N8: 112 | O8: 40 | P8: 0.6557377049 | Q8: -0.3992191755 | T8: 112 | U8: =COUNTIF(L7:L16,T8) -> 7 | V8: =U8/(W4-U10) -> 0.7 | W8: =IF(V8=0,0,(V8*((LOG(V8))/LOG(2)))) -> -0.360201221 | Y8: 112 | Z8: =COUNTIF(L17:L26,Y8) -> 7 | AA8: =Z8/(AB4-Z10) -> 1 | AB8: =IF(AA8=0,0,(AA8*((LOG(AA8))/LOG(2)))) -> 0 | AD8: 112 | AE8: =COUNTIF(L27:L37,AD8) -> 8 | AF8: =AE8/(AG4-AE10) -> 0.8888888889 | AG8: =IF(AF8=0,0,(AF8*((LOG(AF8))/LOG(2)))) -> -0.1510444457 | AI8: 112 | AJ8: =COUNTIF(L38:L47,AI8) -> 7 | AK8: =AJ8/(AL4-AJ10) -> 0.875 | AL8: =IF(AK8=0,0,(AK8*((LOG(AK8))/LOG(2)))) -> -0.1685644432 | AN8: 112 | AO8: =COUNTIF(L48:L57,AN8) -> 7 | AP8: =AO8/(AQ4-AO10) -> 0.875 | AQ8: =IF(AP8=0,0,(AP8*((LOG(AP8))/LOG(2)))) -> -0.1685644432 | AS8: 112 | AT8: =COUNTIF(L58:L67,AS8) -> 4 | AU8: =AT8/(AV4-AT10) -> 0.5714285714 | AV8: =IF(AU8=0,0,(AU8*((LOG(AU8))/LOG(2)))) -> -0.4613456697
A9: 11 | B9: 272 | C9: 11 | D9: 277 | E9: 21 | F9: 310 | K9: 0 | L9: 112 | N9: 121 | O9: 0 | P9: 0 | Q9: 0 | T9: 121 | U9: =COUNTIF(L7:L16,T9) -> 0 | V9: =U9/(W4-U10) -> 0 | W9: =IF(V9=0,0,(V9*((LOG(V9))/LOG(2)))) -> 0 | Y9: 121 | Z9: =COUNTIF(L17:L26,Y9) -> 0 | AA9: =Z9/(AB4-Z10) -> 0 | AB9: =IF(AA9=0,0,(AA9*((LOG(AA9))/LOG(2)))) -> 0 | AD9: 121 | AE9: =COUNTIF(L27:L37,AD9) -> 0 | AF9: =AE9/(AG4-AE10) -> 0 | AG9: =IF(AF9=0,0,(AF9*((LOG(AF9))/LOG(2)))) -> 0 | AI9: 121 | AJ9: =COUNTIF(L38:L47,AI9) -> 0 | AK9: =AJ9/(AL4-AJ10) -> 0 | AL9: =IF(AK9=0,0,(AK9*((LOG(AK9))/LOG(2)))) -> 0 | AN9: 121 | AO9: =COUNTIF(L48:L57,AN9) -> 0 | AP9: =AO9/(AQ4-AO10) -> 0 | AQ9: =IF(AP9=0,0,(AP9*((LOG(AP9))/LOG(2)))) -> 0 | AS9: 121 | AT9: =COUNTIF(L58:L67,AS9) -> 0 | AU9: =AT9/(AV4-AT10) -> 0 | AV9: =IF(AU9=0,0,(AU9*((LOG(AU9))/LOG(2)))) -> 0
A10: 11 | B10: 409 | C10: 11 | D10: 414 | E10: 21 | F10: 450 | K10: 0 | L10: 112 | N10: 122 | O10: 12 | P10: 0.1967213115 | Q10: -0.4614639023 | T10: 122 | U10: =COUNTIF(L7:L16,T10) -> 0 | Y10: 122 | Z10: =COUNTIF(L17:L26,Y10) -> 3 | AD10: 122 | AE10: =COUNTIF(L27:L37,AD10) -> 2 | AI10: 122 | AJ10: =COUNTIF(L38:L47,AI10) -> 2 | AN10: 122 | AO10: =COUNTIF(L48:L57,AN10) -> 2 | AS10: 122 | AT10: =COUNTIF(L58:L67,AS10) -> 3
A11: 11 | B11: 541 | C11: 11 | D11: 546 | E11: 12 | F11: 556 | K11: 0 | L11: 111 | N11: 211 | O11: 0 | P11: 0 | Q11: 0 | T11: 211 | U11: =COUNTIF(L7:L16,T11) -> 0 | V11: =U11/(W4-U10) -> 0 | W11: =IF(V11=0,0,(V11*((LOG(V11))/LOG(2)))) -> 0 | Y11: 211 | Z11: =COUNTIF(L17:L26,Y11) -> 0 | AA11: =Z11/(AB4-Z10) -> 0 | AB11: =IF(AA11=0,0,(AA11*((LOG(AA11))/LOG(2)))) -> 0 | AD11: 211 | AE11: =COUNTIF(L27:L37,AD11) -> 0 | AF11: =AE11/(AG4-AE10) -> 0 | AG11: =IF(AF11=0,0,(AF11*((LOG(AF11))/LOG(2)))) -> 0 | AI11: 211 | AJ11: =COUNTIF(L38:L47,AI11) -> 0 | AK11: =AJ11/(AL4-AJ10) -> 0 | AL11: =IF(AK11=0,0,(AK11*((LOG(AK11))/LOG(2)))) -> 0 | AN11: 211 | AO11: =COUNTIF(L48:L57,AN11) -> 0 | AP11: =AO11/(AQ4-AO10) -> 0 | AQ11: =IF(AP11=0,0,(AP11*((LOG(AP11))/LOG(2)))) -> 0 | AS11: 211 | AT11: =COUNTIF(L58:L67,AS11) -> 0 | AU11: =AT11/(AV4-AT10) -> 0 | AV11: =IF(AU11=0,0,(AU11*((LOG(AU11))/LOG(2)))) -> 0
A12: 11 | B12: 653 | C12: 11 | D12: 658 | E12: 21 | F12: 675 | K12: 0 | L12: 112 | N12: 212 | O12: 0 | P12: 0 | Q12: 0 | T12: 212 | U12: =COUNTIF(L7:L16,T12) -> 0 | V12: =U12/(W4-U10) -> 0 | W12: =IF(V12=0,0,(V12*((LOG(V12))/LOG(2)))) -> 0 | Y12: 212 | Z12: =COUNTIF(L17:L26,Y12) -> 0 | AA12: =Z12/(AB4-Z10) -> 0 | AB12: =IF(AA12=0,0,(AA12*((LOG(AA12))/LOG(2)))) -> 0 | AD12: 212 | AE12: =COUNTIF(L27:L37,AD12) -> 0 | AF12: =AE12/(AG4-AE10) -> 0 | AG12: =IF(AF12=0,0,(AF12*((LOG(AF12))/LOG(2)))) -> 0 | AI12: 212 | AJ12: =COUNTIF(L38:L47,AI12) -> 0 | AK12: =AJ12/(AL4-AJ10) -> 0 | AL12: =IF(AK12=0,0,(AK12*((LOG(AK12))/LOG(2)))) -> 0 | AN12: 212 | AO12: =COUNTIF(L48:L57,AN12) -> 0 | AP12: =AO12/(AQ4-AO10) -> 0 | AQ12: =IF(AP12=0,0,(AP12*((LOG(AP12))/LOG(2)))) -> 0 | AS12: 212 | AT12: =COUNTIF(L58:L67,AS12) -> 0 | AU12: =AT12/(AV4-AT10) -> 0 | AV12: =IF(AU12=0,0,(AU12*((LOG(AU12))/LOG(2)))) -> 0
A13: 11 | B13: 767 | C13: 11 | D13: 772 | E13: 21 | F13: 800 | K13: 0 | L13: 112 | N13: 221 | O13: 0 | P13: 0 | Q13: 0 | T13: 221 | U13: =COUNTIF(L7:L16,T13) -> 0 | V13: =U13/(W4-U10) -> 0 | W13: =IF(V13=0,0,(V13*((LOG(V13))/LOG(2)))) -> 0 | Y13: 221 | Z13: =COUNTIF(L17:L26,Y13) -> 0 | AA13: =Z13/(AB4-Z10) -> 0 | AB13: =IF(AA13=0,0,(AA13*((LOG(AA13))/LOG(2)))) -> 0 | AD13: 221 | AE13: =COUNTIF(L27:L37,AD13) -> 0 | AF13: =AE13/(AG4-AE10) -> 0 | AG13: =IF(AF13=0,0,(AF13*((LOG(AF13))/LOG(2)))) -> 0 | AI13: 221 | AJ13: =COUNTIF(L38:L47,AI13) -> 0 | AK13: =AJ13/(AL4-AJ10) -> 0 | AL13: =IF(AK13=0,0,(AK13*((LOG(AK13))/LOG(2)))) -> 0 | AN13: 221 | AO13: =COUNTIF(L48:L57,AN13) -> 0 | AP13: =AO13/(AQ4-AO10) -> 0 | AQ13: =IF(AP13=0,0,(AP13*((LOG(AP13))/LOG(2)))) -> 0 | AS13: 221 | AT13: =COUNTIF(L58:L67,AS13) -> 0 | AU13: =AT13/(AV4-AT10) -> 0 | AV13: =IF(AU13=0,0,(AU13*((LOG(AU13))/LOG(2)))) -> 0
A14: 11 | B14: 899 | C14: 11 | D14: 910 | E14: 21 | F14: 927 | K14: 0 | L14: 112 | N14: 222 | O14: 1 | P14: 0.01639344262 | Q14: -0.09722520226 | T14: 222 | U14: =COUNTIF(L7:L16,T14) -> 1 | V14: =U14/(W4-U10) -> 0.1 | W14: =IF(V14=0,0,(V14*((LOG(V14))/LOG(2)))) -> -0.3321928095 | Y14: 222 | Z14: =COUNTIF(L17:L26,Y14) -> 0 | AA14: =Z14/(AB4-Z10) -> 0 | AB14: =IF(AA14=0,0,(AA14*((LOG(AA14))/LOG(2)))) -> 0 | AD14: 222 | AE14: =COUNTIF(L27:L37,AD14) -> 0 | AF14: =AE14/(AG4-AE10) -> 0 | AG14: =IF(AF14=0,0,(AF14*((LOG(AF14))/LOG(2)))) -> 0 | AI14: 222 | AJ14: =COUNTIF(L38:L47,AI14) -> 0 | AK14: =AJ14/(AL4-AJ10) -> 0 | AL14: =IF(AK14=0,0,(AK14*((LOG(AK14))/LOG(2)))) -> 0 | AN14: 222 | AO14: =COUNTIF(L48:L57,AN14) -> 0 | AP14: =AO14/(AQ4-AO10) -> 0 | AQ14: =IF(AP14=0,0,(AP14*((LOG(AP14))/LOG(2)))) -> 0 | AS14: 222 | AT14: =COUNTIF(L58:L67,AS14) -> 0 | AU14: =AT14/(AV4-AT10) -> 0 | AV14: =IF(AU14=0,0,(AU14*((LOG(AU14))/LOG(2)))) -> 0
A15: 11 | B15: 1022 | C15: 11 | D15: 1031 | E15: 21 | F15: 1048 | K15: 0 | L15: 112 | P15: =SUM(P7:P14) -> 1 | Q15: =-SUM(Q7:Q14) -> 1.342267275 | V15: =SUM(V7:V14) -> 1 | W15: =-SUM(W7:W14) -> 1.156779649 | AA15: =SUM(AA7:AA14) -> 1 | AB15: =-SUM(AB7:AB14) -> 0 | AF15: =SUM(AF7:AF14) -> 1 | AG15: =-SUM(AG7:AG14) -> 0.5032583348 | AK15: =SUM(AK7:AK14) -> 1 | AL15: =-SUM(AL7:AL14) -> 0.5435644432 | AP15: =SUM(AP7:AP14) -> 1 | AQ15: =-SUM(AQ7:AQ14) -> 0.5435644432 | AU15: =SUM(AU7:AU14) -> 1 | AV15: =-SUM(AV7:AV14) -> 0.985228136
A16: 11 | B16: 1144 | C16: 11 | D16: 1155 | E16: 12 | F16: 1216 | K16: 0 | L16: 111 | P16: U= | Q16: =Q15/(LOG(Q4)/LOG(2)) -> 0.2263238445 | V16: U1= | W16: =W15/(LOG(W4)/LOG(2)) -> 0.3482253729 | AA16: U2= | AB16: =AB15/(LOG(AB4)/LOG(2)) -> 0 | AF16: U3= | AG16: =AG15/(LOG(AG4)/LOG(2)) -> 0.1454742831 | AK16: U4= | AL16: =AL15/(LOG(AL4)/LOG(2)) -> 0.163629202 | AP16: U5= | AQ16: =AQ15/(LOG(AQ4)/LOG(2)) -> 0.163629202 | AU16: U6= | AV16: =AV15/(LOG(AV4)/LOG(2)) -> 0.2965832215
A17: 11 | B17: 1318 | C17: 11 | D17: 1324 | E17: 21 | F17: 1334 | K17: 0 | L17: 112
A18: 11 | B18: 1426 | C18: 11 | D18: 1434 | E18: 21 | F18: 1444 | K18: 0 | L18: 112
A19: 11 | B19: 1537 | C19: 11 | D19: 1542 | E19: 21 | F19: 1561 | K19: 0 | L19: 112 | N19: Total Target Seq
A20: 11 | B20: 1651 | C20: 11 | D20: 1657 | E20: 21 | F20: 1668 | K20: 0 | L20: 112 | N20: =COUNTIF(L7:L67,G3) -> 12 | P20: 10 | Q20: 10 | R20: 11 | S20: 10 | T20: 10 | U20: 10
A21: 11 | B21: 1763 | C21: 22 | D21: 1774 | E21: 23 | F21: 1782 | K21: 0 | L21: 122 | P21: % of reinforcement given in 6 equal intervals based on number of trials
A22: 11 | B22: 1884 | C22: 22 | D22: 1895 | E22: 23 | F22: 1910 | K22: 0 | L22: 122 | P22: %_1 | Q22: %_2 | R22: %_3 | S22: %_4 | T22: %_5 | U22: %_6
A23: 11 | B23: 2011 | C23: 22 | D23: 2023 | E23: 23 | F23: 2055 | K23: 0 | L23: 122 | O23: target sequence | P23: =$G$3 -> 122 | Q23: 122 | R23: 122 | S23: 122 | T23: 122 | U23: 122
A24: 11 | B24: 2153 | C24: 11 | D24: 2159 | E24: 21 | F24: 2169 | K24: 0 | L24: 112 | O24: total reinforcement | P24: =U10 -> 0 | Q24: =Z10 -> 3 | R24: =AE10 -> 2 | S24: =AJ10 -> 2 | T24: =AO10 -> 2 | U24: =AT10 -> 3
A25: 11 | B25: 2261 | C25: 11 | D25: 2276 | E25: 21 | F25: 2294 | K25: 0 | L25: 112 | O25: % target
A26: 11 | B26: 2387 | C26: 11 | D26: 2391 | E26: 21 | F26: 2416 | K26: 0 | L26: 112 | O26: CCRF
A27: 11 | B27: 2507 | C27: 11 | D27: 2512 | E27: 21 | F27: 2546 | K27: 0 | L27: 112 | O27: % CCRf
A28: 11 | B28: 2635 | C28: 11 | D28: 2640 | E28: 21 | F28: 2650 | K28: 0 | L28: 112 | O28: average response rate | P28: =F16/P20 -> 121.6 | Q28: =(F26-F16)/Q20 -> 120 | R28: =(F37-F26)/R20 -> 120.3636364 | S28: =(F47-F37)/S20 -> 125 | T28: =(F57-F47)/T20 -> 118.7 | U28: =(F67-F57)/U20 -> 121.9
A29: 11 | B29: 2746 | C29: 22 | D29: 2756 | E29: 23 | F29: 2770 | K29: 0 | L29: 122
A30: 11 | B30: 2872 | C30: 11 | D30: 2882 | E30: 21 | F30: 2892 | K30: 0 | L30: 112
A31: 11 | B31: 2980 | C31: 11 | D31: 2988 | E31: 21 | F31: 2999 | K31: 0 | L31: 112
A32: 11 | B32: 3088 | C32: 11 | D32: 3093 | E32: 21 | F32: 3103 | K32: 0 | L32: 112
A33: 11 | B33: 3195 | C33: 11 | D33: 3200 | E33: 21 | F33: 3238 | K33: 0 | L33: 112
A34: 11 | B34: 3329 | C34: 11 | D34: 3334 | E34: 21 | F34: 3343 | K34: 0 | L34: 112
A35: 11 | B35: 3433 | C35: 11 | D35: 3441 | E35: 21 | F35: 3450 | K35: 0 | L35: 112
A36: 11 | B36: 3540 | C36: 11 | D36: 3545 | E36: 12 | F36: 3591 | K36: 0 | L36: 111
A37: 11 | B37: 3708 | C37: 22 | D37: 3718 | E37: 23 | F37: 3740 | K37: 0 | L37: 122
A38: 11 | B38: 3840 | C38: 11 | D38: 3848 | E38: 21 | F38: 3860 | K38: 0 | L38: 112
A39: 11 | B39: 3954 | C39: 11 | D39: 3962 | E39: 21 | F39: 3973 | K39: 0 | L39: 112
A40: 11 | B40: 4062 | C40: 22 | D40: 4098 | E40: 23 | F40: 4119 | K40: 0 | L40: 122
A41: 11 | B41: 4216 | C41: 11 | D41: 4221 | E41: 12 | F41: 4236 | K41: 0 | L41: 111
A42: 11 | B42: 4334 | C42: 11 | D42: 4339 | E42: 21 | F42: 4398 | K42: 0 | L42: 112
A43: 11 | B43: 4491 | C43: 22 | D43: 4506 | E43: 23 | F43: 4528 | K43: 0 | L43: 122
A44: 11 | B44: 4627 | C44: 11 | D44: 4637 | E44: 21 | F44: 4647 | K44: 0 | L44: 112
A45: 11 | B45: 4741 | C45: 11 | D45: 4751 | E45: 21 | F45: 4761 | K45: 0 | L45: 112
A46: 11 | B46: 4853 | C46: 11 | D46: 4860 | E46: 21 | F46: 4869 | K46: 0 | L46: 112
A47: 11 | B47: 4958 | C47: 11 | D47: 4963 | E47: 21 | F47: 4990 | K47: 0 | L47: 112
A48: 11 | B48: 5081 | C48: 11 | D48: 5089 | E48: 21 | F48: 5097 | K48: 0 | L48: 112
A49: 11 | B49: 5185 | C49: 11 | D49: 5191 | E49: 21 | F49: 5216 | K49: 0 | L49: 112
A50: 11 | B50: 5310 | C50: 11 | D50: 5321 | E50: 21 | F50: 5331 | K50: 0 | L50: 112
A51: 11 | B51: 5420 | C51: 11 | D51: 5425 | E51: 21 | F51: 5436 | K51: 0 | L51: 112
A52: 11 | B52: 5525 | C52: 11 | D52: 5530 | E52: 21 | F52: 5541 | K52: 0 | L52: 112
A53: 11 | B53: 5632 | C53: 11 | D53: 5637 | E53: 21 | F53: 5647 | K53: 0 | L53: 112
A54: 11 | B54: 5738 | C54: 22 | D54: 5748 | E54: 23 | F54: 5761 | K54: 0 | L54: 122
A55: 11 | B55: 5858 | C55: 11 | D55: 5865 | E55: 12 | F55: 5874 | K55: 0 | L55: 111
A56: 11 | B56: 5984 | C56: 22 | D56: 6007 | E56: 23 | F56: 6061 | K56: 0 | L56: 122
A57: 11 | B57: 6161 | C57: 11 | D57: 6167 | E57: 21 | F57: 6177 | K57: 0 | L57: 112
A58: 11 | B58: 6269 | C58: 11 | D58: 6279 | E58: 21 | F58: 6288 | K58: 0 | L58: 112
A59: 11 | B59: 6376 | C59: 11 | D59: 6381 | E59: 12 | F59: 6392 | K59: 0 | L59: 111
A60: 11 | B60: 6492 | C60: 22 | D60: 6506 | E60: 23 | F60: 6523 | K60: 0 | L60: 122
A61: 11 | B61: 6618 | C61: 11 | D61: 6624 | E61: 12 | F61: 6633 | K61: 0 | L61: 111
A62: 11 | B62: 6733 | C62: 11 | D62: 6740 | E62: 12 | F62: 6750 | K62: 0 | L62: 111
A63: 11 | B63: 6851 | C63: 11 | D63: 6856 | E63: 21 | F63: 6882 | K63: 0 | L63: 112
A64: 11 | B64: 6970 | C64: 11 | D64: 6974 | E64: 21 | F64: 6987 | K64: 0 | L64: 112
A65: 11 | B65: 7079 | C65: 22 | D65: 7109 | E65: 23 | F65: 7120 | K65: 0 | L65: 122
A66: 11 | B66: 7219 | C66: 22 | D66: 7262 | E66: 23 | F66: 7274 | K66: 0 | L66: 122
A67: 11 | B67: 7378 | C67: 11 | D67: 7387 | E67: 21 | F67: 7396 | K67: 1 | L67: 112

Sheet !L805B40.056
A1: Report for:!L805B40.056
A2: Date: | B2: <date>
A3: Hen: | B3: <hen> | F3: Correct Sequence | G3: =Start!J2 -> 122 | P3: Total Sequences in Data | Q3: =4994-COUNTBLANK(L7:L5000) -> 70 | V3: Total Sequences in Block Data | W3: =COUNTA(L7:L18) -> 12 | AA3: Total Sequences in Block Data | AB3: =COUNTA(L19:L29) -> 11 | AF3: Total Sequences in Block Data | AG3: =COUNTA(L30:L41) -> 12 | AK3: Total Sequences in Block Data | AL3: =COUNTA(L42:L53) -> 12 | AP3: Total Sequences in Block Data | AQ3: =COUNTA(L54:L64) -> 11 | AU3: Total Sequences in Block Data | AV3: =COUNTA(L65:L76) -> 12
P4: Total Sequences in Summary | Q4: =SUM(O7:O14) -> 70 | V4: Total Sequences in Block Summary | W4: =SUM(U7:U14) -> 12 | AA4: Total Sequences in Block Summary | AB4: =SUM(Z7:Z14) -> 11 | AF4: Total Sequences in Block Summary | AG4: =SUM(AE7:AE14) -> 12 | AK4: Total Sequences in Block Summary | AL4: =SUM(AJ7:AJ14) -> 12 | AP4: Total Sequences in Block Summary | AQ4: =SUM(AO7:AO14) -> 11 | AU4: Total Sequences in Block Summary | AV4: =SUM(AT7:AT14) -> 12
T5: Block 1 | Y5: Block 2 | AD5: Block 3 | AI5: Block 4 | AN5: Block 5 | AS5: Block 6
A6: Sequence Component 1 | B6: Time 1 | C6: Sequence Component 2 | D6: Time 2 | E6: Sequence Component 3 | F6: Time 3 | G6: Sequence Component 4 | H6: Time 4 | I6: Sequence Component 5 | J6: Time 5 | K6: Correct? 0=No 1=Yes | L6: Sequence | N6: Frequency | P6: Relative Frequency | Q6: Variability | T6: Frequency | V6: Relative Frequency | W6: Variability | Y6: Frequency | AA6: Relative Frequency | AB6: Variability | AD6: Frequency | AF6: Relative Frequency | AG6: Variability | AI6: Frequency | AK6: Relative Frequency | AL6: Variability | AN6: Frequency | AP6: Relative Frequency | AQ6: Variability | AS6: Frequency | AU6: Relative Frequency | AV6: Variability
A7: 11 | B7: 14 | C7: 22 | D7: 25 | E7: 23 | F7: 37 | K7: 0 | L7: 122 | N7: 111 | O7: =COUNTIF($L$7:$L$500,N7) -> 2 | P7: =O7/$Q$4 -> 0.02857142857 | Q7: =IF(P7=0,0,(P7*((LOG(P7))/LOG(2)))) -> -0.1465509433 | T7: =N7 -> 111 | U7: =COUNTIF(L7:L18,T7) -> 0 | V7: =U7/(W4-U10) -> 0 | W7: =IF(V7=0,0,(V7*((LOG(V7))/LOG(2)))) -> 0 | Y7: =N7 -> 111 | Z7: =COUNTIF(L19:L29,Y7) -> 0 | AA7: =Z7/(AB4-Z10) -> 0 | AB7: =IF(AA7=0,0,(AA7*((LOG(AA7))/LOG(2)))) -> 0 | AD7: =N7 -> 111 | AE7: =COUNTIF(L30:L41,AD7) -> 0 | AF7: =AE7/(AG4-AE10) -> 0 | AG7: =IF(AF7=0,0,(AF7*((LOG(AF7))/LOG(2)))) -> 0 | AI7: =N7 -> 111 | AJ7: =COUNTIF(L42:L53,AI7) -> 0 | AK7: =AJ7/(AL4-AJ10) -> 0 | AL7: =IF(AK7=0,0,(AK7*((LOG(AK7))/LOG(2)))) -> 0 | AN7: =N7 -> 111 | AO7: =COUNTIF(L54:L64,AN7) -> 0 | AP7: =AO7/(AQ4-AO10) -> 0 | AQ7: =IF(AP7=0,0,(AP7*((LOG(AP7))/LOG(2)))) -> 0 | AS7: =N7 -> 111 | AT7: =COUNTIF(L65:L76,AS7) -> 2 | AU7: =AT7/(AV4-AT10) -> 0.1818181818 | AV7: =IF(AU7=0,0,(AU7*((LOG(AU7))/LOG(2)))) -> -0.4471693852
A8: 11 | B8: 135 | C8: 11 | D8: 142 | E8: 21 | F8: 153 | K8: 0 | L8: 112 | N8: 112 | O8: 40 | P8: 0.5714285714 | Q8: -0.4613456697 | T8: 112 | U8: =COUNTIF(L7:L18,T8) -> 7 | V8: =U8/(W4-U10) -> 0.6363636364 | W8: =IF(V8=0,0,(V8*((LOG(V8))/LOG(2)))) -> -0.4149578978 | Y8: 112 | Z8: =COUNTIF(L19:L29,Y8) -> 2 | AA8: =Z8/(AB4-Z10) -> 0.4 | AB8: =IF(AA8=0,0,(AA8*((LOG(AA8))/LOG(2)))) -> -0.528771238 | AD8: 112 | AE8: =COUNTIF(L30:L41,AD8) -> 8 | AF8: =AE8/(AG4-AE10) -> 1 | AG8: =IF(AF8=0,0,(AF8*((LOG(AF8))/LOG(2)))) -> 0 | AI8: 112 | AJ8: =COUNTIF(L42:L53,AI8) -> 8 | AK8: =AJ8/(AL4-AJ10) -> 1 | AL8: =IF(AK8=0,0,(AK8*((LOG(AK8))/LOG(2)))) -> 0 | AN8: 112 | AO8: =COUNTIF(L54:L64,AN8) -> 6 | AP8: =AO8/(AQ4-AO10) -> 0.75 | AQ8: =IF(AP8=0,0,(AP8*((LOG(AP8))/LOG(2)))) -> -0.3112781245 | AS8: 112 | AT8: =COUNTIF(L65:L76,AS8) -> 9 | AU8: =AT8/(AV4-AT10) -> 0.8181818182 | AV8: =IF(AU8=0,0,(AU8*((LOG(AU8))/LOG(2)))) -> -0.2368690504
A9: 11 | B9: 250 | C9: 11 | D9: 256 | E9: 21 | F9: 266 | K9: 0 | L9: 112 | N9: 121 | O9: 4 | P9: 0.05714285714 | Q9: -0.2359590295 | T9: 121 | U9: =COUNTIF(L7:L18,T9) -> 2 | V9: =U9/(W4-U10) -> 0.1818181818 | W9: =IF(V9=0,0,(V9*((LOG(V9))/LOG(2)))) -> -0.4471693852 | Y9: 121 | Z9: =COUNTIF(L19:L29,Y9) -> 1 | AA9: =Z9/(AB4-Z10) -> 0.2 | AB9: =IF(AA9=0,0,(AA9*((LOG(AA9))/LOG(2)))) -> -0.464385619 | AD9: 121 | AE9: =COUNTIF(L30:L41,AD9) -> 0 | AF9: =AE9/(AG4-AE10) -> 0 | AG9: =IF(AF9=0,0,(AF9*((LOG(AF9))/LOG(2)))) -> 0 | AI9: 121 | AJ9: =COUNTIF(L42:L53,AI9) -> 0 | AK9: =AJ9/(AL4-AJ10) -> 0 | AL9: =IF(AK9=0,0,(AK9*((LOG(AK9))/LOG(2)))) -> 0 | AN9: 121 | AO9: =COUNTIF(L54:L64,AN9) -> 1 | AP9: =AO9/(AQ4-AO10) -> 0.125 | AQ9: =IF(AP9=0,0,(AP9*((LOG(AP9))/LOG(2)))) -> -0.375 | AS9: 121 | AT9: =COUNTIF(L65:L76,AS9) -> 0 | AU9: =AT9/(AV4-AT10) -> 0 | AV9: =IF(AU9=0,0,(AU9*((LOG(AU9))/LOG(2)))) -> 0
A10: 11 | B10: 355 | C10: 11 | D10: 360 | E10: 21 | F10: 370 | K10: 0 | L10: 112 | N10: 122 | O10: 19 | P10: 0.2714285714 | Q10: -0.5106536367 | T10: 122 | U10: =COUNTIF(L7:L18,T10) -> 1 | Y10: 122 | Z10: =COUNTIF(L19:L29,Y10) -> 6 | AD10: 122 | AE10: =COUNTIF(L30:L41,AD10) -> 4 | AI10: 122 | AJ10: =COUNTIF(L42:L53,AI10) -> 4 | AN10: 122 | AO10: =COUNTIF(L54:L64,AN10) -> 3 | AS10: 122 | AT10: =COUNTIF(L65:L76,AS10) -> 1
A11: 11 | B11: 456 | C11: 11 | D11: 461 | E11: 21 | F11: 471 | K11: 0 | L11: 112 | N11: 211 | O11: 0 | P11: 0 | Q11: 0 | T11: 211 | U11: =COUNTIF(L7:L18,T11) -> 0 | V11: =U11/(W4-U10) -> 0 | W11: =IF(V11=0,0,(V11*((LOG(V11))/LOG(2)))) -> 0 | Y11: 211 | Z11: =COUNTIF(L19:L29,Y11) -> 0 | AA11: =Z11/(AB4-Z10) -> 0 | AB11: =IF(AA11=0,0,(AA11*((LOG(AA11))/LOG(2)))) -> 0 | AD11: 211 | AE11: =COUNTIF(L30:L41,AD11) -> 0 | AF11: =AE11/(AG4-AE10) -> 0 | AG11: =IF(AF11=0,0,(AF11*((LOG(AF11))/LOG(2)))) -> 0 | AI11: 211 | AJ11: =COUNTIF(L42:L53,AI11) -> 0 | AK11: =AJ11/(AL4-AJ10) -> 0 | AL11: =IF(AK11=0,0,(AK11*((LOG(AK11))/LOG(2)))) -> 0 | AN11: 211 | AO11: =COUNTIF(L54:L64,AN11) -> 0 | AP11: =AO11/(AQ4-AO10) -> 0 | AQ11: =IF(AP11=0,0,(AP11*((LOG(AP11))/LOG(2)))) -> 0 | AS11: 211 | AT11: =COUNTIF(L65:L76,AS11) -> 0 | AU11: =AT11/(AV4-AT10) -> 0 | AV11: =IF(AU11=0,0,(AU11*((LOG(AU11))/LOG(2)))) -> 0
A12: 22 | B12: 565 | C12: 24 | D12: 575 | E12: 14 | F12: 590 | K12: 0 | L12: 221 | N12: 212 | O12: 0 | P12: 0 | Q12: 0 | T12: 212 | U12: =COUNTIF(L7:L18,T12) -> 0 | V12: =U12/(W4-U10) -> 0 | W12: =IF(V12=0,0,(V12*((LOG(V12))/LOG(2)))) -> 0 | Y12: 212 | Z12: =COUNTIF(L19:L29,Y12) -> 0 | AA12: =Z12/(AB4-Z10) -> 0 | AB12: =IF(AA12=0,0,(AA12*((LOG(AA12))/LOG(2)))) -> 0 | AD12: 212 | AE12: =COUNTIF(L30:L41,AD12) -> 0 | AF12: =AE12/(AG4-AE10) -> 0 | AG12: =IF(AF12=0,0,(AF12*((LOG(AF12))/LOG(2)))) -> 0 | AI12: 212 | AJ12: =COUNTIF(L42:L53,AI12) -> 0 | AK12: =AJ12/(AL4-AJ10) -> 0 | AL12: =IF(AK12=0,0,(AK12*((LOG(AK12))/LOG(2)))) -> 0 | AN12: 212 | AO12: =COUNTIF(L54:L64,AN12) -> 0 | AP12: =AO12/(AQ4-AO10) -> 0 | AQ12: =IF(AP12=0,0,(AP12*((LOG(AP12))/LOG(2)))) -> 0 | AS12: 212 | AT12: =COUNTIF(L65:L76,AS12) -> 0 | AU12: =AT12/(AV4-AT10) -> 0 | AV12: =IF(AU12=0,0,(AU12*((LOG(AU12))/LOG(2)))) -> 0
A13: 11 | B13: 687 | C13: 22 | D13: 698 | E13: 14 | F13: 713 | K13: 0 | L13: 121 | N13: 221 | O13: 2 | P13: 0.02857142857 | Q13: -0.1465509433 | T13: 221 | U13: =COUNTIF(L7:L18,T13) -> 1 | V13: =U13/(W4-U10) -> 0.09090909091 | W13: =IF(V13=0,0,(V13*((LOG(V13))/LOG(2)))) -> -0.3144937835 | Y13: 221 | Z13: =COUNTIF(L19:L29,Y13) -> 1 | AA13: =Z13/(AB4-Z10) -> 0.2 | AB13: =IF(AA13=0,0,(AA13*((LOG(AA13))/LOG(2)))) -> -0.464385619 | AD13: 221 | AE13: =COUNTIF(L30:L41,AD13) -> 0 | AF13: =AE13/(AG4-AE10) -> 0 | AG13: =IF(AF13=0,0,(AF13*((LOG(AF13))/LOG(2)))) -> 0 | AI13: 221 | AJ13: =COUNTIF(L42:L53,AI13) -> 0 | AK13: =AJ13/(AL4-AJ10) -> 0 | AL13: =IF(AK13=0,0,(AK13*((LOG(AK13))/LOG(2)))) -> 0 | AN13: 221 | AO13: =COUNTIF(L54:L64,AN13) -> 0 | AP13: =AO13/(AQ4-AO10) -> 0 | AQ13: =IF(AP13=0,0,(AP13*((LOG(AP13))/LOG(2)))) -> 0 | AS13: 221 | AT13: =COUNTIF(L65:L76,AS13) -> 0 | AU13: =AT13/(AV4-AT10) -> 0 | AV13: =IF(AU13=0,0,(AU13*((LOG(AU13))/LOG(2)))) -> 0
A14: 22 | B14: 826 | C14: 24 | D14: 835 | E14: 23 | F14: 857 | K14: 0 | L14: 222 | N14: 222 | O14: 3 | P14: 0.04285714286 | Q14: -0.1947565936 | T14: 222 | U14: =COUNTIF(L7:L18,T14) -> 1 | V14: =U14/(W4-U10) -> 0.09090909091 | W14: =IF(V14=0,0,(V14*((LOG(V14))/LOG(2)))) -> -0.3144937835 | Y14: 222 | Z14: =COUNTIF(L19:L29,Y14) -> 1 | AA14: =Z14/(AB4-Z10) -> 0.2 | AB14: =IF(AA14=0,0,(AA14*((LOG(AA14))/LOG(2)))) -> -0.464385619 | AD14: 222 | AE14: =COUNTIF(L30:L41,AD14) -> 0 | AF14: =AE14/(AG4-AE10) -> 0 | AG14: =IF(AF14=0,0,(AF14*((LOG(AF14))/LOG(2)))) -> 0 | AI14: 222 | AJ14: =COUNTIF(L42:L53,AI14) -> 0 | AK14: =AJ14/(AL4-AJ10) -> 0 | AL14: =IF(AK14=0,0,(AK14*((LOG(AK14))/LOG(2)))) -> 0 | AN14: 222 | AO14: =COUNTIF(L54:L64,AN14) -> 1 | AP14: =AO14/(AQ4-AO10) -> 0.125 | AQ14: =IF(AP14=0,0,(AP14*((LOG(AP14))/LOG(2)))) -> -0.375 | AS14: 222 | AT14: =COUNTIF(L65:L76,AS14) -> 0 | AU14: =AT14/(AV4-AT10) -> 0 | AV14: =IF(AU14=0,0,(AU14*((LOG(AU14))/LOG(2)))) -> 0
A15: 11 | B15: 954 | C15: 11 | D15: 959 | E15: 21 | F15: 970 | K15: 0 | L15: 112 | P15: =SUM(P7:P14) -> 1 | Q15: =-SUM(Q7:Q14) -> 1.695816816 | V15: =SUM(V7:V14) -> 1 | W15: =-SUM(W7:W14) -> 1.49111485 | AA15: =SUM(AA7:AA14) -> 1 | AB15: =-SUM(AB7:AB14) -> 1.921928095 | AF15: =SUM(AF7:AF14) -> 1 | AG15: =-SUM(AG7:AG14) -> 0 | AK15: =SUM(AK7:AK14) -> 1 | AL15: =-SUM(AL7:AL14) -> 0 | AP15: =SUM(AP7:AP14) -> 1 | AQ15: =-SUM(AQ7:AQ14) -> 1.061278124 | AU15: =SUM(AU7:AU14) -> 1 | AV15: =-SUM(AV7:AV14) -> 0.6840384356
A16: 11 | B16: 1059 | C16: 11 | D16: 1067 | E16: 21 | F16: 1089 | K16: 0 | L16: 112 | P16: U= | Q16: =Q15/(LOG(Q4)/LOG(2)) -> 0.2766745819 | V16: U1= | W16: =W15/(LOG(W4)/LOG(2)) -> 0.4159359686 | AA16: U2= | AB16: =AB15/(LOG(AB4)/LOG(2)) -> 0.5555618109 | AF16: U3= | AG16: =AG15/(LOG(AG4)/LOG(2)) -> 0 | AK16: U4= | AL16: =AL15/(LOG(AL4)/LOG(2)) -> 0 | AP16: U5= | AQ16: =AQ15/(LOG(AQ4)/LOG(2)) -> 0.3067781767 | AU16: U6= | AV16: =AV15/(LOG(AV4)/LOG(2)) -> 0.1908076962
A17: 11 | B17: 1180 | C17: 11 | D17: 1185 | E17: 21 | F17: 1194 | K17: 0 | L17: 112
A18: 11 | B18: 1279 | C18: 22 | D18: 1294 | E18: 14 | F18: 1313 | K18: 0 | L18: 121
A19: 22 | B19: 1436 | C19: 24 | D19: 1463 | E19: 23 | F19: 1471 | K19: 0 | L19: 222 | N19: Total Target Seq
A20: 22 | B20: 1584 | C20: 24 | D20: 1600 | E20: 14 | F20: 1613 | K20: 0 | L20: 221 | N20: =COUNTIF(L7:L76,G3) -> 19 | P20: 12 | Q20: 11 | R20: 12 | S20: 12 | T20: 11 | U20: 12
A21: 11 | B21: 1714 | C21: 22 | D21: 1728 | E21: 23 | F21: 1741 | K21: 0 | L21: 122 | P21: % of reinforcement given in 6 equal intervals based on number of trials
A22: 11 | B22: 1846 | C22: 22 | D22: 1855 | E22: 23 | F22: 1867 | K22: 0 | L22: 122 | P22: %_1 | Q22: %_2 | R22: %_3 | S22: %_4 | T22: %_5 | U22: %_6
A23: 11 | B23: 1968 | C23: 22 | D23: 1984 | E23: 23 | F23: 1996 | K23: 0 | L23: 122 | O23: target sequence | P23: =$G$3 -> 122 | Q23: 122 | R23: 122 | S23: 122 | T23: 122 | U23: 122
A24: 11 | B24: 2098 | C24: 22 | D24: 2108 | E24: 23 | F24: 2117 | K24: 0 | L24: 122 | O24: total reinforcement | P24: =U10 -> 1 | Q24: =Z10 -> 6 | R24: =AE10 -> 4 | S24: =AJ10 -> 4 | T24: =AO10 -> 3 | U24: =AT10 -> 1
A25: 11 | B25: 2219 | C25: 11 | D25: 2227 | E25: 21 | F25: 2239 | K25: 0 | L25: 112 | O25: % target
A26: 11 | B26: 2332 | C26: 22 | D26: 2378 | E26: 14 | F26: 2395 | K26: 0 | L26: 121 | O26: CCRF
A27: 11 | B27: 2492 | C27: 11 | D27: 2496 | E27: 21 | F27: 2507 | K27: 0 | L27: 112 | O27: % CCRf
A28: 11 | B28: 2602 | C28: 22 | D28: 2613 | E28: 23 | F28: 2619 | K28: 0 | L28: 122 | O28: average response rate | P28: =F18/P20 -> 109.4166667 | Q28: =(F29-F18)/Q20 -> 130 | R28: =(F41-F29)/R20 -> 117.9166667 | S28: =(F53-F41)/S20 -> 115.3333333 | T28: =(F64-F53)/T20 -> 122.9090909 | U28: =(F76-F64)/U20 -> 121.75
A29: 11 | B29: 2722 | C29: 22 | D29: 2734 | E29: 23 | F29: 2743 | K29: 0 | L29: 122
A30: 11 | B30: 2841 | C30: 22 | D30: 2856 | E30: 23 | F30: 2895 | K30: 0 | L30: 122
A31: 11 | B31: 3001 | C31: 22 | D31: 3012 | E31: 23 | F31: 3020 | K31: 0 | L31: 122
A32: 11 | B32: 3125 | C32: 11 | D32: 3139 | E32: 21 | F32: 3161 | K32: 0 | L32: 112
A33: 11 | B33: 3253 | C33: 11 | D33: 3258 | E33: 21 | F33: 3269 | K33: 0 | L33: 112
A34: 11 | B34: 3360 | C34: 11 | D34: 3365 | E34: 21 | F34: 3376 | K34: 0 | L34: 112
A35: 11 | B35: 3467 | C35: 22 | D35: 3479 | E35: 23 | F35: 3492 | K35: 0 | L35: 122
A36: 11 | B36: 3591 | C36: 22 | D36: 3606 | E36: 23 | F36: 3615 | K36: 0 | L36: 122
A37: 11 | B37: 3713 | C37: 11 | D37: 3718 | E37: 21 | F37: 3728 | K37: 0 | L37: 112
A38: 11 | B38: 3822 | C38: 11 | D38: 3827 | E38: 21 | F38: 3844 | K38: 0 | L38: 112
A39: 11 | B39: 3932 | C39: 11 | D39: 3937 | E39: 21 | F39: 3947 | K39: 0 | L39: 112
A40: 11 | B40: 4038 | C40: 11 | D40: 4042 | E40: 21 | F40: 4052 | K40: 0 | L40: 112
A41: 11 | B41: 4143 | C41: 11 | D41: 4148 | E41: 21 | F41: 4158 | K41: 0 | L41: 112
A42: 11 | B42: 4249 | C42: 22 | D42: 4263 | E42: 23 | F42: 4277 | K42: 0 | L42: 122
A43: 11 | B43: 4377 | C43: 11 | D43: 4381 | E43: 21 | F43: 4402 | K43: 0 | L43: 112
A44: 11 | B44: 4493 | C44: 11 | D44: 4501 | E44: 21 | F44: 4513 | K44: 0 | L44: 112
A45: 11 | B45: 4606 | C45: 11 | D45: 4616 | E45: 21 | F45: 4626 | K45: 0 | L45: 112
A46: 11 | B46: 4715 | C46: 11 | D46: 4719 | E46: 21 | F46: 4728 | K46: 0 | L46: 112
A47: 11 | B47: 4816 | C47: 11 | D47: 4820 | E47: 21 | F47: 4831 | K47: 0 | L47: 112
A48: 11 | B48: 4919 | C48: 11 | D48: 4924 | E48: 21 | F48: 4933 | K48: 0 | L48: 112
A49: 11 | B49: 5025 | C49: 22 | D49: 5035 | E49: 23 | F49: 5044 | K49: 0 | L49: 122
A50: 11 | B50: 5145 | C50: 22 | D50: 5160 | E50: 23 | F50: 5167 | K50: 0 | L50: 122
A51: 11 | B51: 5270 | C51: 22 | D51: 5281 | E51: 23 | F51: 5290 | K51: 0 | L51: 122
A52: 11 | B52: 5394 | C52: 11 | D52: 5399 | E52: 21 | F52: 5408 | K52: 0 | L52: 112
A53: 11 | B53: 5502 | C53: 11 | D53: 5512 | E53: 21 | F53: 5542 | K53: 0 | L53: 112
A54: 11 | B54: 5634 | C54: 11 | D54: 5644 | E54: 21 | F54: 5654 | K54: 0 | L54: 112
A55: 11 | B55: 5742 | C55: 11 | D55: 5747 | E55: 21 | F55: 5757 | K55: 0 | L55: 112
A56: 11 | B56: 5849 | C56: 22 | D56: 5864 | E56: 23 | F56: 5871 | K56: 0 | L56: 122
A57: 11 | B57: 5973 | C57: 22 | D57: 5987 | E57: 23 | F57: 6001 | K57: 0 | L57: 122
A58: 11 | B58: 6099 | C58: 11 | D58: 6104 | E58: 21 | F58: 6155 | K58: 0 | L58: 112
A59: 11 | B59: 6243 | C59: 11 | D59: 6248 | E59: 21 | F59: 6260 | K59: 0 | L59: 112
A60: 11 | B60: 6350 | C60: 22 | D60: 6360 | E60: 14 | F60: 6379 | K60: 0 | L60: 121
A61: 11 | B61: 6476 | C61: 11 | D61: 6484 | E61: 21 | F61: 6494 | K61: 0 | L61: 112
A62: 11 | B62: 6589 | C62: 22 | D62: 6623 | E62: 23 | F62: 6638 | K62: 0 | L62: 122
A63: 22 | B63: 6760 | C63: 24 | D63: 6768 | E63: 23 | F63: 6776 | K63: 0 | L63: 222
A64: 11 | B64: 6876 | C64: 11 | D64: 6884 | E64: 21 | F64: 6894 | K64: 0 | L64: 112
A65: 11 | B65: 6985 | C65: 11 | D65: 6990 | E65: 21 | F65: 7000 | K65: 0 | L65: 112
A66: 11 | B66: 7087 | C66: 11 | D66: 7097 | E66: 21 | F66: 7127 | K66: 0 | L66: 112
A67: 11 | B67: 7216 | C67: 11 | D67: 7221 | E67: 21 | F67: 7257 | K67: 0 | L67: 112
A68: 11 | B68: 7352 | C68: 11 | D68: 7361 | E68: 21 | F68: 7388 | K68: 0 | L68: 112
A69: 11 | B69: 7476 | C69: 11 | D69: 7480 | E69: 21 | F69: 7514 | K69: 0 | L69: 112
A70: 11 | B70: 7605 | C70: 11 | D70: 7618 | E70: 12 | F70: 7627 | K70: 0 | L70: 111
A71: 11 | B71: 7727 | C71: 11 | D71: 7733 | E71: 21 | F71: 7743 | K71: 0 | L71: 112
A72: 11 | B72: 7829 | C72: 11 | D72: 7833 | E72: 12 | F72: 7838 | K72: 0 | L72: 111
A73: 11 | B73: 7951 | C73: 22 | D73: 7995 | E73: 23 | F73: 8010 | K73: 0 | L73: 122
A74: 11 | B74: 8110 | C74: 11 | D74: 8114 | E74: 21 | F74: 8132 | K74: 0 | L74: 112
A75: 11 | B75: 8221 | C75: 11 | D75: 8226 | E75: 21 | F75: 8236 | K75: 0 | L75: 112
A76: 11 | B76: 8325 | C76: 11 | D76: 8329 | E76: 21 | F76: 8355 | K76: 1 | L76: 112

Sheet !L806B10.056
A1: Report for:!L806B10.056
A2: Date: | B2: <date>
A3: Hen: | B3: <hen> | F3: Correct Sequence | G3: =Start!J2 -> 122 | P3: Total Sequences in Data | Q3: =4994-COUNTBLANK(L7:L5000) -> 76 | V3: Total Sequences in Block Data | W3: =COUNTA(L7:L19) -> 13 | AA3: Total Sequences in Block Data | AB3: =COUNTA(L20:L31) -> 12 | AF3: Total Sequences in Block Data | AG3: =COUNTA(L32:L44) -> 13 | AK3: Total Sequences in Block Data | AL3: =COUNTA(L45:L57) -> 13 | AP3: Total Sequences in Block Data | AQ3: =COUNTA(L58:L69) -> 12 | AU3: Total Sequences in Block Data | AV3: =COUNTA(L70:L82) -> 13
P4: Total Sequences in Summary | Q4: =SUM(O7:O14) -> 76 | V4: Total Sequences in Block Summary | W4: =SUM(U7:U14) -> 13 | AA4: Total Sequences in Block Summary | AB4: =SUM(Z7:Z14) -> 12 | AF4: Total Sequences in Block Summary | AG4: =SUM(AE7:AE14) -> 13 | AK4: Total Sequences in Block Summary | AL4: =SUM(AJ7:AJ14) -> 13 | AP4: Total Sequences in Block Summary | AQ4: =SUM(AO7:AO14) -> 12 | AU4: Total Sequences in Block Summary | AV4: =SUM(AT7:AT14) -> 13
T5: Block 1 | Y5: Block 2 | AD5: Block 3 | AI5: Block 4 | AN5: Block 5 | AS5: Block 6
A6: Sequence Component 1 | B6: Time 1 | C6: Sequence Component 2 | D6: Time 2 | E6: Sequence Component 3 | F6: Time 3 | G6: Sequence Component 4 | H6: Time 4 | I6: Sequence Component 5 | J6: Time 5 | K6: Correct? 0=No 1=Yes | L6: Sequence | N6: Frequency | P6: Relative Frequency | Q6: Variability | T6: Frequency | V6: Relative Frequency | W6: Variability | Y6: Frequency | AA6: Relative Frequency | AB6: Variability | AD6: Frequency | AF6: Relative Frequency | AG6: Variability | AI6: Frequency | AK6: Relative Frequency | AL6: Variability | AN6: Frequency | AP6: Relative Frequency | AQ6: Variability | AS6: Frequency | AU6: Relative Frequency | AV6: Variability
A7: 22 | B7: 22 | C7: 24 | D7: 39 | E7: 23 | F7: 48 | K7: 0 | L7: 222 | N7: 111 | O7: =COUNTIF($L$7:$L$500,N7) -> 8 | P7: =O7/$Q$4 -> 0.1052631579 | Q7: =IF(P7=0,0,(P7*((LOG(P7))/LOG(2)))) -> -0.3418871067 | T7: =N7 -> 111 | U7: =COUNTIF(L7:L19,T7) -> 4 | V7: =U7/(W4-U10) -> 0.4 | W7: =IF(V7=0,0,(V7*((LOG(V7))/LOG(2)))) -> -0.528771238 | Y7: =N7 -> 111 | Z7: =COUNTIF(L20:L31,Y7) -> 2 | AA7: =Z7/(AB4-Z10) -> 0.2222222222 | AB7: =IF(AA7=0,0,(AA7*((LOG(AA7))/LOG(2)))) -> -0.4822055559 | AD7: =N7 -> 111 | AE7: =COUNTIF(L32:L44,AD7) -> 1 | AF7: =AE7/(AG4-AE10) -> 0.125 | AG7: =IF(AF7=0,0,(AF7*((LOG(AF7))/LOG(2)))) -> -0.375 | AI7: =N7 -> 111 | AJ7: =COUNTIF(L45:L57,AI7) -> 0 | AK7: =AJ7/(AL4-AJ10) -> 0 | AL7: =IF(AK7=0,0,(AK7*((LOG(AK7))/LOG(2)))) -> 0 | AN7: =N7 -> 111 | AO7: =COUNTIF(L58:L69,AN7) -> 1 | AP7: =AO7/(AQ4-AO10) -> 0.1 | AQ7: =IF(AP7=0,0,(AP7*((LOG(AP7))/LOG(2)))) -> -0.3321928095 | AS7: =N7 -> 111 | AT7: =COUNTIF(L70:L82,AS7) -> 0 | AU7: =AT7/(AV4-AT10) -> 0 | AV7: =IF(AU7=0,0,(AU7*((LOG(AU7))/LOG(2)))) -> 0
A8: 11 | B8: 156 | C8: 22 | D8: 173 | E8: 23 | F8: 182 | K8: 0 | L8: 122 | N8: 112 | O8: 40 | P8: 0.5263157895 | Q8: -0.487368115 | T8: 112 | U8: =COUNTIF(L7:L19,T8) -> 5 | V8: =U8/(W4-U10) -> 0.5 | W8: =IF(V8=0,0,(V8*((LOG(V8))/LOG(2)))) -> -0.5 | Y8: 112 | Z8: =COUNTIF(L20:L31,Y8) -> 6 | AA8: =Z8/(AB4-Z10) -> 0.6666666667 | AB8: =IF(AA8=0,0,(AA8*((LOG(AA8))/LOG(2)))) -> -0.3899750005 | AD8: 112 | AE8: =COUNTIF(L32:L44,AD8) -> 6 | AF8: =AE8/(AG4-AE10) -> 0.75 | AG8: =IF(AF8=0,0,(AF8*((LOG(AF8))/LOG(2)))) -> -0.3112781245 | AI8: 112 | AJ8: =COUNTIF(L45:L57,AI8) -> 5 | AK8: =AJ8/(AL4-AJ10) -> 0.7142857143 | AL8: =IF(AK8=0,0,(AK8*((LOG(AK8))/LOG(2)))) -> -0.346733448 | AN8: 112 | AO8: =COUNTIF(L58:L69,AN8) -> 9 | AP8: =AO8/(AQ4-AO10) -> 0.9 | AQ8: =IF(AP8=0,0,(AP8*((LOG(AP8))/LOG(2)))) -> -0.1368027841 | AS8: 112 | AT8: =COUNTIF(L70:L82,AS8) -> 9 | AU8: =AT8/(AV4-AT10) -> 0.9 | AV8: =IF(AU8=0,0,(AU8*((LOG(AU8))/LOG(2)))) -> -0.1368027841
A9: 11 | B9: 283 | C9: 11 | D9: 288 | E9: 12 | F9: 301 | K9: 0 | L9: 111 | N9: 121 | O9: 3 | P9: 0.03947368421 | Q9: -0.1840644084 | T9: 121 | U9: =COUNTIF(L7:L19,T9) -> 0 | V9: =U9/(W4-U10) -> 0 | W9: =IF(V9=0,0,(V9*((LOG(V9))/LOG(2)))) -> 0 | Y9: 121 | Z9: =COUNTIF(L20:L31,Y9) -> 0 | AA9: =Z9/(AB4-Z10) -> 0 | AB9: =IF(AA9=0,0,(AA9*((LOG(AA9))/LOG(2)))) -> 0 | AD9: 121 | AE9: =COUNTIF(L32:L44,AD9) -> 1 | AF9: =AE9/(AG4-AE10) -> 0.125 | AG9: =IF(AF9=0,0,(AF9*((LOG(AF9))/LOG(2)))) -> -0.375 | AI9: 121 | AJ9: =COUNTIF(L45:L57,AI9) -> 1 | AK9: =AJ9/(AL4-AJ10) -> 0.1428571429 | AL9: =IF(AK9=0,0,(AK9*((LOG(AK9))/LOG(2)))) -> -0.4010507032 | AN9: 121 | AO9: =COUNTIF(L58:L69,AN9) -> 0 | AP9: =AO9/(AQ4-AO10) -> 0 | AQ9: =IF(AP9=0,0,(AP9*((LOG(AP9))/LOG(2)))) -> 0 | AS9: 121 | AT9: =COUNTIF(L70:L82,AS9) -> 1 | AU9: =AT9/(AV4-AT10) -> 0.1 | AV9: =IF(AU9=0,0,(AU9*((LOG(AU9))/LOG(2)))) -> -0.3321928095
A10: 11 | B10: 399 | C10: 11 | D10: 407 | E10: 21 | F10: 419 | K10: 0 | L10: 112 | N10: 122 | O10: 22 | P10: 0.2894736842 | Q10: -0.5177224959 | T10: 122 | U10: =COUNTIF(L7:L19,T10) -> 3 | Y10: 122 | Z10: =COUNTIF(L20:L31,Y10) -> 3 | AD10: 122 | AE10: =COUNTIF(L32:L44,AD10) -> 5 | AI10: 122 | AJ10: =COUNTIF(L45:L57,AI10) -> 6 | AN10: 122 | AO10: =COUNTIF(L58:L69,AN10) -> 2 | AS10: 122 | AT10: =COUNTIF(L70:L82,AS10) -> 3
A11: 11 | B11: 509 | C11: 11 | D11: 514 | E11: 12 | F11: 519 | K11: 0 | L11: 111 | N11: 211 | O11: 0 | P11: 0 | Q11: 0 | T11: 211 | U11: =COUNTIF(L7:L19,T11) -> 0 | V11: =U11/(W4-U10) -> 0 | W11: =IF(V11=0,0,(V11*((LOG(V11))/LOG(2)))) -> 0 | Y11: 211 | Z11: =COUNTIF(L20:L31,Y11) -> 0 | AA11: =Z11/(AB4-Z10) -> 0 | AB11: =IF(AA11=0,0,(AA11*((LOG(AA11))/LOG(2)))) -> 0 | AD11: 211 | AE11: =COUNTIF(L32:L44,AD11) -> 0 | AF11: =AE11/(AG4-AE10) -> 0 | AG11: =IF(AF11=0,0,(AF11*((LOG(AF11))/LOG(2)))) -> 0 | AI11: 211 | AJ11: =COUNTIF(L45:L57,AI11) -> 0 | AK11: =AJ11/(AL4-AJ10) -> 0 | AL11: =IF(AK11=0,0,(AK11*((LOG(AK11))/LOG(2)))) -> 0 | AN11: 211 | AO11: =COUNTIF(L58:L69,AN11) -> 0 | AP11: =AO11/(AQ4-AO10) -> 0 | AQ11: =IF(AP11=0,0,(AP11*((LOG(AP11))/LOG(2)))) -> 0 | AS11: 211 | AT11: =COUNTIF(L70:L82,AS11) -> 0 | AU11: =AT11/(AV4-AT10) -> 0 | AV11: =IF(AU11=0,0,(AU11*((LOG(AU11))/LOG(2)))) -> 0
A12: 11 | B12: 621 | C12: 11 | D12: 625 | E12: 12 | F12: 632 | K12: 0 | L12: 111 | N12: 212 | O12: 0 | P12: 0 | Q12: 0 | T12: 212 | U12: =COUNTIF(L7:L19,T12) -> 0 | V12: =U12/(W4-U10) -> 0 | W12: =IF(V12=0,0,(V12*((LOG(V12))/LOG(2)))) -> 0 | Y12: 212 | Z12: =COUNTIF(L20:L31,Y12) -> 0 | AA12: =Z12/(AB4-Z10) -> 0 | AB12: =IF(AA12=0,0,(AA12*((LOG(AA12))/LOG(2)))) -> 0 | AD12: 212 | AE12: =COUNTIF(L32:L44,AD12) -> 0 | AF12: =AE12/(AG4-AE10) -> 0 | AG12: =IF(AF12=0,0,(AF12*((LOG(AF12))/LOG(2)))) -> 0 | AI12: 212 | AJ12: =COUNTIF(L45:L57,AI12) -> 0 | AK12: =AJ12/(AL4-AJ10) -> 0 | AL12: =IF(AK12=0,0,(AK12*((LOG(AK12))/LOG(2)))) -> 0 | AN12: 212 | AO12: =COUNTIF(L58:L69,AN12) -> 0 | AP12: =AO12/(AQ4-AO10) -> 0 | AQ12: =IF(AP12=0,0,(AP12*((LOG(AP12))/LOG(2)))) -> 0 | AS12: 212 | AT12: =COUNTIF(L70:L82,AS12) -> 0 | AU12: =AT12/(AV4-AT10) -> 0 | AV12: =IF(AU12=0,0,(AU12*((LOG(AU12))/LOG(2)))) -> 0
A13: 11 | B13: 733 | C13: 11 | D13: 737 | E13: 21 | F13: 754 | K13: 0 | L13: 112 | N13: 221 | O13: 0 | P13: 0 | Q13: 0 | T13: 221 | U13: =COUNTIF(L7:L19,T13) -> 0 | V13: =U13/(W4-U10) -> 0 | W13: =IF(V13=0,0,(V13*((LOG(V13))/LOG(2)))) -> 0 | Y13: 221 | Z13: =COUNTIF(L20:L31,Y13) -> 0 | AA13: =Z13/(AB4-Z10) -> 0 | AB13: =IF(AA13=0,0,(AA13*((LOG(AA13))/LOG(2)))) -> 0 | AD13: 221 | AE13: =COUNTIF(L32:L44,AD13) -> 0 | AF13: =AE13/(AG4-AE10) -> 0 | AG13: =IF(AF13=0,0,(AF13*((LOG(AF13))/LOG(2)))) -> 0 | AI13: 221 | AJ13: =COUNTIF(L45:L57,AI13) -> 0 | AK13: =AJ13/(AL4-AJ10) -> 0 | AL13: =IF(AK13=0,0,(AK13*((LOG(AK13))/LOG(2)))) -> 0 | AN13: 221 | AO13: =COUNTIF(L58:L69,AN13) -> 0 | AP13: =AO13/(AQ4-AO10) -> 0 | AQ13: =IF(AP13=0,0,(AP13*((LOG(AP13))/LOG(2)))) -> 0 | AS13: 221 | AT13: =COUNTIF(L70:L82,AS13) -> 0 | AU13: =AT13/(AV4-AT10) -> 0 | AV13: =IF(AU13=0,0,(AU13*((LOG(AU13))/LOG(2)))) -> 0
A14: 11 | B14: 849 | C14: 11 | D14: 853 | E14: 21 | F14: 867 | K14: 0 | L14: 112 | N14: 222 | O14: 3 | P14: 0.03947368421 | Q14: -0.1840644084 | T14: 222 | U14: =COUNTIF(L7:L19,T14) -> 1 | V14: =U14/(W4-U10) -> 0.1 | W14: =IF(V14=0,0,(V14*((LOG(V14))/LOG(2)))) -> -0.3321928095 | Y14: 222 | Z14: =COUNTIF(L20:L31,Y14) -> 1 | AA14: =Z14/(AB4-Z10) -> 0.1111111111 | AB14: =IF(AA14=0,0,(AA14*((LOG(AA14))/LOG(2)))) -> -0.352213889 | AD14: 222 | AE14: =COUNTIF(L32:L44,AD14) -> 0 | AF14: =AE14/(AG4-AE10) -> 0 | AG14: =IF(AF14=0,0,(AF14*((LOG(AF14))/LOG(2)))) -> 0 | AI14: 222 | AJ14: =COUNTIF(L45:L57,AI14) -> 1 | AK14: =AJ14/(AL4-AJ10) -> 0.1428571429 | AL14: =IF(AK14=0,0,(AK14*((LOG(AK14))/LOG(2)))) -> -0.4010507032 | AN14: 222 | AO14: =COUNTIF(L58:L69,AN14) -> 0 | AP14: =AO14/(AQ4-AO10) -> 0 | AQ14: =IF(AP14=0,0,(AP14*((LOG(AP14))/LOG(2)))) -> 0 | AS14: 222 | AT14: =COUNTIF(L70:L82,AS14) -> 0 | AU14: =AT14/(AV4-AT10) -> 0 | AV14: =IF(AU14=0,0,(AU14*((LOG(AU14))/LOG(2)))) -> 0
A15: 11 | B15: 966 | C15: 22 | D15: 978 | E15: 23 | F15: 990 | K15: 0 | L15: 122 | P15: =SUM(P7:P14) -> 1 | Q15: =-SUM(Q7:Q14) -> 1.715106534 | V15: =SUM(V7:V14) -> 1 | W15: =-SUM(W7:W14) -> 1.360964047 | AA15: =SUM(AA7:AA14) -> 1 | AB15: =-SUM(AB7:AB14) -> 1.224394445 | AF15: =SUM(AF7:AF14) -> 1 | AG15: =-SUM(AG7:AG14) -> 1.061278124 | AK15: =SUM(AK7:AK14) -> 1 | AL15: =-SUM(AL7:AL14) -> 1.148834854 | AP15: =SUM(AP7:AP14) -> 1 | AQ15: =-SUM(AQ7:AQ14) -> 0.4689955936 | AU15: =SUM(AU7:AU14) -> 1 | AV15: =-SUM(AV7:AV14) -> 0.4689955936
A16: 11 | B16: 1095 | C16: 11 | D16: 1101 | E16: 21 | F16: 1113 | K16: 0 | L16: 112 | P16: U= | Q16: =Q15/(LOG(Q4)/LOG(2)) -> 0.2745080718 | V16: U1= | W16: =W15/(LOG(W4)/LOG(2)) -> 0.3677844124 | AA16: U2= | AB16: =AB15/(LOG(AB4)/LOG(2)) -> 0.3415361932 | AF16: U3= | AG16: =AG15/(LOG(AG4)/LOG(2)) -> 0.2867978417 | AK16: U4= | AL16: =AL15/(LOG(AL4)/LOG(2)) -> 0.3104590108 | AP16: U5= | AQ16: =AQ15/(LOG(AQ4)/LOG(2)) -> 0.1308230124 | AU16: U6= | AV16: =AV15/(LOG(AV4)/LOG(2)) -> 0.1267405036
A17: 11 | B17: 1206 | C17: 11 | D17: 1211 | E17: 21 | F17: 1225 | K17: 0 | L17: 112
A18: 11 | B18: 1319 | C18: 22 | D18: 1334 | E18: 23 | F18: 1342 | K18: 0 | L18: 122
A19: 11 | B19: 1441 | C19: 11 | D19: 1445 | E19: 12 | F19: 1449 | K19: 0 | L19: 111 | N19: Total Target Seq
A20: 11 | B20: 1548 | C20: 11 | D20: 1553 | E20: 12 | F20: 1557 | K20: 0 | L20: 111 | N20: =COUNTIF(L7:L82,G3) -> 22 | P20: 13 | Q20: 12 | R20: 13 | S20: 13 | T20: 12 | U20: 13
A21: 22 | B21: 1666 | C21: 24 | D21: 1674 | E21: 23 | F21: 1683 | K21: 0 | L21: 222 | P21: % of reinforcement given in 6 equal intervals based on number of trials
A22: 11 | B22: 1783 | C22: 11 | D22: 1788 | E22: 21 | F22: 1801 | K22: 0 | L22: 112 | P22: %_1 | Q22: %_2 | R22: %_3 | S22: %_4 | T22: %_5 | U22: %_6
A23: 11 | B23: 1893 | C23: 11 | D23: 1898 | E23: 12 | F23: 1903 | K23: 0 | L23: 111 | O23: target sequence | P23: =$G$3 -> 122 | Q23: 122 | R23: 122 | S23: 122 | T23: 122 | U23: 122
A24: 11 | B24: 2003 | C24: 11 | D24: 2007 | E24: 21 | F24: 2021 | K24: 0 | L24: 112 | O24: total reinforcement | P24: =U10 -> 3 | Q24: =Z10 -> 3 | R24: =AE10 -> 5 | S24: =AJ10 -> 6 | T24: =AO10 -> 2 | U24: =AT10 -> 3
A25: 11 | B25: 2114 | C25: 11 | D25: 2118 | E25: 21 | F25: 2141 | K25: 0 | L25: 112 | O25: % target
A26: 11 | B26: 2235 | C26: 11 | D26: 2240 | E26: 21 | F26: 2251 | K26: 0 | L26: 112 | O26: CCRF
A27: 11 | B27: 2348 | C27: 22 | D27: 2359 | E27: 23 | F27: 2365 | K27: 0 | L27: 122 | O27: % CCRf
A28: 11 | B28: 2488 | C28: 22 | D28: 2500 | E28: 23 | F28: 2510 | K28: 0 | L28: 122 | O28: average response rate | P28: =F19/P20 -> 111.4615385 | Q28: =(F31-F19)/Q20 -> 117.1666667 | R28: =(F44-F31)/R20 -> 121.2307692 | S28: =(F57-F44)/S20 -> 122.6153846 | T28: =(F69-F57)/T20 -> 113.1666667 | U28: =(F82-F69)/U20 -> 113
A29: 11 | B29: 2607 | C29: 22 | D29: 2622 | E29: 23 | F29: 2630 | K29: 0 | L29: 122
A30: 11 | B30: 2727 | C30: 11 | D30: 2731 | E30: 21 | F30: 2744 | K30: 0 | L30: 112
A31: 11 | B31: 2837 | C31: 11 | D31: 2843 | E31: 21 | F31: 2855 | K31: 0 | L31: 112
A32: 11 | B32: 2949 | C32: 22 | D32: 2959 | E32: 23 | F32: 2973 | K32: 0 | L32: 122
A33: 11 | B33: 3078 | C33: 22 | D33: 3089 | E33: 23 | F33: 3098 | K33: 0 | L33: 122
A34: 11 | B34: 3198 | C34: 11 | D34: 3203 | E34: 12 | F34: 3213 | K34: 0 | L34: 111
A35: 11 | B35: 3315 | C35: 22 | D35: 3326 | E35: 23 | F35: 3340 | K35: 0 | L35: 122
A36: 11 | B36: 3442 | C36: 11 | D36: 3454 | E36: 21 | F36: 3466 | K36: 0 | L36: 112
A37: 11 | B37: 3557 | C37: 11 | D37: 3562 | E37: 21 | F37: 3573 | K37: 0 | L37: 112
A38: 11 | B38: 3666 | C38: 22 | D38: 3677 | E38: 23 | F38: 3683 | K38: 0 | L38: 122
A39: 11 | B39: 3782 | C39: 11 | D39: 3799 | E39: 21 | F39: 3823 | K39: 0 | L39: 112
A40: 11 | B40: 3916 | C40: 11 | D40: 3922 | E40: 21 | F40: 3940 | K40: 0 | L40: 112
A41: 11 | B41: 4035 | C41: 11 | D41: 4047 | E41: 21 | F41: 4063 | K41: 0 | L41: 112
A42: 11 | B42: 4155 | C42: 22 | D42: 4168 | E42: 23 | F42: 4177 | K42: 0 | L42: 122
A43: 11 | B43: 4274 | C43: 22 | D43: 4287 | E43: 14 | F43: 4316 | K43: 0 | L43: 121
A44: 11 | B44: 4416 | C44: 11 | D44: 4420 | E44: 21 | F44: 4431 | K44: 0 | L44: 112
A45: 11 | B45: 4524 | C45: 22 | D45: 4537 | E45: 23 | F45: 4547 | K45: 0 | L45: 122
A46: 11 | B46: 4652 | C46: 22 | D46: 4672 | E46: 23 | F46: 4706 | K46: 0 | L46: 122
A47: 11 | B47: 4803 | C47: 11 | D47: 4808 | E47: 21 | F47: 4819 | K47: 0 | L47: 112
A48: 11 | B48: 4917 | C48: 22 | D48: 4928 | E48: 14 | F48: 4951 | K48: 0 | L48: 121
A49: 22 | B49: 5066 | C49: 24 | D49: 5073 | E49: 23 | F49: 5083 | K49: 0 | L49: 222
A50: 11 | B50: 5180 | C50: 22 | D50: 5195 | E50: 23 | F50: 5204 | K50: 0 | L50: 122
A51: 11 | B51: 5305 | C51: 11 | D51: 5310 | E51: 21 | F51: 5321 | K51: 0 | L51: 112
A52: 11 | B52: 5413 | C52: 11 | D52: 5417 | E52: 21 | F52: 5428 | K52: 0 | L52: 112
A53: 11 | B53: 5519 | C53: 22 | D53: 5545 | E53: 23 | F53: 5553 | K53: 0 | L53: 122
A54: 11 | B54: 5650 | C54: 11 | D54: 5657 | E54: 21 | F54: 5668 | K54: 0 | L54: 112
A55: 11 | B55: 5761 | C55: 22 | D55: 5772 | E55: 23 | F55: 5781 | K55: 0 | L55: 122
A56: 11 | B56: 5883 | C56: 22 | D56: 5896 | E56: 23 | F56: 5909 | K56: 0 | L56: 122
A57: 11 | B57: 6006 | C57: 11 | D57: 6015 | E57: 21 | F57: 6025 | K57: 0 | L57: 112
A58: 11 | B58: 6116 | C58: 22 | D58: 6127 | E58: 23 | F58: 6136 | K58: 0 | L58: 122
A59: 11 | B59: 6236 | C59: 11 | D59: 6241 | E59: 21 | F59: 6251 | K59: 0 | L59: 112
A60: 11 | B60: 6342 | C60: 11 | D60: 6350 | E60: 21 | F60: 6361 | K60: 0 | L60: 112
A61: 11 | B61: 6452 | C61: 22 | D61: 6465 | E61: 23 | F61: 6480 | K61: 0 | L61: 122
A62: 11 | B62: 6579 | C62: 11 | D62: 6585 | E62: 21 | F62: 6602 | K62: 0 | L62: 112
A63: 11 | B63: 6691 | C63: 11 | D63: 6696 | E63: 21 | F63: 6709 | K63: 0 | L63: 112
A64: 11 | B64: 6797 | C64: 11 | D64: 6802 | E64: 21 | F64: 6814 | K64: 0 | L64: 112
A65: 11 | B65: 6905 | C65: 11 | D65: 6911 | E65: 21 | F65: 6922 | K65: 0 | L65: 112
A66: 11 | B66: 7015 | C66: 11 | D66: 7022 | E66: 21 | F66: 7031 | K66: 0 | L66: 112
A67: 11 | B67: 7116 | C67: 11 | D67: 7121 | E67: 12 | F67: 7126 | K67: 0 | L67: 111
A68: 11 | B68: 7226 | C68: 11 | D68: 7230 | E68: 21 | F68: 7268 | K68: 0 | L68: 112
A69: 11 | B69: 7354 | C69: 11 | D69: 7359 | E69: 21 | F69: 7383 | K69: 0 | L69: 112
A70: 11 | B70: 7471 | C70: 11 | D70: 7476 | E70: 21 | F70: 7486 | K70: 0 | L70: 112
A71: 11 | B71: 7576 | C71: 22 | D71: 7588 | E71: 23 | F71: 7601 | K71: 0 | L71: 122
A72: 11 | B72: 7701 | C72: 11 | D72: 7706 | E72: 21 | F72: 7723 | K72: 0 | L72: 112
A73: 11 | B73: 7813 | C73: 11 | D73: 7818 | E73: 21 | F73: 7828 | K73: 0 | L73: 112
A74: 11 | B74: 7919 | C74: 22 | D74: 7929 | E74: 23 | F74: 7943 | K74: 0 | L74: 122
A75: 11 | B75: 8039 | C75: 11 | D75: 8044 | E75: 21 | F75: 8057 | K75: 0 | L75: 112
A76: 11 | B76: 8147 | C76: 22 | D76: 8162 | E76: 23 | F76: 8169 | K76: 0 | L76: 122
A77: 11 | B77: 8268 | C77: 11 | D77: 8272 | E77: 21 | F77: 8283 | K77: 0 | L77: 112
A78: 11 | B78: 8374 | C78: 11 | D78: 8385 | E78: 21 | F78: 8395 | K78: 0 | L78: 112
A79: 11 | B79: 8483 | C79: 11 | D79: 8488 | E79: 21 | F79: 8499 | K79: 0 | L79: 112
A80: 11 | B80: 8588 | C80: 11 | D80: 8593 | E80: 21 | F80: 8603 | K80: 0 | L80: 112
A81: 11 | B81: 8699 | C81: 22 | D81: 8725 | E81: 14 | F81: 8740 | K81: 0 | L81: 121
A82: 11 | B82: 8837 | C82: 11 | D82: 8842 | E82: 21 | F82: 8852 | K82: 1 | L82: 112

Sheet !L807C50.056
A1: Report for:!L807C50.056
A2: Date: | B2: <date>
A3: Hen: | B3: <hen> | F3: Correct Sequence | G3: =Start!J2 -> 122 | P3: Total Sequences in Data | Q3: =4994-COUNTBLANK(L7:L5000) -> 65 | V3: Total Sequences in Block Data | W3: =COUNTA(L7:L17) -> 11 | AA3: Total Sequences in Block Data | AB3: =COUNTA(L18:L28) -> 11 | AF3: Total Sequences in Block Data | AG3: =COUNTA(L29:L38) -> 10 | AK3: Total Sequences in Block Data | AL3: =COUNTA(L39:L49) -> 11 | AP3: Total Sequences in Block Data | AQ3: =COUNTA(L50:L60) -> 11 | AU3: Total Sequences in Block Data | AV3: =COUNTA(L61:L71) -> 11
P4: Total Sequences in Summary | Q4: =SUM(O7:O14) -> 65 | V4: Total Sequences in Block Summary | W4: =SUM(U7:U14) -> 11 | AA4: Total Sequences in Block Summary | AB4: =SUM(Z7:Z14) -> 11 | AF4: Total Sequences in Block Summary | AG4: =SUM(AE7:AE14) -> 10 | AK4: Total Sequences in Block Summary | AL4: =SUM(AJ7:AJ14) -> 11 | AP4: Total Sequences in Block Summary | AQ4: =SUM(AO7:AO14) -> 11 | AU4: Total Sequences in Block Summary | AV4: =SUM(AT7:AT14) -> 11
T5: Block 1 | Y5: Block 2 | AD5: Block 3 | AI5: Block 4 | AN5: Block 5 | AS5: Block 6
A6: Sequence Component 1 | B6: Time 1 | C6: Sequence Component 2 | D6: Time 2 | E6: Sequence Component 3 | F6: Time 3 | G6: Sequence Component 4 | H6: Time 4 | I6: Sequence Component 5 | J6: Time 5 | K6: Correct? 0=No 1=Yes | L6: Sequence | N6: Frequency | P6: Relative Frequency | Q6: Variability | T6: Frequency | V6: Relative Frequency | W6: Variability | Y6: Frequency | AA6: Relative Frequency | AB6: Variability | AD6: Frequency | AF6: Relative Frequency | AG6: Variability | AI6: Frequency | AK6: Relative Frequency | AL6: Variability | AN6: Frequency | AP6: Relative Frequency | AQ6: Variability | AS6: Frequency | AU6: Relative Frequency | AV6: Variability
A7: 11 | B7: 17 | C7: 22 | D7: 30 | E7: 23 | F7: 38 | K7: 0 | L7: 122 | N7: 111 | O7: =COUNTIF($L$7:$L$500,N7) -> 1 | P7: =O7/$Q$4 -> 0.01538461538 | Q7: =IF(P7=0,0,(P7*((LOG(P7))/LOG(2)))) -> -0.09265181251 | T7: =N7 -> 111 | U7: =COUNTIF(L7:L17,T7) -> 0 | V7: =U7/(W4-U10) -> 0 | W7: =IF(V7=0,0,(V7*((LOG(V7))/LOG(2)))) -> 0 | Y7: =N7 -> 111 | Z7: =COUNTIF(L18:L28,Y7) -> 0 | AA7: =Z7/(AB4-Z10) -> 0 | AB7: =IF(AA7=0,0,(AA7*((LOG(AA7))/LOG(2)))) -> 0 | AD7: =N7 -> 111 | AE7: =COUNTIF(L29:L38,AD7) -> 0 | AF7: =AE7/(AG4-AE10) -> 0 | AG7: =IF(AF7=0,0,(AF7*((LOG(AF7))/LOG(2)))) -> 0 | AI7: =N7 -> 111 | AJ7: =COUNTIF(L39:L49,AI7) -> 0 | AK7: =AJ7/(AL4-AJ10) -> 0 | AL7: =IF(AK7=0,0,(AK7*((LOG(AK7))/LOG(2)))) -> 0 | AN7: =N7 -> 111 | AO7: =COUNTIF(L50:L60,AN7) -> 1 | AP7: =AO7/(AQ4-AO10) -> 0.1111111111 | AQ7: =IF(AP7=0,0,(AP7*((LOG(AP7))/LOG(2)))) -> -0.352213889 | AS7: =N7 -> 111 | AT7: =COUNTIF(L61:L71,AS7) -> 0 | AU7: =AT7/(AV4-AT10) -> 0 | AV7: =IF(AU7=0,0,(AU7*((LOG(AU7))/LOG(2)))) -> 0
A8: 11 | B8: 143 | C8: 11 | D8: 149 | E8: 21 | F8: 167 | K8: 0 | L8: 112 | N8: 112 | O8: 40 | P8: 0.6153846154 | Q8: -0.4310398265 | T8: 112 | U8: =COUNTIF(L7:L17,T8) -> 6 | V8: =U8/(W4-U10) -> 0.8571428571 | W8: =IF(V8=0,0,(V8*((LOG(V8))/LOG(2)))) -> -0.1906220754 | Y8: 112 | Z8: =COUNTIF(L18:L28,Y8) -> 8 | AA8: =Z8/(AB4-Z10) -> 0.8888888889 | AB8: =IF(AA8=0,0,(AA8*((LOG(AA8))/LOG(2)))) -> -0.1510444457 | AD8: 112 | AE8: =COUNTIF(L29:L38,AD8) -> 5 | AF8: =AE8/(AG4-AE10) -> 1 | AG8: =IF(AF8=0,0,(AF8*((LOG(AF8))/LOG(2)))) -> 0 | AI8: 112 | AJ8: =COUNTIF(L39:L49,AI8) -> 4 | AK8: =AJ8/(AL4-AJ10) -> 0.8 | AL8: =IF(AK8=0,0,(AK8*((LOG(AK8))/LOG(2)))) -> -0.2575424759 | AN8: 112 | AO8: =COUNTIF(L50:L60,AN8) -> 8 | AP8: =AO8/(AQ4-AO10) -> 0.8888888889 | AQ8: =IF(AP8=0,0,(AP8*((LOG(AP8))/LOG(2)))) -> -0.1510444457 | AS8: 112 | AT8: =COUNTIF(L61:L71,AS8) -> 9 | AU8: =AT8/(AV4-AT10) -> 1 | AV8: =IF(AU8=0,0,(AU8*((LOG(AU8))/LOG(2)))) -> 0
A9: 11 | B9: 259 | C9: 11 | D9: 264 | E9: 21 | F9: 274 | K9: 0 | L9: 112 | N9: 121 | O9: 2 | P9: 0.03076923077 | Q9: -0.1545343942 | T9: 121 | U9: =COUNTIF(L7:L17,T9) -> 1 | V9: =U9/(W4-U10) -> 0.1428571429 | W9: =IF(V9=0,0,(V9*((LOG(V9))/LOG(2)))) -> -0.4010507032 | Y9: 121 | Z9: =COUNTIF(L18:L28,Y9) -> 1 | AA9: =Z9/(AB4-Z10) -> 0.1111111111 | AB9: =IF(AA9=0,0,(AA9*((LOG(AA9))/LOG(2)))) -> -0.352213889 | AD9: 121 | AE9: =COUNTIF(L29:L38,AD9) -> 0 | AF9: =AE9/(AG4-AE10) -> 0 | AG9: =IF(AF9=0,0,(AF9*((LOG(AF9))/LOG(2)))) -> 0 | AI9: 121 | AJ9: =COUNTIF(L39:L49,AI9) -> 0 | AK9: =AJ9/(AL4-AJ10) -> 0 | AL9: =IF(AK9=0,0,(AK9*((LOG(AK9))/LOG(2)))) -> 0 | AN9: 121 | AO9: =COUNTIF(L50:L60,AN9) -> 0 | AP9: =AO9/(AQ4-AO10) -> 0 | AQ9: =IF(AP9=0,0,(AP9*((LOG(AP9))/LOG(2)))) -> 0 | AS9: 121 | AT9: =COUNTIF(L61:L71,AS9) -> 0 | AU9: =AT9/(AV4-AT10) -> 0 | AV9: =IF(AU9=0,0,(AU9*((LOG(AU9))/LOG(2)))) -> 0
A10: 11 | B10: 371 | C10: 22 | D10: 385 | E10: 14 | F10: 437 | K10: 0 | L10: 121 | N10: 122 | O10: 21 | P10: 0.3230769231 | Q10: -0.5266316645 | T10: 122 | U10: =COUNTIF(L7:L17,T10) -> 4 | Y10: 122 | Z10: =COUNTIF(L18:L28,Y10) -> 2 | AD10: 122 | AE10: =COUNTIF(L29:L38,AD10) -> 5 | AI10: 122 | AJ10: =COUNTIF(L39:L49,AI10) -> 6 | AN10: 122 | AO10: =COUNTIF(L50:L60,AN10) -> 2 | AS10: 122 | AT10: =COUNTIF(L61:L71,AS10) -> 2
A11: 11 | B11: 537 | C11: 11 | D11: 543 | E11: 21 | F11: 553 | K11: 0 | L11: 112 | N11: 211 | O11: 0 | P11: 0 | Q11: 0 | T11: 211 | U11: =COUNTIF(L7:L17,T11) -> 0 | V11: =U11/(W4-U10) -> 0 | W11: =IF(V11=0,0,(V11*((LOG(V11))/LOG(2)))) -> 0 | Y11: 211 | Z11: =COUNTIF(L18:L28,Y11) -> 0 | AA11: =Z11/(AB4-Z10) -> 0 | AB11: =IF(AA11=0,0,(AA11*((LOG(AA11))/LOG(2)))) -> 0 | AD11: 211 | AE11: =COUNTIF(L29:L38,AD11) -> 0 | AF11: =AE11/(AG4-AE10) -> 0 | AG11: =IF(AF11=0,0,(AF11*((LOG(AF11))/LOG(2)))) -> 0 | AI11: 211 | AJ11: =COUNTIF(L39:L49,AI11) -> 0 | AK11: =AJ11/(AL4-AJ10) -> 0 | AL11: =IF(AK11=0,0,(AK11*((LOG(AK11))/LOG(2)))) -> 0 | AN11: 211 | AO11: =COUNTIF(L50:L60,AN11) -> 0 | AP11: =AO11/(AQ4-AO10) -> 0 | AQ11: =IF(AP11=0,0,(AP11*((LOG(AP11))/LOG(2)))) -> 0 | AS11: 211 | AT11: =COUNTIF(L61:L71,AS11) -> 0 | AU11: =AT11/(AV4-AT10) -> 0 | AV11: =IF(AU11=0,0,(AU11*((LOG(AU11))/LOG(2)))) -> 0
A12: 11 | B12: 642 | C12: 11 | D12: 648 | E12: 21 | F12: 658 | K12: 0 | L12: 112 | N12: 212 | O12: 0 | P12: 0 | Q12: 0 | T12: 212 | U12: =COUNTIF(L7:L17,T12) -> 0 | V12: =U12/(W4-U10) -> 0 | W12: =IF(V12=0,0,(V12*((LOG(V12))/LOG(2)))) -> 0 | Y12: 212 | Z12: =COUNTIF(L18:L28,Y12) -> 0 | AA12: =Z12/(AB4-Z10) -> 0 | AB12: =IF(AA12=0,0,(AA12*((LOG(AA12))/LOG(2)))) -> 0 | AD12: 212 | AE12: =COUNTIF(L29:L38,AD12) -> 0 | AF12: =AE12/(AG4-AE10) -> 0 | AG12: =IF(AF12=0,0,(AF12*((LOG(AF12))/LOG(2)))) -> 0 | AI12: 212 | AJ12: =COUNTIF(L39:L49,AI12) -> 0 | AK12: =AJ12/(AL4-AJ10) -> 0 | AL12: =IF(AK12=0,0,(AK12*((LOG(AK12))/LOG(2)))) -> 0 | AN12: 212 | AO12: =COUNTIF(L50:L60,AN12) -> 0 | AP12: =AO12/(AQ4-AO10) -> 0 | AQ12: =IF(AP12=0,0,(AP12*((LOG(AP12))/LOG(2)))) -> 0 | AS12: 212 | AT12: =COUNTIF(L61:L71,AS12) -> 0 | AU12: =AT12/(AV4-AT10) -> 0 | AV12: =IF(AU12=0,0,(AU12*((LOG(AU12))/LOG(2)))) -> 0
A13: 11 | B13: 748 | C13: 11 | D13: 753 | E13: 21 | F13: 770 | K13: 0 | L13: 112 | N13: 221 | O13: 0 | P13: 0 | Q13: 0 | T13: 221 | U13: =COUNTIF(L7:L17,T13) -> 0 | V13: =U13/(W4-U10) -> 0 | W13: =IF(V13=0,0,(V13*((LOG(V13))/LOG(2)))) -> 0 | Y13: 221 | Z13: =COUNTIF(L18:L28,Y13) -> 0 | AA13: =Z13/(AB4-Z10) -> 0 | AB13: =IF(AA13=0,0,(AA13*((LOG(AA13))/LOG(2)))) -> 0 | AD13: 221 | AE13: =COUNTIF(L29:L38,AD13) -> 0 | AF13: =AE13/(AG4-AE10) -> 0 | AG13: =IF(AF13=0,0,(AF13*((LOG(AF13))/LOG(2)))) -> 0 | AI13: 221 | AJ13: =COUNTIF(L39:L49,AI13) -> 0 | AK13: =AJ13/(AL4-AJ10) -> 0 | AL13: =IF(AK13=0,0,(AK13*((LOG(AK13))/LOG(2)))) -> 0 | AN13: 221 | AO13: =COUNTIF(L50:L60,AN13) -> 0 | AP13: =AO13/(AQ4-AO10) -> 0 | AQ13: =IF(AP13=0,0,(AP13*((LOG(AP13))/LOG(2)))) -> 0 | AS13: 221 | AT13: =COUNTIF(L61:L71,AS13) -> 0 | AU13: =AT13/(AV4-AT10) -> 0 | AV13: =IF(AU13=0,0,(AU13*((LOG(AU13))/LOG(2)))) -> 0
A14: 11 | B14: 859 | C14: 22 | D14: 869 | E14: 23 | F14: 876 | K14: 0 | L14: 122 | N14: 222 | O14: 1 | P14: 0.01538461538 | Q14: -0.09265181251 | T14: 222 | U14: =COUNTIF(L7:L17,T14) -> 0 | V14: =U14/(W4-U10) -> 0 | W14: =IF(V14=0,0,(V14*((LOG(V14))/LOG(2)))) -> 0 | Y14: 222 | Z14: =COUNTIF(L18:L28,Y14) -> 0 | AA14: =Z14/(AB4-Z10) -> 0 | AB14: =IF(AA14=0,0,(AA14*((LOG(AA14))/LOG(2)))) -> 0 | AD14: 222 | AE14: =COUNTIF(L29:L38,AD14) -> 0 | AF14: =AE14/(AG4-AE10) -> 0 | AG14: =IF(AF14=0,0,(AF14*((LOG(AF14))/LOG(2)))) -> 0 | AI14: 222 | AJ14: =COUNTIF(L39:L49,AI14) -> 1 | AK14: =AJ14/(AL4-AJ10) -> 0.2 | AL14: =IF(AK14=0,0,(AK14*((LOG(AK14))/LOG(2)))) -> -0.464385619 | AN14: 222 | AO14: =COUNTIF(L50:L60,AN14) -> 0 | AP14: =AO14/(AQ4-AO10) -> 0 | AQ14: =IF(AP14=0,0,(AP14*((LOG(AP14))/LOG(2)))) -> 0 | AS14: 222 | AT14: =COUNTIF(L61:L71,AS14) -> 0 | AU14: =AT14/(AV4-AT10) -> 0 | AV14: =IF(AU14=0,0,(AU14*((LOG(AU14))/LOG(2)))) -> 0
A15: 11 | B15: 977 | C15: 22 | D15: 992 | E15: 23 | F15: 1004 | K15: 0 | L15: 122 | P15: =SUM(P7:P14) -> 1 | Q15: =-SUM(Q7:Q14) -> 1.29750951 | V15: =SUM(V7:V14) -> 1 | W15: =-SUM(W7:W14) -> 0.5916727786 | AA15: =SUM(AA7:AA14) -> 1 | AB15: =-SUM(AB7:AB14) -> 0.5032583348 | AF15: =SUM(AF7:AF14) -> 1 | AG15: =-SUM(AG7:AG14) -> 0 | AK15: =SUM(AK7:AK14) -> 1 | AL15: =-SUM(AL7:AL14) -> 0.7219280949 | AP15: =SUM(AP7:AP14) -> 1 | AQ15: =-SUM(AQ7:AQ14) -> 0.5032583348 | AU15: =SUM(AU7:AU14) -> 1 | AV15: =-SUM(AV7:AV14) -> 0
A16: 11 | B16: 1105 | C16: 11 | D16: 1116 | E16: 21 | F16: 1129 | K16: 0 | L16: 112 | P16: U= | Q16: =Q15/(LOG(Q4)/LOG(2)) -> 0.2154484001 | V16: U1= | W16: =W15/(LOG(W4)/LOG(2)) -> 0.171031789 | AA16: U2= | AB16: =AB15/(LOG(AB4)/LOG(2)) -> 0.1454742831 | AF16: U3= | AG16: =AG15/(LOG(AG4)/LOG(2)) -> 0 | AK16: U4= | AL16: =AL15/(LOG(AL4)/LOG(2)) -> 0.2086840194 | AP16: U5= | AQ16: =AQ15/(LOG(AQ4)/LOG(2)) -> 0.1454742831 | AU16: U6= | AV16: =AV15/(LOG(AV4)/LOG(2)) -> 0
A17: 11 | B17: 1229 | C17: 22 | D17: 1262 | E17: 23 | F17: 1270 | K17: 0 | L17: 122
A18: 11 | B18: 1382 | C18: 22 | D18: 1392 | E18: 23 | F18: 1404 | K18: 0 | L18: 122
A19: 11 | B19: 1501 | C19: 11 | D19: 1506 | E19: 21 | F19: 1518 | K19: 0 | L19: 112 | N19: Total Target Seq
A20: 11 | B20: 1605 | C20: 11 | D20: 1618 | E20: 21 | F20: 1628 | K20: 0 | L20: 112 | N20: =COUNTIF(L7:L71,G3) -> 21 | P20: 11 | Q20: 11 | R20: 10 | S20: 11 | T20: 11 | U20: 11
A21: 11 | B21: 1718 | C21: 11 | D21: 1724 | E21: 21 | F21: 1743 | K21: 0 | L21: 112 | P21: % of reinforcement given in 6 equal intervals based on number of trials
A22: 11 | B22: 1840 | C22: 22 | D22: 1850 | E22: 23 | F22: 1866 | K22: 0 | L22: 122 | P22: %_1 | Q22: %_2 | R22: %_3 | S22: %_4 | T22: %_5 | U22: %_6
A23: 11 | B23: 1967 | C23: 22 | D23: 1977 | E23: 14 | F23: 1996 | K23: 0 | L23: 121 | O23: target sequence | P23: =$G$3 -> 122 | Q23: 122 | R23: 122 | S23: 122 | T23: 122 | U23: 122
A24: 11 | B24: 2094 | C24: 11 | D24: 2103 | E24: 21 | F24: 2112 | K24: 0 | L24: 112 | O24: total reinforcement | P24: =U10 -> 4 | Q24: =Z10 -> 2 | R24: =AE10 -> 5 | S24: =AJ10 -> 6 | T24: =AO10 -> 2 | U24: =AT10 -> 2
A25: 11 | B25: 2199 | C25: 11 | D25: 2204 | E25: 21 | F25: 2214 | K25: 0 | L25: 112 | O25: % target
A26: 11 | B26: 2302 | C26: 11 | D26: 2307 | E26: 21 | F26: 2318 | K26: 0 | L26: 112 | O26: CCRF
A27: 11 | B27: 2406 | C27: 11 | D27: 2411 | E27: 21 | F27: 2421 | K27: 0 | L27: 112 | O27: % CCRf
A28: 11 | B28: 2507 | C28: 11 | D28: 2515 | E28: 21 | F28: 2525 | K28: 0 | L28: 112 | O28: average response rate | P28: =F17/P20 -> 115.4545455 | Q28: =(F28-F17)/Q20 -> 114.0909091 | R28: =(F38-F28)/R20 -> 118.7 | S28: =(F49-F38)/S20 -> 123.7272727 | T28: =(F60-F49)/T20 -> 115.4545455 | U28: =(F71-F60)/U20 -> 109.2727273
A29: 11 | B29: 2614 | C29: 11 | D29: 2621 | E29: 21 | F29: 2631 | K29: 0 | L29: 112
A30: 11 | B30: 2718 | C30: 11 | D30: 2733 | E30: 21 | F30: 2760 | K30: 0 | L30: 112
A31: 11 | B31: 2851 | C31: 11 | D31: 2855 | E31: 21 | F31: 2865 | K31: 0 | L31: 112
A32: 11 | B32: 2952 | C32: 11 | D32: 2956 | E32: 21 | F32: 2991 | K32: 0 | L32: 112
A33: 11 | B33: 3081 | C33: 22 | D33: 3100 | E33: 23 | F33: 3112 | K33: 0 | L33: 122
A34: 11 | B34: 3209 | C34: 22 | D34: 3224 | E34: 23 | F34: 3231 | K34: 0 | L34: 122
A35: 11 | B35: 3331 | C35: 22 | D35: 3342 | E35: 23 | F35: 3362 | K35: 0 | L35: 122
A36: 11 | B36: 3463 | C36: 22 | D36: 3473 | E36: 23 | F36: 3479 | K36: 0 | L36: 122
A37: 11 | B37: 3576 | C37: 11 | D37: 3586 | E37: 21 | F37: 3596 | K37: 0 | L37: 112
A38: 11 | B38: 3691 | C38: 22 | D38: 3701 | E38: 23 | F38: 3712 | K38: 0 | L38: 122
A39: 11 | B39: 3809 | C39: 11 | D39: 3814 | E39: 21 | F39: 3839 | K39: 0 | L39: 112
A40: 11 | B40: 3935 | C40: 22 | D40: 3945 | E40: 23 | F40: 3959 | K40: 0 | L40: 122
A41: 11 | B41: 4056 | C41: 11 | D41: 4069 | E41: 21 | F41: 4079 | K41: 0 | L41: 112
A42: 11 | B42: 4169 | C42: 22 | D42: 4188 | E42: 23 | F42: 4199 | K42: 0 | L42: 122
A43: 11 | B43: 4297 | C43: 22 | D43: 4308 | E43: 23 | F43: 4325 | K43: 0 | L43: 122
A44: 11 | B44: 4425 | C44: 11 | D44: 4430 | E44: 21 | F44: 4440 | K44: 0 | L44: 112
A45: 22 | B45: 4544 | C45: 24 | D45: 4552 | E45: 23 | F45: 4560 | K45: 0 | L45: 222
A46: 11 | B46: 4657 | C46: 22 | D46: 4670 | E46: 23 | F46: 4689 | K46: 0 | L46: 122
A47: 11 | B47: 4785 | C47: 11 | D47: 4794 | E47: 21 | F47: 4819 | K47: 0 | L47: 112
A48: 11 | B48: 4910 | C48: 22 | D48: 4934 | E48: 23 | F48: 4946 | K48: 0 | L48: 122
A49: 11 | B49: 5043 | C49: 22 | D49: 5060 | E49: 23 | F49: 5073 | K49: 0 | L49: 122
A50: 11 | B50: 5170 | C50: 11 | D50: 5175 | E50: 21 | F50: 5185 | K50: 0 | L50: 112
A51: 11 | B51: 5274 | C51: 11 | D51: 5280 | E51: 12 | F51: 5285 | K51: 0 | L51: 111
A52: 11 | B52: 5384 | C52: 11 | D52: 5393 | E52: 21 | F52: 5431 | K52: 0 | L52: 112
A53: 11 | B53: 5524 | C53: 11 | D53: 5532 | E53: 21 | F53: 5552 | K53: 0 | L53: 112
A54: 11 | B54: 5638 | C54: 11 | D54: 5643 | E54: 21 | F54: 5653 | K54: 0 | L54: 112
A55: 11 | B55: 5742 | C55: 11 | D55: 5747 | E55: 21 | F55: 5771 | K55: 0 | L55: 112
A56: 11 | B56: 5860 | C56: 22 | D56: 5894 | E56: 23 | F56: 5902 | K56: 0 | L56: 122
A57: 11 | B57: 5999 | C57: 11 | D57: 6004 | E57: 21 | F57: 6014 | K57: 0 | L57: 112
A58: 11 | B58: 6102 | C58: 11 | D58: 6106 | E58: 21 | F58: 6123 | K58: 0 | L58: 112
A59: 11 | B59: 6212 | C59: 11 | D59: 6217 | E59: 21 | F59: 6227 | K59: 0 | L59: 112
A60: 11 | B60: 6318 | C60: 22 | D60: 6328 | E60: 23 | F60: 6343 | K60: 0 | L60: 122
A61: 11 | B61: 6441 | C61: 11 | D61: 6446 | E61: 21 | F61: 6455 | K61: 0 | L61: 112
A62: 11 | B62: 6542 | C62: 11 | D62: 6547 | E62: 21 | F62: 6571 | K62: 0 | L62: 112
A63: 11 | B63: 6660 | C63: 11 | D63: 6666 | E63: 21 | F63: 6689 | K63: 0 | L63: 112
A64: 11 | B64: 6778 | C64: 11 | D64: 6784 | E64: 21 | F64: 6793 | K64: 0 | L64: 112
A65: 11 | B65: 6881 | C65: 11 | D65: 6886 | E65: 21 | F65: 6897 | K65: 0 | L65: 112
A66: 11 | B66: 6984 | C66: 11 | D66: 6988 | E66: 21 | F66: 6999 | K66: 0 | L66: 112
A67: 11 | B67: 7085 | C67: 22 | D67: 7095 | E67: 23 | F67: 7103 | K67: 0 | L67: 122
A68: 11 | B68: 7202 | C68: 22 | D68: 7213 | E68: 23 | F68: 7227 | K68: 0 | L68: 122
A69: 11 | B69: 7323 | C69: 11 | D69: 7328 | E69: 21 | F69: 7341 | K69: 0 | L69: 112
A70: 11 | B70: 7427 | C70: 11 | D70: 7433 | E70: 21 | F70: 7442 | K70: 0 | L70: 112
A71: 11 | B71: 7531 | C71: 11 | D71: 7535 | E71: 21 | F71: 7545 | K71: 1 | L71: 112

Sheet !L808C40.056
A1: Report for:!L808C40.056
A2: Date: | B2: <date>
A3: Hen: | B3: <hen> | F3: Correct Sequence | G3: =Start!J2 -> 122 | P3: Total Sequences in Data | Q3: =4994-COUNTBLANK(L7:L5000) -> 51 | V3: Total Sequences in Block Data | W3: =COUNTA(L7:L15) -> 9 | AA3: Total Sequences in Block Data | AB3: =COUNTA(L16:L23) -> 8 | AF3: Total Sequences in Block Data | AG3: =COUNTA(L24:L32) -> 9 | AK3: Total Sequences in Block Data | AL3: =COUNTA(L33:L40) -> 8 | AP3: Total Sequences in Block Data | AQ3: =COUNTA(L41:L49) -> 9 | AU3: Total Sequences in Block Data | AV3: =COUNTA(L50:L57) -> 8
P4: Total Sequences in Summary | Q4: =SUM(O7:O14) -> 51 | V4: Total Sequences in Block Summary | W4: =SUM(U7:U14) -> 9 | AA4: Total Sequences in Block Summary | AB4: =SUM(Z7:Z14) -> 8 | AF4: Total Sequences in Block Summary | AG4: =SUM(AE7:AE14) -> 9 | AK4: Total Sequences in Block Summary | AL4: =SUM(AJ7:AJ14) -> 8 | AP4: Total Sequences in Block Summary | AQ4: =SUM(AO7:AO14) -> 9 | AU4: Total Sequences in Block Summary | AV4: =SUM(AT7:AT14) -> 8
T5: Block 1 | Y5: Block 2 | AD5: Block 3 | AI5: Block 4 | AN5: Block 5 | AS5: Block 6
A6: Sequence Component 1 | B6: Time 1 | C6: Sequence Component 2 | D6: Time 2 | E6: Sequence Component 3 | F6: Time 3 | G6: Sequence Component 4 | H6: Time 4 | I6: Sequence Component 5 | J6: Time 5 | K6: Correct? 0=No 1=Yes | L6: Sequence | N6: Frequency | P6: Relative Frequency | Q6: Variability | T6: Frequency | V6: Relative Frequency | W6: Variability | Y6: Frequency | AA6: Relative Frequency | AB6: Variability | AD6: Frequency | AF6: Relative Frequency | AG6: Variability | AI6: Frequency | AK6: Relative Frequency | AL6: Variability | AN6: Frequency | AP6: Relative Frequency | AQ6: Variability | AS6: Frequency | AU6: Relative Frequency | AV6: Variability
A7: 11 | B7: 11 | C7: 11 | D7: 17 | E7: 12 | F7: 27 | K7: 0 | L7: 111 | N7: 111 | O7: =COUNTIF($L$7:$L$500,N7) -> 7 | P7: =O7/$Q$4 -> 0.137254902 | Q7: =IF(P7=0,0,(P7*((LOG(P7))/LOG(2)))) -> -0.3932449596 | T7: =N7 -> 111 | U7: =COUNTIF(L7:L15,T7) -> 3 | V7: =U7/(W4-U10) -> 0.3333333333 | W7: =IF(V7=0,0,(V7*((LOG(V7))/LOG(2)))) -> -0.5283208336 | Y7: =N7 -> 111 | Z7: =COUNTIF(L16:L23,Y7) -> 1 | AA7: =Z7/(AB4-Z10) -> 0.125 | AB7: =IF(AA7=0,0,(AA7*((LOG(AA7))/LOG(2)))) -> -0.375 | AD7: =N7 -> 111 | AE7: =COUNTIF(L24:L32,AD7) -> 3 | AF7: =AE7/(AG4-AE10) -> 0.4285714286 | AG7: =IF(AF7=0,0,(AF7*((LOG(AF7))/LOG(2)))) -> -0.5238824663 | AI7: =N7 -> 111 | AJ7: =COUNTIF(L33:L40,AI7) -> 0 | AK7: =AJ7/(AL4-AJ10) -> 0 | AL7: =IF(AK7=0,0,(AK7*((LOG(AK7))/LOG(2)))) -> 0 | AN7: =N7 -> 111 | AO7: =COUNTIF(L41:L49,AN7) -> 0 | AP7: =AO7/(AQ4-AO10) -> 0 | AQ7: =IF(AP7=0,0,(AP7*((LOG(AP7))/LOG(2)))) -> 0 | AS7: =N7 -> 111 | AT7: =COUNTIF(L50:L57,AS7) -> 0 | AU7: =AT7/(AV4-AT10) -> 0 | AV7: =IF(AU7=0,0,(AU7*((LOG(AU7))/LOG(2)))) -> 0
A8: 11 | B8: 130 | C8: 11 | D8: 135 | E8: 12 | F8: 169 | K8: 0 | L8: 111 | N8: 112 | O8: 40 | P8: 0.7843137255 | Q8: -0.2748998016 | T8: 112 | U8: =COUNTIF(L7:L15,T8) -> 6 | V8: =U8/(W4-U10) -> 0.6666666667 | W8: =IF(V8=0,0,(V8*((LOG(V8))/LOG(2)))) -> -0.3899750005 | Y8: 112 | Z8: =COUNTIF(L16:L23,Y8) -> 6 | AA8: =Z8/(AB4-Z10) -> 0.75 | AB8: =IF(AA8=0,0,(AA8*((LOG(AA8))/LOG(2)))) -> -0.3112781245 | AD8: 112 | AE8: =COUNTIF(L24:L32,AD8) -> 4 | AF8: =AE8/(AG4-AE10) -> 0.5714285714 | AG8: =IF(AF8=0,0,(AF8*((LOG(AF8))/LOG(2)))) -> -0.4613456697 | AI8: 112 | AJ8: =COUNTIF(L33:L40,AI8) -> 8 | AK8: =AJ8/(AL4-AJ10) -> 1 | AL8: =IF(AK8=0,0,(AK8*((LOG(AK8))/LOG(2)))) -> 0 | AN8: 112 | AO8: =COUNTIF(L41:L49,AN8) -> 9 | AP8: =AO8/(AQ4-AO10) -> 1 | AQ8: =IF(AP8=0,0,(AP8*((LOG(AP8))/LOG(2)))) -> 0 | AS8: 112 | AT8: =COUNTIF(L50:L57,AS8) -> 7 | AU8: =AT8/(AV4-AT10) -> 1 | AV8: =IF(AU8=0,0,(AU8*((LOG(AU8))/LOG(2)))) -> 0
A9: 11 | B9: 270 | C9: 11 | D9: 276 | E9: 12 | F9: 282 | K9: 0 | L9: 111 | N9: 121 | O9: 1 | P9: 0.01960784314 | Q9: -0.1112240263 | T9: 121 | U9: =COUNTIF(L7:L15,T9) -> 0 | V9: =U9/(W4-U10) -> 0 | W9: =IF(V9=0,0,(V9*((LOG(V9))/LOG(2)))) -> 0 | Y9: 121 | Z9: =COUNTIF(L16:L23,Y9) -> 1 | AA9: =Z9/(AB4-Z10) -> 0.125 | AB9: =IF(AA9=0,0,(AA9*((LOG(AA9))/LOG(2)))) -> -0.375 | AD9: 121 | AE9: =COUNTIF(L24:L32,AD9) -> 0 | AF9: =AE9/(AG4-AE10) -> 0 | AG9: =IF(AF9=0,0,(AF9*((LOG(AF9))/LOG(2)))) -> 0 | AI9: 121 | AJ9: =COUNTIF(L33:L40,AI9) -> 0 | AK9: =AJ9/(AL4-AJ10) -> 0 | AL9: =IF(AK9=0,0,(AK9*((LOG(AK9))/LOG(2)))) -> 0 | AN9: 121 | AO9: =COUNTIF(L41:L49,AN9) -> 0 | AP9: =AO9/(AQ4-AO10) -> 0 | AQ9: =IF(AP9=0,0,(AP9*((LOG(AP9))/LOG(2)))) -> 0 | AS9: 121 | AT9: =COUNTIF(L50:L57,AS9) -> 0 | AU9: =AT9/(AV4-AT10) -> 0 | AV9: =IF(AU9=0,0,(AU9*((LOG(AU9))/LOG(2)))) -> 0
A10: 11 | B10: 399 | C10: 11 | D10: 404 | E10: 21 | F10: 421 | K10: 0 | L10: 112 | N10: 122 | O10: 3 | P10: 0.05882352941 | Q10: -0.2404389907 | T10: 122 | U10: =COUNTIF(L7:L15,T10) -> 0 | Y10: 122 | Z10: =COUNTIF(L16:L23,Y10) -> 0 | AD10: 122 | AE10: =COUNTIF(L24:L32,AD10) -> 2 | AI10: 122 | AJ10: =COUNTIF(L33:L40,AI10) -> 0 | AN10: 122 | AO10: =COUNTIF(L41:L49,AN10) -> 0 | AS10: 122 | AT10: =COUNTIF(L50:L57,AS10) -> 1
A11: 11 | B11: 519 | C11: 11 | D11: 524 | E11: 21 | F11: 534 | K11: 0 | L11: 112 | N11: 211 | O11: 0 | P11: 0 | Q11: 0 | T11: 211 | U11: =COUNTIF(L7:L15,T11) -> 0 | V11: =U11/(W4-U10) -> 0 | W11: =IF(V11=0,0,(V11*((LOG(V11))/LOG(2)))) -> 0 | Y11: 211 | Z11: =COUNTIF(L16:L23,Y11) -> 0 | AA11: =Z11/(AB4-Z10) -> 0 | AB11: =IF(AA11=0,0,(AA11*((LOG(AA11))/LOG(2)))) -> 0 | AD11: 211 | AE11: =COUNTIF(L24:L32,AD11) -> 0 | AF11: =AE11/(AG4-AE10) -> 0 | AG11: =IF(AF11=0,0,(AF11*((LOG(AF11))/LOG(2)))) -> 0 | AI11: 211 | AJ11: =COUNTIF(L33:L40,AI11) -> 0 | AK11: =AJ11/(AL4-AJ10) -> 0 | AL11: =IF(AK11=0,0,(AK11*((LOG(AK11))/LOG(2)))) -> 0 | AN11: 211 | AO11: =COUNTIF(L41:L49,AN11) -> 0 | AP11: =AO11/(AQ4-AO10) -> 0 | AQ11: =IF(AP11=0,0,(AP11*((LOG(AP11))/LOG(2)))) -> 0 | AS11: 211 | AT11: =COUNTIF(L50:L57,AS11) -> 0 | AU11: =AT11/(AV4-AT10) -> 0 | AV11: =IF(AU11=0,0,(AU11*((LOG(AU11))/LOG(2)))) -> 0
A12: 11 | B12: 628 | C12: 11 | D12: 633 | E12: 21 | F12: 644 | K12: 0 | L12: 112 | N12: 212 | O12: 0 | P12: 0 | Q12: 0 | T12: 212 | U12: =COUNTIF(L7:L15,T12) -> 0 | V12: =U12/(W4-U10) -> 0 | W12: =IF(V12=0,0,(V12*((LOG(V12))/LOG(2)))) -> 0 | Y12: 212 | Z12: =COUNTIF(L16:L23,Y12) -> 0 | AA12: =Z12/(AB4-Z10) -> 0 | AB12: =IF(AA12=0,0,(AA12*((LOG(AA12))/LOG(2)))) -> 0 | AD12: 212 | AE12: =COUNTIF(L24:L32,AD12) -> 0 | AF12: =AE12/(AG4-AE10) -> 0 | AG12: =IF(AF12=0,0,(AF12*((LOG(AF12))/LOG(2)))) -> 0 | AI12: 212 | AJ12: =COUNTIF(L33:L40,AI12) -> 0 | AK12: =AJ12/(AL4-AJ10) -> 0 | AL12: =IF(AK12=0,0,(AK12*((LOG(AK12))/LOG(2)))) -> 0 | AN12: 212 | AO12: =COUNTIF(L41:L49,AN12) -> 0 | AP12: =AO12/(AQ4-AO10) -> 0 | AQ12: =IF(AP12=0,0,(AP12*((LOG(AP12))/LOG(2)))) -> 0 | AS12: 212 | AT12: =COUNTIF(L50:L57,AS12) -> 0 | AU12: =AT12/(AV4-AT10) -> 0 | AV12: =IF(AU12=0,0,(AU12*((LOG(AU12))/LOG(2)))) -> 0
A13: 11 | B13: 735 | C13: 11 | D13: 741 | E13: 21 | F13: 751 | K13: 0 | L13: 112 | N13: 221 | O13: 0 | P13: 0 | Q13: 0 | T13: 221 | U13: =COUNTIF(L7:L15,T13) -> 0 | V13: =U13/(W4-U10) -> 0 | W13: =IF(V13=0,0,(V13*((LOG(V13))/LOG(2)))) -> 0 | Y13: 221 | Z13: =COUNTIF(L16:L23,Y13) -> 0 | AA13: =Z13/(AB4-Z10) -> 0 | AB13: =IF(AA13=0,0,(AA13*((LOG(AA13))/LOG(2)))) -> 0 | AD13: 221 | AE13: =COUNTIF(L24:L32,AD13) -> 0 | AF13: =AE13/(AG4-AE10) -> 0 | AG13: =IF(AF13=0,0,(AF13*((LOG(AF13))/LOG(2)))) -> 0 | AI13: 221 | AJ13: =COUNTIF(L33:L40,AI13) -> 0 | AK13: =AJ13/(AL4-AJ10) -> 0 | AL13: =IF(AK13=0,0,(AK13*((LOG(AK13))/LOG(2)))) -> 0 | AN13: 221 | AO13: =COUNTIF(L41:L49,AN13) -> 0 | AP13: =AO13/(AQ4-AO10) -> 0 | AQ13: =IF(AP13=0,0,(AP13*((LOG(AP13))/LOG(2)))) -> 0 | AS13: 221 | AT13: =COUNTIF(L50:L57,AS13) -> 0 | AU13: =AT13/(AV4-AT10) -> 0 | AV13: =IF(AU13=0,0,(AU13*((LOG(AU13))/LOG(2)))) -> 0
A14: 11 | B14: 842 | C14: 11 | D14: 847 | E14: 21 | F14: 858 | K14: 0 | L14: 112 | N14: 222 | O14: 0 | P14: 0 | Q14: 0 | T14: 222 | U14: =COUNTIF(L7:L15,T14) -> 0 | V14: =U14/(W4-U10) -> 0 | W14: =IF(V14=0,0,(V14*((LOG(V14))/LOG(2)))) -> 0 | Y14: 222 | Z14: =COUNTIF(L16:L23,Y14) -> 0 | AA14: =Z14/(AB4-Z10) -> 0 | AB14: =IF(AA14=0,0,(AA14*((LOG(AA14))/LOG(2)))) -> 0 | AD14: 222 | AE14: =COUNTIF(L24:L32,AD14) -> 0 | AF14: =AE14/(AG4-AE10) -> 0 | AG14: =IF(AF14=0,0,(AF14*((LOG(AF14))/LOG(2)))) -> 0 | AI14: 222 | AJ14: =COUNTIF(L33:L40,AI14) -> 0 | AK14: =AJ14/(AL4-AJ10) -> 0 | AL14: =IF(AK14=0,0,(AK14*((LOG(AK14))/LOG(2)))) -> 0 | AN14: 222 | AO14: =COUNTIF(L41:L49,AN14) -> 0 | AP14: =AO14/(AQ4-AO10) -> 0 | AQ14: =IF(AP14=0,0,(AP14*((LOG(AP14))/LOG(2)))) -> 0 | AS14: 222 | AT14: =COUNTIF(L50:L57,AS14) -> 0 | AU14: =AT14/(AV4-AT10) -> 0 | AV14: =IF(AU14=0,0,(AU14*((LOG(AU14))/LOG(2)))) -> 0
A15: 11 | B15: 950 | C15: 11 | D15: 955 | E15: 21 | F15: 966 | K15: 0 | L15: 112 | P15: =SUM(P7:P14) -> 1 | Q15: =-SUM(Q7:Q14) -> 1.019807778 | V15: =SUM(V7:V14) -> 1 | W15: =-SUM(W7:W14) -> 0.9182958341 | AA15: =SUM(AA7:AA14) -> 1 | AB15: =-SUM(AB7:AB14) -> 1.061278124 | AF15: =SUM(AF7:AF14) -> 1 | AG15: =-SUM(AG7:AG14) -> 0.985228136 | AK15: =SUM(AK7:AK14) -> 1 | AL15: =-SUM(AL7:AL14) -> 0 | AP15: =SUM(AP7:AP14) -> 1 | AQ15: =-SUM(AQ7:AQ14) -> 0 | AU15: =SUM(AU7:AU14) -> 1 | AV15: =-SUM(AV7:AV14) -> 0
A16: 11 | B16: 1063 | C16: 11 | D16: 1067 | E16: 21 | F16: 1082 | K16: 0 | L16: 112 | P16: U= | Q16: =Q15/(LOG(Q4)/LOG(2)) -> 0.179783376 | V16: U1= | W16: =W15/(LOG(W4)/LOG(2)) -> 0.2896900821 | AA16: U2= | AB16: =AB15/(LOG(AB4)/LOG(2)) -> 0.3537593748 | AF16: U3= | AG16: =AG15/(LOG(AG4)/LOG(2)) -> 0.3108048725 | AK16: U4= | AL16: =AL15/(LOG(AL4)/LOG(2)) -> 0 | AP16: U5= | AQ16: =AQ15/(LOG(AQ4)/LOG(2)) -> 0 | AU16: U6= | AV16: =AV15/(LOG(AV4)/LOG(2)) -> 0
A17: 11 | B17: 1177 | C17: 22 | D17: 1187 | E17: 14 | F17: 1205 | K17: 0 | L17: 121
A18: 11 | B18: 1304 | C18: 11 | D18: 1308 | E18: 21 | F18: 1325 | K18: 0 | L18: 112
A19: 11 | B19: 1418 | C19: 11 | D19: 1422 | E19: 21 | F19: 1432 | K19: 0 | L19: 112 | N19: Total Target Seq
A20: 11 | B20: 1524 | C20: 11 | D20: 1528 | E20: 21 | F20: 1538 | K20: 0 | L20: 112 | N20: =COUNTIF(L7:L57,G3) -> 3 | P20: 9 | Q20: 8 | R20: 9 | S20: 8 | T20: 9 | U20: 8
A21: 11 | B21: 1631 | C21: 11 | D21: 1635 | E21: 21 | F21: 1654 | K21: 0 | L21: 112 | P21: % of reinforcement given in 6 equal intervals based on number of trials
A22: 11 | B22: 1744 | C22: 11 | D22: 1748 | E22: 21 | F22: 1761 | K22: 0 | L22: 112 | P22: %_1 | Q22: %_2 | R22: %_3 | S22: %_4 | T22: %_5 | U22: %_6
A23: 11 | B23: 1846 | C23: 11 | D23: 1851 | E23: 12 | F23: 1866 | K23: 0 | L23: 111 | O23: target sequence | P23: =$G$3 -> 122 | Q23: 122 | R23: 122 | S23: 122 | T23: 122 | U23: 122
A24: 11 | B24: 1964 | C24: 11 | D24: 1968 | E24: 12 | F24: 1974 | K24: 0 | L24: 111 | O24: total reinforcement | P24: =U10 -> 0 | Q24: =Z10 -> 0 | R24: =AE10 -> 2 | S24: =AJ10 -> 0 | T24: =AO10 -> 0 | U24: =AT10 -> 1
A25: 11 | B25: 2087 | C25: 22 | D25: 2103 | E25: 23 | F25: 2115 | K25: 0 | L25: 122 | O25: % target
A26: 11 | B26: 2216 | C26: 22 | D26: 2226 | E26: 23 | F26: 2233 | K26: 0 | L26: 122 | O26: CCRF
A27: 11 | B27: 2335 | C27: 11 | D27: 2340 | E27: 21 | F27: 2353 | K27: 0 | L27: 112 | O27: % CCRf
A28: 11 | B28: 2439 | C28: 11 | D28: 2444 | E28: 12 | F28: 2449 | K28: 0 | L28: 111 | O28: average response rate | P28: =F15/P20 -> 107.3333333 | Q28: =(F23-F15)/Q20 -> 112.5 | R28: =(F32-F23)/R20 -> 112.7777778 | S28: =(F40-F32)/S20 -> 107.625 | T28: =(F49-F40)/T20 -> 106.7777778 | U28: =(F57-F49)/U20 -> 113.25
A29: 11 | B29: 2546 | C29: 11 | D29: 2551 | E29: 21 | F29: 2561 | K29: 0 | L29: 112
A30: 11 | B30: 2647 | C30: 11 | D30: 2651 | E30: 21 | F30: 2674 | K30: 0 | L30: 112
A31: 11 | B31: 2764 | C31: 11 | D31: 2768 | E31: 21 | F31: 2778 | K31: 0 | L31: 112
A32: 11 | B32: 2864 | C32: 11 | D32: 2872 | E32: 12 | F32: 2881 | K32: 0 | L32: 111
A33: 11 | B33: 2979 | C33: 11 | D33: 2984 | E33: 21 | F33: 2998 | K33: 0 | L33: 112
A34: 11 | B34: 3083 | C34: 11 | D34: 3087 | E34: 21 | F34: 3098 | K34: 0 | L34: 112
A35: 11 | B35: 3186 | C35: 11 | D35: 3191 | E35: 21 | F35: 3201 | K35: 0 | L35: 112
A36: 11 | B36: 3288 | C36: 11 | D36: 3294 | E36: 21 | F36: 3312 | K36: 0 | L36: 112
A37: 11 | B37: 3403 | C37: 11 | D37: 3408 | E37: 21 | F37: 3417 | K37: 0 | L37: 112
A38: 11 | B38: 3504 | C38: 11 | D38: 3509 | E38: 21 | F38: 3519 | K38: 0 | L38: 112
A39: 11 | B39: 3606 | C39: 11 | D39: 3611 | E39: 21 | F39: 3629 | K39: 0 | L39: 112
A40: 11 | B40: 3720 | C40: 11 | D40: 3724 | E40: 21 | F40: 3742 | K40: 0 | L40: 112
A41: 11 | B41: 3833 | C41: 11 | D41: 3839 | E41: 21 | F41: 3848 | K41: 0 | L41: 112
A42: 11 | B42: 3933 | C42: 11 | D42: 3937 | E42: 21 | F42: 3947 | K42: 0 | L42: 112
A43: 11 | B43: 4033 | C43: 11 | D43: 4038 | E43: 21 | F43: 4048 | K43: 0 | L43: 112
A44: 11 | B44: 4138 | C44: 11 | D44: 4143 | E44: 21 | F44: 4152 | K44: 0 | L44: 112
A45: 11 | B45: 4238 | C45: 11 | D45: 4242 | E45: 21 | F45: 4264 | K45: 0 | L45: 112
A46: 11 | B46: 4350 | C46: 11 | D46: 4361 | E46: 21 | F46: 4390 | K46: 0 | L46: 112
A47: 11 | B47: 4478 | C47: 11 | D47: 4483 | E47: 21 | F47: 4493 | K47: 0 | L47: 112
A48: 11 | B48: 4581 | C48: 11 | D48: 4586 | E48: 21 | F48: 4604 | K48: 0 | L48: 112
A49: 11 | B49: 4689 | C49: 11 | D49: 4693 | E49: 21 | F49: 4703 | K49: 0 | L49: 112
A50: 11 | B50: 4788 | C50: 11 | D50: 4793 | E50: 21 | F50: 4805 | K50: 0 | L50: 112
A51: 11 | B51: 4893 | C51: 11 | D51: 4897 | E51: 21 | F51: 4906 | K51: 0 | L51: 112
A52: 11 | B52: 4994 | C52: 11 | D52: 4998 | E52: 21 | F52: 5009 | K52: 0 | L52: 112
A53: 11 | B53: 5093 | C53: 11 | D53: 5098 | E53: 21 | F53: 5137 | K53: 0 | L53: 112
A54: 11 | B54: 5224 | C54: 11 | D54: 5229 | E54: 21 | F54: 5239 | K54: 0 | L54: 112
A55: 11 | B55: 5325 | C55: 22 | D55: 5344 | E55: 23 | F55: 5357 | K55: 0 | L55: 122
A56: 11 | B56: 5458 | C56: 11 | D56: 5463 | E56: 21 | F56: 5479 | K56: 0 | L56: 112
A57: 11 | B57: 5569 | C57: 11 | D57: 5573 | E57: 21 | F57: 5609 | K57: 1 | L57: 112

Sheet !L809C30.056
A1: Report for:!L809C30.056
A2: Date: | B2: <date>
A3: Hen: | B3: <hen> | F3: Correct Sequence | G3: =Start!J2 -> 122 | P3: Total Sequences in Data | Q3: =4994-COUNTBLANK(L7:L5000) -> 54 | V3: Total Sequences in Block Data | W3: =COUNTA(L7:L15) -> 9 | AA3: Total Sequences in Block Data | AB3: =COUNTA(L16:L24) -> 9 | AF3: Total Sequences in Block Data | AG3: =COUNTA(L25:L33) -> 9 | AK3: Total Sequences in Block Data | AL3: =COUNTA(L34:L42) -> 9 | AP3: Total Sequences in Block Data | AQ3: =COUNTA(L43:L51) -> 9 | AU3: Total Sequences in Block Data | AV3: =COUNTA(L52:L60) -> 9
P4: Total Sequences in Summary | Q4: =SUM(O7:O14) -> 54 | V4: Total Sequences in Block Summary | W4: =SUM(U7:U14) -> 9 | AA4: Total Sequences in Block Summary | AB4: =SUM(Z7:Z14) -> 9 | AF4: Total Sequences in Block Summary | AG4: =SUM(AE7:AE14) -> 9 | AK4: Total Sequences in Block Summary | AL4: =SUM(AJ7:AJ14) -> 9 | AP4: Total Sequences in Block Summary | AQ4: =SUM(AO7:AO14) -> 9 | AU4: Total Sequences in Block Summary | AV4: =SUM(AT7:AT14) -> 9
T5: Block 1 | Y5: Block 2 | AD5: Block 3 | AI5: Block 4 | AN5: Block 5 | AS5: Block 6
A6: Sequence Component 1 | B6: Time 1 | C6: Sequence Component 2 | D6: Time 2 | E6: Sequence Component 3 | F6: Time 3 | G6: Sequence Component 4 | H6: Time 4 | I6: Sequence Component 5 | J6: Time 5 | K6: Correct? 0=No 1=Yes | L6: Sequence | N6: Frequency | P6: Relative Frequency | Q6: Variability | T6: Frequency | V6: Relative Frequency | W6: Variability | Y6: Frequency | AA6: Relative Frequency | AB6: Variability | AD6: Frequency | AF6: Relative Frequency | AG6: Variability | AI6: Frequency | AK6: Relative Frequency | AL6: Variability | AN6: Frequency | AP6: Relative Frequency | AQ6: Variability | AS6: Frequency | AU6: Relative Frequency | AV6: Variability
A7: 11 | B7: 7 | C7: 11 | D7: 12 | E7: 21 | F7: 23 | K7: 0 | L7: 112 | N7: 111 | O7: =COUNTIF($L$7:$L$500,N7) -> 5 | P7: =O7/$Q$4 -> 0.09259259259 | Q7: =IF(P7=0,0,(P7*((LOG(P7))/LOG(2)))) -> -0.3178666118 | T7: =N7 -> 111 | U7: =COUNTIF(L7:L15,T7) -> 2 | V7: =U7/(W4-U10) -> 0.2222222222 | W7: =IF(V7=0,0,(V7*((LOG(V7))/LOG(2)))) -> -0.4822055559 | Y7: =N7 -> 111 | Z7: =COUNTIF(L16:L24,Y7) -> 1 | AA7: =Z7/(AB4-Z10) -> 0.1666666667 | AB7: =IF(AA7=0,0,(AA7*((LOG(AA7))/LOG(2)))) -> -0.4308270835 | AD7: =N7 -> 111 | AE7: =COUNTIF(L25:L33,AD7) -> 0 | AF7: =AE7/(AG4-AE10) -> 0 | AG7: =IF(AF7=0,0,(AF7*((LOG(AF7))/LOG(2)))) -> 0 | AI7: =N7 -> 111 | AJ7: =COUNTIF(L34:L42,AI7) -> 0 | AK7: =AJ7/(AL4-AJ10) -> 0 | AL7: =IF(AK7=0,0,(AK7*((LOG(AK7))/LOG(2)))) -> 0 | AN7: =N7 -> 111 | AO7: =COUNTIF(L43:L51,AN7) -> 1 | AP7: =AO7/(AQ4-AO10) -> 0.1111111111 | AQ7: =IF(AP7=0,0,(AP7*((LOG(AP7))/LOG(2)))) -> -0.352213889 | AS7: =N7 -> 111 | AT7: =COUNTIF(L52:L60,AS7) -> 1 | AU7: =AT7/(AV4-AT10) -> 0.125 | AV7: =IF(AU7=0,0,(AU7*((LOG(AU7))/LOG(2)))) -> -0.375
A8: 11 | B8: 115 | C8: 11 | D8: 120 | E8: 21 | F8: 134 | K8: 0 | L8: 112 | N8: 112 | O8: 40 | P8: 0.7407407407 | Q8: -0.3207106721 | T8: 112 | U8: =COUNTIF(L7:L15,T8) -> 7 | V8: =U8/(W4-U10) -> 0.7777777778 | W8: =IF(V8=0,0,(V8*((LOG(V8))/LOG(2)))) -> -0.2819989506 | Y8: 112 | Z8: =COUNTIF(L16:L24,Y8) -> 4 | AA8: =Z8/(AB4-Z10) -> 0.6666666667 | AB8: =IF(AA8=0,0,(AA8*((LOG(AA8))/LOG(2)))) -> -0.3899750005 | AD8: 112 | AE8: =COUNTIF(L25:L33,AD8) -> 8 | AF8: =AE8/(AG4-AE10) -> 1 | AG8: =IF(AF8=0,0,(AF8*((LOG(AF8))/LOG(2)))) -> 0 | AI8: 112 | AJ8: =COUNTIF(L34:L42,AI8) -> 7 | AK8: =AJ8/(AL4-AJ10) -> 1 | AL8: =IF(AK8=0,0,(AK8*((LOG(AK8))/LOG(2)))) -> 0 | AN8: 112 | AO8: =COUNTIF(L43:L51,AN8) -> 8 | AP8: =AO8/(AQ4-AO10) -> 0.8888888889 | AQ8: =IF(AP8=0,0,(AP8*((LOG(AP8))/LOG(2)))) -> -0.1510444457 | AS8: 112 | AT8: =COUNTIF(L52:L60,AS8) -> 6 | AU8: =AT8/(AV4-AT10) -> 0.75 | AV8: =IF(AU8=0,0,(AU8*((LOG(AU8))/LOG(2)))) -> -0.3112781245
A9: 11 | B9: 228 | C9: 11 | D9: 234 | E9: 21 | F9: 245 | K9: 0 | L9: 112 | N9: 121 | O9: 1 | P9: 0.01851851852 | Q9: -0.1065719908 | T9: 121 | U9: =COUNTIF(L7:L15,T9) -> 0 | V9: =U9/(W4-U10) -> 0 | W9: =IF(V9=0,0,(V9*((LOG(V9))/LOG(2)))) -> 0 | Y9: 121 | Z9: =COUNTIF(L16:L24,Y9) -> 0 | AA9: =Z9/(AB4-Z10) -> 0 | AB9: =IF(AA9=0,0,(AA9*((LOG(AA9))/LOG(2)))) -> 0 | AD9: 121 | AE9: =COUNTIF(L25:L33,AD9) -> 0 | AF9: =AE9/(AG4-AE10) -> 0 | AG9: =IF(AF9=0,0,(AF9*((LOG(AF9))/LOG(2)))) -> 0 | AI9: 121 | AJ9: =COUNTIF(L34:L42,AI9) -> 0 | AK9: =AJ9/(AL4-AJ10) -> 0 | AL9: =IF(AK9=0,0,(AK9*((LOG(AK9))/LOG(2)))) -> 0 | AN9: 121 | AO9: =COUNTIF(L43:L51,AN9) -> 0 | AP9: =AO9/(AQ4-AO10) -> 0 | AQ9: =IF(AP9=0,0,(AP9*((LOG(AP9))/LOG(2)))) -> 0 | AS9: 121 | AT9: =COUNTIF(L52:L60,AS9) -> 1 | AU9: =AT9/(AV4-AT10) -> 0.125 | AV9: =IF(AU9=0,0,(AU9*((LOG(AU9))/LOG(2)))) -> -0.375
A10: 11 | B10: 332 | C10: 11 | D10: 337 | E10: 21 | F10: 365 | K10: 0 | L10: 112 | N10: 122 | O10: 7 | P10: 0.1296296296 | Q10: -0.3820875567 | T10: 122 | U10: =COUNTIF(L7:L15,T10) -> 0 | Y10: 122 | Z10: =COUNTIF(L16:L24,Y10) -> 3 | AD10: 122 | AE10: =COUNTIF(L25:L33,AD10) -> 1 | AI10: 122 | AJ10: =COUNTIF(L34:L42,AI10) -> 2 | AN10: 122 | AO10: =COUNTIF(L43:L51,AN10) -> 0 | AS10: 122 | AT10: =COUNTIF(L52:L60,AS10) -> 1
A11: 11 | B11: 455 | C11: 11 | D11: 460 | E11: 21 | F11: 470 | K11: 0 | L11: 112 | N11: 211 | O11: 1 | P11: 0.01851851852 | Q11: -0.1065719908 | T11: 211 | U11: =COUNTIF(L7:L15,T11) -> 0 | V11: =U11/(W4-U10) -> 0 | W11: =IF(V11=0,0,(V11*((LOG(V11))/LOG(2)))) -> 0 | Y11: 211 | Z11: =COUNTIF(L16:L24,Y11) -> 1 | AA11: =Z11/(AB4-Z10) -> 0.1666666667 | AB11: =IF(AA11=0,0,(AA11*((LOG(AA11))/LOG(2)))) -> -0.4308270835 | AD11: 211 | AE11: =COUNTIF(L25:L33,AD11) -> 0 | AF11: =AE11/(AG4-AE10) -> 0 | AG11: =IF(AF11=0,0,(AF11*((LOG(AF11))/LOG(2)))) -> 0 | AI11: 211 | AJ11: =COUNTIF(L34:L42,AI11) -> 0 | AK11: =AJ11/(AL4-AJ10) -> 0 | AL11: =IF(AK11=0,0,(AK11*((LOG(AK11))/LOG(2)))) -> 0 | AN11: 211 | AO11: =COUNTIF(L43:L51,AN11) -> 0 | AP11: =AO11/(AQ4-AO10) -> 0 | AQ11: =IF(AP11=0,0,(AP11*((LOG(AP11))/LOG(2)))) -> 0 | AS11: 211 | AT11: =COUNTIF(L52:L60,AS11) -> 0 | AU11: =AT11/(AV4-AT10) -> 0 | AV11: =IF(AU11=0,0,(AU11*((LOG(AU11))/LOG(2)))) -> 0
A12: 11 | B12: 561 | C12: 11 | D12: 565 | E12: 12 | F12: 570 | K12: 0 | L12: 111 | N12: 212 | O12: 0 | P12: 0 | Q12: 0 | T12: 212 | U12: =COUNTIF(L7:L15,T12) -> 0 | V12: =U12/(W4-U10) -> 0 | W12: =IF(V12=0,0,(V12*((LOG(V12))/LOG(2)))) -> 0 | Y12: 212 | Z12: =COUNTIF(L16:L24,Y12) -> 0 | AA12: =Z12/(AB4-Z10) -> 0 | AB12: =IF(AA12=0,0,(AA12*((LOG(AA12))/LOG(2)))) -> 0 | AD12: 212 | AE12: =COUNTIF(L25:L33,AD12) -> 0 | AF12: =AE12/(AG4-AE10) -> 0 | AG12: =IF(AF12=0,0,(AF12*((LOG(AF12))/LOG(2)))) -> 0 | AI12: 212 | AJ12: =COUNTIF(L34:L42,AI12) -> 0 | AK12: =AJ12/(AL4-AJ10) -> 0 | AL12: =IF(AK12=0,0,(AK12*((LOG(AK12))/LOG(2)))) -> 0 | AN12: 212 | AO12: =COUNTIF(L43:L51,AN12) -> 0 | AP12: =AO12/(AQ4-AO10) -> 0 | AQ12: =IF(AP12=0,0,(AP12*((LOG(AP12))/LOG(2)))) -> 0 | AS12: 212 | AT12: =COUNTIF(L52:L60,AS12) -> 0 | AU12: =AT12/(AV4-AT10) -> 0 | AV12: =IF(AU12=0,0,(AU12*((LOG(AU12))/LOG(2)))) -> 0
A13: 11 | B13: 664 | C13: 11 | D13: 669 | E13: 12 | F13: 673 | K13: 0 | L13: 111 | N13: 221 | O13: 0 | P13: 0 | Q13: 0 | T13: 221 | U13: =COUNTIF(L7:L15,T13) -> 0 | V13: =U13/(W4-U10) -> 0 | W13: =IF(V13=0,0,(V13*((LOG(V13))/LOG(2)))) -> 0 | Y13: 221 | Z13: =COUNTIF(L16:L24,Y13) -> 0 | AA13: =Z13/(AB4-Z10) -> 0 | AB13: =IF(AA13=0,0,(AA13*((LOG(AA13))/LOG(2)))) -> 0 | AD13: 221 | AE13: =COUNTIF(L25:L33,AD13) -> 0 | AF13: =AE13/(AG4-AE10) -> 0 | AG13: =IF(AF13=0,0,(AF13*((LOG(AF13))/LOG(2)))) -> 0 | AI13: 221 | AJ13: =COUNTIF(L34:L42,AI13) -> 0 | AK13: =AJ13/(AL4-AJ10) -> 0 | AL13: =IF(AK13=0,0,(AK13*((LOG(AK13))/LOG(2)))) -> 0 | AN13: 221 | AO13: =COUNTIF(L43:L51,AN13) -> 0 | AP13: =AO13/(AQ4-AO10) -> 0 | AQ13: =IF(AP13=0,0,(AP13*((LOG(AP13))/LOG(2)))) -> 0 | AS13: 221 | AT13: =COUNTIF(L52:L60,AS13) -> 0 | AU13: =AT13/(AV4-AT10) -> 0 | AV13: =IF(AU13=0,0,(AU13*((LOG(AU13))/LOG(2)))) -> 0
A14: 11 | B14: 772 | C14: 11 | D14: 776 | E14: 21 | F14: 796 | K14: 0 | L14: 112 | N14: 222 | O14: 0 | P14: 0 | Q14: 0 | T14: 222 | U14: =COUNTIF(L7:L15,T14) -> 0 | V14: =U14/(W4-U10) -> 0 | W14: =IF(V14=0,0,(V14*((LOG(V14))/LOG(2)))) -> 0 | Y14: 222 | Z14: =COUNTIF(L16:L24,Y14) -> 0 | AA14: =Z14/(AB4-Z10) -> 0 | AB14: =IF(AA14=0,0,(AA14*((LOG(AA14))/LOG(2)))) -> 0 | AD14: 222 | AE14: =COUNTIF(L25:L33,AD14) -> 0 | AF14: =AE14/(AG4-AE10) -> 0 | AG14: =IF(AF14=0,0,(AF14*((LOG(AF14))/LOG(2)))) -> 0 | AI14: 222 | AJ14: =COUNTIF(L34:L42,AI14) -> 0 | AK14: =AJ14/(AL4-AJ10) -> 0 | AL14: =IF(AK14=0,0,(AK14*((LOG(AK14))/LOG(2)))) -> 0 | AN14: 222 | AO14: =COUNTIF(L43:L51,AN14) -> 0 | AP14: =AO14/(AQ4-AO10) -> 0 | AQ14: =IF(AP14=0,0,(AP14*((LOG(AP14))/LOG(2)))) -> 0 | AS14: 222 | AT14: =COUNTIF(L52:L60,AS14) -> 0 | AU14: =AT14/(AV4-AT10) -> 0 | AV14: =IF(AU14=0,0,(AU14*((LOG(AU14))/LOG(2)))) -> 0
A15: 11 | B15: 889 | C15: 11 | D15: 895 | E15: 21 | F15: 930 | K15: 0 | L15: 112 | P15: =SUM(P7:P14) -> 1 | Q15: =-SUM(Q7:Q14) -> 1.233808822 | V15: =SUM(V7:V14) -> 1 | W15: =-SUM(W7:W14) -> 0.7642045065 | AA15: =SUM(AA7:AA14) -> 1 | AB15: =-SUM(AB7:AB14) -> 1.251629167 | AF15: =SUM(AF7:AF14) -> 1 | AG15: =-SUM(AG7:AG14) -> 0 | AK15: =SUM(AK7:AK14) -> 1 | AL15: =-SUM(AL7:AL14) -> 0 | AP15: =SUM(AP7:AP14) -> 1 | AQ15: =-SUM(AQ7:AQ14) -> 0.5032583348 | AU15: =SUM(AU7:AU14) -> 1 | AV15: =-SUM(AV7:AV14) -> 1.061278124
A16: 11 | B16: 1018 | C16: 11 | D16: 1023 | E16: 21 | F16: 1033 | K16: 0 | L16: 112 | P16: U= | Q16: =Q15/(LOG(Q4)/LOG(2)) -> 0.214393213 | V16: U1= | W16: =W15/(LOG(W4)/LOG(2)) -> 0.2410796805 | AA16: U2= | AB16: =AB15/(LOG(AB4)/LOG(2)) -> 0.3948450411 | AF16: U3= | AG16: =AG15/(LOG(AG4)/LOG(2)) -> 0 | AK16: U4= | AL16: =AL15/(LOG(AL4)/LOG(2)) -> 0 | AP16: U5= | AQ16: =AQ15/(LOG(AQ4)/LOG(2)) -> 0.1587603286 | AU16: U6= | AV16: =AV15/(LOG(AV4)/LOG(2)) -> 0.3347959728
A17: 11 | B17: 1121 | C17: 11 | D17: 1125 | E17: 21 | F17: 1144 | K17: 0 | L17: 112
A18: 11 | B18: 1236 | C18: 22 | D18: 1246 | E18: 23 | F18: 1254 | K18: 0 | L18: 122
A19: 11 | B19: 1348 | C19: 11 | D19: 1352 | E19: 12 | F19: 1363 | K19: 0 | L19: 111 | N19: Total Target Seq
A20: 22 | B20: 1475 | C20: 13 | D20: 1489 | E20: 14 | F20: 1493 | K20: 0 | L20: 211 | N20: =COUNTIF(L7:L60,G3) -> 7 | P20: 9 | Q20: 9 | R20: 9 | S20: 9 | T20: 9 | U20: 9
A21: 11 | B21: 1597 | C21: 22 | D21: 1608 | E21: 23 | F21: 1617 | K21: 0 | L21: 122 | P21: % of reinforcement given in 6 equal intervals based on number of trials
A22: 11 | B22: 1718 | C22: 11 | D22: 1725 | E22: 21 | F22: 1736 | K22: 0 | L22: 112 | P22: %_1 | Q22: %_2 | R22: %_3 | S22: %_4 | T22: %_5 | U22: %_6
A23: 11 | B23: 1826 | C23: 11 | D23: 1830 | E23: 21 | F23: 1844 | K23: 0 | L23: 112 | O23: target sequence | P23: =$G$3 -> 122 | Q23: 122 | R23: 122 | S23: 122 | T23: 122 | U23: 122
A24: 11 | B24: 1938 | C24: 22 | D24: 1951 | E24: 23 | F24: 1961 | K24: 0 | L24: 122 | O24: total reinforcement | P24: =U10 -> 0 | Q24: =Z10 -> 3 | R24: =AE10 -> 1 | S24: =AJ10 -> 2 | T24: =AO10 -> 0 | U24: =AT10 -> 1
A25: 11 | B25: 2057 | C25: 11 | D25: 2061 | E25: 21 | F25: 2072 | K25: 0 | L25: 112 | O25: % target
A26: 11 | B26: 2169 | C26: 22 | D26: 2183 | E26: 23 | F26: 2191 | K26: 0 | L26: 122 | O26: CCRF
A27: 11 | B27: 2288 | C27: 11 | D27: 2293 | E27: 21 | F27: 2304 | K27: 0 | L27: 112 | O27: % CCRf
A28: 11 | B28: 2393 | C28: 11 | D28: 2397 | E28: 21 | F28: 2408 | K28: 0 | L28: 112 | O28: average response rate | P28: =F15/P20 -> 103.3333333 | Q28: =(F24-F15)/Q20 -> 114.5555556 | R28: =(F33-F24)/R20 -> 106.3333333 | S28: =(F42-F33)/S20 -> 116.3333333 | T28: =(F51-F42)/T20 -> 114.2222222 | U28: =(F60-F51)/U20 -> 186.6666667
A29: 11 | B29: 2495 | C29: 11 | D29: 2500 | E29: 21 | F29: 2510 | K29: 0 | L29: 112
A30: 11 | B30: 2594 | C30: 11 | D30: 2599 | E30: 21 | F30: 2609 | K30: 0 | L30: 112
A31: 11 | B31: 2701 | C31: 11 | D31: 2705 | E31: 21 | F31: 2715 | K31: 0 | L31: 112
A32: 11 | B32: 2802 | C32: 11 | D32: 2807 | E32: 21 | F32: 2816 | K32: 0 | L32: 112
A33: 11 | B33: 2902 | C33: 11 | D33: 2908 | E33: 21 | F33: 2918 | K33: 0 | L33: 112
A34: 11 | B34: 3007 | C34: 22 | D34: 3018 | E34: 23 | F34: 3057 | K34: 0 | L34: 122
A35: 11 | B35: 3154 | C35: 11 | D35: 3158 | E35: 21 | F35: 3169 | K35: 0 | L35: 112
A36: 11 | B36: 3258 | C36: 11 | D36: 3263 | E36: 21 | F36: 3290 | K36: 0 | L36: 112
A37: 11 | B37: 3377 | C37: 11 | D37: 3383 | E37: 21 | F37: 3404 | K37: 0 | L37: 112
A38: 11 | B38: 3493 | C38: 11 | D38: 3497 | E38: 21 | F38: 3514 | K38: 0 | L38: 112
A39: 11 | B39: 3604 | C39: 11 | D39: 3612 | E39: 21 | F39: 3647 | K39: 0 | L39: 112
A40: 11 | B40: 3734 | C40: 11 | D40: 3739 | E40: 21 | F40: 3750 | K40: 0 | L40: 112
A41: 11 | B41: 3838 | C41: 11 | D41: 3842 | E41: 21 | F41: 3852 | K41: 0 | L41: 112
A42: 11 | B42: 3938 | C42: 22 | D42: 3948 | E42: 23 | F42: 3965 | K42: 0 | L42: 122
A43: 11 | B43: 4064 | C43: 11 | D43: 4068 | E43: 12 | F43: 4077 | K43: 0 | L43: 111
A44: 11 | B44: 4175 | C44: 11 | D44: 4179 | E44: 21 | F44: 4189 | K44: 0 | L44: 112
A45: 11 | B45: 4279 | C45: 11 | D45: 4284 | E45: 21 | F45: 4294 | K45: 0 | L45: 112
A46: 11 | B46: 4383 | C46: 11 | D46: 4386 | E46: 21 | F46: 4396 | K46: 0 | L46: 112
A47: 11 | B47: 4483 | C47: 11 | D47: 4488 | E47: 21 | F47: 4516 | K47: 0 | L47: 112
A48: 11 | B48: 4604 | C48: 11 | D48: 4608 | E48: 21 | F48: 4617 | K48: 0 | L48: 112
A49: 11 | B49: 4705 | C49: 11 | D49: 4714 | E49: 21 | F49: 4732 | K49: 0 | L49: 112
A50: 11 | B50: 4820 | C50: 11 | D50: 4826 | E50: 21 | F50: 4835 | K50: 0 | L50: 112
A51: 11 | B51: 4921 | C51: 11 | D51: 4925 | E51: 21 | F51: 4993 | K51: 0 | L51: 112
A52: 11 | B52: 5084 | C52: 11 | D52: 5089 | E52: 21 | F52: 5106 | K52: 0 | L52: 112
A53: 11 | B53: 5191 | C53: 11 | D53: 5196 | E53: 21 | F53: 5206 | K53: 0 | L53: 112
A54: 11 | B54: 5937 | C54: 22 | D54: 5951 | E54: 14 | F54: 5975 | K54: 0 | L54: 121
A55: 11 | B55: 6073 | C55: 11 | D55: 6078 | E55: 21 | F55: 6105 | K55: 0 | L55: 112
A56: 11 | B56: 6193 | C56: 11 | D56: 6198 | E56: 21 | F56: 6208 | K56: 0 | L56: 112
A57: 11 | B57: 6315 | C57: 22 | D57: 6324 | E57: 23 | F57: 6338 | K57: 0 | L57: 122
A58: 11 | B58: 6434 | C58: 11 | D58: 6438 | E58: 21 | F58: 6456 | K58: 0 | L58: 112
A59: 11 | B59: 6544 | C59: 11 | D59: 6548 | E59: 12 | F59: 6563 | K59: 0 | L59: 111
A60: 11 | B60: 6659 | C60: 11 | D60: 6663 | E60: 21 | F60: 6673 | K60: 1 | L60: 112

Sheet !L810D50.056
A1: Report for:!L810D50.056
A2: Date: | B2: <date>
A3: Hen: | B3: <hen> | F3: Correct Sequence | G3: =Start!J2 -> 122 | P3: Total Sequences in Data | Q3: =4994-COUNTBLANK(L7:L5000) -> 54 | V3: Total Sequences in Block Data | W3: =COUNTA(L7:L15) -> 9 | AA3: Total Sequences in Block Data | AB3: =COUNTA(L16:L24) -> 9 | AF3: Total Sequences in Block Data | AG3: =COUNTA(L25:L33) -> 9 | AK3: Total Sequences in Block Data | AL3: =COUNTA(L34:L42) -> 9 | AP3: Total Sequences in Block Data | AQ3: =COUNTA(L43:L51) -> 9 | AU3: Total Sequences in Block Data | AV3: =COUNTA(L52:L60) -> 9
P4: Total Sequences in Summary | Q4: =SUM(O7:O14) -> 54 | V4: Total Sequences in Block Summary | W4: =SUM(U7:U14) -> 9 | AA4: Total Sequences in Block Summary | AB4: =SUM(Z7:Z14) -> 9 | AF4: Total Sequences in Block Summary | AG4: =SUM(AE7:AE14) -> 9 | AK4: Total Sequences in Block Summary | AL4: =SUM(AJ7:AJ14) -> 9 | AP4: Total Sequences in Block Summary | AQ4: =SUM(AO7:AO14) -> 9 | AU4: Total Sequences in Block Summary | AV4: =SUM(AT7:AT14) -> 9
T5: Block 1 | Y5: Block 2 | AD5: Block 3 | AI5: Block 4 | AN5: Block 5 | AS5: Block 6
A6: Sequence Component 1 | B6: Time 1 | C6: Sequence Component 2 | D6: Time 2 | E6: Sequence Component 3 | F6: Time 3 | G6: Sequence Component 4 | H6: Time 4 | I6: Sequence Component 5 | J6: Time 5 | K6: Correct? 0=No 1=Yes | L6: Sequence | N6: Frequency | P6: Relative Frequency | Q6: Variability | T6: Frequency | V6: Relative Frequency | W6: Variability | Y6: Frequency | AA6: Relative Frequency | AB6: Variability | AD6: Frequency | AF6: Relative Frequency | AG6: Variability | AI6: Frequency | AK6: Relative Frequency | AL6: Variability | AN6: Frequency | AP6: Relative Frequency | AQ6: Variability | AS6: Frequency | AU6: Relative Frequency | AV6: Variability
A7: 11 | B7: 9 | C7: 11 | D7: 17 | E7: 21 | F7: 34 | K7: 0 | L7: 112 | N7: 111 | O7: =COUNTIF($L$7:$L$500,N7) -> 4 | P7: =O7/$Q$4 -> 0.07407407407 | Q7: =IF(P7=0,0,(P7*((LOG(P7))/LOG(2)))) -> -0.278139815 | T7: =N7 -> 111 | U7: =COUNTIF(L7:L15,T7) -> 0 | V7: =U7/(W4-U10) -> 0 | W7: =IF(V7=0,0,(V7*((LOG(V7))/LOG(2)))) -> 0 | Y7: =N7 -> 111 | Z7: =COUNTIF(L16:L24,Y7) -> 0 | AA7: =Z7/(AB4-Z10) -> 0 | AB7: =IF(AA7=0,0,(AA7*((LOG(AA7))/LOG(2)))) -> 0 | AD7: =N7 -> 111 | AE7: =COUNTIF(L25:L33,AD7) -> 1 | AF7: =AE7/(AG4-AE10) -> 0.1428571429 | AG7: =IF(AF7=0,0,(AF7*((LOG(AF7))/LOG(2)))) -> -0.4010507032 | AI7: =N7 -> 111 | AJ7: =COUNTIF(L34:L42,AI7) -> 2 | AK7: =AJ7/(AL4-AJ10) -> 0.2857142857 | AL7: =IF(AK7=0,0,(AK7*((LOG(AK7))/LOG(2)))) -> -0.5163871206 | AN7: =N7 -> 111 | AO7: =COUNTIF(L43:L51,AN7) -> 0 | AP7: =AO7/(AQ4-AO10) -> 0 | AQ7: =IF(AP7=0,0,(AP7*((LOG(AP7))/LOG(2)))) -> 0 | AS7: =N7 -> 111 | AT7: =COUNTIF(L52:L60,AS7) -> 1 | AU7: =AT7/(AV4-AT10) -> 0.125 | AV7: =IF(AU7=0,0,(AU7*((LOG(AU7))/LOG(2)))) -> -0.375
A8: 22 | B8: 130 | C8: 24 | D8: 139 | E8: 23 | F8: 161 | K8: 0 | L8: 222 | N8: 112 | O8: 40 | P8: 0.7407407407 | Q8: -0.3207106721 | T8: 112 | U8: =COUNTIF(L7:L15,T8) -> 7 | V8: =U8/(W4-U10) -> 0.875 | W8: =IF(V8=0,0,(V8*((LOG(V8))/LOG(2)))) -> -0.1685644432 | Y8: 112 | Z8: =COUNTIF(L16:L24,Y8) -> 8 | AA8: =Z8/(AB4-Z10) -> 1 | AB8: =IF(AA8=0,0,(AA8*((LOG(AA8))/LOG(2)))) -> 0 | AD8: 112 | AE8: =COUNTIF(L25:L33,AD8) -> 6 | AF8: =AE8/(AG4-AE10) -> 0.8571428571 | AG8: =IF(AF8=0,0,(AF8*((LOG(AF8))/LOG(2)))) -> -0.1906220754 | AI8: 112 | AJ8: =COUNTIF(L34:L42,AI8) -> 5 | AK8: =AJ8/(AL4-AJ10) -> 0.7142857143 | AL8: =IF(AK8=0,0,(AK8*((LOG(AK8))/LOG(2)))) -> -0.346733448 | AN8: 112 | AO8: =COUNTIF(L43:L51,AN8) -> 7 | AP8: =AO8/(AQ4-AO10) -> 1 | AQ8: =IF(AP8=0,0,(AP8*((LOG(AP8))/LOG(2)))) -> 0 | AS8: 112 | AT8: =COUNTIF(L52:L60,AS8) -> 7 | AU8: =AT8/(AV4-AT10) -> 0.875 | AV8: =IF(AU8=0,0,(AU8*((LOG(AU8))/LOG(2)))) -> -0.1685644432
A9: 11 | B9: 260 | C9: 22 | D9: 271 | E9: 23 | F9: 290 | K9: 0 | L9: 122 | N9: 121 | O9: 0 | P9: 0 | Q9: 0 | T9: 121 | U9: =COUNTIF(L7:L15,T9) -> 0 | V9: =U9/(W4-U10) -> 0 | W9: =IF(V9=0,0,(V9*((LOG(V9))/LOG(2)))) -> 0 | Y9: 121 | Z9: =COUNTIF(L16:L24,Y9) -> 0 | AA9: =Z9/(AB4-Z10) -> 0 | AB9: =IF(AA9=0,0,(AA9*((LOG(AA9))/LOG(2)))) -> 0 | AD9: 121 | AE9: =COUNTIF(L25:L33,AD9) -> 0 | AF9: =AE9/(AG4-AE10) -> 0 | AG9: =IF(AF9=0,0,(AF9*((LOG(AF9))/LOG(2)))) -> 0 | AI9: 121 | AJ9: =COUNTIF(L34:L42,AI9) -> 0 | AK9: =AJ9/(AL4-AJ10) -> 0 | AL9: =IF(AK9=0,0,(AK9*((LOG(AK9))/LOG(2)))) -> 0 | AN9: 121 | AO9: =COUNTIF(L43:L51,AN9) -> 0 | AP9: =AO9/(AQ4-AO10) -> 0 | AQ9: =IF(AP9=0,0,(AP9*((LOG(AP9))/LOG(2)))) -> 0 | AS9: 121 | AT9: =COUNTIF(L52:L60,AS9) -> 0 | AU9: =AT9/(AV4-AT10) -> 0 | AV9: =IF(AU9=0,0,(AU9*((LOG(AU9))/LOG(2)))) -> 0
A10: 11 | B10: 389 | C10: 11 | D10: 395 | E10: 21 | F10: 417 | K10: 0 | L10: 112 | N10: 122 | O10: 9 | P10: 0.1666666667 | Q10: -0.4308270835 | T10: 122 | U10: =COUNTIF(L7:L15,T10) -> 1 | Y10: 122 | Z10: =COUNTIF(L16:L24,Y10) -> 1 | AD10: 122 | AE10: =COUNTIF(L25:L33,AD10) -> 2 | AI10: 122 | AJ10: =COUNTIF(L34:L42,AI10) -> 2 | AN10: 122 | AO10: =COUNTIF(L43:L51,AN10) -> 2 | AS10: 122 | AT10: =COUNTIF(L52:L60,AS10) -> 1
A11: 11 | B11: 505 | C11: 11 | D11: 509 | E11: 21 | F11: 537 | K11: 0 | L11: 112 | N11: 211 | O11: 0 | P11: 0 | Q11: 0 | T11: 211 | U11: =COUNTIF(L7:L15,T11) -> 0 | V11: =U11/(W4-U10) -> 0 | W11: =IF(V11=0,0,(V11*((LOG(V11))/LOG(2)))) -> 0 | Y11: 211 | Z11: =COUNTIF(L16:L24,Y11) -> 0 | AA11: =Z11/(AB4-Z10) -> 0 | AB11: =IF(AA11=0,0,(AA11*((LOG(AA11))/LOG(2)))) -> 0 | AD11: 211 | AE11: =COUNTIF(L25:L33,AD11) -> 0 | AF11: =AE11/(AG4-AE10) -> 0 | AG11: =IF(AF11=0,0,(AF11*((LOG(AF11))/LOG(2)))) -> 0 | AI11: 211 | AJ11: =COUNTIF(L34:L42,AI11) -> 0 | AK11: =AJ11/(AL4-AJ10) -> 0 | AL11: =IF(AK11=0,0,(AK11*((LOG(AK11))/LOG(2)))) -> 0 | AN11: 211 | AO11: =COUNTIF(L43:L51,AN11) -> 0 | AP11: =AO11/(AQ4-AO10) -> 0 | AQ11: =IF(AP11=0,0,(AP11*((LOG(AP11))/LOG(2)))) -> 0 | AS11: 211 | AT11: =COUNTIF(L52:L60,AS11) -> 0 | AU11: =AT11/(AV4-AT10) -> 0 | AV11: =IF(AU11=0,0,(AU11*((LOG(AU11))/LOG(2)))) -> 0
A12: 11 | B12: 626 | C12: 11 | D12: 632 | E12: 21 | F12: 671 | K12: 0 | L12: 112 | N12: 212 | O12: 0 | P12: 0 | Q12: 0 | T12: 212 | U12: =COUNTIF(L7:L15,T12) -> 0 | V12: =U12/(W4-U10) -> 0 | W12: =IF(V12=0,0,(V12*((LOG(V12))/LOG(2)))) -> 0 | Y12: 212 | Z12: =COUNTIF(L16:L24,Y12) -> 0 | AA12: =Z12/(AB4-Z10) -> 0 | AB12: =IF(AA12=0,0,(AA12*((LOG(AA12))/LOG(2)))) -> 0 | AD12: 212 | AE12: =COUNTIF(L25:L33,AD12) -> 0 | AF12: =AE12/(AG4-AE10) -> 0 | AG12: =IF(AF12=0,0,(AF12*((LOG(AF12))/LOG(2)))) -> 0 | AI12: 212 | AJ12: =COUNTIF(L34:L42,AI12) -> 0 | AK12: =AJ12/(AL4-AJ10) -> 0 | AL12: =IF(AK12=0,0,(AK12*((LOG(AK12))/LOG(2)))) -> 0 | AN12: 212 | AO12: =COUNTIF(L43:L51,AN12) -> 0 | AP12: =AO12/(AQ4-AO10) -> 0 | AQ12: =IF(AP12=0,0,(AP12*((LOG(AP12))/LOG(2)))) -> 0 | AS12: 212 | AT12: =COUNTIF(L52:L60,AS12) -> 0 | AU12: =AT12/(AV4-AT10) -> 0 | AV12: =IF(AU12=0,0,(AU12*((LOG(AU12))/LOG(2)))) -> 0
A13: 11 | B13: 759 | C13: 11 | D13: 764 | E13: 21 | F13: 775 | K13: 0 | L13: 112 | N13: 221 | O13: 0 | P13: 0 | Q13: 0 | T13: 221 | U13: =COUNTIF(L7:L15,T13) -> 0 | V13: =U13/(W4-U10) -> 0 | W13: =IF(V13=0,0,(V13*((LOG(V13))/LOG(2)))) -> 0 | Y13: 221 | Z13: =COUNTIF(L16:L24,Y13) -> 0 | AA13: =Z13/(AB4-Z10) -> 0 | AB13: =IF(AA13=0,0,(AA13*((LOG(AA13))/LOG(2)))) -> 0 | AD13: 221 | AE13: =COUNTIF(L25:L33,AD13) -> 0 | AF13: =AE13/(AG4-AE10) -> 0 | AG13: =IF(AF13=0,0,(AF13*((LOG(AF13))/LOG(2)))) -> 0 | AI13: 221 | AJ13: =COUNTIF(L34:L42,AI13) -> 0 | AK13: =AJ13/(AL4-AJ10) -> 0 | AL13: =IF(AK13=0,0,(AK13*((LOG(AK13))/LOG(2)))) -> 0 | AN13: 221 | AO13: =COUNTIF(L43:L51,AN13) -> 0 | AP13: =AO13/(AQ4-AO10) -> 0 | AQ13: =IF(AP13=0,0,(AP13*((LOG(AP13))/LOG(2)))) -> 0 | AS13: 221 | AT13: =COUNTIF(L52:L60,AS13) -> 0 | AU13: =AT13/(AV4-AT10) -> 0 | AV13: =IF(AU13=0,0,(AU13*((LOG(AU13))/LOG(2)))) -> 0
A14: 11 | B14: 864 | C14: 11 | D14: 869 | E14: 21 | F14: 880 | K14: 0 | L14: 112 | N14: 222 | O14: 1 | P14: 0.01851851852 | Q14: -0.1065719908 | T14: 222 | U14: =COUNTIF(L7:L15,T14) -> 1 | V14: =U14/(W4-U10) -> 0.125 | W14: =IF(V14=0,0,(V14*((LOG(V14))/LOG(2)))) -> -0.375 | Y14: 222 | Z14: =COUNTIF(L16:L24,Y14) -> 0 | AA14: =Z14/(AB4-Z10) -> 0 | AB14: =IF(AA14=0,0,(AA14*((LOG(AA14))/LOG(2)))) -> 0 | AD14: 222 | AE14: =COUNTIF(L25:L33,AD14) -> 0 | AF14: =AE14/(AG4-AE10) -> 0 | AG14: =IF(AF14=0,0,(AF14*((LOG(AF14))/LOG(2)))) -> 0 | AI14: 222 | AJ14: =COUNTIF(L34:L42,AI14) -> 0 | AK14: =AJ14/(AL4-AJ10) -> 0 | AL14: =IF(AK14=0,0,(AK14*((LOG(AK14))/LOG(2)))) -> 0 | AN14: 222 | AO14: =COUNTIF(L43:L51,AN14) -> 0 | AP14: =AO14/(AQ4-AO10) -> 0 | AQ14: =IF(AP14=0,0,(AP14*((LOG(AP14))/LOG(2)))) -> 0 | AS14: 222 | AT14: =COUNTIF(L52:L60,AS14) -> 0 | AU14: =AT14/(AV4-AT10) -> 0 | AV14: =IF(AU14=0,0,(AU14*((LOG(AU14))/LOG(2)))) -> 0
A15: 11 | B15: 963 | C15: 11 | D15: 968 | E15: 21 | F15: 1006 | K15: 0 | L15: 112 | P15: =SUM(P7:P14) -> 1 | Q15: =-SUM(Q7:Q14) -> 1.136249561 | V15: =SUM(V7:V14) -> 1 | W15: =-SUM(W7:W14) -> 0.5435644432 | AA15: =SUM(AA7:AA14) -> 1 | AB15: =-SUM(AB7:AB14) -> 0 | AF15: =SUM(AF7:AF14) -> 1 | AG15: =-SUM(AG7:AG14) -> 0.5916727786 | AK15: =SUM(AK7:AK14) -> 1 | AL15: =-SUM(AL7:AL14) -> 0.8631205686 | AP15: =SUM(AP7:AP14) -> 1 | AQ15: =-SUM(AQ7:AQ14) -> 0 | AU15: =SUM(AU7:AU14) -> 1 | AV15: =-SUM(AV7:AV14) -> 0.5435644432
A16: 11 | B16: 1095 | C16: 11 | D16: 1099 | E16: 21 | F16: 1141 | K16: 0 | L16: 112 | P16: U= | Q16: =Q15/(LOG(Q4)/LOG(2)) -> 0.1974407946 | V16: U1= | W16: =W15/(LOG(W4)/LOG(2)) -> 0.1714754901 | AA16: U2= | AB16: =AB15/(LOG(AB4)/LOG(2)) -> 0 | AF16: U3= | AG16: =AG15/(LOG(AG4)/LOG(2)) -> 0.1866519802 | AK16: U4= | AL16: =AL15/(LOG(AL4)/LOG(2)) -> 0.2722842238 | AP16: U5= | AQ16: =AQ15/(LOG(AQ4)/LOG(2)) -> 0 | AU16: U6= | AV16: =AV15/(LOG(AV4)/LOG(2)) -> 0.1714754901
A17: 11 | B17: 1228 | C17: 22 | D17: 1240 | E17: 23 | F17: 1251 | K17: 0 | L17: 122
A18: 11 | B18: 1348 | C18: 11 | D18: 1352 | E18: 21 | F18: 1362 | K18: 0 | L18: 112
A19: 11 | B19: 1448 | C19: 11 | D19: 1453 | E19: 21 | F19: 1463 | K19: 0 | L19: 112 | N19: Total Target Seq
A20: 11 | B20: 1550 | C20: 11 | D20: 1555 | E20: 21 | F20: 1573 | K20: 0 | L20: 112 | N20: =COUNTIF(L7:L60,G3) -> 9 | P20: 9 | Q20: 9 | R20: 9 | S20: 9 | T20: 9 | U20: 9
A21: 11 | B21: 1664 | C21: 11 | D21: 1668 | E21: 21 | F21: 1678 | K21: 0 | L21: 112 | P21: % of reinforcement given in 6 equal intervals based on number of trials
A22: 11 | B22: 1764 | C22: 11 | D22: 1769 | E22: 21 | F22: 1801 | K22: 0 | L22: 112 | P22: %_1 | Q22: %_2 | R22: %_3 | S22: %_4 | T22: %_5 | U22: %_6
A23: 11 | B23: 1890 | C23: 11 | D23: 1894 | E23: 21 | F23: 1903 | K23: 0 | L23: 112 | O23: target sequence | P23: =$G$3 -> 122 | Q23: 122 | R23: 122 | S23: 122 | T23: 122 | U23: 122
A24: 11 | B24: 1990 | C24: 11 | D24: 1995 | E24: 21 | F24: 2005 | K24: 0 | L24: 112 | O24: total reinforcement | P24: =U10 -> 1 | Q24: =Z10 -> 1 | R24: =AE10 -> 2 | S24: =AJ10 -> 2 | T24: =AO10 -> 2 | U24: =AT10 -> 1
A25: 11 | B25: 2091 | C25: 11 | D25: 2095 | E25: 21 | F25: 2155 | K25: 0 | L25: 112 | O25: % target
A26: 11 | B26: 2241 | C26: 11 | D26: 2245 | E26: 21 | F26: 2254 | K26: 0 | L26: 112 | O26: CCRF
A27: 11 | B27: 2342 | C27: 11 | D27: 2347 | E27: 21 | F27: 2364 | K27: 0 | L27: 112 | O27: % CCRf
A28: 11 | B28: 2451 | C28: 11 | D28: 2456 | E28: 12 | F28: 2505 | K28: 0 | L28: 111 | O28: average response rate | P28: =F15/P20 -> 111.7777778 | Q28: =(F24-F15)/Q20 -> 111 | R28: =(F33-F24)/R20 -> 120.3333333 | S28: =(F42-F33)/S20 -> 128.6666667 | T28: =(F51-F42)/T20 -> 118.6666667 | U28: =(F60-F51)/U20 -> 120.6666667
A29: 11 | B29: 2602 | C29: 11 | D29: 2610 | E29: 21 | F29: 2619 | K29: 0 | L29: 112
A30: 11 | B30: 2706 | C30: 11 | D30: 2711 | E30: 21 | F30: 2721 | K30: 0 | L30: 112
A31: 11 | B31: 2806 | C31: 22 | D31: 2819 | E31: 23 | F31: 2833 | K31: 0 | L31: 122
A32: 11 | B32: 2931 | C32: 22 | D32: 2944 | E32: 23 | F32: 2951 | K32: 0 | L32: 122
A33: 11 | B33: 3050 | C33: 11 | D33: 3054 | E33: 21 | F33: 3088 | K33: 0 | L33: 112
A34: 11 | B34: 3178 | C34: 11 | D34: 3182 | E34: 21 | F34: 3191 | K34: 0 | L34: 112
A35: 11 | B35: 3282 | C35: 22 | D35: 3294 | E35: 23 | F35: 3302 | K35: 0 | L35: 122
A36: 11 | B36: 3402 | C36: 11 | D36: 3421 | E36: 21 | F36: 3454 | K36: 0 | L36: 112
A37: 11 | B37: 3541 | C37: 11 | D37: 3546 | E37: 21 | F37: 3562 | K37: 0 | L37: 112
A38: 11 | B38: 3650 | C38: 22 | D38: 3660 | E38: 23 | F38: 3689 | K38: 0 | L38: 122
A39: 11 | B39: 3786 | C39: 11 | D39: 3803 | E39: 12 | F39: 3898 | K39: 0 | L39: 111
A40: 11 | B40: 3995 | C40: 11 | D40: 3997 | E40: 12 | F40: 4007 | K40: 0 | L40: 111
A41: 11 | B41: 4104 | C41: 11 | D41: 4110 | E41: 21 | F41: 4131 | K41: 0 | L41: 112
A42: 11 | B42: 4218 | C42: 11 | D42: 4222 | E42: 21 | F42: 4246 | K42: 0 | L42: 112
A43: 11 | B43: 4331 | C43: 11 | D43: 4336 | E43: 21 | F43: 4345 | K43: 0 | L43: 112
A44: 11 | B44: 4433 | C44: 11 | D44: 4438 | E44: 21 | F44: 4477 | K44: 0 | L44: 112
A45: 11 | B45: 4564 | C45: 22 | D45: 4575 | E45: 23 | F45: 4588 | K45: 0 | L45: 122
A46: 11 | B46: 4686 | C46: 11 | D46: 4697 | E46: 21 | F46: 4721 | K46: 0 | L46: 112
A47: 11 | B47: 4811 | C47: 11 | D47: 4816 | E47: 21 | F47: 4832 | K47: 0 | L47: 112
A48: 11 | B48: 4919 | C48: 22 | D48: 4930 | E48: 23 | F48: 4940 | K48: 0 | L48: 122
A49: 11 | B49: 5036 | C49: 11 | D49: 5042 | E49: 21 | F49: 5092 | K49: 0 | L49: 112
A50: 11 | B50: 5181 | C50: 11 | D50: 5192 | E50: 21 | F50: 5201 | K50: 0 | L50: 112
A51: 11 | B51: 5292 | C51: 11 | D51: 5298 | E51: 21 | F51: 5314 | K51: 0 | L51: 112
A52: 11 | B52: 5401 | C52: 11 | D52: 5406 | E52: 21 | F52: 5415 | K52: 0 | L52: 112
A53: 11 | B53: 5505 | C53: 11 | D53: 5509 | E53: 21 | F53: 5519 | K53: 0 | L53: 112
A54: 11 | B54: 5604 | C54: 11 | D54: 5614 | E54: 12 | F54: 5690 | K54: 0 | L54: 111
A55: 11 | B55: 5786 | C55: 11 | D55: 5791 | E55: 21 | F55: 5809 | K55: 0 | L55: 112
A56: 11 | B56: 5897 | C56: 11 | D56: 5904 | E56: 21 | F56: 5928 | K56: 0 | L56: 112
A57: 11 | B57: 6015 | C57: 11 | D57: 6021 | E57: 21 | F57: 6032 | K57: 0 | L57: 112
A58: 11 | B58: 6123 | C58: 11 | D58: 6128 | E58: 21 | F58: 6179 | K58: 0 | L58: 112
A59: 11 | B59: 6266 | C59: 22 | D59: 6277 | E59: 23 | F59: 6286 | K59: 0 | L59: 122
A60: 11 | B60: 6385 | C60: 11 | D60: 6390 | E60: 21 | F60: 6400 | K60: 1 | L60: 112

Sheet !L811C10.056
A1: Report for:!L811C10.056
A2: Date: | B2: <date>
A3: Hen: | B3: <hen> | F3: Correct Sequence | G3: =Start!J2 -> 122 | P3: Total Sequences in Data | Q3: =4994-COUNTBLANK(L7:L5000) -> 79 | V3: Total Sequences in Block Data | W3: =COUNTA(L7:L19) -> 13 | AA3: Total Sequences in Block Data | AB3: =COUNTA(L20:L32) -> 13 | AF3: Total Sequences in Block Data | AG3: =COUNTA(L33:L46) -> 14 | AK3: Total Sequences in Block Data | AL3: =COUNTA(L47:L59) -> 13 | AP3: Total Sequences in Block Data | AQ3: =COUNTA(L60:L72) -> 13 | AU3: Total Sequences in Block Data | AV3: =COUNTA(L73:L85) -> 13
P4: Total Sequences in Summary | Q4: =SUM(O7:O14) -> 79 | V4: Total Sequences in Block Summary | W4: =SUM(U7:U14) -> 13 | AA4: Total Sequences in Block Summary | AB4: =SUM(Z7:Z14) -> 13 | AF4: Total Sequences in Block Summary | AG4: =SUM(AE7:AE14) -> 14 | AK4: Total Sequences in Block Summary | AL4: =SUM(AJ7:AJ14) -> 13 | AP4: Total Sequences in Block Summary | AQ4: =SUM(AO7:AO14) -> 13 | AU4: Total Sequences in Block Summary | AV4: =SUM(AT7:AT14) -> 13
T5: Block 1 | Y5: Block 2 | AD5: Block 3 | AI5: Block 4 | AN5: Block 5 | AS5: Block 6
A6: Sequence Component 1 | B6: Time 1 | C6: Sequence Component 2 | D6: Time 2 | E6: Sequence Component 3 | F6: Time 3 | G6: Sequence Component 4 | H6: Time 4 | I6: Sequence Component 5 | J6: Time 5 | K6: Correct? 0=No 1=Yes | L6: Sequence | N6: Frequency | P6: Relative Frequency | Q6: Variability | T6: Frequency | V6: Relative Frequency | W6: Variability | Y6: Frequency | AA6: Relative Frequency | AB6: Variability | AD6: Frequency | AF6: Relative Frequency | AG6: Variability | AI6: Frequency | AK6: Relative Frequency | AL6: Variability | AN6: Frequency | AP6: Relative Frequency | AQ6: Variability | AS6: Frequency | AU6: Relative Frequency | AV6: Variability
A7: 22 | B7: 23 | C7: 24 | D7: 30 | E7: 23 | F7: 40 | K7: 0 | L7: 222 | N7: 111 | O7: =COUNTIF($L$7:$L$500,N7) -> 3 | P7: =O7/$Q$4 -> 0.03797468354 | Q7: =IF(P7=0,0,(P7*((LOG(P7))/LOG(2)))) -> -0.1791956297 | T7: =N7 -> 111 | U7: =COUNTIF(L7:L19,T7) -> 0 | V7: =U7/(W4-U10) -> 0 | W7: =IF(V7=0,0,(V7*((LOG(V7))/LOG(2)))) -> 0 | Y7: =N7 -> 111 | Z7: =COUNTIF(L20:L32,Y7) -> 1 | AA7: =Z7/(AB4-Z10) -> 0.125 | AB7: =IF(AA7=0,0,(AA7*((LOG(AA7))/LOG(2)))) -> -0.375 | AD7: =N7 -> 111 | AE7: =COUNTIF(L33:L46,AD7) -> 1 | AF7: =AE7/(AG4-AE10) -> 0.1666666667 | AG7: =IF(AF7=0,0,(AF7*((LOG(AF7))/LOG(2)))) -> -0.4308270835 | AI7: =N7 -> 111 | AJ7: =COUNTIF(L47:L59,AI7) -> 0 | AK7: =AJ7/(AL4-AJ10) -> 0 | AL7: =IF(AK7=0,0,(AK7*((LOG(AK7))/LOG(2)))) -> 0 | AN7: =N7 -> 111 | AO7: =COUNTIF(L60:L72,AN7) -> 0 | AP7: =AO7/(AQ4-AO10) -> 0 | AQ7: =IF(AP7=0,0,(AP7*((LOG(AP7))/LOG(2)))) -> 0 | AS7: =N7 -> 111 | AT7: =COUNTIF(L73:L85,AS7) -> 1 | AU7: =AT7/(AV4-AT10) -> 0.1428571429 | AV7: =IF(AU7=0,0,(AU7*((LOG(AU7))/LOG(2)))) -> -0.4010507032
A8: 11 | B8: 138 | C8: 11 | D8: 144 | E8: 21 | F8: 165 | K8: 0 | L8: 112 | N8: 112 | O8: 40 | P8: 0.5063291139 | Q8: -0.4971405839 | T8: 112 | U8: =COUNTIF(L7:L19,T8) -> 10 | V8: =U8/(W4-U10) -> 0.9090909091 | W8: =IF(V8=0,0,(V8*((LOG(V8))/LOG(2)))) -> -0.1250032034 | Y8: 112 | Z8: =COUNTIF(L20:L32,Y8) -> 6 | AA8: =Z8/(AB4-Z10) -> 0.75 | AB8: =IF(AA8=0,0,(AA8*((LOG(AA8))/LOG(2)))) -> -0.3112781245 | AD8: 112 | AE8: =COUNTIF(L33:L46,AD8) -> 5 | AF8: =AE8/(AG4-AE10) -> 0.8333333333 | AG8: =IF(AF8=0,0,(AF8*((LOG(AF8))/LOG(2)))) -> -0.2191953382 | AI8: 112 | AJ8: =COUNTIF(L47:L59,AI8) -> 5 | AK8: =AJ8/(AL4-AJ10) -> 0.8333333333 | AL8: =IF(AK8=0,0,(AK8*((LOG(AK8))/LOG(2)))) -> -0.2191953382 | AN8: 112 | AO8: =COUNTIF(L60:L72,AN8) -> 9 | AP8: =AO8/(AQ4-AO10) -> 0.9 | AQ8: =IF(AP8=0,0,(AP8*((LOG(AP8))/LOG(2)))) -> -0.1368027841 | AS8: 112 | AT8: =COUNTIF(L73:L85,AS8) -> 5 | AU8: =AT8/(AV4-AT10) -> 0.7142857143 | AV8: =IF(AU8=0,0,(AU8*((LOG(AU8))/LOG(2)))) -> -0.346733448
A9: 11 | B9: 256 | C9: 11 | D9: 262 | E9: 21 | F9: 273 | K9: 0 | L9: 112 | N9: 121 | O9: 4 | P9: 0.05063291139 | Q9: -0.2179129493 | T9: 121 | U9: =COUNTIF(L7:L19,T9) -> 0 | V9: =U9/(W4-U10) -> 0 | W9: =IF(V9=0,0,(V9*((LOG(V9))/LOG(2)))) -> 0 | Y9: 121 | Z9: =COUNTIF(L20:L32,Y9) -> 1 | AA9: =Z9/(AB4-Z10) -> 0.125 | AB9: =IF(AA9=0,0,(AA9*((LOG(AA9))/LOG(2)))) -> -0.375 | AD9: 121 | AE9: =COUNTIF(L33:L46,AD9) -> 0 | AF9: =AE9/(AG4-AE10) -> 0 | AG9: =IF(AF9=0,0,(AF9*((LOG(AF9))/LOG(2)))) -> 0 | AI9: 121 | AJ9: =COUNTIF(L47:L59,AI9) -> 1 | AK9: =AJ9/(AL4-AJ10) -> 0.1666666667 | AL9: =IF(AK9=0,0,(AK9*((LOG(AK9))/LOG(2)))) -> -0.4308270835 | AN9: 121 | AO9: =COUNTIF(L60:L72,AN9) -> 1 | AP9: =AO9/(AQ4-AO10) -> 0.1 | AQ9: =IF(AP9=0,0,(AP9*((LOG(AP9))/LOG(2)))) -> -0.3321928095 | AS9: 121 | AT9: =COUNTIF(L73:L85,AS9) -> 1 | AU9: =AT9/(AV4-AT10) -> 0.1428571429 | AV9: =IF(AU9=0,0,(AU9*((LOG(AU9))/LOG(2)))) -> -0.4010507032
A10: 11 | B10: 363 | C10: 11 | D10: 368 | E10: 21 | F10: 410 | K10: 0 | L10: 112 | N10: 122 | O10: 31 | P10: 0.3924050633 | Q10: -0.5295837667 | T10: 122 | U10: =COUNTIF(L7:L19,T10) -> 2 | Y10: 122 | Z10: =COUNTIF(L20:L32,Y10) -> 5 | AD10: 122 | AE10: =COUNTIF(L33:L46,AD10) -> 8 | AI10: 122 | AJ10: =COUNTIF(L47:L59,AI10) -> 7 | AN10: 122 | AO10: =COUNTIF(L60:L72,AN10) -> 3 | AS10: 122 | AT10: =COUNTIF(L73:L85,AS10) -> 6
A11: 11 | B11: 501 | C11: 11 | D11: 508 | E11: 21 | F11: 517 | K11: 0 | L11: 112 | N11: 211 | O11: 0 | P11: 0 | Q11: 0 | T11: 211 | U11: =COUNTIF(L7:L19,T11) -> 0 | V11: =U11/(W4-U10) -> 0 | W11: =IF(V11=0,0,(V11*((LOG(V11))/LOG(2)))) -> 0 | Y11: 211 | Z11: =COUNTIF(L20:L32,Y11) -> 0 | AA11: =Z11/(AB4-Z10) -> 0 | AB11: =IF(AA11=0,0,(AA11*((LOG(AA11))/LOG(2)))) -> 0 | AD11: 211 | AE11: =COUNTIF(L33:L46,AD11) -> 0 | AF11: =AE11/(AG4-AE10) -> 0 | AG11: =IF(AF11=0,0,(AF11*((LOG(AF11))/LOG(2)))) -> 0 | AI11: 211 | AJ11: =COUNTIF(L47:L59,AI11) -> 0 | AK11: =AJ11/(AL4-AJ10) -> 0 | AL11: =IF(AK11=0,0,(AK11*((LOG(AK11))/LOG(2)))) -> 0 | AN11: 211 | AO11: =COUNTIF(L60:L72,AN11) -> 0 | AP11: =AO11/(AQ4-AO10) -> 0 | AQ11: =IF(AP11=0,0,(AP11*((LOG(AP11))/LOG(2)))) -> 0 | AS11: 211 | AT11: =COUNTIF(L73:L85,AS11) -> 0 | AU11: =AT11/(AV4-AT10) -> 0 | AV11: =IF(AU11=0,0,(AU11*((LOG(AU11))/LOG(2)))) -> 0
A12: 11 | B12: 604 | C12: 11 | D12: 609 | E12: 21 | F12: 620 | K12: 0 | L12: 112 | N12: 212 | O12: 0 | P12: 0 | Q12: 0 | T12: 212 | U12: =COUNTIF(L7:L19,T12) -> 0 | V12: =U12/(W4-U10) -> 0 | W12: =IF(V12=0,0,(V12*((LOG(V12))/LOG(2)))) -> 0 | Y12: 212 | Z12: =COUNTIF(L20:L32,Y12) -> 0 | AA12: =Z12/(AB4-Z10) -> 0 | AB12: =IF(AA12=0,0,(AA12*((LOG(AA12))/LOG(2)))) -> 0 | AD12: 212 | AE12: =COUNTIF(L33:L46,AD12) -> 0 | AF12: =AE12/(AG4-AE10) -> 0 | AG12: =IF(AF12=0,0,(AF12*((LOG(AF12))/LOG(2)))) -> 0 | AI12: 212 | AJ12: =COUNTIF(L47:L59,AI12) -> 0 | AK12: =AJ12/(AL4-AJ10) -> 0 | AL12: =IF(AK12=0,0,(AK12*((LOG(AK12))/LOG(2)))) -> 0 | AN12: 212 | AO12: =COUNTIF(L60:L72,AN12) -> 0 | AP12: =AO12/(AQ4-AO10) -> 0 | AQ12: =IF(AP12=0,0,(AP12*((LOG(AP12))/LOG(2)))) -> 0 | AS12: 212 | AT12: =COUNTIF(L73:L85,AS12) -> 0 | AU12: =AT12/(AV4-AT10) -> 0 | AV12: =IF(AU12=0,0,(AU12*((LOG(AU12))/LOG(2)))) -> 0
A13: 11 | B13: 707 | C13: 11 | D13: 712 | E13: 21 | F13: 722 | K13: 0 | L13: 112 | N13: 221 | O13: 0 | P13: 0 | Q13: 0 | T13: 221 | U13: =COUNTIF(L7:L19,T13) -> 0 | V13: =U13/(W4-U10) -> 0 | W13: =IF(V13=0,0,(V13*((LOG(V13))/LOG(2)))) -> 0 | Y13: 221 | Z13: =COUNTIF(L20:L32,Y13) -> 0 | AA13: =Z13/(AB4-Z10) -> 0 | AB13: =IF(AA13=0,0,(AA13*((LOG(AA13))/LOG(2)))) -> 0 | AD13: 221 | AE13: =COUNTIF(L33:L46,AD13) -> 0 | AF13: =AE13/(AG4-AE10) -> 0 | AG13: =IF(AF13=0,0,(AF13*((LOG(AF13))/LOG(2)))) -> 0 | AI13: 221 | AJ13: =COUNTIF(L47:L59,AI13) -> 0 | AK13: =AJ13/(AL4-AJ10) -> 0 | AL13: =IF(AK13=0,0,(AK13*((LOG(AK13))/LOG(2)))) -> 0 | AN13: 221 | AO13: =COUNTIF(L60:L72,AN13) -> 0 | AP13: =AO13/(AQ4-AO10) -> 0 | AQ13: =IF(AP13=0,0,(AP13*((LOG(AP13))/LOG(2)))) -> 0 | AS13: 221 | AT13: =COUNTIF(L73:L85,AS13) -> 0 | AU13: =AT13/(AV4-AT10) -> 0 | AV13: =IF(AU13=0,0,(AU13*((LOG(AU13))/LOG(2)))) -> 0
A14: 11 | B14: 811 | C14: 22 | D14: 824 | E14: 23 | F14: 832 | K14: 0 | L14: 122 | N14: 222 | O14: 1 | P14: 0.01265822785 | Q14: -0.07979469301 | T14: 222 | U14: =COUNTIF(L7:L19,T14) -> 1 | V14: =U14/(W4-U10) -> 0.09090909091 | W14: =IF(V14=0,0,(V14*((LOG(V14))/LOG(2)))) -> -0.3144937835 | Y14: 222 | Z14: =COUNTIF(L20:L32,Y14) -> 0 | AA14: =Z14/(AB4-Z10) -> 0 | AB14: =IF(AA14=0,0,(AA14*((LOG(AA14))/LOG(2)))) -> 0 | AD14: 222 | AE14: =COUNTIF(L33:L46,AD14) -> 0 | AF14: =AE14/(AG4-AE10) -> 0 | AG14: =IF(AF14=0,0,(AF14*((LOG(AF14))/LOG(2)))) -> 0 | AI14: 222 | AJ14: =COUNTIF(L47:L59,AI14) -> 0 | AK14: =AJ14/(AL4-AJ10) -> 0 | AL14: =IF(AK14=0,0,(AK14*((LOG(AK14))/LOG(2)))) -> 0 | AN14: 222 | AO14: =COUNTIF(L60:L72,AN14) -> 0 | AP14: =AO14/(AQ4-AO10) -> 0 | AQ14: =IF(AP14=0,0,(AP14*((LOG(AP14))/LOG(2)))) -> 0 | AS14: 222 | AT14: =COUNTIF(L73:L85,AS14) -> 0 | AU14: =AT14/(AV4-AT10) -> 0 | AV14: =IF(AU14=0,0,(AU14*((LOG(AU14))/LOG(2)))) -> 0
A15: 11 | B15: 928 | C15: 11 | D15: 933 | E15: 21 | F15: 944 | K15: 0 | L15: 112 | P15: =SUM(P7:P14) -> 1 | Q15: =-SUM(Q7:Q14) -> 1.503627623 | V15: =SUM(V7:V14) -> 1 | W15: =-SUM(W7:W14) -> 0.4394969869 | AA15: =SUM(AA7:AA14) -> 1 | AB15: =-SUM(AB7:AB14) -> 1.061278124 | AF15: =SUM(AF7:AF14) -> 1 | AG15: =-SUM(AG7:AG14) -> 0.6500224216 | AK15: =SUM(AK7:AK14) -> 1 | AL15: =-SUM(AL7:AL14) -> 0.6500224216 | AP15: =SUM(AP7:AP14) -> 1 | AQ15: =-SUM(AQ7:AQ14) -> 0.4689955936 | AU15: =SUM(AU7:AU14) -> 1 | AV15: =-SUM(AV7:AV14) -> 1.148834854
A16: 11 | B16: 1031 | C16: 22 | D16: 1044 | E16: 23 | F16: 1053 | K16: 0 | L16: 122 | P16: U= | Q16: =Q15/(LOG(Q4)/LOG(2)) -> 0.2385279061 | V16: U1= | W16: =W15/(LOG(W4)/LOG(2)) -> 0.1187688546 | AA16: U2= | AB16: =AB15/(LOG(AB4)/LOG(2)) -> 0.2867978417 | AF16: U3= | AG16: =AG15/(LOG(AG4)/LOG(2)) -> 0.1707280868 | AK16: U4= | AL16: =AL15/(LOG(AL4)/LOG(2)) -> 0.1756608596 | AP16: U5= | AQ16: =AQ15/(LOG(AQ4)/LOG(2)) -> 0.1267405036 | AU16: U6= | AV16: =AV15/(LOG(AV4)/LOG(2)) -> 0.3104590108
A17: 11 | B17: 1150 | C17: 11 | D17: 1155 | E17: 21 | F17: 1165 | K17: 0 | L17: 112
A18: 11 | B18: 1254 | C18: 11 | D18: 1259 | E18: 21 | F18: 1287 | K18: 0 | L18: 112
A19: 11 | B19: 1372 | C19: 11 | D19: 1379 | E19: 21 | F19: 1389 | K19: 0 | L19: 112 | N19: Total Target Seq
A20: 11 | B20: 1478 | C20: 22 | D20: 1492 | E20: 14 | F20: 1507 | K20: 0 | L20: 121 | N20: =COUNTIF(L7:L85,G3) -> 31 | P20: 13 | Q20: 13 | R20: 14 | S20: 13 | T20: 13 | U20: 13
A21: 11 | B21: 1603 | C21: 22 | D21: 1615 | E21: 23 | F21: 1628 | K21: 0 | L21: 122 | P21: % of reinforcement given in 6 equal intervals based on number of trials
A22: 11 | B22: 1728 | C22: 11 | D22: 1733 | E22: 21 | F22: 1744 | K22: 0 | L22: 112 | P22: %_1 | Q22: %_2 | R22: %_3 | S22: %_4 | T22: %_5 | U22: %_6
A23: 11 | B23: 1831 | C23: 11 | D23: 1836 | E23: 21 | F23: 1846 | K23: 0 | L23: 112 | O23: target sequence | P23: =$G$3 -> 122 | Q23: 122 | R23: 122 | S23: 122 | T23: 122 | U23: 122
A24: 11 | B24: 1931 | C24: 11 | D24: 1950 | E24: 12 | F24: 1963 | K24: 0 | L24: 111 | O24: total reinforcement | P24: =U10 -> 2 | Q24: =Z10 -> 5 | R24: =AE10 -> 8 | S24: =AJ10 -> 7 | T24: =AO10 -> 3 | U24: =AT10 -> 6
A25: 11 | B25: 2062 | C25: 11 | D25: 2066 | E25: 21 | F25: 2077 | K25: 0 | L25: 112 | O25: % target
A26: 11 | B26: 2162 | C26: 11 | D26: 2172 | E26: 21 | F26: 2186 | K26: 0 | L26: 112 | O26: CCRF
A27: 11 | B27: 2274 | C27: 22 | D27: 2285 | E27: 23 | F27: 2311 | K27: 0 | L27: 122 | O27: % CCRf
A28: 11 | B28: 2408 | C28: 22 | D28: 2421 | E28: 23 | F28: 2430 | K28: 0 | L28: 122 | O28: average response rate | P28: =F19/P20 -> 106.8461538 | Q28: =(F32-F19)/Q20 -> 117.9230769 | R28: =(F46-F32)/R20 -> 119.6428571 | S28: =(F59-F46)/S20 -> 117.6923077 | T28: =(F72-F59)/T20 -> 114.6153846 | U28: =(F85-F72)/U20 -> 120.8461538
A29: 11 | B29: 2529 | C29: 22 | D29: 2539 | E29: 23 | F29: 2560 | K29: 0 | L29: 122
A30: 11 | B30: 2656 | C30: 11 | D30: 2661 | E30: 21 | F30: 2673 | K30: 0 | L30: 112
A31: 11 | B31: 2761 | C31: 22 | D31: 2796 | E31: 23 | F31: 2809 | K31: 0 | L31: 122
A32: 11 | B32: 2907 | C32: 11 | D32: 2912 | E32: 21 | F32: 2922 | K32: 0 | L32: 112
A33: 11 | B33: 3011 | C33: 22 | D33: 3021 | E33: 23 | F33: 3032 | K33: 0 | L33: 122
A34: 11 | B34: 3129 | C34: 22 | D34: 3143 | E34: 23 | F34: 3150 | K34: 0 | L34: 122
A35: 11 | B35: 3252 | C35: 22 | D35: 3264 | E35: 23 | F35: 3279 | K35: 0 | L35: 122
A36: 11 | B36: 3378 | C36: 11 | D36: 3387 | E36: 21 | F36: 3397 | K36: 0 | L36: 112
A37: 11 | B37: 3487 | C37: 22 | D37: 3499 | E37: 23 | F37: 3512 | K37: 0 | L37: 122
A38: 11 | B38: 3608 | C38: 11 | D38: 3615 | E38: 21 | F38: 3642 | K38: 0 | L38: 112
A39: 11 | B39: 3730 | C39: 11 | D39: 3735 | E39: 21 | F39: 3752 | K39: 0 | L39: 112
A40: 11 | B40: 3842 | C40: 22 | D40: 3852 | E40: 23 | F40: 3865 | K40: 0 | L40: 122
A41: 11 | B41: 3965 | C41: 22 | D41: 3976 | E41: 23 | F41: 3986 | K41: 0 | L41: 122
A42: 11 | B42: 4083 | C42: 11 | D42: 4088 | E42: 21 | F42: 4098 | K42: 0 | L42: 112
A43: 11 | B43: 4192 | C43: 22 | D43: 4202 | E43: 23 | F43: 4254 | K43: 0 | L43: 122
A44: 11 | B44: 4348 | C44: 11 | D44: 4356 | E44: 12 | F44: 4370 | K44: 0 | L44: 111
A45: 11 | B45: 4465 | C45: 11 | D45: 4474 | E45: 21 | F45: 4484 | K45: 0 | L45: 112
A46: 11 | B46: 4575 | C46: 22 | D46: 4587 | E46: 23 | F46: 4597 | K46: 0 | L46: 122
A47: 11 | B47: 4695 | C47: 11 | D47: 4701 | E47: 21 | F47: 4711 | K47: 0 | L47: 112
A48: 11 | B48: 4798 | C48: 22 | D48: 4809 | E48: 23 | F48: 4823 | K48: 0 | L48: 122
A49: 11 | B49: 4919 | C49: 22 | D49: 4932 | E49: 23 | F49: 4942 | K49: 0 | L49: 122
A50: 11 | B50: 5042 | C50: 22 | D50: 5053 | E50: 23 | F50: 5066 | K50: 0 | L50: 122
A51: 11 | B51: 5164 | C51: 11 | D51: 5170 | E51: 21 | F51: 5180 | K51: 0 | L51: 112
A52: 11 | B52: 5267 | C52: 11 | D52: 5271 | E52: 21 | F52: 5282 | K52: 0 | L52: 112
A53: 11 | B53: 5371 | C53: 22 | D53: 5385 | E53: 23 | F53: 5397 | K53: 0 | L53: 122
A54: 11 | B54: 5494 | C54: 22 | D54: 5507 | E54: 23 | F54: 5516 | K54: 0 | L54: 122
A55: 11 | B55: 5615 | C55: 11 | D55: 5623 | E55: 21 | F55: 5661 | K55: 0 | L55: 112
A56: 11 | B56: 5753 | C56: 22 | D56: 5766 | E56: 14 | F56: 5780 | K56: 0 | L56: 121
A57: 11 | B57: 5878 | C57: 11 | D57: 5883 | E57: 21 | F57: 5894 | K57: 0 | L57: 112
A58: 11 | B58: 5983 | C58: 22 | D58: 5994 | E58: 23 | F58: 6002 | K58: 0 | L58: 122
A59: 11 | B59: 6099 | C59: 22 | D59: 6112 | E59: 23 | F59: 6127 | K59: 0 | L59: 122
A60: 11 | B60: 6223 | C60: 22 | D60: 6234 | E60: 23 | F60: 6246 | K60: 0 | L60: 122
A61: 11 | B61: 6345 | C61: 22 | D61: 6362 | E61: 23 | F61: 6370 | K61: 0 | L61: 122
A62: 11 | B62: 6467 | C62: 11 | D62: 6474 | E62: 21 | F62: 6484 | K62: 0 | L62: 112
A63: 11 | B63: 6574 | C63: 22 | D63: 6585 | E63: 14 | F63: 6600 | K63: 0 | L63: 121
A64: 11 | B64: 6697 | C64: 11 | D64: 6701 | E64: 21 | F64: 6711 | K64: 0 | L64: 112
A65: 11 | B65: 6798 | C65: 11 | D65: 6802 | E65: 21 | F65: 6828 | K65: 0 | L65: 112
A66: 11 | B66: 6921 | C66: 22 | D66: 6931 | E66: 23 | F66: 6939 | K66: 0 | L66: 122
A67: 11 | B67: 7034 | C67: 11 | D67: 7044 | E67: 21 | F67: 7069 | K67: 0 | L67: 112
A68: 11 | B68: 7155 | C68: 11 | D68: 7162 | E68: 21 | F68: 7172 | K68: 0 | L68: 112
A69: 11 | B69: 7258 | C69: 11 | D69: 7267 | E69: 21 | F69: 7276 | K69: 0 | L69: 112
A70: 11 | B70: 7365 | C70: 11 | D70: 7371 | E70: 21 | F70: 7380 | K70: 0 | L70: 112
A71: 11 | B71: 7470 | C71: 11 | D71: 7476 | E71: 21 | F71: 7518 | K71: 0 | L71: 112
A72: 11 | B72: 7602 | C72: 11 | D72: 7607 | E72: 21 | F72: 7617 | K72: 0 | L72: 112
A73: 11 | B73: 7704 | C73: 11 | D73: 7712 | E73: 21 | F73: 7746 | K73: 0 | L73: 112
A74: 11 | B74: 7835 | C74: 22 | D74: 7844 | E74: 23 | F74: 7852 | K74: 0 | L74: 122
A75: 11 | B75: 7954 | C75: 22 | D75: 7964 | E75: 23 | F75: 7972 | K75: 0 | L75: 122
A76: 11 | B76: 8069 | C76: 22 | D76: 8080 | E76: 14 | F76: 8104 | K76: 0 | L76: 121
A77: 11 | B77: 8201 | C77: 22 | D77: 8240 | E77: 23 | F77: 8252 | K77: 0 | L77: 122
A78: 11 | B78: 8350 | C78: 22 | D78: 8360 | E78: 23 | F78: 8368 | K78: 0 | L78: 122
A79: 11 | B79: 8465 | C79: 11 | D79: 8469 | E79: 21 | F79: 8499 | K79: 0 | L79: 112
A80: 11 | B80: 8590 | C80: 11 | D80: 8596 | E80: 21 | F80: 8605 | K80: 0 | L80: 112
A81: 11 | B81: 8692 | C81: 22 | D81: 8703 | E81: 23 | F81: 8711 | K81: 0 | L81: 122
A82: 11 | B82: 8808 | C82: 22 | D82: 8819 | E82: 23 | F82: 8826 | K82: 0 | L82: 122
A83: 11 | B83: 8922 | C83: 11 | D83: 8927 | E83: 12 | F83: 8943 | K83: 0 | L83: 111
A84: 11 | B84: 9040 | C84: 11 | D84: 9045 | E84: 21 | F84: 9057 | K84: 0 | L84: 112
A85: 11 | B85: 9145 | C85: 11 | D85: 9155 | E85: 21 | F85: 9188 | K85: 1 | L85: 112

Sheet !L812B30.056
A1: Report for:!L812B30.056
A2: Date: | B2: <date>
A3: Hen: | B3: <hen> | F3: Correct Sequence | G3: =Start!J2 -> 122 | P3: Total Sequences in Data | Q3: =4994-COUNTBLANK(L7:L5000) -> 51 | V3: Total Sequences in Block Data | W3: =COUNTA(L7:L15) -> 9 | AA3: Total Sequences in Block Data | AB3: =COUNTA(L16:L23) -> 8 | AF3: Total Sequences in Block Data | AG3: =COUNTA(L24:L32) -> 9 | AK3: Total Sequences in Block Data | AL3: =COUNTA(L33:L40) -> 8 | AP3: Total Sequences in Block Data | AQ3: =COUNTA(L41:L49) -> 9 | AU3: Total Sequences in Block Data | AV3: =COUNTA(L50:L57) -> 8
P4: Total Sequences in Summary | Q4: =SUM(O7:O14) -> 51 | V4: Total Sequences in Block Summary | W4: =SUM(U7:U14) -> 9 | AA4: Total Sequences in Block Summary | AB4: =SUM(Z7:Z14) -> 8 | AF4: Total Sequences in Block Summary | AG4: =SUM(AE7:AE14) -> 9 | AK4: Total Sequences in Block Summary | AL4: =SUM(AJ7:AJ14) -> 8 | AP4: Total Sequences in Block Summary | AQ4: =SUM(AO7:AO14) -> 9 | AU4: Total Sequences in Block Summary | AV4: =SUM(AT7:AT14) -> 8
T5: Block 1 | Y5: Block 2 | AD5: Block 3 | AI5: Block 4 | AN5: Block 5 | AS5: Block 6
A6: Sequence Component 1 | B6: Time 1 | C6: Sequence Component 2 | D6: Time 2 | E6: Sequence Component 3 | F6: Time 3 | G6: Sequence Component 4 | H6: Time 4 | I6: Sequence Component 5 | J6: Time 5 | K6: Correct? 0=No 1=Yes | L6: Sequence | N6: Frequency | P6: Relative Frequency | Q6: Variability | T6: Frequency | V6: Relative Frequency | W6: Variability | Y6: Frequency | AA6: Relative Frequency | AB6: Variability | AD6: Frequency | AF6: Relative Frequency | AG6: Variability | AI6: Frequency | AK6: Relative Frequency | AL6: Variability | AN6: Frequency | AP6: Relative Frequency | AQ6: Variability | AS6: Frequency | AU6: Relative Frequency | AV6: Variability
A7: 11 | B7: 15 | C7: 11 | D7: 21 | E7: 21 | F7: 32 | K7: 0 | L7: 112 | N7: 111 | O7: =COUNTIF($L$7:$L$500,N7) -> 4 | P7: =O7/$Q$4 -> 0.07843137255 | Q7: =IF(P7=0,0,(P7*((LOG(P7))/LOG(2)))) -> -0.2880333602 | T7: =N7 -> 111 | U7: =COUNTIF(L7:L15,T7) -> 0 | V7: =U7/(W4-U10) -> 0 | W7: =IF(V7=0,0,(V7*((LOG(V7))/LOG(2)))) -> 0 | Y7: =N7 -> 111 | Z7: =COUNTIF(L16:L23,Y7) -> 0 | AA7: =Z7/(AB4-Z10) -> 0 | AB7: =IF(AA7=0,0,(AA7*((LOG(AA7))/LOG(2)))) -> 0 | AD7: =N7 -> 111 | AE7: =COUNTIF(L24:L32,AD7) -> 1 | AF7: =AE7/(AG4-AE10) -> 0.125 | AG7: =IF(AF7=0,0,(AF7*((LOG(AF7))/LOG(2)))) -> -0.375 | AI7: =N7 -> 111 | AJ7: =COUNTIF(L33:L40,AI7) -> 1 | AK7: =AJ7/(AL4-AJ10) -> 0.1428571429 | AL7: =IF(AK7=0,0,(AK7*((LOG(AK7))/LOG(2)))) -> -0.4010507032 | AN7: =N7 -> 111 | AO7: =COUNTIF(L41:L49,AN7) -> 0 | AP7: =AO7/(AQ4-AO10) -> 0 | AQ7: =IF(AP7=0,0,(AP7*((LOG(AP7))/LOG(2)))) -> 0 | AS7: =N7 -> 111 | AT7: =COUNTIF(L50:L57,AS7) -> 2 | AU7: =AT7/(AV4-AT10) -> 0.3333333333 | AV7: =IF(AU7=0,0,(AU7*((LOG(AU7))/LOG(2)))) -> -0.5283208336
A8: 11 | B8: 120 | C8: 11 | D8: 125 | E8: 21 | F8: 136 | K8: 0 | L8: 112 | N8: 112 | O8: 40 | P8: 0.7843137255 | Q8: -0.2748998016 | T8: 112 | U8: =COUNTIF(L7:L15,T8) -> 9 | V8: =U8/(W4-U10) -> 1 | W8: =IF(V8=0,0,(V8*((LOG(V8))/LOG(2)))) -> 0 | Y8: 112 | Z8: =COUNTIF(L16:L23,Y8) -> 8 | AA8: =Z8/(AB4-Z10) -> 1 | AB8: =IF(AA8=0,0,(AA8*((LOG(AA8))/LOG(2)))) -> 0 | AD8: 112 | AE8: =COUNTIF(L24:L32,AD8) -> 7 | AF8: =AE8/(AG4-AE10) -> 0.875 | AG8: =IF(AF8=0,0,(AF8*((LOG(AF8))/LOG(2)))) -> -0.1685644432 | AI8: 112 | AJ8: =COUNTIF(L33:L40,AI8) -> 6 | AK8: =AJ8/(AL4-AJ10) -> 0.8571428571 | AL8: =IF(AK8=0,0,(AK8*((LOG(AK8))/LOG(2)))) -> -0.1906220754 | AN8: 112 | AO8: =COUNTIF(L41:L49,AN8) -> 6 | AP8: =AO8/(AQ4-AO10) -> 1 | AQ8: =IF(AP8=0,0,(AP8*((LOG(AP8))/LOG(2)))) -> 0 | AS8: 112 | AT8: =COUNTIF(L50:L57,AS8) -> 4 | AU8: =AT8/(AV4-AT10) -> 0.6666666667 | AV8: =IF(AU8=0,0,(AU8*((LOG(AU8))/LOG(2)))) -> -0.3899750005
A9: 11 | B9: 230 | C9: 11 | D9: 237 | E9: 21 | F9: 263 | K9: 0 | L9: 112 | N9: 121 | O9: 0 | P9: 0 | Q9: 0 | T9: 121 | U9: =COUNTIF(L7:L15,T9) -> 0 | V9: =U9/(W4-U10) -> 0 | W9: =IF(V9=0,0,(V9*((LOG(V9))/LOG(2)))) -> 0 | Y9: 121 | Z9: =COUNTIF(L16:L23,Y9) -> 0 | AA9: =Z9/(AB4-Z10) -> 0 | AB9: =IF(AA9=0,0,(AA9*((LOG(AA9))/LOG(2)))) -> 0 | AD9: 121 | AE9: =COUNTIF(L24:L32,AD9) -> 0 | AF9: =AE9/(AG4-AE10) -> 0 | AG9: =IF(AF9=0,0,(AF9*((LOG(AF9))/LOG(2)))) -> 0 | AI9: 121 | AJ9: =COUNTIF(L33:L40,AI9) -> 0 | AK9: =AJ9/(AL4-AJ10) -> 0 | AL9: =IF(AK9=0,0,(AK9*((LOG(AK9))/LOG(2)))) -> 0 | AN9: 121 | AO9: =COUNTIF(L41:L49,AN9) -> 0 | AP9: =AO9/(AQ4-AO10) -> 0 | AQ9: =IF(AP9=0,0,(AP9*((LOG(AP9))/LOG(2)))) -> 0 | AS9: 121 | AT9: =COUNTIF(L50:L57,AS9) -> 0 | AU9: =AT9/(AV4-AT10) -> 0 | AV9: =IF(AU9=0,0,(AU9*((LOG(AU9))/LOG(2)))) -> 0
A10: 11 | B10: 357 | C10: 11 | D10: 363 | E10: 21 | F10: 383 | K10: 0 | L10: 112 | N10: 122 | O10: 7 | P10: 0.137254902 | Q10: -0.3932449596 | T10: 122 | U10: =COUNTIF(L7:L15,T10) -> 0 | Y10: 122 | Z10: =COUNTIF(L16:L23,Y10) -> 0 | AD10: 122 | AE10: =COUNTIF(L24:L32,AD10) -> 1 | AI10: 122 | AJ10: =COUNTIF(L33:L40,AI10) -> 1 | AN10: 122 | AO10: =COUNTIF(L41:L49,AN10) -> 3 | AS10: 122 | AT10: =COUNTIF(L50:L57,AS10) -> 2
A11: 11 | B11: 471 | C11: 11 | D11: 476 | E11: 21 | F11: 486 | K11: 0 | L11: 112 | N11: 211 | O11: 0 | P11: 0 | Q11: 0 | T11: 211 | U11: =COUNTIF(L7:L15,T11) -> 0 | V11: =U11/(W4-U10) -> 0 | W11: =IF(V11=0,0,(V11*((LOG(V11))/LOG(2)))) -> 0 | Y11: 211 | Z11: =COUNTIF(L16:L23,Y11) -> 0 | AA11: =Z11/(AB4-Z10) -> 0 | AB11: =IF(AA11=0,0,(AA11*((LOG(AA11))/LOG(2)))) -> 0 | AD11: 211 | AE11: =COUNTIF(L24:L32,AD11) -> 0 | AF11: =AE11/(AG4-AE10) -> 0 | AG11: =IF(AF11=0,0,(AF11*((LOG(AF11))/LOG(2)))) -> 0 | AI11: 211 | AJ11: =COUNTIF(L33:L40,AI11) -> 0 | AK11: =AJ11/(AL4-AJ10) -> 0 | AL11: =IF(AK11=0,0,(AK11*((LOG(AK11))/LOG(2)))) -> 0 | AN11: 211 | AO11: =COUNTIF(L41:L49,AN11) -> 0 | AP11: =AO11/(AQ4-AO10) -> 0 | AQ11: =IF(AP11=0,0,(AP11*((LOG(AP11))/LOG(2)))) -> 0 | AS11: 211 | AT11: =COUNTIF(L50:L57,AS11) -> 0 | AU11: =AT11/(AV4-AT10) -> 0 | AV11: =IF(AU11=0,0,(AU11*((LOG(AU11))/LOG(2)))) -> 0
A12: 11 | B12: 575 | C12: 11 | D12: 580 | E12: 21 | F12: 591 | K12: 0 | L12: 112 | N12: 212 | O12: 0 | P12: 0 | Q12: 0 | T12: 212 | U12: =COUNTIF(L7:L15,T12) -> 0 | V12: =U12/(W4-U10) -> 0 | W12: =IF(V12=0,0,(V12*((LOG(V12))/LOG(2)))) -> 0 | Y12: 212 | Z12: =COUNTIF(L16:L23,Y12) -> 0 | AA12: =Z12/(AB4-Z10) -> 0 | AB12: =IF(AA12=0,0,(AA12*((LOG(AA12))/LOG(2)))) -> 0 | AD12: 212 | AE12: =COUNTIF(L24:L32,AD12) -> 0 | AF12: =AE12/(AG4-AE10) -> 0 | AG12: =IF(AF12=0,0,(AF12*((LOG(AF12))/LOG(2)))) -> 0 | AI12: 212 | AJ12: =COUNTIF(L33:L40,AI12) -> 0 | AK12: =AJ12/(AL4-AJ10) -> 0 | AL12: =IF(AK12=0,0,(AK12*((LOG(AK12))/LOG(2)))) -> 0 | AN12: 212 | AO12: =COUNTIF(L41:L49,AN12) -> 0 | AP12: =AO12/(AQ4-AO10) -> 0 | AQ12: =IF(AP12=0,0,(AP12*((LOG(AP12))/LOG(2)))) -> 0 | AS12: 212 | AT12: =COUNTIF(L50:L57,AS12) -> 0 | AU12: =AT12/(AV4-AT10) -> 0 | AV12: =IF(AU12=0,0,(AU12*((LOG(AU12))/LOG(2)))) -> 0
A13: 11 | B13: 682 | C13: 11 | D13: 687 | E13: 21 | F13: 697 | K13: 0 | L13: 112 | N13: 221 | O13: 0 | P13: 0 | Q13: 0 | T13: 221 | U13: =COUNTIF(L7:L15,T13) -> 0 | V13: =U13/(W4-U10) -> 0 | W13: =IF(V13=0,0,(V13*((LOG(V13))/LOG(2)))) -> 0 | Y13: 221 | Z13: =COUNTIF(L16:L23,Y13) -> 0 | AA13: =Z13/(AB4-Z10) -> 0 | AB13: =IF(AA13=0,0,(AA13*((LOG(AA13))/LOG(2)))) -> 0 | AD13: 221 | AE13: =COUNTIF(L24:L32,AD13) -> 0 | AF13: =AE13/(AG4-AE10) -> 0 | AG13: =IF(AF13=0,0,(AF13*((LOG(AF13))/LOG(2)))) -> 0 | AI13: 221 | AJ13: =COUNTIF(L33:L40,AI13) -> 0 | AK13: =AJ13/(AL4-AJ10) -> 0 | AL13: =IF(AK13=0,0,(AK13*((LOG(AK13))/LOG(2)))) -> 0 | AN13: 221 | AO13: =COUNTIF(L41:L49,AN13) -> 0 | AP13: =AO13/(AQ4-AO10) -> 0 | AQ13: =IF(AP13=0,0,(AP13*((LOG(AP13))/LOG(2)))) -> 0 | AS13: 221 | AT13: =COUNTIF(L50:L57,AS13) -> 0 | AU13: =AT13/(AV4-AT10) -> 0 | AV13: =IF(AU13=0,0,(AU13*((LOG(AU13))/LOG(2)))) -> 0
A14: 11 | B14: 788 | C14: 11 | D14: 793 | E14: 21 | F14: 803 | K14: 0 | L14: 112 | N14: 222 | O14: 0 | P14: 0 | Q14: 0 | T14: 222 | U14: =COUNTIF(L7:L15,T14) -> 0 | V14: =U14/(W4-U10) -> 0 | W14: =IF(V14=0,0,(V14*((LOG(V14))/LOG(2)))) -> 0 | Y14: 222 | Z14: =COUNTIF(L16:L23,Y14) -> 0 | AA14: =Z14/(AB4-Z10) -> 0 | AB14: =IF(AA14=0,0,(AA14*((LOG(AA14))/LOG(2)))) -> 0 | AD14: 222 | AE14: =COUNTIF(L24:L32,AD14) -> 0 | AF14: =AE14/(AG4-AE10) -> 0 | AG14: =IF(AF14=0,0,(AF14*((LOG(AF14))/LOG(2)))) -> 0 | AI14: 222 | AJ14: =COUNTIF(L33:L40,AI14) -> 0 | AK14: =AJ14/(AL4-AJ10) -> 0 | AL14: =IF(AK14=0,0,(AK14*((LOG(AK14))/LOG(2)))) -> 0 | AN14: 222 | AO14: =COUNTIF(L41:L49,AN14) -> 0 | AP14: =AO14/(AQ4-AO10) -> 0 | AQ14: =IF(AP14=0,0,(AP14*((LOG(AP14))/LOG(2)))) -> 0 | AS14: 222 | AT14: =COUNTIF(L50:L57,AS14) -> 0 | AU14: =AT14/(AV4-AT10) -> 0 | AV14: =IF(AU14=0,0,(AU14*((LOG(AU14))/LOG(2)))) -> 0
A15: 11 | B15: 891 | C15: 11 | D15: 896 | E15: 21 | F15: 914 | K15: 0 | L15: 112 | P15: =SUM(P7:P14) -> 1 | Q15: =-SUM(Q7:Q14) -> 0.9561781214 | V15: =SUM(V7:V14) -> 1 | W15: =-SUM(W7:W14) -> 0 | AA15: =SUM(AA7:AA14) -> 1 | AB15: =-SUM(AB7:AB14) -> 0 | AF15: =SUM(AF7:AF14) -> 1 | AG15: =-SUM(AG7:AG14) -> 0.5435644432 | AK15: =SUM(AK7:AK14) -> 1 | AL15: =-SUM(AL7:AL14) -> 0.5916727786 | AP15: =SUM(AP7:AP14) -> 1 | AQ15: =-SUM(AQ7:AQ14) -> 0 | AU15: =SUM(AU7:AU14) -> 1 | AV15: =-SUM(AV7:AV14) -> 0.9182958341
A16: 11 | B16: 1001 | C16: 11 | D16: 1005 | E16: 21 | F16: 1016 | K16: 0 | L16: 112 | P16: U= | Q16: =Q15/(LOG(Q4)/LOG(2)) -> 0.1685660126 | V16: U1= | W16: =W15/(LOG(W4)/LOG(2)) -> 0 | AA16: U2= | AB16: =AB15/(LOG(AB4)/LOG(2)) -> 0 | AF16: U3= | AG16: =AG15/(LOG(AG4)/LOG(2)) -> 0.1714754901 | AK16: U4= | AL16: =AL15/(LOG(AL4)/LOG(2)) -> 0.1972242595 | AP16: U5= | AQ16: =AQ15/(LOG(AQ4)/LOG(2)) -> 0 | AU16: U6= | AV16: =AV15/(LOG(AV4)/LOG(2)) -> 0.3060986114
A17: 11 | B17: 1107 | C17: 11 | D17: 1111 | E17: 21 | F17: 1135 | K17: 0 | L17: 112
A18: 11 | B18: 1225 | C18: 11 | D18: 1229 | E18: 21 | F18: 1238 | K18: 0 | L18: 112
A19: 11 | B19: 1328 | C19: 11 | D19: 1332 | E19: 21 | F19: 1350 | K19: 0 | L19: 112 | N19: Total Target Seq
A20: 11 | B20: 1438 | C20: 11 | D20: 1442 | E20: 21 | F20: 1452 | K20: 0 | L20: 112 | N20: =COUNTIF(L7:L57,G3) -> 7 | P20: 9 | Q20: 8 | R20: 9 | S20: 8 | T20: 9 | U20: 8
A21: 11 | B21: 1538 | C21: 11 | D21: 1543 | E21: 21 | F21: 1552 | K21: 0 | L21: 112 | P21: % of reinforcement given in 6 equal intervals based on number of trials
A22: 11 | B22: 1642 | C22: 11 | D22: 1647 | E22: 21 | F22: 1656 | K22: 0 | L22: 112 | P22: %_1 | Q22: %_2 | R22: %_3 | S22: %_4 | T22: %_5 | U22: %_6
A23: 11 | B23: 1745 | C23: 11 | D23: 1750 | E23: 21 | F23: 1783 | K23: 0 | L23: 112 | O23: target sequence | P23: =$G$3 -> 122 | Q23: 122 | R23: 122 | S23: 122 | T23: 122 | U23: 122
A24: 11 | B24: 1873 | C24: 11 | D24: 1877 | E24: 21 | F24: 1895 | K24: 0 | L24: 112 | O24: total reinforcement | P24: =U10 -> 0 | Q24: =Z10 -> 0 | R24: =AE10 -> 1 | S24: =AJ10 -> 1 | T24: =AO10 -> 3 | U24: =AT10 -> 2
A25: 11 | B25: 1982 | C25: 11 | D25: 1986 | E25: 21 | F25: 2012 | K25: 0 | L25: 112 | O25: % target
A26: 11 | B26: 2100 | C26: 11 | D26: 2105 | E26: 21 | F26: 2114 | K26: 0 | L26: 112 | O26: CCRF
A27: 11 | B27: 2202 | C27: 11 | D27: 2207 | E27: 21 | F27: 2245 | K27: 0 | L27: 112 | O27: % CCRf
A28: 11 | B28: 2336 | C28: 11 | D28: 2341 | E28: 21 | F28: 2371 | K28: 0 | L28: 112 | O28: average response rate | P28: =F15/P20 -> 101.5555556 | Q28: =(F23-F15)/Q20 -> 108.625 | R28: =(F32-F23)/R20 -> 120.5555556 | S28: =(F40-F32)/S20 -> 112.125 | T28: =(F49-F40)/T20 -> 112 | U28: =(F57-F49)/U20 -> 117
A29: 11 | B29: 2458 | C29: 11 | D29: 2468 | E29: 21 | F29: 2485 | K29: 0 | L29: 112
A30: 11 | B30: 2576 | C30: 11 | D30: 2582 | E30: 12 | F30: 2590 | K30: 0 | L30: 111
A31: 11 | B31: 2693 | C31: 11 | D31: 2698 | E31: 21 | F31: 2734 | K31: 0 | L31: 112
A32: 11 | B32: 2836 | C32: 22 | D32: 2849 | E32: 23 | F32: 2868 | K32: 0 | L32: 122
A33: 11 | B33: 2967 | C33: 11 | D33: 2972 | E33: 21 | F33: 2982 | K33: 0 | L33: 112
A34: 11 | B34: 3071 | C34: 22 | D34: 3081 | E34: 23 | F34: 3093 | K34: 0 | L34: 122
A35: 11 | B35: 3191 | C35: 11 | D35: 3203 | E35: 12 | F35: 3208 | K35: 0 | L35: 111
A36: 11 | B36: 3304 | C36: 11 | D36: 3314 | E36: 21 | F36: 3324 | K36: 0 | L36: 112
A37: 11 | B37: 3415 | C37: 11 | D37: 3419 | E37: 21 | F37: 3427 | K37: 0 | L37: 112
A38: 11 | B38: 3514 | C38: 11 | D38: 3519 | E38: 21 | F38: 3558 | K38: 0 | L38: 112
A39: 11 | B39: 3645 | C39: 11 | D39: 3650 | E39: 21 | F39: 3659 | K39: 0 | L39: 112
A40: 11 | B40: 3745 | C40: 11 | D40: 3755 | E40: 21 | F40: 3765 | K40: 0 | L40: 112
A41: 11 | B41: 3854 | C41: 11 | D41: 3859 | E41: 21 | F41: 3869 | K41: 0 | L41: 112
A42: 11 | B42: 3958 | C42: 11 | D42: 3963 | E42: 21 | F42: 3989 | K42: 0 | L42: 112
A43: 11 | B43: 4079 | C43: 22 | D43: 4089 | E43: 23 | F43: 4097 | K43: 0 | L43: 122
A44: 11 | B44: 4194 | C44: 11 | D44: 4199 | E44: 21 | F44: 4209 | K44: 0 | L44: 112
A45: 11 | B45: 4300 | C45: 11 | D45: 4306 | E45: 21 | F45: 4315 | K45: 0 | L45: 112
A46: 11 | B46: 4401 | C46: 22 | D46: 4413 | E46: 23 | F46: 4425 | K46: 0 | L46: 122
A47: 11 | B47: 4521 | C47: 22 | D47: 4535 | E47: 23 | F47: 4542 | K47: 0 | L47: 122
A48: 11 | B48: 4641 | C48: 11 | D48: 4645 | E48: 21 | F48: 4655 | K48: 0 | L48: 112
A49: 11 | B49: 4740 | C49: 11 | D49: 4750 | E49: 21 | F49: 4773 | K49: 0 | L49: 112
A50: 11 | B50: 4862 | C50: 11 | D50: 4868 | E50: 12 | F50: 4873 | K50: 0 | L50: 111
A51: 11 | B51: 4970 | C51: 11 | D51: 4975 | E51: 21 | F51: 4987 | K51: 0 | L51: 112
A52: 11 | B52: 5073 | C52: 11 | D52: 5077 | E52: 21 | F52: 5086 | K52: 0 | L52: 112
A53: 11 | B53: 5173 | C53: 11 | D53: 5188 | E53: 21 | F53: 5201 | K53: 0 | L53: 112
A54: 11 | B54: 5290 | C54: 22 | D54: 5304 | E54: 23 | F54: 5354 | K54: 0 | L54: 122
A55: 11 | B55: 5452 | C55: 22 | D55: 5463 | E55: 23 | F55: 5470 | K55: 0 | L55: 122
A56: 11 | B56: 5570 | C56: 11 | D56: 5574 | E56: 12 | F56: 5579 | K56: 0 | L56: 111
A57: 11 | B57: 5680 | C57: 11 | D57: 5685 | E57: 21 | F57: 5709 | K57: 1 | L57: 112

Sheet !L813A20.056
A1: Report for:!L813A20.056
A2: Date: | B2: <date>
A3: Hen: | B3: <hen> | F3: Correct Sequence | G3: =Start!J2 -> 122 | P3: Total Sequences in Data | Q3: =4994-COUNTBLANK(L7:L5000) -> 61 | V3: Total Sequences in Block Data | W3: =COUNTA(L7:L16) -> 10 | AA3: Total Sequences in Block Data | AB3: =COUNTA(L17:L26) -> 10 | AF3: Total Sequences in Block Data | AG3: =COUNTA(L27:L37) -> 11 | AK3: Total Sequences in Block Data | AL3: =COUNTA(L38:L47) -> 10 | AP3: Total Sequences in Block Data | AQ3: =COUNTA(L48:L57) -> 10 | AU3: Total Sequences in Block Data | AV3: =COUNTA(L58:L67) -> 10
P4: Total Sequences in Summary | Q4: =SUM(O7:O14) -> 61 | V4: Total Sequences in Block Summary | W4: =SUM(U7:U14) -> 10 | AA4: Total Sequences in Block Summary | AB4: =SUM(Z7:Z14) -> 10 | AF4: Total Sequences in Block Summary | AG4: =SUM(AE7:AE14) -> 11 | AK4: Total Sequences in Block Summary | AL4: =SUM(AJ7:AJ14) -> 10 | AP4: Total Sequences in Block Summary | AQ4: =SUM(AO7:AO14) -> 10 | AU4: Total Sequences in Block Summary | AV4: =SUM(AT7:AT14) -> 10
T5: Block 1 | Y5: Block 2 | AD5: Block 3 | AI5: Block 4 | AN5: Block 5 | AS5: Block 6
A6: Sequence Component 1 | B6: Time 1 | C6: Sequence Component 2 | D6: Time 2 | E6: Sequence Component 3 | F6: Time 3 | G6: Sequence Component 4 | H6: Time 4 | I6: Sequence Component 5 | J6: Time 5 | K6: Correct? 0=No 1=Yes | L6: Sequence | N6: Frequency | P6: Relative Frequency | Q6: Variability | T6: Frequency | V6: Relative Frequency | W6: Variability | Y6: Frequency | AA6: Relative Frequency | AB6: Variability | AD6: Frequency | AF6: Relative Frequency | AG6: Variability | AI6: Frequency | AK6: Relative Frequency | AL6: Variability | AN6: Frequency | AP6: Relative Frequency | AQ6: Variability | AS6: Frequency | AU6: Relative Frequency | AV6: Variability
A7: 11 | B7: 7 | C7: 11 | D7: 13 | E7: 21 | F7: 29 | K7: 0 | L7: 112 | N7: 111 | O7: =COUNTIF($L$7:$L$500,N7) -> 1 | P7: =O7/$Q$4 -> 0.01639344262 | Q7: =IF(P7=0,0,(P7*((LOG(P7))/LOG(2)))) -> -0.09722520226 | T7: =N7 -> 111 | U7: =COUNTIF(L7:L16,T7) -> 0 | V7: =U7/(W4-U10) -> 0 | W7: =IF(V7=0,0,(V7*((LOG(V7))/LOG(2)))) -> 0 | Y7: =N7 -> 111 | Z7: =COUNTIF(L17:L26,Y7) -> 0 | AA7: =Z7/(AB4-Z10) -> 0 | AB7: =IF(AA7=0,0,(AA7*((LOG(AA7))/LOG(2)))) -> 0 | AD7: =N7 -> 111 | AE7: =COUNTIF(L27:L37,AD7) -> 0 | AF7: =AE7/(AG4-AE10) -> 0 | AG7: =IF(AF7=0,0,(AF7*((LOG(AF7))/LOG(2)))) -> 0 | AI7: =N7 -> 111 | AJ7: =COUNTIF(L38:L47,AI7) -> 0 | AK7: =AJ7/(AL4-AJ10) -> 0 | AL7: =IF(AK7=0,0,(AK7*((LOG(AK7))/LOG(2)))) -> 0 | AN7: =N7 -> 111 | AO7: =COUNTIF(L48:L57,AN7) -> 0 | AP7: =AO7/(AQ4-AO10) -> 0 | AQ7: =IF(AP7=0,0,(AP7*((LOG(AP7))/LOG(2)))) -> 0 | AS7: =N7 -> 111 | AT7: =COUNTIF(L58:L67,AS7) -> 1 | AU7: =AT7/(AV4-AT10) -> 0.1428571429 | AV7: =IF(AU7=0,0,(AU7*((LOG(AU7))/LOG(2)))) -> -0.4010507032
A8: 11 | B8: 125 | C8: 22 | D8: 140 | E8: 23 | F8: 155 | K8: 0 | L8: 122 | N8: 112 | O8: 40 | P8: 0.6557377049 | Q8: -0.3992191755 | T8: 112 | U8: =COUNTIF(L7:L16,T8) -> 8 | V8: =U8/(W4-U10) -> 1 | W8: =IF(V8=0,0,(V8*((LOG(V8))/LOG(2)))) -> 0 | Y8: 112 | Z8: =COUNTIF(L17:L26,Y8) -> 9 | AA8: =Z8/(AB4-Z10) -> 1 | AB8: =IF(AA8=0,0,(AA8*((LOG(AA8))/LOG(2)))) -> 0 | AD8: 112 | AE8: =COUNTIF(L27:L37,AD8) -> 5 | AF8: =AE8/(AG4-AE10) -> 1 | AG8: =IF(AF8=0,0,(AF8*((LOG(AF8))/LOG(2)))) -> 0 | AI8: 112 | AJ8: =COUNTIF(L38:L47,AI8) -> 7 | AK8: =AJ8/(AL4-AJ10) -> 1 | AL8: =IF(AK8=0,0,(AK8*((LOG(AK8))/LOG(2)))) -> 0 | AN8: 112 | AO8: =COUNTIF(L48:L57,AN8) -> 5 | AP8: =AO8/(AQ4-AO10) -> 1 | AQ8: =IF(AP8=0,0,(AP8*((LOG(AP8))/LOG(2)))) -> 0 | AS8: 112 | AT8: =COUNTIF(L58:L67,AS8) -> 6 | AU8: =AT8/(AV4-AT10) -> 0.8571428571 | AV8: =IF(AU8=0,0,(AU8*((LOG(AU8))/LOG(2)))) -> -0.1906220754
A9: 11 | B9: 258 | C9: 22 | D9: 278 | E9: 23 | F9: 290 | K9: 0 | L9: 122 | N9: 121 | O9: 0 | P9: 0 | Q9: 0 | T9: 121 | U9: =COUNTIF(L7:L16,T9) -> 0 | V9: =U9/(W4-U10) -> 0 | W9: =IF(V9=0,0,(V9*((LOG(V9))/LOG(2)))) -> 0 | Y9: 121 | Z9: =COUNTIF(L17:L26,Y9) -> 0 | AA9: =Z9/(AB4-Z10) -> 0 | AB9: =IF(AA9=0,0,(AA9*((LOG(AA9))/LOG(2)))) -> 0 | AD9: 121 | AE9: =COUNTIF(L27:L37,AD9) -> 0 | AF9: =AE9/(AG4-AE10) -> 0 | AG9: =IF(AF9=0,0,(AF9*((LOG(AF9))/LOG(2)))) -> 0 | AI9: 121 | AJ9: =COUNTIF(L38:L47,AI9) -> 0 | AK9: =AJ9/(AL4-AJ10) -> 0 | AL9: =IF(AK9=0,0,(AK9*((LOG(AK9))/LOG(2)))) -> 0 | AN9: 121 | AO9: =COUNTIF(L48:L57,AN9) -> 0 | AP9: =AO9/(AQ4-AO10) -> 0 | AQ9: =IF(AP9=0,0,(AP9*((LOG(AP9))/LOG(2)))) -> 0 | AS9: 121 | AT9: =COUNTIF(L58:L67,AS9) -> 0 | AU9: =AT9/(AV4-AT10) -> 0 | AV9: =IF(AU9=0,0,(AU9*((LOG(AU9))/LOG(2)))) -> 0
A10: 11 | B10: 392 | C10: 11 | D10: 397 | E10: 21 | F10: 408 | K10: 0 | L10: 112 | N10: 122 | O10: 20 | P10: 0.3278688525 | Q10: -0.5274784402 | T10: 122 | U10: =COUNTIF(L7:L16,T10) -> 2 | Y10: 122 | Z10: =COUNTIF(L17:L26,Y10) -> 1 | AD10: 122 | AE10: =COUNTIF(L27:L37,AD10) -> 6 | AI10: 122 | AJ10: =COUNTIF(L38:L47,AI10) -> 3 | AN10: 122 | AO10: =COUNTIF(L48:L57,AN10) -> 5 | AS10: 122 | AT10: =COUNTIF(L58:L67,AS10) -> 3
A11: 11 | B11: 501 | C11: 11 | D11: 508 | E11: 21 | F11: 535 | K11: 0 | L11: 112 | N11: 211 | O11: 0 | P11: 0 | Q11: 0 | T11: 211 | U11: =COUNTIF(L7:L16,T11) -> 0 | V11: =U11/(W4-U10) -> 0 | W11: =IF(V11=0,0,(V11*((LOG(V11))/LOG(2)))) -> 0 | Y11: 211 | Z11: =COUNTIF(L17:L26,Y11) -> 0 | AA11: =Z11/(AB4-Z10) -> 0 | AB11: =IF(AA11=0,0,(AA11*((LOG(AA11))/LOG(2)))) -> 0 | AD11: 211 | AE11: =COUNTIF(L27:L37,AD11) -> 0 | AF11: =AE11/(AG4-AE10) -> 0 | AG11: =IF(AF11=0,0,(AF11*((LOG(AF11))/LOG(2)))) -> 0 | AI11: 211 | AJ11: =COUNTIF(L38:L47,AI11) -> 0 | AK11: =AJ11/(AL4-AJ10) -> 0 | AL11: =IF(AK11=0,0,(AK11*((LOG(AK11))/LOG(2)))) -> 0 | AN11: 211 | AO11: =COUNTIF(L48:L57,AN11) -> 0 | AP11: =AO11/(AQ4-AO10) -> 0 | AQ11: =IF(AP11=0,0,(AP11*((LOG(AP11))/LOG(2)))) -> 0 | AS11: 211 | AT11: =COUNTIF(L58:L67,AS11) -> 0 | AU11: =AT11/(AV4-AT10) -> 0 | AV11: =IF(AU11=0,0,(AU11*((LOG(AU11))/LOG(2)))) -> 0
A12: 11 | B12: 626 | C12: 11 | D12: 631 | E12: 21 | F12: 689 | K12: 0 | L12: 112 | N12: 212 | O12: 0 | P12: 0 | Q12: 0 | T12: 212 | U12: =COUNTIF(L7:L16,T12) -> 0 | V12: =U12/(W4-U10) -> 0 | W12: =IF(V12=0,0,(V12*((LOG(V12))/LOG(2)))) -> 0 | Y12: 212 | Z12: =COUNTIF(L17:L26,Y12) -> 0 | AA12: =Z12/(AB4-Z10) -> 0 | AB12: =IF(AA12=0,0,(AA12*((LOG(AA12))/LOG(2)))) -> 0 | AD12: 212 | AE12: =COUNTIF(L27:L37,AD12) -> 0 | AF12: =AE12/(AG4-AE10) -> 0 | AG12: =IF(AF12=0,0,(AF12*((LOG(AF12))/LOG(2)))) -> 0 | AI12: 212 | AJ12: =COUNTIF(L38:L47,AI12) -> 0 | AK12: =AJ12/(AL4-AJ10) -> 0 | AL12: =IF(AK12=0,0,(AK12*((LOG(AK12))/LOG(2)))) -> 0 | AN12: 212 | AO12: =COUNTIF(L48:L57,AN12) -> 0 | AP12: =AO12/(AQ4-AO10) -> 0 | AQ12: =IF(AP12=0,0,(AP12*((LOG(AP12))/LOG(2)))) -> 0 | AS12: 212 | AT12: =COUNTIF(L58:L67,AS12) -> 0 | AU12: =AT12/(AV4-AT10) -> 0 | AV12: =IF(AU12=0,0,(AU12*((LOG(AU12))/LOG(2)))) -> 0
A13: 11 | B13: 784 | C13: 11 | D13: 796 | E13: 21 | F13: 813 | K13: 0 | L13: 112 | N13: 221 | O13: 0 | P13: 0 | Q13: 0 | T13: 221 | U13: =COUNTIF(L7:L16,T13) -> 0 | V13: =U13/(W4-U10) -> 0 | W13: =IF(V13=0,0,(V13*((LOG(V13))/LOG(2)))) -> 0 | Y13: 221 | Z13: =COUNTIF(L17:L26,Y13) -> 0 | AA13: =Z13/(AB4-Z10) -> 0 | AB13: =IF(AA13=0,0,(AA13*((LOG(AA13))/LOG(2)))) -> 0 | AD13: 221 | AE13: =COUNTIF(L27:L37,AD13) -> 0 | AF13: =AE13/(AG4-AE10) -> 0 | AG13: =IF(AF13=0,0,(AF13*((LOG(AF13))/LOG(2)))) -> 0 | AI13: 221 | AJ13: =COUNTIF(L38:L47,AI13) -> 0 | AK13: =AJ13/(AL4-AJ10) -> 0 | AL13: =IF(AK13=0,0,(AK13*((LOG(AK13))/LOG(2)))) -> 0 | AN13: 221 | AO13: =COUNTIF(L48:L57,AN13) -> 0 | AP13: =AO13/(AQ4-AO10) -> 0 | AQ13: =IF(AP13=0,0,(AP13*((LOG(AP13))/LOG(2)))) -> 0 | AS13: 221 | AT13: =COUNTIF(L58:L67,AS13) -> 0 | AU13: =AT13/(AV4-AT10) -> 0 | AV13: =IF(AU13=0,0,(AU13*((LOG(AU13))/LOG(2)))) -> 0
A14: 11 | B14: 905 | C14: 11 | D14: 911 | E14: 21 | F14: 924 | K14: 0 | L14: 112 | N14: 222 | O14: 0 | P14: 0 | Q14: 0 | T14: 222 | U14: =COUNTIF(L7:L16,T14) -> 0 | V14: =U14/(W4-U10) -> 0 | W14: =IF(V14=0,0,(V14*((LOG(V14))/LOG(2)))) -> 0 | Y14: 222 | Z14: =COUNTIF(L17:L26,Y14) -> 0 | AA14: =Z14/(AB4-Z10) -> 0 | AB14: =IF(AA14=0,0,(AA14*((LOG(AA14))/LOG(2)))) -> 0 | AD14: 222 | AE14: =COUNTIF(L27:L37,AD14) -> 0 | AF14: =AE14/(AG4-AE10) -> 0 | AG14: =IF(AF14=0,0,(AF14*((LOG(AF14))/LOG(2)))) -> 0 | AI14: 222 | AJ14: =COUNTIF(L38:L47,AI14) -> 0 | AK14: =AJ14/(AL4-AJ10) -> 0 | AL14: =IF(AK14=0,0,(AK14*((LOG(AK14))/LOG(2)))) -> 0 | AN14: 222 | AO14: =COUNTIF(L48:L57,AN14) -> 0 | AP14: =AO14/(AQ4-AO10) -> 0 | AQ14: =IF(AP14=0,0,(AP14*((LOG(AP14))/LOG(2)))) -> 0 | AS14: 222 | AT14: =COUNTIF(L58:L67,AS14) -> 0 | AU14: =AT14/(AV4-AT10) -> 0 | AV14: =IF(AU14=0,0,(AU14*((LOG(AU14))/LOG(2)))) -> 0
A15: 11 | B15: 1013 | C15: 11 | D15: 1017 | E15: 21 | F15: 1052 | K15: 0 | L15: 112 | P15: =SUM(P7:P14) -> 1 | Q15: =-SUM(Q7:Q14) -> 1.023922818 | V15: =SUM(V7:V14) -> 1 | W15: =-SUM(W7:W14) -> 0 | AA15: =SUM(AA7:AA14) -> 1 | AB15: =-SUM(AB7:AB14) -> 0 | AF15: =SUM(AF7:AF14) -> 1 | AG15: =-SUM(AG7:AG14) -> 0 | AK15: =SUM(AK7:AK14) -> 1 | AL15: =-SUM(AL7:AL14) -> 0 | AP15: =SUM(AP7:AP14) -> 1 | AQ15: =-SUM(AQ7:AQ14) -> 0 | AU15: =SUM(AU7:AU14) -> 1 | AV15: =-SUM(AV7:AV14) -> 0.5916727786
A16: 11 | B16: 1142 | C16: 11 | D16: 1151 | E16: 21 | F16: 1186 | K16: 0 | L16: 112 | P16: U= | Q16: =Q15/(LOG(Q4)/LOG(2)) -> 0.1726467992 | V16: U1= | W16: =W15/(LOG(W4)/LOG(2)) -> 0 | AA16: U2= | AB16: =AB15/(LOG(AB4)/LOG(2)) -> 0 | AF16: U3= | AG16: =AG15/(LOG(AG4)/LOG(2)) -> 0 | AK16: U4= | AL16: =AL15/(LOG(AL4)/LOG(2)) -> 0 | AP16: U5= | AQ16: =AQ15/(LOG(AQ4)/LOG(2)) -> 0 | AU16: U6= | AV16: =AV15/(LOG(AV4)/LOG(2)) -> 0.178111254
A17: 11 | B17: 1278 | C17: 11 | D17: 1290 | E17: 21 | F17: 1311 | K17: 0 | L17: 112
A18: 11 | B18: 1402 | C18: 11 | D18: 1407 | E18: 21 | F18: 1466 | K18: 0 | L18: 112
A19: 11 | B19: 1556 | C19: 11 | D19: 1561 | E19: 21 | F19: 1576 | K19: 0 | L19: 112 | N19: Total Target Seq
A20: 11 | B20: 1665 | C20: 11 | D20: 1671 | E20: 21 | F20: 1688 | K20: 0 | L20: 112 | N20: =COUNTIF(L7:L67,G3) -> 20 | P20: 10 | Q20: 10 | R20: 11 | S20: 10 | T20: 10 | U20: 10
A21: 11 | B21: 1781 | C21: 11 | D21: 1785 | E21: 21 | F21: 1802 | K21: 0 | L21: 112 | P21: % of reinforcement given in 6 equal intervals based on number of trials
A22: 11 | B22: 1892 | C22: 11 | D22: 1899 | E22: 21 | F22: 1913 | K22: 0 | L22: 112 | P22: %_1 | Q22: %_2 | R22: %_3 | S22: %_4 | T22: %_5 | U22: %_6
A23: 11 | B23: 2005 | C23: 11 | D23: 2010 | E23: 21 | F23: 2019 | K23: 0 | L23: 112 | O23: target sequence | P23: =$G$3 -> 122 | Q23: 122 | R23: 122 | S23: 122 | T23: 122 | U23: 122
A24: 11 | B24: 2108 | C24: 11 | D24: 2113 | E24: 21 | F24: 2138 | K24: 0 | L24: 112 | O24: total reinforcement | P24: =U10 -> 2 | Q24: =Z10 -> 1 | R24: =AE10 -> 6 | S24: =AJ10 -> 3 | T24: =AO10 -> 5 | U24: =AT10 -> 3
A25: 11 | B25: 2232 | C25: 11 | D25: 2243 | E25: 21 | F25: 2283 | K25: 0 | L25: 112 | O25: % target
A26: 11 | B26: 2372 | C26: 22 | D26: 2401 | E26: 23 | F26: 2411 | K26: 0 | L26: 122 | O26: CCRF
A27: 11 | B27: 2509 | C27: 11 | D27: 2514 | E27: 21 | F27: 2524 | K27: 0 | L27: 112 | O27: % CCRf
A28: 11 | B28: 2616 | C28: 11 | D28: 2629 | E28: 21 | F28: 2648 | K28: 0 | L28: 112 | O28: average response rate | P28: =F16/P20 -> 118.6 | Q28: =(F26-F16)/Q20 -> 122.5 | R28: =(F37-F26)/R20 -> 119.9090909 | S28: =(F47-F37)/S20 -> 116.2 | T28: =(F57-F47)/T20 -> 115.3 | U28: =(F67-F57)/U20 -> 120.1
A29: 11 | B29: 2740 | C29: 11 | D29: 2745 | E29: 21 | F29: 2754 | K29: 0 | L29: 112
A30: 11 | B30: 2844 | C30: 22 | D30: 2858 | E30: 23 | F30: 2866 | K30: 0 | L30: 122
A31: 11 | B31: 2964 | C31: 22 | D31: 2978 | E31: 23 | F31: 2985 | K31: 0 | L31: 122
A32: 11 | B32: 3084 | C32: 11 | D32: 3089 | E32: 21 | F32: 3105 | K32: 0 | L32: 112
A33: 11 | B33: 3193 | C33: 11 | D33: 3203 | E33: 21 | F33: 3241 | K33: 0 | L33: 112
A34: 11 | B34: 3332 | C34: 22 | D34: 3343 | E34: 23 | F34: 3356 | K34: 0 | L34: 122
A35: 11 | B35: 3454 | C35: 22 | D35: 3468 | E35: 23 | F35: 3476 | K35: 0 | L35: 122
A36: 11 | B36: 3576 | C36: 22 | D36: 3587 | E36: 23 | F36: 3601 | K36: 0 | L36: 122
A37: 11 | B37: 3705 | C37: 22 | D37: 3721 | E37: 23 | F37: 3730 | K37: 0 | L37: 122
A38: 11 | B38: 3829 | C38: 11 | D38: 3837 | E38: 21 | F38: 3856 | K38: 0 | L38: 112
A39: 11 | B39: 3946 | C39: 11 | D39: 3956 | E39: 21 | F39: 3979 | K39: 0 | L39: 112
A40: 11 | B40: 4071 | C40: 11 | D40: 4079 | E40: 21 | F40: 4090 | K40: 0 | L40: 112
A41: 11 | B41: 4181 | C41: 22 | D41: 4193 | E41: 23 | F41: 4202 | K41: 0 | L41: 122
A42: 11 | B42: 4299 | C42: 11 | D42: 4309 | E42: 21 | F42: 4319 | K42: 0 | L42: 112
A43: 11 | B43: 4410 | C43: 22 | D43: 4420 | E43: 23 | F43: 4428 | K43: 0 | L43: 122
A44: 11 | B44: 4528 | C44: 11 | D44: 4535 | E44: 21 | F44: 4545 | K44: 0 | L44: 112
A45: 11 | B45: 4638 | C45: 22 | D45: 4649 | E45: 23 | F45: 4657 | K45: 0 | L45: 122
A46: 11 | B46: 4759 | C46: 11 | D46: 4770 | E46: 21 | F46: 4787 | K46: 0 | L46: 112
A47: 11 | B47: 4875 | C47: 11 | D47: 4881 | E47: 21 | F47: 4892 | K47: 0 | L47: 112
A48: 11 | B48: 4982 | C48: 22 | D48: 4993 | E48: 23 | F48: 5002 | K48: 0 | L48: 122
A49: 11 | B49: 5102 | C49: 11 | D49: 5106 | E49: 21 | F49: 5118 | K49: 0 | L49: 112
A50: 11 | B50: 5210 | C50: 22 | D50: 5220 | E50: 23 | F50: 5237 | K50: 0 | L50: 122
A51: 11 | B51: 5345 | C51: 22 | D51: 5361 | E51: 23 | F51: 5374 | K51: 0 | L51: 122
A52: 11 | B52: 5474 | C52: 11 | D52: 5478 | E52: 21 | F52: 5490 | K52: 0 | L52: 112
A53: 11 | B53: 5577 | C53: 11 | D53: 5590 | E53: 21 | F53: 5600 | K53: 0 | L53: 112
A54: 11 | B54: 5689 | C54: 22 | D54: 5699 | E54: 23 | F54: 5707 | K54: 0 | L54: 122
A55: 11 | B55: 5805 | C55: 22 | D55: 5816 | E55: 23 | F55: 5824 | K55: 0 | L55: 122
A56: 11 | B56: 5923 | C56: 11 | D56: 5932 | E56: 21 | F56: 5942 | K56: 0 | L56: 112
A57: 11 | B57: 6030 | C57: 11 | D57: 6035 | E57: 21 | F57: 6045 | K57: 0 | L57: 112
A58: 11 | B58: 6135 | C58: 22 | D58: 6147 | E58: 23 | F58: 6158 | K58: 0 | L58: 122
A59: 11 | B59: 6257 | C59: 22 | D59: 6271 | E59: 23 | F59: 6281 | K59: 0 | L59: 122
A60: 11 | B60: 6383 | C60: 11 | D60: 6392 | E60: 21 | F60: 6402 | K60: 0 | L60: 112
A61: 11 | B61: 6489 | C61: 11 | D61: 6497 | E61: 21 | F61: 6506 | K61: 0 | L61: 112
A62: 11 | B62: 6594 | C62: 11 | D62: 6599 | E62: 12 | F62: 6604 | K62: 0 | L62: 111
A63: 11 | B63: 6704 | C63: 11 | D63: 6710 | E63: 21 | F63: 6720 | K63: 0 | L63: 112
A64: 11 | B64: 6809 | C64: 22 | D64: 6823 | E64: 23 | F64: 6832 | K64: 0 | L64: 122
A65: 11 | B65: 6932 | C65: 11 | D65: 6936 | E65: 21 | F65: 6947 | K65: 0 | L65: 112
A66: 11 | B66: 7036 | C66: 11 | D66: 7046 | E66: 21 | F66: 7069 | K66: 0 | L66: 112
A67: 11 | B67: 7157 | C67: 11 | D67: 7164 | E67: 21 | F67: 7246 | K67: 1 | L67: 112

Sheet !L814B30.056
A1: Report for:!L814B30.056
A2: Date: | B2: <date>
A3: Hen: | B3: <hen> | F3: Correct Sequence | G3: =Start!J2 -> 122 | P3: Total Sequences in Data | Q3: =4994-COUNTBLANK(L7:L5000) -> 54 | V3: Total Sequences in Block Data | W3: =COUNTA(L7:L15) -> 9 | AA3: Total Sequences in Block Data | AB3: =COUNTA(L16:L24) -> 9 | AF3: Total Sequences in Block Data | AG3: =COUNTA(L25:L33) -> 9 | AK3: Total Sequences in Block Data | AL3: =COUNTA(L34:L42) -> 9 | AP3: Total Sequences in Block Data | AQ3: =COUNTA(L43:L51) -> 9 | AU3: Total Sequences in Block Data | AV3: =COUNTA(L52:L60) -> 9
P4: Total Sequences in Summary | Q4: =SUM(O7:O14) -> 54 | V4: Total Sequences in Block Summary | W4: =SUM(U7:U14) -> 9 | AA4: Total Sequences in Block Summary | AB4: =SUM(Z7:Z14) -> 9 | AF4: Total Sequences in Block Summary | AG4: =SUM(AE7:AE14) -> 9 | AK4: Total Sequences in Block Summary | AL4: =SUM(AJ7:AJ14) -> 9 | AP4: Total Sequences in Block Summary | AQ4: =SUM(AO7:AO14) -> 9 | AU4: Total Sequences in Block Summary | AV4: =SUM(AT7:AT14) -> 9
T5: Block 1 | Y5: Block 2 | AD5: Block 3 | AI5: Block 4 | AN5: Block 5 | AS5: Block 6
A6: Sequence Component 1 | B6: Time 1 | C6: Sequence Component 2 | D6: Time 2 | E6: Sequence Component 3 | F6: Time 3 | G6: Sequence Component 4 | H6: Time 4 | I6: Sequence Component 5 | J6: Time 5 | K6: Correct? 0=No 1=Yes | L6: Sequence | N6: Frequency | P6: Relative Frequency | Q6: Variability | T6: Frequency | V6: Relative Frequency | W6: Variability | Y6: Frequency | AA6: Relative Frequency | AB6: Variability | AD6: Frequency | AF6: Relative Frequency | AG6: Variability | AI6: Frequency | AK6: Relative Frequency | AL6: Variability | AN6: Frequency | AP6: Relative Frequency | AQ6: Variability | AS6: Frequency | AU6: Relative Frequency | AV6: Variability
A7: 11 | B7: 9 | C7: 11 | D7: 19 | E7: 21 | F7: 29 | K7: 0 | L7: 112 | N7: 111 | O7: =COUNTIF($L$7:$L$500,N7) -> 7 | P7: =O7/$Q$4 -> 0.1296296296 | Q7: =IF(P7=0,0,(P7*((LOG(P7))/LOG(2)))) -> -0.3820875567 | T7: =N7 -> 111 | U7: =COUNTIF(L7:L15,T7) -> 0 | V7: =U7/(W4-U10) -> 0 | W7: =IF(V7=0,0,(V7*((LOG(V7))/LOG(2)))) -> 0 | Y7: =N7 -> 111 | Z7: =COUNTIF(L16:L24,Y7) -> 0 | AA7: =Z7/(AB4-Z10) -> 0 | AB7: =IF(AA7=0,0,(AA7*((LOG(AA7))/LOG(2)))) -> 0 | AD7: =N7 -> 111 | AE7: =COUNTIF(L25:L33,AD7) -> 0 | AF7: =AE7/(AG4-AE10) -> 0 | AG7: =IF(AF7=0,0,(AF7*((LOG(AF7))/LOG(2)))) -> 0 | AI7: =N7 -> 111 | AJ7: =COUNTIF(L34:L42,AI7) -> 3 | AK7: =AJ7/(AL4-AJ10) -> 0.3333333333 | AL7: =IF(AK7=0,0,(AK7*((LOG(AK7))/LOG(2)))) -> -0.5283208336 | AN7: =N7 -> 111 | AO7: =COUNTIF(L43:L51,AN7) -> 3 | AP7: =AO7/(AQ4-AO10) -> 0.3333333333 | AQ7: =IF(AP7=0,0,(AP7*((LOG(AP7))/LOG(2)))) -> -0.5283208336 | AS7: =N7 -> 111 | AT7: =COUNTIF(L52:L60,AS7) -> 1 | AU7: =AT7/(AV4-AT10) -> 0.1111111111 | AV7: =IF(AU7=0,0,(AU7*((LOG(AU7))/LOG(2)))) -> -0.352213889
A8: 11 | B8: 116 | C8: 11 | D8: 124 | E8: 21 | F8: 144 | K8: 0 | L8: 112 | N8: 112 | O8: 40 | P8: 0.7407407407 | Q8: -0.3207106721 | T8: 112 | U8: =COUNTIF(L7:L15,T8) -> 8 | V8: =U8/(W4-U10) -> 1 | W8: =IF(V8=0,0,(V8*((LOG(V8))/LOG(2)))) -> 0 | Y8: 112 | Z8: =COUNTIF(L16:L24,Y8) -> 5 | AA8: =Z8/(AB4-Z10) -> 0.8333333333 | AB8: =IF(AA8=0,0,(AA8*((LOG(AA8))/LOG(2)))) -> -0.2191953382 | AD8: 112 | AE8: =COUNTIF(L25:L33,AD8) -> 8 | AF8: =AE8/(AG4-AE10) -> 1 | AG8: =IF(AF8=0,0,(AF8*((LOG(AF8))/LOG(2)))) -> 0 | AI8: 112 | AJ8: =COUNTIF(L34:L42,AI8) -> 5 | AK8: =AJ8/(AL4-AJ10) -> 0.5555555556 | AL8: =IF(AK8=0,0,(AK8*((LOG(AK8))/LOG(2)))) -> -0.4711093925 | AN8: 112 | AO8: =COUNTIF(L43:L51,AN8) -> 6 | AP8: =AO8/(AQ4-AO10) -> 0.6666666667 | AQ8: =IF(AP8=0,0,(AP8*((LOG(AP8))/LOG(2)))) -> -0.3899750005 | AS8: 112 | AT8: =COUNTIF(L52:L60,AS8) -> 8 | AU8: =AT8/(AV4-AT10) -> 0.8888888889 | AV8: =IF(AU8=0,0,(AU8*((LOG(AU8))/LOG(2)))) -> -0.1510444457
A9: 11 | B9: 237 | C9: 11 | D9: 244 | E9: 21 | F9: 254 | K9: 0 | L9: 112 | N9: 121 | O9: 2 | P9: 0.03703703704 | Q9: -0.1761069445 | T9: 121 | U9: =COUNTIF(L7:L15,T9) -> 0 | V9: =U9/(W4-U10) -> 0 | W9: =IF(V9=0,0,(V9*((LOG(V9))/LOG(2)))) -> 0 | Y9: 121 | Z9: =COUNTIF(L16:L24,Y9) -> 1 | AA9: =Z9/(AB4-Z10) -> 0.1666666667 | AB9: =IF(AA9=0,0,(AA9*((LOG(AA9))/LOG(2)))) -> -0.4308270835 | AD9: 121 | AE9: =COUNTIF(L25:L33,AD9) -> 0 | AF9: =AE9/(AG4-AE10) -> 0 | AG9: =IF(AF9=0,0,(AF9*((LOG(AF9))/LOG(2)))) -> 0 | AI9: 121 | AJ9: =COUNTIF(L34:L42,AI9) -> 1 | AK9: =AJ9/(AL4-AJ10) -> 0.1111111111 | AL9: =IF(AK9=0,0,(AK9*((LOG(AK9))/LOG(2)))) -> -0.352213889 | AN9: 121 | AO9: =COUNTIF(L43:L51,AN9) -> 0 | AP9: =AO9/(AQ4-AO10) -> 0 | AQ9: =IF(AP9=0,0,(AP9*((LOG(AP9))/LOG(2)))) -> 0 | AS9: 121 | AT9: =COUNTIF(L52:L60,AS9) -> 0 | AU9: =AT9/(AV4-AT10) -> 0 | AV9: =IF(AU9=0,0,(AU9*((LOG(AU9))/LOG(2)))) -> 0
A10: 11 | B10: 342 | C10: 11 | D10: 348 | E10: 21 | F10: 357 | K10: 0 | L10: 112 | N10: 122 | O10: 5 | P10: 0.09259259259 | Q10: -0.3178666118 | T10: 122 | U10: =COUNTIF(L7:L15,T10) -> 1 | Y10: 122 | Z10: =COUNTIF(L16:L24,Y10) -> 3 | AD10: 122 | AE10: =COUNTIF(L25:L33,AD10) -> 1 | AI10: 122 | AJ10: =COUNTIF(L34:L42,AI10) -> 0 | AN10: 122 | AO10: =COUNTIF(L43:L51,AN10) -> 0 | AS10: 122 | AT10: =COUNTIF(L52:L60,AS10) -> 0
A11: 11 | B11: 446 | C11: 11 | D11: 451 | E11: 21 | F11: 482 | K11: 0 | L11: 112 | N11: 211 | O11: 0 | P11: 0 | Q11: 0 | T11: 211 | U11: =COUNTIF(L7:L15,T11) -> 0 | V11: =U11/(W4-U10) -> 0 | W11: =IF(V11=0,0,(V11*((LOG(V11))/LOG(2)))) -> 0 | Y11: 211 | Z11: =COUNTIF(L16:L24,Y11) -> 0 | AA11: =Z11/(AB4-Z10) -> 0 | AB11: =IF(AA11=0,0,(AA11*((LOG(AA11))/LOG(2)))) -> 0 | AD11: 211 | AE11: =COUNTIF(L25:L33,AD11) -> 0 | AF11: =AE11/(AG4-AE10) -> 0 | AG11: =IF(AF11=0,0,(AF11*((LOG(AF11))/LOG(2)))) -> 0 | AI11: 211 | AJ11: =COUNTIF(L34:L42,AI11) -> 0 | AK11: =AJ11/(AL4-AJ10) -> 0 | AL11: =IF(AK11=0,0,(AK11*((LOG(AK11))/LOG(2)))) -> 0 | AN11: 211 | AO11: =COUNTIF(L43:L51,AN11) -> 0 | AP11: =AO11/(AQ4-AO10) -> 0 | AQ11: =IF(AP11=0,0,(AP11*((LOG(AP11))/LOG(2)))) -> 0 | AS11: 211 | AT11: =COUNTIF(L52:L60,AS11) -> 0 | AU11: =AT11/(AV4-AT10) -> 0 | AV11: =IF(AU11=0,0,(AU11*((LOG(AU11))/LOG(2)))) -> 0
A12: 11 | B12: 574 | C12: 11 | D12: 603 | E12: 21 | F12: 622 | K12: 0 | L12: 112 | N12: 212 | O12: 0 | P12: 0 | Q12: 0 | T12: 212 | U12: =COUNTIF(L7:L15,T12) -> 0 | V12: =U12/(W4-U10) -> 0 | W12: =IF(V12=0,0,(V12*((LOG(V12))/LOG(2)))) -> 0 | Y12: 212 | Z12: =COUNTIF(L16:L24,Y12) -> 0 | AA12: =Z12/(AB4-Z10) -> 0 | AB12: =IF(AA12=0,0,(AA12*((LOG(AA12))/LOG(2)))) -> 0 | AD12: 212 | AE12: =COUNTIF(L25:L33,AD12) -> 0 | AF12: =AE12/(AG4-AE10) -> 0 | AG12: =IF(AF12=0,0,(AF12*((LOG(AF12))/LOG(2)))) -> 0 | AI12: 212 | AJ12: =COUNTIF(L34:L42,AI12) -> 0 | AK12: =AJ12/(AL4-AJ10) -> 0 | AL12: =IF(AK12=0,0,(AK12*((LOG(AK12))/LOG(2)))) -> 0 | AN12: 212 | AO12: =COUNTIF(L43:L51,AN12) -> 0 | AP12: =AO12/(AQ4-AO10) -> 0 | AQ12: =IF(AP12=0,0,(AP12*((LOG(AP12))/LOG(2)))) -> 0 | AS12: 212 | AT12: =COUNTIF(L52:L60,AS12) -> 0 | AU12: =AT12/(AV4-AT10) -> 0 | AV12: =IF(AU12=0,0,(AU12*((LOG(AU12))/LOG(2)))) -> 0
A13: 11 | B13: 712 | C13: 11 | D13: 719 | E13: 21 | F13: 736 | K13: 0 | L13: 112 | N13: 221 | O13: 0 | P13: 0 | Q13: 0 | T13: 221 | U13: =COUNTIF(L7:L15,T13) -> 0 | V13: =U13/(W4-U10) -> 0 | W13: =IF(V13=0,0,(V13*((LOG(V13))/LOG(2)))) -> 0 | Y13: 221 | Z13: =COUNTIF(L16:L24,Y13) -> 0 | AA13: =Z13/(AB4-Z10) -> 0 | AB13: =IF(AA13=0,0,(AA13*((LOG(AA13))/LOG(2)))) -> 0 | AD13: 221 | AE13: =COUNTIF(L25:L33,AD13) -> 0 | AF13: =AE13/(AG4-AE10) -> 0 | AG13: =IF(AF13=0,0,(AF13*((LOG(AF13))/LOG(2)))) -> 0 | AI13: 221 | AJ13: =COUNTIF(L34:L42,AI13) -> 0 | AK13: =AJ13/(AL4-AJ10) -> 0 | AL13: =IF(AK13=0,0,(AK13*((LOG(AK13))/LOG(2)))) -> 0 | AN13: 221 | AO13: =COUNTIF(L43:L51,AN13) -> 0 | AP13: =AO13/(AQ4-AO10) -> 0 | AQ13: =IF(AP13=0,0,(AP13*((LOG(AP13))/LOG(2)))) -> 0 | AS13: 221 | AT13: =COUNTIF(L52:L60,AS13) -> 0 | AU13: =AT13/(AV4-AT10) -> 0 | AV13: =IF(AU13=0,0,(AU13*((LOG(AU13))/LOG(2)))) -> 0
A14: 11 | B14: 828 | C14: 22 | D14: 839 | E14: 23 | F14: 862 | K14: 0 | L14: 122 | N14: 222 | O14: 0 | P14: 0 | Q14: 0 | T14: 222 | U14: =COUNTIF(L7:L15,T14) -> 0 | V14: =U14/(W4-U10) -> 0 | W14: =IF(V14=0,0,(V14*((LOG(V14))/LOG(2)))) -> 0 | Y14: 222 | Z14: =COUNTIF(L16:L24,Y14) -> 0 | AA14: =Z14/(AB4-Z10) -> 0 | AB14: =IF(AA14=0,0,(AA14*((LOG(AA14))/LOG(2)))) -> 0 | AD14: 222 | AE14: =COUNTIF(L25:L33,AD14) -> 0 | AF14: =AE14/(AG4-AE10) -> 0 | AG14: =IF(AF14=0,0,(AF14*((LOG(AF14))/LOG(2)))) -> 0 | AI14: 222 | AJ14: =COUNTIF(L34:L42,AI14) -> 0 | AK14: =AJ14/(AL4-AJ10) -> 0 | AL14: =IF(AK14=0,0,(AK14*((LOG(AK14))/LOG(2)))) -> 0 | AN14: 222 | AO14: =COUNTIF(L43:L51,AN14) -> 0 | AP14: =AO14/(AQ4-AO10) -> 0 | AQ14: =IF(AP14=0,0,(AP14*((LOG(AP14))/LOG(2)))) -> 0 | AS14: 222 | AT14: =COUNTIF(L52:L60,AS14) -> 0 | AU14: =AT14/(AV4-AT10) -> 0 | AV14: =IF(AU14=0,0,(AU14*((LOG(AU14))/LOG(2)))) -> 0
A15: 11 | B15: 961 | C15: 11 | D15: 966 | E15: 21 | F15: 975 | K15: 0 | L15: 112 | P15: =SUM(P7:P14) -> 1 | Q15: =-SUM(Q7:Q14) -> 1.196771785 | V15: =SUM(V7:V14) -> 1 | W15: =-SUM(W7:W14) -> 0 | AA15: =SUM(AA7:AA14) -> 1 | AB15: =-SUM(AB7:AB14) -> 0.6500224216 | AF15: =SUM(AF7:AF14) -> 1 | AG15: =-SUM(AG7:AG14) -> 0 | AK15: =SUM(AK7:AK14) -> 1 | AL15: =-SUM(AL7:AL14) -> 1.351644115 | AP15: =SUM(AP7:AP14) -> 1 | AQ15: =-SUM(AQ7:AQ14) -> 0.9182958341 | AU15: =SUM(AU7:AU14) -> 1 | AV15: =-SUM(AV7:AV14) -> 0.5032583348
A16: 11 | B16: 1063 | C16: 11 | D16: 1082 | E16: 21 | F16: 1095 | K16: 0 | L16: 112 | P16: U= | Q16: =Q15/(LOG(Q4)/LOG(2)) -> 0.2079574596 | V16: U1= | W16: =W15/(LOG(W4)/LOG(2)) -> 0 | AA16: U2= | AB16: =AB15/(LOG(AB4)/LOG(2)) -> 0.2050592432 | AF16: U3= | AG16: =AG15/(LOG(AG4)/LOG(2)) -> 0 | AK16: U4= | AL16: =AL15/(LOG(AL4)/LOG(2)) -> 0.4263962442 | AP16: U5= | AQ16: =AQ15/(LOG(AQ4)/LOG(2)) -> 0.2896900821 | AU16: U6= | AV16: =AV15/(LOG(AV4)/LOG(2)) -> 0.1587603286
A17: 11 | B17: 1188 | C17: 22 | D17: 1198 | E17: 23 | F17: 1209 | K17: 0 | L17: 122
A18: 11 | B18: 1305 | C18: 11 | D18: 1309 | E18: 21 | F18: 1319 | K18: 0 | L18: 112
A19: 11 | B19: 1412 | C19: 22 | D19: 1429 | E19: 14 | F19: 1445 | K19: 0 | L19: 121 | N19: Total Target Seq
A20: 11 | B20: 1540 | C20: 11 | D20: 1545 | E20: 21 | F20: 1556 | K20: 0 | L20: 112 | N20: =COUNTIF(L7:L60,G3) -> 5 | P20: 9 | Q20: 9 | R20: 9 | S20: 9 | T20: 9 | U20: 9
A21: 11 | B21: 1646 | C21: 22 | D21: 1658 | E21: 23 | F21: 1679 | K21: 0 | L21: 122 | P21: % of reinforcement given in 6 equal intervals based on number of trials
A22: 11 | B22: 1779 | C22: 22 | D22: 1790 | E22: 23 | F22: 1812 | K22: 0 | L22: 122 | P22: %_1 | Q22: %_2 | R22: %_3 | S22: %_4 | T22: %_5 | U22: %_6
A23: 11 | B23: 1913 | C23: 11 | D23: 1918 | E23: 21 | F23: 1937 | K23: 0 | L23: 112 | O23: target sequence | P23: =$G$3 -> 122 | Q23: 122 | R23: 122 | S23: 122 | T23: 122 | U23: 122
A24: 11 | B24: 2025 | C24: 11 | D24: 2030 | E24: 21 | F24: 2043 | K24: 0 | L24: 112 | O24: total reinforcement | P24: =U10 -> 1 | Q24: =Z10 -> 3 | R24: =AE10 -> 1 | S24: =AJ10 -> 0 | T24: =AO10 -> 0 | U24: =AT10 -> 0
A25: 11 | B25: 2132 | C25: 11 | D25: 2137 | E25: 21 | F25: 2146 | K25: 0 | L25: 112 | O25: % target
A26: 11 | B26: 2237 | C26: 11 | D26: 2242 | E26: 21 | F26: 2258 | K26: 0 | L26: 112 | O26: CCRF
A27: 11 | B27: 2347 | C27: 11 | D27: 2353 | E27: 21 | F27: 2370 | K27: 0 | L27: 112 | O27: % CCRf
A28: 11 | B28: 2457 | C28: 22 | D28: 2474 | E28: 23 | F28: 2487 | K28: 0 | L28: 122 | O28: average response rate | P28: =F15/P20 -> 108.3333333 | Q28: =(F24-F15)/Q20 -> 118.6666667 | R28: =(F33-F24)/R20 -> 116 | S28: =(F42-F33)/S20 -> 124 | T28: =(F51-F42)/T20 -> 111.5555556 | U28: =(F60-F51)/U20 -> 123.2222222
A29: 11 | B29: 2583 | C29: 11 | D29: 2588 | E29: 21 | F29: 2606 | K29: 0 | L29: 112
A30: 11 | B30: 2695 | C30: 11 | D30: 2700 | E30: 21 | F30: 2710 | K30: 0 | L30: 112
A31: 11 | B31: 2795 | C31: 11 | D31: 2803 | E31: 21 | F31: 2823 | K31: 0 | L31: 112
A32: 11 | B32: 2910 | C32: 11 | D32: 2915 | E32: 21 | F32: 2931 | K32: 0 | L32: 112
A33: 11 | B33: 3017 | C33: 11 | D33: 3022 | E33: 21 | F33: 3087 | K33: 0 | L33: 112
A34: 11 | B34: 3176 | C34: 11 | D34: 3186 | E34: 21 | F34: 3196 | K34: 0 | L34: 112
A35: 11 | B35: 3282 | C35: 22 | D35: 3294 | E35: 14 | F35: 3307 | K35: 0 | L35: 121
A36: 11 | B36: 3404 | C36: 11 | D36: 3408 | E36: 21 | F36: 3433 | K36: 0 | L36: 112
A37: 11 | B37: 3522 | C37: 11 | D37: 3530 | E37: 12 | F37: 3608 | K37: 0 | L37: 111
A38: 11 | B38: 3705 | C38: 11 | D38: 3709 | E38: 21 | F38: 3719 | K38: 0 | L38: 112
A39: 11 | B39: 3808 | C39: 11 | D39: 3813 | E39: 21 | F39: 3857 | K39: 0 | L39: 112
A40: 11 | B40: 3943 | C40: 11 | D40: 3951 | E40: 21 | F40: 3988 | K40: 0 | L40: 112
A41: 11 | B41: 4073 | C41: 11 | D41: 4079 | E41: 12 | F41: 4097 | K41: 0 | L41: 111
A42: 11 | B42: 4195 | C42: 11 | D42: 4196 | E42: 12 | F42: 4203 | K42: 0 | L42: 111
A43: 11 | B43: 4301 | C43: 11 | D43: 4306 | E43: 21 | F43: 4325 | K43: 0 | L43: 112
A44: 11 | B44: 4415 | C44: 11 | D44: 4422 | E44: 21 | F44: 4431 | K44: 0 | L44: 112
A45: 11 | B45: 4518 | C45: 11 | D45: 4523 | E45: 21 | F45: 4533 | K45: 0 | L45: 112
A46: 11 | B46: 4622 | C46: 11 | D46: 4627 | E46: 12 | F46: 4632 | K46: 0 | L46: 111
A47: 11 | B47: 4729 | C47: 11 | D47: 4735 | E47: 21 | F47: 4744 | K47: 0 | L47: 112
A48: 11 | B48: 4831 | C48: 11 | D48: 4836 | E48: 12 | F48: 4842 | K48: 0 | L48: 111
A49: 11 | B49: 4940 | C49: 11 | D49: 4947 | E49: 21 | F49: 4985 | K49: 0 | L49: 112
A50: 11 | B50: 5070 | C50: 11 | D50: 5076 | E50: 12 | F50: 5085 | K50: 0 | L50: 111
A51: 11 | B51: 5183 | C51: 11 | D51: 5187 | E51: 21 | F51: 5207 | K51: 0 | L51: 112
A52: 11 | B52: 5296 | C52: 11 | D52: 5305 | E52: 21 | F52: 5362 | K52: 0 | L52: 112
A53: 11 | B53: 5448 | C53: 11 | D53: 5452 | E53: 12 | F53: 5458 | K53: 0 | L53: 111
A54: 11 | B54: 5555 | C54: 11 | D54: 5561 | E54: 21 | F54: 5586 | K54: 0 | L54: 112
A55: 11 | B55: 5672 | C55: 11 | D55: 5677 | E55: 21 | F55: 5690 | K55: 0 | L55: 112
A56: 11 | B56: 5779 | C56: 11 | D56: 5784 | E56: 21 | F56: 5836 | K56: 0 | L56: 112
A57: 11 | B57: 5925 | C57: 11 | D57: 5930 | E57: 21 | F57: 5946 | K57: 0 | L57: 112
A58: 11 | B58: 6035 | C58: 11 | D58: 6040 | E58: 21 | F58: 6102 | K58: 0 | L58: 112
A59: 11 | B59: 6189 | C59: 11 | D59: 6193 | E59: 21 | F59: 6202 | K59: 0 | L59: 112
A60: 11 | B60: 6289 | C60: 11 | D60: 6294 | E60: 21 | F60: 6316 | K60: 1 | L60: 112

Sheet !L815B30.056
A1: Report for:!L815B30.056
A2: Date: | B2: <date>
A3: Hen: | B3: <hen> | F3: Correct Sequence | G3: =Start!J2 -> 122 | P3: Total Sequences in Data | Q3: =4994-COUNTBLANK(L7:L5000) -> 43 | V3: Total Sequences in Block Data | W3: =COUNTA(L7:L13) -> 7 | AA3: Total Sequences in Block Data | AB3: =COUNTA(L14:L20) -> 7 | AF3: Total Sequences in Block Data | AG3: =COUNTA(L21:L28) -> 8 | AK3: Total Sequences in Block Data | AL3: =COUNTA(L29:L35) -> 7 | AP3: Total Sequences in Block Data | AQ3: =COUNTA(L36:L42) -> 7 | AU3: Total Sequences in Block Data | AV3: =COUNTA(L43:L49) -> 7
P4: Total Sequences in Summary | Q4: =SUM(O7:O14) -> 43 | V4: Total Sequences in Block Summary | W4: =SUM(U7:U14) -> 7 | AA4: Total Sequences in Block Summary | AB4: =SUM(Z7:Z14) -> 7 | AF4: Total Sequences in Block Summary | AG4: =SUM(AE7:AE14) -> 8 | AK4: Total Sequences in Block Summary | AL4: =SUM(AJ7:AJ14) -> 7 | AP4: Total Sequences in Block Summary | AQ4: =SUM(AO7:AO14) -> 7 | AU4: Total Sequences in Block Summary | AV4: =SUM(AT7:AT14) -> 7
T5: Block 1 | Y5: Block 2 | AD5: Block 3 | AI5: Block 4 | AN5: Block 5 | AS5: Block 6
A6: Sequence Component 1 | B6: Time 1 | C6: Sequence Component 2 | D6: Time 2 | E6: Sequence Component 3 | F6: Time 3 | G6: Sequence Component 4 | H6: Time 4 | I6: Sequence Component 5 | J6: Time 5 | K6: Correct? 0=No 1=Yes | L6: Sequence | N6: Frequency | P6: Relative Frequency | Q6: Variability | T6: Frequency | V6: Relative Frequency | W6: Variability | Y6: Frequency | AA6: Relative Frequency | AB6: Variability | AD6: Frequency | AF6: Relative Frequency | AG6: Variability | AI6: Frequency | AK6: Relative Frequency | AL6: Variability | AN6: Frequency | AP6: Relative Frequency | AQ6: Variability | AS6: Frequency | AU6: Relative Frequency | AV6: Variability
A7: 11 | B7: 10 | C7: 11 | D7: 16 | E7: 21 | F7: 26 | K7: 0 | L7: 112 | N7: 111 | O7: =COUNTIF($L$7:$L$500,N7) -> 2 | P7: =O7/$Q$4 -> 0.04651162791 | Q7: =IF(P7=0,0,(P7*((LOG(P7))/LOG(2)))) -> -0.2058727793 | T7: =N7 -> 111 | U7: =COUNTIF(L7:L13,T7) -> 0 | V7: =U7/(W4-U10) -> 0 | W7: =IF(V7=0,0,(V7*((LOG(V7))/LOG(2)))) -> 0 | Y7: =N7 -> 111 | Z7: =COUNTIF(L14:L20,Y7) -> 0 | AA7: =Z7/(AB4-Z10) -> 0 | AB7: =IF(AA7=0,0,(AA7*((LOG(AA7))/LOG(2)))) -> 0 | AD7: =N7 -> 111 | AE7: =COUNTIF(L21:L28,AD7) -> 0 | AF7: =AE7/(AG4-AE10) -> 0 | AG7: =IF(AF7=0,0,(AF7*((LOG(AF7))/LOG(2)))) -> 0 | AI7: =N7 -> 111 | AJ7: =COUNTIF(L29:L35,AI7) -> 1 | AK7: =AJ7/(AL4-AJ10) -> 0.1428571429 | AL7: =IF(AK7=0,0,(AK7*((LOG(AK7))/LOG(2)))) -> -0.4010507032 | AN7: =N7 -> 111 | AO7: =COUNTIF(L36:L42,AN7) -> 0 | AP7: =AO7/(AQ4-AO10) -> 0 | AQ7: =IF(AP7=0,0,(AP7*((LOG(AP7))/LOG(2)))) -> 0 | AS7: =N7 -> 111 | AT7: =COUNTIF(L43:L49,AS7) -> 1 | AU7: =AT7/(AV4-AT10) -> 0.1666666667 | AV7: =IF(AU7=0,0,(AU7*((LOG(AU7))/LOG(2)))) -> -0.4308270835
A8: 11 | B8: 117 | C8: 11 | D8: 126 | E8: 21 | F8: 135 | K8: 0 | L8: 112 | N8: 112 | O8: 40 | P8: 0.9302325581 | Q8: -0.09705735797 | T8: 112 | U8: =COUNTIF(L7:L13,T8) -> 7 | V8: =U8/(W4-U10) -> 1 | W8: =IF(V8=0,0,(V8*((LOG(V8))/LOG(2)))) -> 0 | Y8: 112 | Z8: =COUNTIF(L14:L20,Y8) -> 7 | AA8: =Z8/(AB4-Z10) -> 1 | AB8: =IF(AA8=0,0,(AA8*((LOG(AA8))/LOG(2)))) -> 0 | AD8: 112 | AE8: =COUNTIF(L21:L28,AD8) -> 8 | AF8: =AE8/(AG4-AE10) -> 1 | AG8: =IF(AF8=0,0,(AF8*((LOG(AF8))/LOG(2)))) -> 0 | AI8: 112 | AJ8: =COUNTIF(L29:L35,AI8) -> 6 | AK8: =AJ8/(AL4-AJ10) -> 0.8571428571 | AL8: =IF(AK8=0,0,(AK8*((LOG(AK8))/LOG(2)))) -> -0.1906220754 | AN8: 112 | AO8: =COUNTIF(L36:L42,AN8) -> 7 | AP8: =AO8/(AQ4-AO10) -> 1 | AQ8: =IF(AP8=0,0,(AP8*((LOG(AP8))/LOG(2)))) -> 0 | AS8: 112 | AT8: =COUNTIF(L43:L49,AS8) -> 5 | AU8: =AT8/(AV4-AT10) -> 0.8333333333 | AV8: =IF(AU8=0,0,(AU8*((LOG(AU8))/LOG(2)))) -> -0.2191953382
A9: 11 | B9: 224 | C9: 11 | D9: 229 | E9: 21 | F9: 239 | K9: 0 | L9: 112 | N9: 121 | O9: 0 | P9: 0 | Q9: 0 | T9: 121 | U9: =COUNTIF(L7:L13,T9) -> 0 | V9: =U9/(W4-U10) -> 0 | W9: =IF(V9=0,0,(V9*((LOG(V9))/LOG(2)))) -> 0 | Y9: 121 | Z9: =COUNTIF(L14:L20,Y9) -> 0 | AA9: =Z9/(AB4-Z10) -> 0 | AB9: =IF(AA9=0,0,(AA9*((LOG(AA9))/LOG(2)))) -> 0 | AD9: 121 | AE9: =COUNTIF(L21:L28,AD9) -> 0 | AF9: =AE9/(AG4-AE10) -> 0 | AG9: =IF(AF9=0,0,(AF9*((LOG(AF9))/LOG(2)))) -> 0 | AI9: 121 | AJ9: =COUNTIF(L29:L35,AI9) -> 0 | AK9: =AJ9/(AL4-AJ10) -> 0 | AL9: =IF(AK9=0,0,(AK9*((LOG(AK9))/LOG(2)))) -> 0 | AN9: 121 | AO9: =COUNTIF(L36:L42,AN9) -> 0 | AP9: =AO9/(AQ4-AO10) -> 0 | AQ9: =IF(AP9=0,0,(AP9*((LOG(AP9))/LOG(2)))) -> 0 | AS9: 121 | AT9: =COUNTIF(L43:L49,AS9) -> 0 | AU9: =AT9/(AV4-AT10) -> 0 | AV9: =IF(AU9=0,0,(AU9*((LOG(AU9))/LOG(2)))) -> 0
A10: 11 | B10: 329 | C10: 11 | D10: 334 | E10: 21 | F10: 351 | K10: 0 | L10: 112 | N10: 122 | O10: 1 | P10: 0.02325581395 | Q10: -0.1261922036 | T10: 122 | U10: =COUNTIF(L7:L13,T10) -> 0 | Y10: 122 | Z10: =COUNTIF(L14:L20,Y10) -> 0 | AD10: 122 | AE10: =COUNTIF(L21:L28,AD10) -> 0 | AI10: 122 | AJ10: =COUNTIF(L29:L35,AI10) -> 0 | AN10: 122 | AO10: =COUNTIF(L36:L42,AN10) -> 0 | AS10: 122 | AT10: =COUNTIF(L43:L49,AS10) -> 1
A11: 11 | B11: 439 | C11: 11 | D11: 447 | E11: 21 | F11: 464 | K11: 0 | L11: 112 | N11: 211 | O11: 0 | P11: 0 | Q11: 0 | T11: 211 | U11: =COUNTIF(L7:L13,T11) -> 0 | V11: =U11/(W4-U10) -> 0 | W11: =IF(V11=0,0,(V11*((LOG(V11))/LOG(2)))) -> 0 | Y11: 211 | Z11: =COUNTIF(L14:L20,Y11) -> 0 | AA11: =Z11/(AB4-Z10) -> 0 | AB11: =IF(AA11=0,0,(AA11*((LOG(AA11))/LOG(2)))) -> 0 | AD11: 211 | AE11: =COUNTIF(L21:L28,AD11) -> 0 | AF11: =AE11/(AG4-AE10) -> 0 | AG11: =IF(AF11=0,0,(AF11*((LOG(AF11))/LOG(2)))) -> 0 | AI11: 211 | AJ11: =COUNTIF(L29:L35,AI11) -> 0 | AK11: =AJ11/(AL4-AJ10) -> 0 | AL11: =IF(AK11=0,0,(AK11*((LOG(AK11))/LOG(2)))) -> 0 | AN11: 211 | AO11: =COUNTIF(L36:L42,AN11) -> 0 | AP11: =AO11/(AQ4-AO10) -> 0 | AQ11: =IF(AP11=0,0,(AP11*((LOG(AP11))/LOG(2)))) -> 0 | AS11: 211 | AT11: =COUNTIF(L43:L49,AS11) -> 0 | AU11: =AT11/(AV4-AT10) -> 0 | AV11: =IF(AU11=0,0,(AU11*((LOG(AU11))/LOG(2)))) -> 0
A12: 11 | B12: 551 | C12: 11 | D12: 558 | E12: 21 | F12: 612 | K12: 0 | L12: 112 | N12: 212 | O12: 0 | P12: 0 | Q12: 0 | T12: 212 | U12: =COUNTIF(L7:L13,T12) -> 0 | V12: =U12/(W4-U10) -> 0 | W12: =IF(V12=0,0,(V12*((LOG(V12))/LOG(2)))) -> 0 | Y12: 212 | Z12: =COUNTIF(L14:L20,Y12) -> 0 | AA12: =Z12/(AB4-Z10) -> 0 | AB12: =IF(AA12=0,0,(AA12*((LOG(AA12))/LOG(2)))) -> 0 | AD12: 212 | AE12: =COUNTIF(L21:L28,AD12) -> 0 | AF12: =AE12/(AG4-AE10) -> 0 | AG12: =IF(AF12=0,0,(AF12*((LOG(AF12))/LOG(2)))) -> 0 | AI12: 212 | AJ12: =COUNTIF(L29:L35,AI12) -> 0 | AK12: =AJ12/(AL4-AJ10) -> 0 | AL12: =IF(AK12=0,0,(AK12*((LOG(AK12))/LOG(2)))) -> 0 | AN12: 212 | AO12: =COUNTIF(L36:L42,AN12) -> 0 | AP12: =AO12/(AQ4-AO10) -> 0 | AQ12: =IF(AP12=0,0,(AP12*((LOG(AP12))/LOG(2)))) -> 0 | AS12: 212 | AT12: =COUNTIF(L43:L49,AS12) -> 0 | AU12: =AT12/(AV4-AT10) -> 0 | AV12: =IF(AU12=0,0,(AU12*((LOG(AU12))/LOG(2)))) -> 0
A13: 11 | B13: 701 | C13: 11 | D13: 705 | E13: 21 | F13: 717 | K13: 0 | L13: 112 | N13: 221 | O13: 0 | P13: 0 | Q13: 0 | T13: 221 | U13: =COUNTIF(L7:L13,T13) -> 0 | V13: =U13/(W4-U10) -> 0 | W13: =IF(V13=0,0,(V13*((LOG(V13))/LOG(2)))) -> 0 | Y13: 221 | Z13: =COUNTIF(L14:L20,Y13) -> 0 | AA13: =Z13/(AB4-Z10) -> 0 | AB13: =IF(AA13=0,0,(AA13*((LOG(AA13))/LOG(2)))) -> 0 | AD13: 221 | AE13: =COUNTIF(L21:L28,AD13) -> 0 | AF13: =AE13/(AG4-AE10) -> 0 | AG13: =IF(AF13=0,0,(AF13*((LOG(AF13))/LOG(2)))) -> 0 | AI13: 221 | AJ13: =COUNTIF(L29:L35,AI13) -> 0 | AK13: =AJ13/(AL4-AJ10) -> 0 | AL13: =IF(AK13=0,0,(AK13*((LOG(AK13))/LOG(2)))) -> 0 | AN13: 221 | AO13: =COUNTIF(L36:L42,AN13) -> 0 | AP13: =AO13/(AQ4-AO10) -> 0 | AQ13: =IF(AP13=0,0,(AP13*((LOG(AP13))/LOG(2)))) -> 0 | AS13: 221 | AT13: =COUNTIF(L43:L49,AS13) -> 0 | AU13: =AT13/(AV4-AT10) -> 0 | AV13: =IF(AU13=0,0,(AU13*((LOG(AU13))/LOG(2)))) -> 0
A14: 11 | B14: 805 | C14: 11 | D14: 810 | E14: 21 | F14: 826 | K14: 0 | L14: 112 | N14: 222 | O14: 0 | P14: 0 | Q14: 0 | T14: 222 | U14: =COUNTIF(L7:L13,T14) -> 0 | V14: =U14/(W4-U10) -> 0 | W14: =IF(V14=0,0,(V14*((LOG(V14))/LOG(2)))) -> 0 | Y14: 222 | Z14: =COUNTIF(L14:L20,Y14) -> 0 | AA14: =Z14/(AB4-Z10) -> 0 | AB14: =IF(AA14=0,0,(AA14*((LOG(AA14))/LOG(2)))) -> 0 | AD14: 222 | AE14: =COUNTIF(L21:L28,AD14) -> 0 | AF14: =AE14/(AG4-AE10) -> 0 | AG14: =IF(AF14=0,0,(AF14*((LOG(AF14))/LOG(2)))) -> 0 | AI14: 222 | AJ14: =COUNTIF(L29:L35,AI14) -> 0 | AK14: =AJ14/(AL4-AJ10) -> 0 | AL14: =IF(AK14=0,0,(AK14*((LOG(AK14))/LOG(2)))) -> 0 | AN14: 222 | AO14: =COUNTIF(L36:L42,AN14) -> 0 | AP14: =AO14/(AQ4-AO10) -> 0 | AQ14: =IF(AP14=0,0,(AP14*((LOG(AP14))/LOG(2)))) -> 0 | AS14: 222 | AT14: =COUNTIF(L43:L49,AS14) -> 0 | AU14: =AT14/(AV4-AT10) -> 0 | AV14: =IF(AU14=0,0,(AU14*((LOG(AU14))/LOG(2)))) -> 0
A15: 11 | B15: 913 | C15: 11 | D15: 919 | E15: 21 | F15: 936 | K15: 0 | L15: 112 | P15: =SUM(P7:P14) -> 1 | Q15: =-SUM(Q7:Q14) -> 0.4291223409 | V15: =SUM(V7:V14) -> 1 | W15: =-SUM(W7:W14) -> 0 | AA15: =SUM(AA7:AA14) -> 1 | AB15: =-SUM(AB7:AB14) -> 0 | AF15: =SUM(AF7:AF14) -> 1 | AG15: =-SUM(AG7:AG14) -> 0 | AK15: =SUM(AK7:AK14) -> 1 | AL15: =-SUM(AL7:AL14) -> 0.5916727786 | AP15: =SUM(AP7:AP14) -> 1 | AQ15: =-SUM(AQ7:AQ14) -> 0 | AU15: =SUM(AU7:AU14) -> 1 | AV15: =-SUM(AV7:AV14) -> 0.6500224216
A16: 11 | B16: 1024 | C16: 11 | D16: 1030 | E16: 21 | F16: 1046 | K16: 0 | L16: 112 | P16: U= | Q16: =Q15/(LOG(Q4)/LOG(2)) -> 0.07908245547 | V16: U1= | W16: =W15/(LOG(W4)/LOG(2)) -> 0 | AA16: U2= | AB16: =AB15/(LOG(AB4)/LOG(2)) -> 0 | AF16: U3= | AG16: =AG15/(LOG(AG4)/LOG(2)) -> 0 | AK16: U4= | AL16: =AL15/(LOG(AL4)/LOG(2)) -> 0.2107580961 | AP16: U5= | AQ16: =AQ15/(LOG(AQ4)/LOG(2)) -> 0 | AU16: U6= | AV16: =AV15/(LOG(AV4)/LOG(2)) -> 0.2315426584
A17: 11 | B17: 1133 | C17: 11 | D17: 1140 | E17: 21 | F17: 1151 | K17: 0 | L17: 112
A18: 11 | B18: 1244 | C18: 11 | D18: 1249 | E18: 21 | F18: 1267 | K18: 0 | L18: 112
A19: 11 | B19: 1356 | C19: 11 | D19: 1361 | E19: 21 | F19: 1372 | K19: 0 | L19: 112 | N19: Total Target Seq
A20: 11 | B20: 1459 | C20: 11 | D20: 1472 | E20: 21 | F20: 1493 | K20: 0 | L20: 112 | N20: =COUNTIF(L7:L49,G3) -> 1 | P20: 7 | Q20: 7 | R20: 8 | S20: 7 | T20: 7 | U20: 7
A21: 11 | B21: 1582 | C21: 11 | D21: 1588 | E21: 21 | F21: 1620 | K21: 0 | L21: 112 | P21: % of reinforcement given in 6 equal intervals based on number of trials
A22: 11 | B22: 1712 | C22: 11 | D22: 1716 | E22: 21 | F22: 1739 | K22: 0 | L22: 112 | P22: %_1 | Q22: %_2 | R22: %_3 | S22: %_4 | T22: %_5 | U22: %_6
A23: 11 | B23: 1826 | C23: 11 | D23: 1831 | E23: 21 | F23: 1840 | K23: 0 | L23: 112 | O23: target sequence | P23: =$G$3 -> 122 | Q23: 122 | R23: 122 | S23: 122 | T23: 122 | U23: 122
A24: 11 | B24: 1930 | C24: 11 | D24: 1935 | E24: 21 | F24: 1944 | K24: 0 | L24: 112 | O24: total reinforcement | P24: =U10 -> 0 | Q24: =Z10 -> 0 | R24: =AE10 -> 0 | S24: =AJ10 -> 0 | T24: =AO10 -> 0 | U24: =AT10 -> 1
A25: 11 | B25: 2033 | C25: 11 | D25: 2043 | E25: 21 | F25: 2061 | K25: 0 | L25: 112 | O25: % target
A26: 11 | B26: 2148 | C26: 11 | D26: 2153 | E26: 21 | F26: 2195 | K26: 0 | L26: 112 | O26: CCRF
A27: 11 | B27: 2282 | C27: 11 | D27: 2288 | E27: 21 | F27: 2298 | K27: 0 | L27: 112 | O27: % CCRf
A28: 11 | B28: 2389 | C28: 11 | D28: 2398 | E28: 21 | F28: 2424 | K28: 0 | L28: 112 | O28: average response rate | P28: =F13/P20 -> 102.4285714 | Q28: =(F20-F13)/Q20 -> 110.8571429 | R28: =(F28-F20)/R20 -> 116.375 | S28: =(F35-F28)/S20 -> 112.4285714 | T28: =(F42-F35)/T20 -> 106.7142857 | U28: =(F49-F42)/U20 -> 123.7142857
A29: 11 | B29: 2517 | C29: 11 | D29: 2521 | E29: 21 | F29: 2535 | K29: 0 | L29: 112
A30: 11 | B30: 2624 | C30: 11 | D30: 2634 | E30: 21 | F30: 2651 | K30: 0 | L30: 112
A31: 11 | B31: 2737 | C31: 11 | D31: 2741 | E31: 21 | F31: 2784 | K31: 0 | L31: 112
A32: 11 | B32: 2874 | C32: 11 | D32: 2879 | E32: 12 | F32: 2884 | K32: 0 | L32: 111
A33: 11 | B33: 2982 | C33: 11 | D33: 2987 | E33: 21 | F33: 3005 | K33: 0 | L33: 112
A34: 11 | B34: 3093 | C34: 11 | D34: 3098 | E34: 21 | F34: 3107 | K34: 0 | L34: 112
A35: 11 | B35: 3196 | C35: 11 | D35: 3200 | E35: 21 | F35: 3211 | K35: 0 | L35: 112
A36: 11 | B36: 3299 | C36: 11 | D36: 3303 | E36: 21 | F36: 3312 | K36: 0 | L36: 112
A37: 11 | B37: 3398 | C37: 11 | D37: 3404 | E37: 21 | F37: 3416 | K37: 0 | L37: 112
A38: 11 | B38: 3505 | C38: 11 | D38: 3510 | E38: 21 | F38: 3519 | K38: 0 | L38: 112
A39: 11 | B39: 3607 | C39: 11 | D39: 3613 | E39: 21 | F39: 3622 | K39: 0 | L39: 112
A40: 11 | B40: 3708 | C40: 11 | D40: 3714 | E40: 21 | F40: 3755 | K40: 0 | L40: 112
A41: 11 | B41: 3843 | C41: 11 | D41: 3848 | E41: 21 | F41: 3857 | K41: 0 | L41: 112
A42: 11 | B42: 3945 | C42: 11 | D42: 3949 | E42: 21 | F42: 3958 | K42: 0 | L42: 112
A43: 11 | B43: 4045 | C43: 11 | D43: 4052 | E43: 21 | F43: 4061 | K43: 0 | L43: 112
A44: 11 | B44: 4151 | C44: 11 | D44: 4155 | E44: 21 | F44: 4205 | K44: 0 | L44: 112
A45: 11 | B45: 4294 | C45: 11 | D45: 4301 | E45: 21 | F45: 4317 | K45: 0 | L45: 112
A46: 11 | B46: 4406 | C46: 11 | D46: 4411 | E46: 12 | F46: 4475 | K46: 0 | L46: 111
A47: 11 | B47: 4574 | C47: 22 | D47: 4584 | E47: 23 | F47: 4593 | K47: 0 | L47: 122
A48: 11 | B48: 4690 | C48: 11 | D48: 4695 | E48: 21 | F48: 4704 | K48: 0 | L48: 112
A49: 11 | B49: 4794 | C49: 11 | D49: 4800 | E49: 21 | F49: 4824 | K49: 1 | L49: 112

Sheet !L816B00.056
A1: Report for:!L816B00.056
A2: Date: | B2: <date>
A3: Hen: | B3: <hen> | F3: Correct Sequence | G3: =Start!J2 -> 122 | P3: Total Sequences in Data | Q3: =4994-COUNTBLANK(L7:L5000) -> 46 | V3: Total Sequences in Block Data | W3: =COUNTA(L7:L14) -> 8 | AA3: Total Sequences in Block Data | AB3: =COUNTA(L15:L21) -> 7 | AF3: Total Sequences in Block Data | AG3: =COUNTA(L22:L29) -> 8 | AK3: Total Sequences in Block Data | AL3: =COUNTA(L30:L37) -> 8 | AP3: Total Sequences in Block Data | AQ3: =COUNTA(L38:L44) -> 7 | AU3: Total Sequences in Block Data | AV3: =COUNTA(L45:L52) -> 8
P4: Total Sequences in Summary | Q4: =SUM(O7:O14) -> 46 | V4: Total Sequences in Block Summary | W4: =SUM(U7:U14) -> 8 | AA4: Total Sequences in Block Summary | AB4: =SUM(Z7:Z14) -> 7 | AF4: Total Sequences in Block Summary | AG4: =SUM(AE7:AE14) -> 8 | AK4: Total Sequences in Block Summary | AL4: =SUM(AJ7:AJ14) -> 8 | AP4: Total Sequences in Block Summary | AQ4: =SUM(AO7:AO14) -> 7 | AU4: Total Sequences in Block Summary | AV4: =SUM(AT7:AT14) -> 8
T5: Block 1 | Y5: Block 2 | AD5: Block 3 | AI5: Block 4 | AN5: Block 5 | AS5: Block 6
A6: Sequence Component 1 | B6: Time 1 | C6: Sequence Component 2 | D6: Time 2 | E6: Sequence Component 3 | F6: Time 3 | G6: Sequence Component 4 | H6: Time 4 | I6: Sequence Component 5 | J6: Time 5 | K6: Correct? 0=No 1=Yes | L6: Sequence | N6: Frequency | P6: Relative Frequency | Q6: Variability | T6: Frequency | V6: Relative Frequency | W6: Variability | Y6: Frequency | AA6: Relative Frequency | AB6: Variability | AD6: Frequency | AF6: Relative Frequency | AG6: Variability | AI6: Frequency | AK6: Relative Frequency | AL6: Variability | AN6: Frequency | AP6: Relative Frequency | AQ6: Variability | AS6: Frequency | AU6: Relative Frequency | AV6: Variability
